{"text_format":"1","workbook":"xlsx","n_sheets":27,"sheets":["Background","Start","Start - Guidance (deicer)","SRP - Questions","weather data","SRP - Guidance","SRP - BTT Matrix","Storage - Climate Matrix","CS - Questions","CS - Compatibility","CS - Guidance","TRD - Questions","TRD - Guidance (afbr)","TRD - Guidance (mbbr)","TRD - Guidance (agb)","TRD - Guidance (as)","TRD - Guidance (al)","TRD - Guidance (pft)","TRD - Guidance (general)","TRD - Guidance (POTW)","TRD - Guidance (gr)","Storage - Questions","Storage - Guidance","Rating System","BMP Scores","Report","testreport"],"not_rendered":{"charts":0,"images":0,"macros":1,"external_links":1,"defined_names":427,"comments":0,"pivot_tables":3},"unopened":[],"bounds":{"document_bytes":16777216,"sheet_cells":100000,"rows_first":2000,"rows_last":500,"rows_between":2000,"halvings":0,"cell_chars":16384,"cell_head_chars":4096},"cells_cut":0,"cells_raw":0,"read":"whole","date_system":"1900"}

{"sheet":"Background","index":0,"n_rows":28,"n_cols":4,"rows_kept":28,"cut":false,"hidden":false,"merged":[[16,3,21,9],[10,3,13,9],[2,2,2,9]]}
[]
[]
[null,null,"ACRP Deicing Runoff Management Decision Support Tool"]
[]
[]
[]
[]
[]
[]
[null,null,"Background"]
[null,null,null,"The ACRP Deicing Runoff Management Decision Support Tool was developed as part of the ACRP 02-71 research project.  It was created to accompany ACRP Report 14 (2nd Edition) and help airport staff and consultants in applying the guidance in the report to conduct an initial screening analysis of possible deicing runoff management strategies at their facility.  \nNOTE: Macros must be enabled in this tool in order for it to function properly."]
[]
[]
[]
[]
[null,null,"Summary"]
[null,null,null,"This tool is intended to help airports identify the Source Reduction, Collection and Containment, Treatment/Disposal/Recycling, and Storage Best Management Practices (BMPs) that may be applicable and feasible at their facility.  It represents a structured screening-level analysis of information provided by the user on key aspects of the facility and aircraft and airfield pavement deicing operations and controls.    A list of the key pieces of information that the user will need to run the ACRP Deicing Runoff Management Decision Support Tool is provided in the accompanying User's Guide.\n\nThis tool is intended to be applied to a single drainage area.  This could involve the entire airport, or a subset of drainage basins where deicing operations are currently conducted or are planned in the future.  For additional information, see the User's Guide.\n\nUsers must be aware of the inherent limitations of this tool.  Final evaluation, selection and design of BMPs will depend on a variety of site-specific factors that include physical and environmental setting, operational requirements (including safety), tenant community, and regulatory requirements.  The generalized assumptions embedded in the tool may not be applicable to a particular facility.  As a result, the results of the analysis provided through this tool should only be used as a basis for preliminary identification of BMPs to be subsequently investigated at a higher level of site-specific analysis.\n\nThe tool is set up to allow the user to create different named scenarios that can be saved as a uniquely named tool file and/or as a printed report.  Generally, required responses are highlighted in white boxes while information given to the user is displayed with a grey background.  \n\nIt is recommended that the pages on this tool be completed in the sequence they appear because questions on some pages are dependent on answers given in an earlier page, and certain BMPs may be incompatible with others.  However, the Source Reduction page and its recommendations may be useful for certain users as a standalone analysis, and can be completed or skipped independent of the rest of the tool.   A summary report is generated to document the analysis and provide ranked recommendations.\n"]
[]
[]
[]
[]
[]
[]
[null,null,"Additional Resources"]
[null,null,null,"ACRP Report 14"]
[null,null,null,"Fact Sheets"]
[null,null,null,"User Guide"]
[null,null,null,"Worksheet"]

{"sheet":"Start","index":1,"n_rows":46,"n_cols":6,"rows_kept":46,"cut":false,"hidden":false,"merged":[[25,2,25,3],[16,2,16,3],[33,2,33,3],[2,2,2,5]]}
[]
[]
[null,null,"Start"]
[]
[]
[]
[]
[]
[null,null,"Topic"]
[]
[null,null,"Background information"]
[null,null,null,"Prior to beginning work on the tool, please see the",null,"Worksheet"]
[null,null,null,"Macros must be enabled in this tool in order for it to function properly."]
[null,null,null,"A deicing event is defined as a day when ADF is applied to aircraft."]
[null,null,null,"A defrosting event is defined as a deicing day when low volumes of ADF are applied to remove frost/hoarfrost from aircraft."]
[]
[null,null,"Run-Specific Information"]
[null,null,null,"Analyst"]
[null,null,null,"Scenario Name"]
[null,null,null,"Description"]
[null,null,null,"Date",null,{"$f":"TODAY()","v":"2020-04-17"}]
[null,null,null,"Airport"]
[null,null,null,"Manually enter name of airport"]
[null,null,null,"Choose nearest airport for weather data"]
[]
[null,null,"Weather Information"]
[null,null,null,"Is weather data available for this airport?"]
[null,null,null,"Average number of days with deicing events (including defrosting events) at airport"]
[null,null,null,"Average number of days with frost deicing events (negligible precipitation) at airport"]
[null,null,null,"Average number of days with events with snow > 1 inch (or liquid equivalent > 0.1 inch)"]
[null,null,null,"Average winter temperature or average deicing event temperature (°F)",null,{"$f":"VLOOKUP(IF(airportName=\"NOT LISTED\",airportNearest,airportName),Table1[[Column102]:[Column11]],2,FALSE)","v":{"$error":"#N/A"}}]
[null,null,null,"Average winter precipitation (inches)",null,{"$f":"VLOOKUP(airportName,Table1[[Column102]:[Column22]],13, FALSE)","v":{"$error":"#N/A"}}]
[]
[null,null,"Deicer Use"]
[null,null,null,"What type of aircraft deicing/anti-icing chemicals are used at the airport?"]
[null,null,null,"What is the best data available on aircraft deicer applied in terms of?"]
[null,null,null,"What type of deicing/anti-icing fluids are used at the airport? (Check all that apply)"]
[null,null,null,"Enter average gallons pure propylene glycol applied annually. (round to the nearest 5,000 gallons)"]
[null,null,null,"Enter average gallons pure ethylene glycol applied annually. (round to the nearest 5,000 gallons)"]
[null,null,null,"What percentage of the above usage is associated with Type I fluid?"]
[null,null,null,"For Type I fluid applied, is better data available on mixed fluid (as applied), or undiluted fluid (neat)?"]
[null,null,null,"Enter average gallons mixed Type I fluid applied annually (round to nearest 5,000 gallons)."]
[null,null,null,"Average Type I Fluid Mixture (% mix:% water)",null,"55:45"]
[null,null,null,"Enter average gallons undiluted Type I fluid used annually  (round to nearest 5,000 gallons)."]
[null,null,null,"Enter average gallons Type II fluid applied annually (round to nearest 5,000 gallons)."]
[null,null,null,"Enter average gallons Type IV fluid applied annually (round to nearest 5,000 gallons)."]

{"sheet":"Start - Guidance (deicer)","index":2,"n_rows":53,"n_cols":4,"rows_kept":53,"cut":false,"hidden":true,"merged":[[17,1,18,1],[6,0,7,0],[9,0,11,0],[17,0,18,0],[0,0,0,3],[2,1,4,1],[2,0,4,0],[6,1,7,1],[9,1,11,1],[48,1,51,1],[30,3,31,3],[32,3,33,3],[38,3,43,3],[29,0,29,3]]}
["Deicer Use Input Questions"]
[null,"USER QUESTION","DROP DOWN ANSWERS","SOURCE/NOTES"]
["DU1","Are propylene-glycol or ethylene-glycol based aircraft deicing/anti-icing chemicals used at the airport?","propylene-glycol based aircraft deicing/anti-icing chemicals","Go to Q2 (If Q4 is used, only ask 4a)"]
[null,null,"ethylene-glycol based aircraft deicing/anti-icing chemicals","Go to Q2 (If Q4 is used, only ask 4b)"]
[null,null,"propylene-glycol and ethylene-glycol based aircraft deicing/anti-icing chemicals","Go to Q2 (If Q4 is used, ask both 4a and 4b)"]
[]
["DU2","The best data available on aircraft deicer applied is in terms of ____?","gallons of pure propylene/ethylene glycol","go to Q4"]
[null,null,"gallons of deicing/anti-icing fluid","go to Q3"]
[]
["DU3","What type of deicing/anti-icing fluids are used at the airport? (Check all that apply)","Type I fluids","go to Q5"]
[null,null,"Type II fluids","go to Q8"]
[null,null,"Type IV fluids","go to Q9"]
[]
[]
["DU4a","Enter average gallons pure propylene glycol applied annually. (round to the nearest 5,000 gallons)","User data entry"]
["DU4b","Enter average gallons pure ethylene glycol applied annually. (round to the nearest 5,000 gallons)","User data entry"]
[]
["DU5","For Type I fluid applied, is better data available on mixed fluid (as applied), or undiluted fluid (neat)?","Mixed Fluid (as applied)","Go to Q6"]
[null,null,"Undiluted Fluid (neat)","Go to Q7"]
[]
["DU6a","Enter average gallons mixed Type I fluid applied annually (round to nearest 5,000 gallons).","User provided."]
["DU6b","Average Type I Fluid Mixture (% mix:% water)  ","Allowable entries (% mix:% water)  \n60:40\n55:45\n50:50\n45:55\n40:60\n35:65\n30:70","Note: This question is also asked in the source reduction section."]
[]
["DU7","Enter average gallons undiluted Type I fluid used annually  (round to nearest 5,000 gallons).","User provided."]
[]
["DU8","Enter average gallons Type II fluid applied annually (round to nearest 5,000 gallons).","User provided."]
[]
["DU9","Enter average gallons Type IV fluid applied annually (round to nearest 5,000 gallons).","User provided."]
[]
["Tool Calculations to convert deicer use to glycols, BOD, COD and TOC:"]
[null,"PG-based Type I mixed * %glycol * .88 = Propylene Glycol",null,"88% is listed on Lyondell Acroplus ADF, Lyondell arctic plus, Octagon Octaflo EF Concentrate, Kilfrost DF Plus (88), Kilfrost Dfsustain, Safetemp ES Type I, Cryotech Polar Plus. 85-90 is listed on SafeTemp Aircraft De-Icer"]
[null,"PG-based Type I unmixed * .88"]
[null,"EG-based Type I mixed * %glycol * .88 ",null,"88% is listed on Octagon Octaflo EG Type I, >86% is listed on Cryotech Polar Shield TKS"]
[null,"EG-based Type I unmixed * .88"]
[null,"PG-based Type IV * .5",null,"50% is listed on Lyondell Safewing anti-icing fluid, and Cryotech Polar Guard Advance. UCAR Flightguard AD-480 lists 52%"]
[null,"EG-based Type IV * .5"]
[null,"PG-based Type II * .5",null,"50% is listed on Safewing MP II Flight"]
[null,"EG-based Type II * .5"]
[null,"Propylene Glycol = 1.1 * BOD5",null,"ACRP Report 166"]
[null,"Propylene Glycol = 0.59 * COD"]
[null,"Propylene Glycol = 2.1 * TOC"]
[null,"Ethylene Glycol = 2.1 * BOD5"]
[null,"Ethylene Glycol = 0.78 * COD"]
[null,"Ethylene Glycol = 2.6 * TOC"]
[null,null,null,"PG is 8.647 pounds/gallon"]
[]
[1.4]
[]
[null,"On average, how much aircraft deicer is applied at the airport annually?","< 40,000 gallons PG, < 45,000 gallons pure Type I ADF, < 91,000 gallons 50:50 mixed Type I ADF","Based on minimum deicer use reported for ELG questionnaire for an on-site actively managed treatment operation (ISLIP - 43,500 gallons glycol)"]
[null,null,"40,000 < x < 80,000 gallons PG,  45,000  < x < 91,000 gallons pure Type I ADF, 91,000 < x < 182,000 gallons 50:50 mixed Type I ADF","Based on maximum deicer use reported for ELG questionnaire where PFT is the only treatment method used. (Dead Horse AK 78,900 gallons glycol)"]
[null,null,"80,000 < x < 95,000 gallons PG,  91,000  < x < 119,000 gallons pure Type I ADF, 182,000 < x < 238,000 gallons 50:50 mixed Type I ADF"]
[null,null,"> 95,000 gallons PG,  > 119,000 gallons pure Type I ADF, > 238,000 gallons 50:50 mixed Type I ADF","Based on minimum deicer use reported for ELG questionnaire for an on-site recycling (GRR - 98,200 gallons glycol) and Based on maximum deicer use reported for aerated lagoon with discharge to surface waters (BNA 91,500 gallons glycol)"]
[null,"*Type I ADF*.88 = PG, mixed Type I ADF*.5=Type I ADF"]

{"sheet":"SRP - Questions","index":3,"n_rows":44,"n_cols":8,"rows_kept":44,"cut":false,"hidden":false,"merged":[[2,2,2,7],[35,3,35,7],[14,3,14,7],[15,3,15,7],[16,3,16,7],[17,3,17,7]]}
[]
[]
[null,null,"Source Reduction"]
[]
[]
[]
[]
[]
[null,null,"Topic",null,null,null,null,"Guidance"]
[]
[null,null,"Background Information"]
[null,null,null,"This page assesses the applicable best management practices for the reduction of applied deicer fluid."]
[]
[null,null,"Assumptions"]
[null,null,null,"Forced air will only be used for defrosting and storms with snow depth <1\""]
[null,null,null,"Alternative/Default - Forced air will be used for 10-15% of events"]
[null,null,null,"Forced air will reduce fluid usage by 50-80%.  Use 65% reduction as mid-point."]
[null,null,null,"Fluid savings associated with blend to temperature are based on PropyleneGlycol Type I fluids.   Fluid savings will be greater if Ethylene Glycol Type I fluids are used."]
[]
[null,null,"Forced Air"]
[null,null,null,"Is forced air deicing currently conducted at the airport?"]
[null,null,null,"What percentage of deicing trucks currently located at the airport are equipped with forced air? (C_FA%)"]
[null,null,null,"Number of events suitable for Forced Air (N_FA)",null,{"$f":"deicingEventsInput-snowEventsInput-frostDeicingEventsInput","v":0}]
[null,null,null,"Estimated current benefit from forced air technologies (compared to estimated usage without source reduction technology).   Value listed is percent decrease in ADF usage.",null,{"$f":"(eventsSuitableForFA/deicingEventsInput)*trucksWithFAInput*0.65*GetPercentTypeI()","v":{"$error":"#DIV/0!"}}]
[null,null,null,"Estimated future benefit from forced air technologies (compared to estimated usage without source reduction technology).   Value listed is percent decrease in ADF usage.",null,{"$f":"IF(deicingEventsInput<>\"\",(eventsSuitableForFA/deicingEventsInput)*0.65*GetPercentTypeI(),\"\")","v":""},null,{"$f":"GetFluidReductionRanking(F25)","v":"Should consider forced air/fluid technology but need to consider site specific conditions and cost.  Please see Fact Sheet 5 Forced Air/Fluid deicing for additional information."}]
[]
[null,null,"Blend to Temperature"]
[null,null,null,"Is Blend to Temperature deicing currently conducted at airport?"]
[null,null,null,"What percentage of deicing operations are conducted using Blend to Temperature technologies? (C_BTT%)"]
[null,null,null,"What is the general level of ramp congestion?"]
[null,null,null,"Is there a common area where a stationary blend to temperature system could be installed which is conventient to carrier operations?"]
[null,null,null,"Estimated current benefit from blend to temperature technologies (compared to estimated usage without source reduction technology).   Value listed is percent decrease in ADF usage.",null,{"$f":"futureBenefitFromBTT*deicingOperationsUsingBTTInput","v":{"$error":"#N/A"}}]
[null,null,null,"Estimated future benefit from blend to temperature technologies (compared to estimated usage without source reduction technology).   Value listed is percent decrease in ADF usage.",null,{"$f":"INDEX(bttMatrixTable, MATCH(duAvgTypeIFluidMixtureInput,fluidMixtureRatios,0),MATCH(avgTempInput,bttMatrixAFluidMins,1))*GetPercentTypeI()","v":{"$error":"#N/A"}},null,{"$f":"GetBTTRanking(F33)","v":{"$error":"#VALUE!"}}]
[]
[null,null,"Additional Technologies"]
[null,null,null,"Do the air carriers or FBOs currently utilize any of the following technologies as described in the referenced fact sheets?"]
[null,null,null,"Proactive anti-icing",null,null,null,"ACRP Report 14:  Fact Sheet 3"]
[null,null,null,"Physical removal of snow",null,null,null,"ACRP Report 14: Fact Sheet 7"]
[null,null,null,"Hangared parking",null,null,null,"ACRP Report 14: Fact Sheet 8"]
[null,null,null,"Hot water deicing",null,null,null,"ACRP Report 14: Fact Sheet 9"]
[null,null,null,"Enclosed bucket deicing",null,null,null,"ACRP Report 14: Fact Sheet 10"]
[null,null,null,"Enhanced weather forecasting",null,null,null,"ACRP Report 14: Fact Sheet 11"]
[null,null,null,"Holdover time determinations system",null,null,null,"ACRP Report 14: Fact Sheet 12"]
[null,null,null,"Reduced aircraft operations",null,null,null,"ACRP Report 14: Fact Sheet 14"]

{"sheet":"weather data","index":4,"n_rows":259,"n_cols":26,"rows_kept":259,"cut":false,"hidden":true,"merged":[[0,0,0,9],[0,11,0,14],[0,15,0,21]]}
["Airport Info",null,null,null,null,null,null,null,null,null,null,"Winter Temperature Info (Fahrenheit)",null,null,null,"Snowfall and Precipitation Info (inches)",null,null,null,null,null,null,null,"Notes"]
["LocationID","EffectiveDate","Region","DistrictOffice","State","StateName","County","CountyState","City","FacilityName",null,"Avg  Min Winter Temp","Avg Min Dec Temp","Avg Min Jan Temp","Avg Min Feb Temp","Avg Dec Snowfall","Avg Jan Snowfall","Avg Feb Snowfall","Avg Annual Snowfall","Avg Dec Precip","Avg Jan Precip","Avg Feb Precip","Winter Precip"]
["Column1","Column2","Column3","Column4","Column5","Column6","Column7","Column8","Column9","Column10","Column102","Column11","Column12","Column13","Column14","Column15","Column16","Column17","Column18","Column19","Column20","Column21","Column22","Column23"]
["BHM","2017-09-14","ASO","JAN","AL","ALABAMA","JEFFERSON","AL","BIRMINGHAM","BIRMINGHAM-SHUTTLESWORTH INTL",{"$f":"CONCATENATE(Table1[[#This Row],[Column6]],\" - \", Table1[[#This Row],[Column10]], \" (\", Table1[[#This Row],[Column1]],\")\")","v":"ALABAMA - BIRMINGHAM-SHUTTLESWORTH INTL (BHM)"},35.700000000000003,36.299999999999997,33.799999999999997,37.1,0,1,0,2,4.45,4.84,4.53,13.82,"For winter temps only Birmingham Airport was found."]
["HSV","2017-09-14","ASO","JAN","AL","ALABAMA","MADISON","AL","HUNTSVILLE","HUNTSVILLE INTL-CARL T JONES FIELD",{"$f":"CONCATENATE(Table1[[#This Row],[Column6]],\" - \", Table1[[#This Row],[Column10]], \" (\", Table1[[#This Row],[Column1]],\")\")","v":"ALABAMA - HUNTSVILLE INTL-CARL T JONES FIELD (HSV)"},33.799999999999997,34.4,31.8,35.5,0,1,1,3,5.79,4.88,4.84,15.5]
["MOB","2017-09-14","ASO","JAN","AL","ALABAMA","MOBILE","AL","MOBILE","MOBILE RGNL",{"$f":"CONCATENATE(Table1[[#This Row],[Column6]],\" - \", Table1[[#This Row],[Column10]], \" (\", Table1[[#This Row],[Column1]],\")\")","v":"ALABAMA - MOBILE RGNL (MOB)"},41.8,42.2,40,43.3,"none","none","none",0,5.08,5.67,5.12,15.83]
["ANC","2017-09-14","AAL","NONE","AK","ALASKA","ANCHORAGE","AK","ANCHORAGE","TED STEVENS ANCHORAGE INTL",{"$f":"CONCATENATE(Table1[[#This Row],[Column6]],\" - \", Table1[[#This Row],[Column10]], \" (\", Table1[[#This Row],[Column1]],\")\")","v":"ALASKA - TED STEVENS ANCHORAGE INTL (ANC)"},12.7,13.2,11.1,13.8,17,11,11,74,1.1000000000000001,0.75,0.71,2.56]
["JNU","2017-09-14","AAL","NONE","AK","ALASKA","JUNEAU","AK","JUNEAU","JUNEAU INTL",{"$f":"CONCATENATE(Table1[[#This Row],[Column6]],\" - \", Table1[[#This Row],[Column10]], \" (\", Table1[[#This Row],[Column1]],\")\")","v":"ALASKA - JUNEAU INTL (JNU)"},24.8,25.6,23.7,25,16,28,17,88,5.83,5.35,4.13,15.32]
["BET","2017-09-14","AAL","NONE","AK","ALASKA","BETHEL","AK","BETHEL","BETHEL",{"$f":"CONCATENATE(Table1[[#This Row],[Column6]],\" - \", Table1[[#This Row],[Column10]], \" (\", Table1[[#This Row],[Column1]],\")\")","v":"ALASKA - BETHEL (BET)"},3,3.9,0.8,4.4000000000000004,11,10,7,62,1.1000000000000001,0.79,0.71,2.62]
["FAI","2017-09-14","AAL","NONE","AK","ALASKA","FAIRBANKS NORTH STAR","AK","FAIRBANKS","FAIRBANKS INTL",{"$f":"CONCATENATE(Table1[[#This Row],[Column6]],\" - \", Table1[[#This Row],[Column10]], \" (\", Table1[[#This Row],[Column1]],\")\")","v":"ALASKA - FAIRBANKS INTL (FAI)"},-14.2,-12.9,-16.899999999999999,-12.7,12,10,8,65,0.63,0.59,0.43,1.64]
["HOM","2017-09-14","AAL","NONE","AK","ALASKA","KENAI-COOK INLET","AK","HOMER","HOMER",{"$f":"CONCATENATE(Table1[[#This Row],[Column6]],\" - \", Table1[[#This Row],[Column10]], \" (\", Table1[[#This Row],[Column1]],\")\")","v":"ALASKA - HOMER (HOM)"},19.899999999999999,21.1,18.8,19.8,10,9,10,48,3.07,2.64,1.69,7.42]
["DLG","2017-09-14","AAL","NONE","AK","ALASKA","BRISTOL BAY","AK","DILLINGHAM","DILLINGHAM",{"$f":"CONCATENATE(Table1[[#This Row],[Column6]],\" - \", Table1[[#This Row],[Column10]], \" (\", Table1[[#This Row],[Column1]],\")\")","v":"ALASKA - DILLINGHAM (DLG)"},11.2,11.6,9.5,12.5,"none","none","none","none",2.09,1.77,1.1000000000000001,4.6500000000000004,"For snowfall and precip stats only Dillingham was listed."]
["ENA","2017-09-14","AAL","NONE","AK","ALASKA","KENAI-COOK INLET","AK","KENAI","KENAI MUNI",{"$f":"CONCATENATE(Table1[[#This Row],[Column6]],\" - \", Table1[[#This Row],[Column10]], \" (\", Table1[[#This Row],[Column1]],\")\")","v":"ALASKA - KENAI MUNI (ENA)"},9.9,11.2,8.1,10.4,15,10,11,68,1.34,0.94,0.87,3.19]
["ADQ","2017-09-14","AAL","NONE","AK","ALASKA","KODIAK ISLAND","AK","KODIAK","KODIAK",{"$f":"CONCATENATE(Table1[[#This Row],[Column6]],\" - \", Table1[[#This Row],[Column10]], \" (\", Table1[[#This Row],[Column1]],\")\")","v":"ALASKA - KODIAK (ADQ)"},26.1,26.3,25.9,26.1,14,13,15,68,8.74,8.31,6.14,23.16]
["OTZ","2017-09-14","AAL","NONE","AK","ALASKA","KOBUK","AK","KOTZEBUE","RALPH WIEN MEMORIAL",{"$f":"CONCATENATE(Table1[[#This Row],[Column6]],\" - \", Table1[[#This Row],[Column10]], \" (\", Table1[[#This Row],[Column1]],\")\")","v":"ALASKA - RALPH WIEN MEMORIAL (OTZ)"},-7.1,-4.0999999999999996,-9.5,-7.8,12,9,10,61,0.75,0.63,0.67,2.04]
["SCC","2017-09-14","AAL","NONE","AK","ALASKA","NORTH SLOPE","AK","DEADHORSE","DEADHORSE",{"$f":"CONCATENATE(Table1[[#This Row],[Column6]],\" - \", Table1[[#This Row],[Column10]], \" (\", Table1[[#This Row],[Column1]],\")\")","v":"ALASKA - DEADHORSE (SCC)"},-21.2,-17.2,-23.1,-23.6,"none","none","none","none","none","none","none",0.41,"For snowfall and precip stats airport not found."]
["OME","2017-09-14","AAL","NONE","AK","ALASKA","NOME","AK","NOME","NOME",{"$f":"CONCATENATE(Table1[[#This Row],[Column6]],\" - \", Table1[[#This Row],[Column10]], \" (\", Table1[[#This Row],[Column1]],\")\")","v":"ALASKA - NOME (OME)"},-0.3,2.2000000000000002,-2.8,-0.5,15,13,12,77,1.06,0.94,0.94,2.95]
["KTN","2017-09-14","AAL","NONE","AK","ALASKA","KETCHIKAN GATEWAY","AK","KETCHIKAN","KETCHIKAN INTL",{"$f":"CONCATENATE(Table1[[#This Row],[Column6]],\" - \", Table1[[#This Row],[Column10]], \" (\", Table1[[#This Row],[Column1]],\")\")","v":"ALASKA - KETCHIKAN INTL (KTN)"},39.6,31,28.8,31.2,9,13,9,40,14.21,15.39,10.51,13.88]
["SIT","2017-09-14","AAL","NONE","AK","ALASKA","SITKA","AK","SITKA","SITKA ROCKY GUTIERREZ",{"$f":"CONCATENATE(Table1[[#This Row],[Column6]],\" - \", Table1[[#This Row],[Column10]], \" (\", Table1[[#This Row],[Column1]],\")\")","v":"ALASKA - SITKA ROCKY GUTIERREZ (SIT)"},38,27.8,26.2,27.6,4,10,8,33,8.86,8.39,6.5,{"$f":"SUM(Table1[[#This Row],[Column19]:[Column20]])","v":17.25},"Airport not found for winter temp info.  For snowfall and precip stats only Sitka was listed."]
["PSG","2017-09-14","AAL","NONE","AK","ALASKA","WRANGELL-PETERSBURG","AK","PETERSBURG","PETERSBURG JAMES A JOHNSON",{"$f":"CONCATENATE(Table1[[#This Row],[Column6]],\" - \", Table1[[#This Row],[Column10]], \" (\", Table1[[#This Row],[Column1]],\")\")","v":"ALASKA - PETERSBURG JAMES A JOHNSON (PSG)"},26.7,27.2,26,27.1,11,22,16,77,11.06,11.5,7.36,29.89]
["AKN","2017-09-14","AAL","NONE","AK","ALASKA","BRISTOL BAY","AK","KING SALMON","KING SALMON",{"$f":"CONCATENATE(Table1[[#This Row],[Column6]],\" - \", Table1[[#This Row],[Column10]], \" (\", Table1[[#This Row],[Column1]],\")\")","v":"ALASKA - KING SALMON (AKN)"},10.1,108,8.8000000000000007,10.9,null,null,null,null,null,null,null,3.01,"Airport not found for snow/precip stats."]
["PHX","2017-09-14","AWP","PHX","AZ","ARIZONA","MARICOPA","AZ","PHOENIX","PHOENIX SKY HARBOR INTL",{"$f":"CONCATENATE(Table1[[#This Row],[Column6]],\" - \", Table1[[#This Row],[Column10]], \" (\", Table1[[#This Row],[Column1]],\")\")","v":"ARIZONA - PHOENIX SKY HARBOR INTL (PHX)"},46.3,44.8,45.6,48.7,"none","none","none","none",0.87,0.91,0.91,2.71,"For winter temp and percip stats only Phoenix Airport, AZ listed."]
["GCN","2017-09-14","AWP","PHX","AZ","ARIZONA","COCONINO","AZ","GRAND CANYON","GRAND CANYON NATIONAL PARK",{"$f":"CONCATENATE(Table1[[#This Row],[Column6]],\" - \", Table1[[#This Row],[Column10]], \" (\", Table1[[#This Row],[Column1]],\")\")","v":"ARIZONA - GRAND CANYON NATIONAL PARK (GCN)"},13.7,12.5,12.4,16.399999999999999,"none","none","none","none",1.1000000000000001,1.57,1.65,4.46,"For snowfall and precip stats only Grand Canyon was listed."]
["TUS","2017-09-14","AWP","PHX","AZ","ARIZONA","PIMA","AZ","TUCSON","TUCSON INTL",{"$f":"CONCATENATE(Table1[[#This Row],[Column6]],\" - \", Table1[[#This Row],[Column10]], \" (\", Table1[[#This Row],[Column1]],\")\")","v":"ARIZONA - TUCSON INTL (TUS)"},40.299999999999997,39.1,39.799999999999997,42.2,"none","none","none","none",1.02,1.02,0.94,2.73,"For snowfall and precip stats only Tucson was listed."]
["IWA","2017-09-14","AWP","PHX","AZ","ARIZONA","MARICOPA","AZ","PHOENIX","PHOENIX-MESA GATEWAY",{"$f":"CONCATENATE(Table1[[#This Row],[Column6]],\" - \", Table1[[#This Row],[Column10]], \" (\", Table1[[#This Row],[Column1]],\")\")","v":"ARIZONA - PHOENIX-MESA GATEWAY (IWA)"},46.3,44.8,45.6,48.7,null,null,null,null,null,null,null,2.71,"Airport not found."]
["FFZ","2017-09-14","AWP","PHX","AZ","ARIZONA","MARICOPA","AZ","MESA","FALCON FLD",{"$f":"CONCATENATE(Table1[[#This Row],[Column6]],\" - \", Table1[[#This Row],[Column10]], \" (\", Table1[[#This Row],[Column1]],\")\")","v":"ARIZONA - FALCON FLD (FFZ)"},46.3,44.8,45.6,48.7,null,null,null,null,null,null,null,2.71,"Airport not found."]
["NYL","2017-09-14","AWP","PHX","AZ","ARIZONA","YUMA","AZ","YUMA","YUMA MCAS/YUMA INTL",{"$f":"CONCATENATE(Table1[[#This Row],[Column6]],\" - \", Table1[[#This Row],[Column10]], \" (\", Table1[[#This Row],[Column1]],\")\")","v":"ARIZONA - YUMA MCAS/YUMA INTL (NYL)"},48,46.6,47.6,50.1,"none","none","none","none",0.43,0.39,0.28000000000000003,1.27,"for snowfall and precip stats only Yuma was listed."]
["SDL","2017-09-14","AWP","PHX","AZ","ARIZONA","MARICOPA","AZ","SCOTTSDALE","SCOTTSDALE",{"$f":"CONCATENATE(Table1[[#This Row],[Column6]],\" - \", Table1[[#This Row],[Column10]], \" (\", Table1[[#This Row],[Column1]],\")\")","v":"ARIZONA - SCOTTSDALE (SDL)"},43.5,42.1,43,45.5,"none","none","none",0,1.1399999999999999,1.26,1.22,3.6]
["FLG","2017-09-14","AWP","PHX","AZ","ARIZONA","COCONINO","AZ","FLAGSTAFF","FLAGSTAFF PULLIAM",{"$f":"CONCATENATE(Table1[[#This Row],[Column6]],\" - \", Table1[[#This Row],[Column10]], \" (\", Table1[[#This Row],[Column1]],\")\")","v":"ARIZONA - FLAGSTAFF PULLIAM (FLG)"},17.7,16.8,17.3,19.3,11,18,17,77,2.0499999999999998,2.13,2.3199999999999998,6.08]
["SEZ","2017-09-14","AWP","PHX","AZ","ARIZONA","YAVAPAI","AZ","SEDONA","SEDONA",{"$f":"CONCATENATE(Table1[[#This Row],[Column6]],\" - \", Table1[[#This Row],[Column10]], \" (\", Table1[[#This Row],[Column1]],\")\")","v":"ARIZONA - SEDONA (SEZ)"},32.9,31.8,32.5,34.799999999999997,"-","-","-","-","-",2.09,2.17,5.81]
["AVQ","2017-09-14","AWP","PHX","AZ","ARIZONA","PIMA","AZ","MARANA","MARANA RGNL",{"$f":"CONCATENATE(Table1[[#This Row],[Column6]],\" - \", Table1[[#This Row],[Column10]], \" (\", Table1[[#This Row],[Column1]],\")\")","v":"ARIZONA - MARANA RGNL (AVQ)"},40.299999999999997,39.1,39.799999999999997,42.2,null,null,null,null,null,null,null,2.73,"Airport not found"]
["LIT","2017-09-14","ASW","AOK","AR","ARKANSAS","PULASKI","AR","LITTLE ROCK","BILL AND HILLARY CLINTON NATIONAL/ADAMS FI",{"$f":"CONCATENATE(Table1[[#This Row],[Column6]],\" - \", Table1[[#This Row],[Column10]], \" (\", Table1[[#This Row],[Column1]],\")\")","v":"ARKANSAS - BILL AND HILLARY CLINTON NATIONAL/ADAMS FI (LIT)"},33.1,33.700000000000003,31.2,34.5,"none","none","none","none",4.96,3.54,3.66,12.18,"For snowfall and precip stats only Little Rock was listed."]
["XNA","2017-09-14","ASW","AOK","AR","ARKANSAS","BENTON","AR","FAYETTEVILLE/SPRINGDALE/","NORTHWEST ARKANSAS RGNL",{"$f":"CONCATENATE(Table1[[#This Row],[Column6]],\" - \", Table1[[#This Row],[Column10]], \" (\", Table1[[#This Row],[Column1]],\")\")","v":"ARKANSAS - NORTHWEST ARKANSAS RGNL (XNA)"},26.1,26.2,24.4,27.8,1,2,2,5,3.03,2.56,2.4,8.39,"For snowfall and precip stats only Fayetteville was listed."]
["LAX","2017-09-14","AWP","LAX","CA","CALIFORNIA","LOS ANGELES","CA","LOS ANGELES","LOS ANGELES INTL",{"$f":"CONCATENATE(Table1[[#This Row],[Column6]],\" - \", Table1[[#This Row],[Column10]], \" (\", Table1[[#This Row],[Column1]],\")\")","v":"CALIFORNIA - LOS ANGELES INTL (LAX)"},49.1,48.7,48.8,50,"none","none","none","none",2.76,3.98,5.08,8.01,"For snowfall and precip stats only Los Angeles was listed."]
["SFO","2017-09-14","AWP","SFO","CA","CALIFORNIA","SAN MATEO","CA","SAN FRANCISCO","SAN FRANCISCO INTL",{"$f":"CONCATENATE(Table1[[#This Row],[Column6]],\" - \", Table1[[#This Row],[Column10]], \" (\", Table1[[#This Row],[Column1]],\")\")","v":"CALIFORNIA - SAN FRANCISCO INTL (SFO)"},45,44.6,44.2,46.3,"none","none","none","none",4.57,4.49,4.45,12.28,"For snowfall and precip stats only San Francisco was listed."]
["SAN","2017-09-14","AWP","LAX","CA","CALIFORNIA","SAN DIEGO","CA","SAN DIEGO","SAN DIEGO INTL",{"$f":"CONCATENATE(Table1[[#This Row],[Column6]],\" - \", Table1[[#This Row],[Column10]], \" (\", Table1[[#This Row],[Column1]],\")\")","v":"CALIFORNIA - SAN DIEGO INTL (SAN)"},49.4,48.4,49,50.7,"none","none","none","none",1.54,1.97,2.2799999999999998,5.78,"aka Lindbergh Field.  For snowfall and precip stats only San Diego Lindbergh AP was listed."]
["OAK","2017-09-14","AWP","SFO","CA","CALIFORNIA","ALAMEDA","CA","OAKLAND","METROPOLITAN OAKLAND INTL",{"$f":"CONCATENATE(Table1[[#This Row],[Column6]],\" - \", Table1[[#This Row],[Column10]], \" (\", Table1[[#This Row],[Column1]],\")\")","v":"CALIFORNIA - METROPOLITAN OAKLAND INTL (OAK)"},42.4,41.5,41.7,44.2,"none","none","none","none",4.49,4.72,4.49,11.6,"For snowfall and precip stats only Oakland Museum was listed."]
["SJC","2017-09-14","AWP","SFO","CA","CALIFORNIA","SANTA CLARA","CA","SAN JOSE","NORMAN Y MINETA SAN JOSE INTL",{"$f":"CONCATENATE(Table1[[#This Row],[Column6]],\" - \", Table1[[#This Row],[Column10]], \" (\", Table1[[#This Row],[Column1]],\")\")","v":"CALIFORNIA - NORMAN Y MINETA SAN JOSE INTL (SJC)"},42.8,41.9,42,44.7,"none","none","none","none",2.13,2.99,3.31,{"$f":"SUM(Table1[[#This Row],[Column19]:[Column21]])","v":8.43},"For winter temp no San Jose aiprort was listed.  For snowfall and precip stats only San Jose was listed. "]
["SNA","2017-09-14","AWP","LAX","CA","CALIFORNIA","ORANGE","CA","SANTA ANA","JOHN WAYNE AIRPORT-ORANGE COUNTY",{"$f":"CONCATENATE(Table1[[#This Row],[Column6]],\" - \", Table1[[#This Row],[Column10]], \" (\", Table1[[#This Row],[Column1]],\")\")","v":"CALIFORNIA - JOHN WAYNE AIRPORT-ORANGE COUNTY (SNA)"},47.2,46.2,47,48.6,"none","none","none","none",2.09,2.83,3.39,7.94,"For snowfall and precip stats only for Santa Ana fire station was listed."]
["SMF","2017-09-14","AWP","SFO","CA","CALIFORNIA","SACRAMENTO","CA","SACRAMENTO","SACRAMENTO INTL",{"$f":"CONCATENATE(Table1[[#This Row],[Column6]],\" - \", Table1[[#This Row],[Column10]], \" (\", Table1[[#This Row],[Column1]],\")\")","v":"CALIFORNIA - SACRAMENTO INTL (SMF)"},38.200000000000003,37,37.799999999999997,39.9,"none","none","none","none",3.27,3.62,3.46,11.68,"aka Sacramento Metropolitan Airport and used for winter temp stats.  For snowfall and precip stats only Sacramento AP listed."]
["ONT","2017-09-14","AWP","LAX","CA","CALIFORNIA","SAN BERNARDINO","CA","ONTARIO","ONTARIO INTL",{"$f":"CONCATENATE(Table1[[#This Row],[Column6]],\" - \", Table1[[#This Row],[Column10]], \" (\", Table1[[#This Row],[Column1]],\")\")","v":"CALIFORNIA - ONTARIO INTL (ONT)"},43.9,42.7,43.8,45.3,"none","none","none","none",2.3199999999999998,3.31,3.39,9.02]
["BUR","2017-09-14","AWP","LAX","CA","CALIFORNIA","LOS ANGELES","CA","BURBANK","BOB HOPE",{"$f":"CONCATENATE(Table1[[#This Row],[Column6]],\" - \", Table1[[#This Row],[Column10]], \" (\", Table1[[#This Row],[Column1]],\")\")","v":"CALIFORNIA - BOB HOPE (BUR)"},42.3,41.2,41.9,43.9,"none","none","none","none",2.4,3.54,4.49,10.41,"aka Burbank Glendale Pasadena Airport and used for winter temps.  For snowfall and precip stats only Burbank was listed."]
["FAT","2017-09-14","AWP","SFO","CA","CALIFORNIA","FRESNO","CA","FRESNO","FRESNO YOSEMITE INTL",{"$f":"CONCATENATE(Table1[[#This Row],[Column6]],\" - \", Table1[[#This Row],[Column10]], \" (\", Table1[[#This Row],[Column1]],\")\")","v":"CALIFORNIA - FRESNO YOSEMITE INTL (FAT)"},39.200000000000003,38,38.299999999999997,41.5,"none","none","none","none",2.0099999999999998,2.2799999999999998,2.0099999999999998,5.99,"For snowfall and precip stats only Fresno was listed."]
["LGB","2017-09-14","AWP","LAX","CA","CALIFORNIA","LOS ANGELES","CA","LONG BEACH","LONG BEACH /DAUGHERTY FIELD/",{"$f":"CONCATENATE(Table1[[#This Row],[Column6]],\" - \", Table1[[#This Row],[Column10]], \" (\", Table1[[#This Row],[Column1]],\")\")","v":"CALIFORNIA - LONG BEACH /DAUGHERTY FIELD/ (LGB)"},46.6,45.8,46.1,48,"none","none","none","none",1.97,2.6,3.07,7.64]
["PSP","2017-09-14","AWP","LAX","CA","CALIFORNIA","RIVERSIDE","CA","PALM SPRINGS","PALM SPRINGS INTL",{"$f":"CONCATENATE(Table1[[#This Row],[Column6]],\" - \", Table1[[#This Row],[Column10]], \" (\", Table1[[#This Row],[Column1]],\")\")","v":"CALIFORNIA - PALM SPRINGS INTL (PSP)"},45.8,44.1,45.4,48,"none","none","none","none",0.71,1.1399999999999999,1.1399999999999999,3.02,"For winter temp and snowfall and percip stats only Palm Springs was found and used."]
["SBA","2017-09-14","AWP","LAX","CA","CALIFORNIA","SANTA BARBARA","CA","SANTA BARBARA","SANTA BARBARA MUNI",{"$f":"CONCATENATE(Table1[[#This Row],[Column6]],\" - \", Table1[[#This Row],[Column10]], \" (\", Table1[[#This Row],[Column1]],\")\")","v":"CALIFORNIA - SANTA BARBARA MUNI (SBA)"},41.5,40.200000000000003,40.700000000000003,43.7,"none","none","none","none",3.03,4.37,4.57,10.4,"For snowfall and precip only Santa Barbara was listed."]
["SQL","2017-09-14","AWP","SFO","CA","CALIFORNIA","SAN MATEO","CA","SAN CARLOS","SAN CARLOS",{"$f":"CONCATENATE(Table1[[#This Row],[Column6]],\" - \", Table1[[#This Row],[Column10]], \" (\", Table1[[#This Row],[Column1]],\")\")","v":"CALIFORNIA - SAN CARLOS (SQL)"},39,38,38.5,40.6,null,null,null,null,null,null,null,9.2100000000000009,"Airport not found."]
["MHR","2017-09-14","AWP","SFO","CA","CALIFORNIA","SACRAMENTO","CA","SACRAMENTO","SACRAMENTO MATHER",{"$f":"CONCATENATE(Table1[[#This Row],[Column6]],\" - \", Table1[[#This Row],[Column10]], \" (\", Table1[[#This Row],[Column1]],\")\")","v":"CALIFORNIA - SACRAMENTO MATHER (MHR)"},41.5,40.4,40.700000000000003,43.7,"none","none","none",0,3.27,3.62,3.46,11.14,"For winter temp and percip stats Mather not avail. Used Sacramento 5 ese."]
["VNY","2017-09-14","AWP","LAX","CA","CALIFORNIA","LOS ANGELES","CA","VAN NUYS","VAN NUYS",{"$f":"CONCATENATE(Table1[[#This Row],[Column6]],\" - \", Table1[[#This Row],[Column10]], \" (\", Table1[[#This Row],[Column1]],\")\")","v":"CALIFORNIA - VAN NUYS (VNY)"},44.6,43.7,44.9,45.2,"none","none","none",0,2.76,3.98,5.08,7.27,"For snowfall and precip stats only Los Angeles was listed."]
["MRY","2017-09-14","AWP","SFO","CA","CALIFORNIA","MONTEREY","CA","MONTEREY","MONTEREY RGNL",{"$f":"CONCATENATE(Table1[[#This Row],[Column6]],\" - \", Table1[[#This Row],[Column10]], \" (\", Table1[[#This Row],[Column1]],\")\")","v":"CALIFORNIA - MONTEREY RGNL (MRY)"},43.1,42.3,42.5,44.7,"none","none ","none",0,3.43,4.41,3.94,8.58,"aka Monterey Peninsula and used for winter temps.  For snowfall and percip stats only Montery listed."]
["STS","2017-09-14","AWP","SFO","CA","CALIFORNIA","SONOMA","CA","SANTA ROSA","CHARLES M SCHULZ - SONOMA COUNTY",{"$f":"CONCATENATE(Table1[[#This Row],[Column6]],\" - \", Table1[[#This Row],[Column10]], \" (\", Table1[[#This Row],[Column1]],\")\")","v":"CALIFORNIA - CHARLES M SCHULZ - SONOMA COUNTY (STS)"},37.299999999999997,36.5,36.6,39.1,"none","none","none",0,4.49,6.26,6.06,20.48]
["RDD","2017-09-14","AWP","SFO","CA","CALIFORNIA","SHASTA","CA","REDDING","REDDING MUNI",{"$f":"CONCATENATE(Table1[[#This Row],[Column6]],\" - \", Table1[[#This Row],[Column10]], \" (\", Table1[[#This Row],[Column1]],\")\")","v":"CALIFORNIA - REDDING MUNI (RDD)"},37.299999999999997,36.299999999999997,36.5,39.299999999999997,"none","none","none",0,6.26,5.94,5.51,17.739999999999998]
["VIS","2017-09-14","AWP","SFO","CA","CALIFORNIA","TULARE","CA","VISALIA","VISALIA MUNI",{"$f":"CONCATENATE(Table1[[#This Row],[Column6]],\" - \", Table1[[#This Row],[Column10]], \" (\", Table1[[#This Row],[Column1]],\")\")","v":"CALIFORNIA - VISALIA MUNI (VIS)"},39.4,37.799999999999997,38.700000000000003,42.1,"none","none","none",0,1.73,1.93,1.85,5.5]
["SMO","2017-09-14","AWP","LAX","CA","CALIFORNIA","LOS ANGELES","CA","SANTA MONICA","SANTA MONICA MUNI",{"$f":"CONCATENATE(Table1[[#This Row],[Column6]],\" - \", Table1[[#This Row],[Column10]], \" (\", Table1[[#This Row],[Column1]],\")\")","v":"CALIFORNIA - SANTA MONICA MUNI (SMO)"},47.8,46.9,48.4,48.2,"none","none","none",0,1.85,3.07,3.31,8.6]
["DEN","2017-09-14","ANM","DEN","CO","COLORADO","DENVER","CO","DENVER","DENVER INTL",{"$f":"CONCATENATE(Table1[[#This Row],[Column6]],\" - \", Table1[[#This Row],[Column10]], \" (\", Table1[[#This Row],[Column1]],\")\")","v":"COLORADO - DENVER INTL (DEN)"},17.8,17.100000000000001,17.399999999999999,18.899999999999999,9,7,6,55,0.59,0.47,0.47,1.1299999999999999,"For snowfall and precip stats only Denver Stapelton was listed."]
["APA","2017-09-14","ANM","DEN","CO","COLORADO","ARAPAHOE","CO","DENVER","CENTENNIAL",{"$f":"CONCATENATE(Table1[[#This Row],[Column6]],\" - \", Table1[[#This Row],[Column10]], \" (\", Table1[[#This Row],[Column1]],\")\")","v":"COLORADO - CENTENNIAL (APA)"},18.899999999999999,17.2,19,20.5,"none","none","none","none",0.31,0.39,0.35,1.54,"For snowfall and precip only Denver was listed."]
["COS","2017-09-14","ANM","DEN","CO","COLORADO","EL PASO","CO","COLORADO SPRINGS","CITY OF COLORADO SPRINGS MUNI",{"$f":"CONCATENATE(Table1[[#This Row],[Column6]],\" - \", Table1[[#This Row],[Column10]], \" (\", Table1[[#This Row],[Column1]],\")\")","v":"COLORADO - CITY OF COLORADO SPRINGS MUNI (COS)"},18.2,17.5,17.7,19.5,6,6,5,39,0.35,0.31,0.35,1]
["ASE","2017-09-14","ANM","DEN","CO","COLORADO","PITKIN","CO","ASPEN","ASPEN-PITKIN CO/SARDY FIELD",{"$f":"CONCATENATE(Table1[[#This Row],[Column6]],\" - \", Table1[[#This Row],[Column10]], \" (\", Table1[[#This Row],[Column1]],\")\")","v":"COLORADO - ASPEN-PITKIN CO/SARDY FIELD (ASE)"},8.1,8,6.9,9.5,29,27,26,179,2.13,1.69,2.2000000000000002,3.38,"For snowfall and precip stats only Aspen 1 sw was listed."]
["GJT","2017-09-14","ANM","DEN","CO","COLORADO","MESA","CO","GRAND JUNCTION","GRAND JUNCTION REGIONAL",{"$f":"CONCATENATE(Table1[[#This Row],[Column6]],\" - \", Table1[[#This Row],[Column10]], \" (\", Table1[[#This Row],[Column1]],\")\")","v":"COLORADO - GRAND JUNCTION REGIONAL (GJT)"},19.600000000000001,18.5,17,23.7,5,5,3,19,0.59,0.59,0.55000000000000004,1.71,"aka Walker Field"]
["EGE","2017-09-14","ANM","DEN","CO","COLORADO","EAGLE","CO","EAGLE","EAGLE COUNTY RGNL",{"$f":"CONCATENATE(Table1[[#This Row],[Column6]],\" - \", Table1[[#This Row],[Column10]], \" (\", Table1[[#This Row],[Column1]],\")\")","v":"COLORADO - EAGLE COUNTY RGNL (EGE)"},13,12.5,10.1,16.8,"none","none","none",0,0.79,0.75,0.75,1.77]
["BDL","2017-09-14","ANE","NONE","CT","CONNECTICUT","HARTFORD","CT","WINDSOR LOCKS","BRADLEY INTL",{"$f":"CONCATENATE(Table1[[#This Row],[Column6]],\" - \", Table1[[#This Row],[Column10]], \" (\", Table1[[#This Row],[Column1]],\")\")","v":"CONNECTICUT - BRADLEY INTL (BDL)"},20.7,23.4,17.7,20.9,7,12,11,39,3.43,3.23,2.87,{"$f":"SUM(Table1[[#This Row],[Column19]:[Column21]])","v":9.5300000000000011},"For winter temps no airport found.  For snowfall and precip stats only Windsor Locks found."]
["DCA","2017-09-14","AEA","DCA","DC","DIST. OF COLUMBIA","ARLINGTON","VA","WASHINGTON","RONALD REAGAN WASHINGTON NATIONAL",{"$f":"CONCATENATE(Table1[[#This Row],[Column6]],\" - \", Table1[[#This Row],[Column10]], \" (\", Table1[[#This Row],[Column1]],\")\")","v":"DIST. OF COLUMBIA - RONALD REAGAN WASHINGTON NATIONAL (DCA)"},30.6,32.5,28.6,30.9,2,6,5,15,3.03,2.8,2.64,8.48,"Found in state of Virginia."]
["IAD","2017-09-14","AEA","DCA","DC","DIST. OF COLUMBIA","LOUDOUN","VA","WASHINGTON","WASHINGTON DULLES INTL",{"$f":"CONCATENATE(Table1[[#This Row],[Column6]],\" - \", Table1[[#This Row],[Column10]], \" (\", Table1[[#This Row],[Column1]],\")\")","v":"DIST. OF COLUMBIA - WASHINGTON DULLES INTL (IAD)"},25.7,27.1,23.9,26,null,null,null,null,null,null,null,8.3800000000000008,"Found temp stats in state of Virginia.  Snowfall and percip stats were not found in Virginia or DC."]
["MIA","2017-09-14","ASO","ORL","FL","FLORIDA","DADE","FL","MIAMI","MIAMI INTL",{"$f":"CONCATENATE(Table1[[#This Row],[Column6]],\" - \", Table1[[#This Row],[Column10]], \" (\", Table1[[#This Row],[Column1]],\")\")","v":"FLORIDA - MIAMI INTL (MIA)"},61.7,63,59.9,62.3,"none","none","none","none",2.0499999999999998,1.61,2.2400000000000002,5.91]
["MCO","2017-09-14","ASO","ORL","FL","FLORIDA","ORANGE","FL","ORLANDO","ORLANDO INTL",{"$f":"CONCATENATE(Table1[[#This Row],[Column6]],\" - \", Table1[[#This Row],[Column10]], \" (\", Table1[[#This Row],[Column1]],\")\")","v":"FLORIDA - ORLANDO INTL (MCO)"},51.2,52.4,49.2,52.1,"none","none","none","none",2.6,2.36,2.36,7.31]
["FLL","2017-09-14","ASO","ORL","FL","FLORIDA","BROWARD","FL","FORT LAUDERDALE","FORT LAUDERDALE/HOLLYWOOD INTL",{"$f":"CONCATENATE(Table1[[#This Row],[Column6]],\" - \", Table1[[#This Row],[Column10]], \" (\", Table1[[#This Row],[Column1]],\")\")","v":"FLORIDA - FORT LAUDERDALE/HOLLYWOOD INTL (FLL)"},63.2,64.099999999999994,61.6,64,"none","none","none","none",2.4,2.64,3.23,9.0500000000000007,"For snowfall and precip stats only Fort Lauderdale was listed."]
["TPA","2017-09-14","ASO","ORL","FL","FLORIDA","HILLSBOROUGH","FL","TAMPA","TAMPA INTL",{"$f":"CONCATENATE(Table1[[#This Row],[Column6]],\" - \", Table1[[#This Row],[Column10]], \" (\", Table1[[#This Row],[Column1]],\")\")","v":"FLORIDA - TAMPA INTL (TPA)"},53.4,54.2,51.6,54.4,"none","none","none","none",2.48,2.2400000000000002,2.8,7.51]
["DAB","2017-09-14","ASO","ORL","FL","FLORIDA","VOLUSIA","FL","DAYTONA BEACH","DAYTONA BEACH INTL",{"$f":"CONCATENATE(Table1[[#This Row],[Column6]],\" - \", Table1[[#This Row],[Column10]], \" (\", Table1[[#This Row],[Column1]],\")\")","v":"FLORIDA - DAYTONA BEACH INTL (DAB)"},49.3,50.5,47.3,50.1,"none","none","none","none",2.64,2.76,2.8,8.15]
["SFB","2017-09-14","ASO","ORL","FL","FLORIDA","SEMINOLE","FL","ORLANDO","ORLANDO SANFORD INTL",{"$f":"CONCATENATE(Table1[[#This Row],[Column6]],\" - \", Table1[[#This Row],[Column10]], \" (\", Table1[[#This Row],[Column1]],\")\")","v":"FLORIDA - ORLANDO SANFORD INTL (SFB)"},50.7,51.5,49.1,51.7,"none","none","none","none",2.64,2.76,2.83,7.87,"For snowfall and precip stats only for Orlando was listed."]
["PBI","2017-09-14","ASO","ORL","FL","FLORIDA","PALM BEACH","FL","WEST PALM BEACH","PALM BEACH INTL",{"$f":"CONCATENATE(Table1[[#This Row],[Column6]],\" - \", Table1[[#This Row],[Column10]], \" (\", Table1[[#This Row],[Column1]],\")\")","v":"FLORIDA - PALM BEACH INTL (PBI)"},58.6,60,56.8,59.1,"none","none","none","none",3.39,3.15,2.83,9.33]
["JAX","2017-09-14","ASO","ORL","FL","FLORIDA","DUVAL","FL","JACKSONVILLE","JACKSONVILLE INTL",{"$f":"CONCATENATE(Table1[[#This Row],[Column6]],\" - \", Table1[[#This Row],[Column10]], \" (\", Table1[[#This Row],[Column1]],\")\")","v":"FLORIDA - JACKSONVILLE INTL (JAX)"},43.3,43.9,41.4,44.7,"none","none","none","none",2.8,3.31,3.19,9.2899999999999991]
["RSW","2017-09-14","ASO","ORL","FL","FLORIDA","LEE","FL","FORT MYERS","SOUTHWEST FLORIDA INTL",{"$f":"CONCATENATE(Table1[[#This Row],[Column6]],\" - \", Table1[[#This Row],[Column10]], \" (\", Table1[[#This Row],[Column1]],\")\")","v":"FLORIDA - SOUTHWEST FLORIDA INTL (RSW)"},54.4,55.6,52.3,55.3,"none","none","none","none",1.69,1.93,2.17,5.53,"For snowfall and precip stats only Fort Meyers was listed."]
["PNS","2017-09-14","ASO","ORL","FL","FLORIDA","ESCAMBIA","FL","PENSACOLA","PENSACOLA INTL",{"$f":"CONCATENATE(Table1[[#This Row],[Column6]],\" - \", Table1[[#This Row],[Column10]], \" (\", Table1[[#This Row],[Column1]],\")\")","v":"FLORIDA - PENSACOLA INTL (PNS)"},44,44.4,42.2,45.5,"none","none","none","none",4.57,4.6500000000000004,5.08,14.24,"aka Pensalcola Regional Airport and used for winter temps and snowfall and precip stats.."]
["EYW","2017-09-14","ASO","ORL","FL","FLORIDA","MONROE","FL","KEY WEST","KEY WEST INTL",{"$f":"CONCATENATE(Table1[[#This Row],[Column6]],\" - \", Table1[[#This Row],[Column10]], \" (\", Table1[[#This Row],[Column1]],\")\")","v":"FLORIDA - KEY WEST INTL (EYW)"},65.7,66.900000000000006,64.2,66,"none","none","none","none",2.2000000000000002,2.0499999999999998,1.5,5.75]
["SRQ","2017-09-14","ASO","ORL","FL","FLORIDA","SARASOTA","FL","SARASOTA/BRADENTON","SARASOTA/BRADENTON INTL",{"$f":"CONCATENATE(Table1[[#This Row],[Column6]],\" - \", Table1[[#This Row],[Column10]], \" (\", Table1[[#This Row],[Column1]],\")\")","v":"FLORIDA - SARASOTA/BRADENTON INTL (SRQ)"},53,53.7,51.8,53.6,"none","none","none",1,2.52,2.48,2.72,7.72]
["PIE","2017-09-14","ASO","ORL","FL","FLORIDA","PINELLAS","FL","ST PETERSBURG-CLEARWATER","ST PETE-CLEARWATER INTL",{"$f":"CONCATENATE(Table1[[#This Row],[Column6]],\" - \", Table1[[#This Row],[Column10]], \" (\", Table1[[#This Row],[Column1]],\")\")","v":"FLORIDA - ST PETE-CLEARWATER INTL (PIE)"},54.1,55.1,52.3,54.9,"none","none","none",0,2.91,2.91,3.03,8.89]
["TLH","2017-09-14","ASO","ORL","FL","FLORIDA","LEON","FL","TALLAHASSEE","TALLAHASSEE INTL",{"$f":"CONCATENATE(Table1[[#This Row],[Column6]],\" - \", Table1[[#This Row],[Column10]], \" (\", Table1[[#This Row],[Column1]],\")\")","v":"FLORIDA - TALLAHASSEE INTL (TLH)"},40.6,41.1,39,41.9,"none","none","none",0,3.9,4.33,4.84,13.09,"For winter temp and percip stats only Tallahassee Muni. Was listed"]
["ECP","2017-09-14","ASO","ORL","FL","FLORIDA","BAY","FL","PANAMA CITY","NORTHWEST FLORIDA BEACHES INTL",{"$f":"CONCATENATE(Table1[[#This Row],[Column6]],\" - \", Table1[[#This Row],[Column10]], \" (\", Table1[[#This Row],[Column1]],\")\")","v":"FLORIDA - NORTHWEST FLORIDA BEACHES INTL (ECP)"},45.4,45.5,43.9,46.9,"none","none","none","none",4.0199999999999996,4.88,5.12,13.83,"aka Panama City Bay County Airport and used for winter temp.  For snowfall and percip stats only Panama city listed."]
["APF","2017-09-14","ASO","ORL","FL","FLORIDA","COLLIER","FL","NAPLES","NAPLES MUNI",{"$f":"CONCATENATE(Table1[[#This Row],[Column6]],\" - \", Table1[[#This Row],[Column10]], \" (\", Table1[[#This Row],[Column1]],\")\")","v":"FLORIDA - NAPLES MUNI (APF)"},56,57,54.2,56.8,"none","none","none","none",1.69,2.0499999999999998,2.3199999999999998,5.4]
["FXE","2017-09-14","ASO","ORL","FL","FLORIDA","BROWARD","FL","FORT LAUDERDALE","FORT LAUDERDALE EXECUTIVE",{"$f":"CONCATENATE(Table1[[#This Row],[Column6]],\" - \", Table1[[#This Row],[Column10]], \" (\", Table1[[#This Row],[Column1]],\")\")","v":"FLORIDA - FORT LAUDERDALE EXECUTIVE (FXE)"},60,61.6,58,60.3,"none","none","none",0,2.4,2.64,3.23,6.57]
["ATL","2017-09-14","ASO","ATL","GA","GEORGIA","FULTON","GA","ATLANTA","HARTSFIELD - JACKSON ATLANTA INTL",{"$f":"CONCATENATE(Table1[[#This Row],[Column6]],\" - \", Table1[[#This Row],[Column10]], \" (\", Table1[[#This Row],[Column1]],\")\")","v":"GEORGIA - HARTSFIELD - JACKSON ATLANTA INTL (ATL)"},36.1,36.5,34.299999999999997,37.700000000000003,0,1,0,2,3.9,4.21,4.6900000000000004,12.77,"For snowfall and precip stats only Fulton Co airport described as Hartsfield was listed."]
["SAV","2017-09-14","ASO","ATL","GA","GEORGIA","CHATHAM","GA","SAVANNAH","SAVANNAH/HILTON HEAD INTL",{"$f":"CONCATENATE(Table1[[#This Row],[Column6]],\" - \", Table1[[#This Row],[Column10]], \" (\", Table1[[#This Row],[Column1]],\")\")","v":"GEORGIA - SAVANNAH/HILTON HEAD INTL (SAV)"},40.299999999999997,40.799999999999997,38.6,41.7,"none","none","none","none",2.95,3.7,2.8,9.43]
["AGS","2017-09-14","ASO","ATL","GA","GEORGIA","RICHMOND","GA","AUGUSTA","AUGUSTA RGNL AT BUSH FIELD",{"$f":"CONCATENATE(Table1[[#This Row],[Column6]],\" - \", Table1[[#This Row],[Column10]], \" (\", Table1[[#This Row],[Column1]],\")\")","v":"GEORGIA - AUGUSTA RGNL AT BUSH FIELD (AGS)"},34.299999999999997,34.5,32.799999999999997,35.9,"none","none","none",0,3.39,3.9,3.94,11.22]
["BOI","2017-09-14","ANM","HLN","ID","IDAHO","ADA","ID","BOISE","BOISE AIR TERMINAL/GOWEN FLD",{"$f":"CONCATENATE(Table1[[#This Row],[Column6]],\" - \", Table1[[#This Row],[Column10]], \" (\", Table1[[#This Row],[Column1]],\")\")","v":"IDAHO - BOISE AIR TERMINAL/GOWEN FLD (BOI)"},25.6,24,24.7,28.3,7,5,3,19,1.54,1.22,0.98,3.78]
["COE","2017-09-14","ANM","HLN","ID","IDAHO","KOOTENAI","ID","COEUR D'ALENE","COEUR D'ALENE - PAPPY BOYINGTON FIELD",{"$f":"CONCATENATE(Table1[[#This Row],[Column6]],\" - \", Table1[[#This Row],[Column10]], \" (\", Table1[[#This Row],[Column1]],\")\")","v":"IDAHO - COEUR D'ALENE - PAPPY BOYINGTON FIELD (COE)"},25.7,25.2,25.4,26.7,null,null,null,null,null,null,null,8.83,"For snowfall and precip stats airport not found."]
["IDA","2017-09-14","ANM","HLN","ID","IDAHO","BONNEVILLE","ID","IDAHO FALLS","IDAHO FALLS RGNL",{"$f":"CONCATENATE(Table1[[#This Row],[Column6]],\" - \", Table1[[#This Row],[Column10]], \" (\", Table1[[#This Row],[Column1]],\")\")","v":"IDAHO - IDAHO FALLS RGNL (IDA)"},12.9,12.3,11.7,14.8,"none","none","none","none",0.83,0.83,0.79,2.2200000000000002,"Used Fanning Field as airportwas  previously known as Fanning Field."]
["ORD","2017-09-14","AGL","CHI","IL","ILLINOIS","COOK","IL","CHICAGO","CHICAGO O'HARE INTL",{"$f":"CONCATENATE(Table1[[#This Row],[Column6]],\" - \", Table1[[#This Row],[Column10]], \" (\", Table1[[#This Row],[Column1]],\")\")","v":"ILLINOIS - CHICAGO O'HARE INTL (ORD)"},19.100000000000001,20.7,16.5,20.100000000000001,9,11,9,37,2.2400000000000002,1.73,1.77,5.77]
["MDW","2017-09-14","AGL","CHI","IL","ILLINOIS","COOK","IL","CHICAGO","CHICAGO MIDWAY INTL",{"$f":"CONCATENATE(Table1[[#This Row],[Column6]],\" - \", Table1[[#This Row],[Column10]], \" (\", Table1[[#This Row],[Column1]],\")\")","v":"ILLINOIS - CHICAGO MIDWAY INTL (MDW)"},20.8,22.7,18.2,21.7,"none","none","none","none",2.56,2.0499999999999998,1.93,6.57,"For snowfall and precip stats only Chicago was listed."]
["PIA","2017-09-14","AGL","CHI","IL","ILLINOIS","PEORIA","IL","PEORIA","GENERAL DOWNING - PEORIA INTL",{"$f":"CONCATENATE(Table1[[#This Row],[Column6]],\" - \", Table1[[#This Row],[Column10]], \" (\", Table1[[#This Row],[Column1]],\")\")","v":"ILLINOIS - GENERAL DOWNING - PEORIA INTL (PIA)"},19.7,21,17,21.2,7,7,6,25,2.4,1.77,1.77,5.99]
["MLI","2017-09-14","AGL","CHI","IL","ILLINOIS","ROCK ISLAND","IL","MOLINE","QUAD CITY INTL",{"$f":"CONCATENATE(Table1[[#This Row],[Column6]],\" - \", Table1[[#This Row],[Column10]], \" (\", Table1[[#This Row],[Column1]],\")\")","v":"ILLINOIS - QUAD CITY INTL (MLI)"},17,18.600000000000001,14.3,18.3,9,9,7,31,2.17,1.5,1.61,5.27]
["PWK","2017-09-14","AGL","CHI","IL","ILLINOIS","COOK","IL","CHICAGO/PROSPECT HEIGHTS/WHEELING","CHICAGO EXECUTIVE",{"$f":"CONCATENATE(Table1[[#This Row],[Column6]],\" - \", Table1[[#This Row],[Column10]], \" (\", Table1[[#This Row],[Column1]],\")\")","v":"ILLINOIS - CHICAGO EXECUTIVE (PWK)"},19.3,20.9,16.600000000000001,20.399999999999999,9,11,9,37,2.2400000000000002,1.73,1.77,4.41,"aka Palwaukee and used for winter temps. For snowfall and precip stats used Chicado O'Hare."]
["RFD","2017-09-14","AGL","CHI","IL","ILLINOIS","WINNEBAGO","IL","CHICAGO/ROCKFORD","CHICAGO/ROCKFORD INTL",{"$f":"CONCATENATE(Table1[[#This Row],[Column6]],\" - \", Table1[[#This Row],[Column10]], \" (\", Table1[[#This Row],[Column1]],\")\")","v":"ILLINOIS - CHICAGO/ROCKFORD INTL (RFD)"},16.3,17.7,13.5,17.7,11,10,8,37,1.97,1.38,1.42,4.76]
["CPS","2017-09-14","AGL","CHI","IL","ILLINOIS","ST CLAIR","IL","CAHOKIA/ST LOUIS","ST LOUIS DOWNTOWN",{"$f":"CONCATENATE(Table1[[#This Row],[Column6]],\" - \", Table1[[#This Row],[Column10]], \" (\", Table1[[#This Row],[Column1]],\")\")","v":"ILLINOIS - ST LOUIS DOWNTOWN (CPS)"},25.1,26,22.7,26.7,"none","none","none","none",2.95,2.17,2.48,7.53]
["IND","2017-09-14","AGL","CHI","IN","INDIANA","MARION","IN","INDIANAPOLIS","INDIANAPOLIS INTL",{"$f":"CONCATENATE(Table1[[#This Row],[Column6]],\" - \", Table1[[#This Row],[Column10]], \" (\", Table1[[#This Row],[Column1]],\")\")","v":"INDIANA - INDIANAPOLIS INTL (IND)"},22.9,24.4,20.5,23.9,7,9,7,27,3.19,2.68,2.3199999999999998,8.15,"For snowfall and precip stats Indianapolis Eagle Creek Airpark used and was described as Indianapolis Int'l Airport."]
["FWA","2017-09-14","AGL","CHI","IN","INDIANA","ALLEN","IN","FORT WAYNE","FORT WAYNE INTL",{"$f":"CONCATENATE(Table1[[#This Row],[Column6]],\" - \", Table1[[#This Row],[Column10]], \" (\", Table1[[#This Row],[Column1]],\")\")","v":"INDIANA - FORT WAYNE INTL (FWA)"},19.899999999999999,22.1,17.399999999999999,20.3,9,10,8,34,2.76,2.2400000000000002,2.0499999999999998,7.07]
["SBN","2017-09-14","AGL","CHI","IN","INDIANA","ST JOSEPH","IN","SOUTH BEND","SOUTH BEND INTL",{"$f":"CONCATENATE(Table1[[#This Row],[Column6]],\" - \", Table1[[#This Row],[Column10]], \" (\", Table1[[#This Row],[Column1]],\")\")","v":"INDIANA - SOUTH BEND INTL (SBN)"},20.100000000000001,22.4,17.600000000000001,20.5,17,21,15,66,2.6,2.2799999999999998,1.97,6.85]
["EVV","2017-09-14","AGL","CHI","IN","INDIANA","VANDERBURGH","IN","EVANSVILLE","EVANSVILLE RGNL",{"$f":"CONCATENATE(Table1[[#This Row],[Column6]],\" - \", Table1[[#This Row],[Column10]], \" (\", Table1[[#This Row],[Column1]],\")\")","v":"INDIANA - EVANSVILLE RGNL (EVV)"},26.1,27.1,24,27.2,3,3,4,11,3.78,3.11,3.19,10.029999999999999]
["DSM","2017-09-14","ACE","NONE","IA","IOWA","POLK","IA","DES MOINES","DES MOINES INTL",{"$f":"CONCATENATE(Table1[[#This Row],[Column6]],\" - \", Table1[[#This Row],[Column10]], \" (\", Table1[[#This Row],[Column1]],\")\")","v":"IOWA - DES MOINES INTL (DSM)"},17,18,14.3,18.8,9,8,8,35,1.46,1.02,1.26,3.7]
["CID","2017-09-14","ACE","NONE","IA","IOWA","LINN","IA","CEDAR RAPIDS","THE EASTERN IOWA",{"$f":"CONCATENATE(Table1[[#This Row],[Column6]],\" - \", Table1[[#This Row],[Column10]], \" (\", Table1[[#This Row],[Column1]],\")\")","v":"IOWA - THE EASTERN IOWA (CID)"},13.7,17.8,10.9,15.6,9,8,7,32,1.61,1.1000000000000001,1.22,3.56,"aka Cedar Rapids Municipal Airport and used for winter temps and snowfall and precip stats."]
["ICT","2017-09-14","ACE","NONE","KS","KANSAS","SEDGWICK","KS","WICHITA","WICHITA DWIGHT D EISENHOWER NATIONAL",{"$f":"CONCATENATE(Table1[[#This Row],[Column6]],\" - \", Table1[[#This Row],[Column10]], \" (\", Table1[[#This Row],[Column1]],\")\")","v":"KANSAS - WICHITA DWIGHT D EISENHOWER NATIONAL (ICT)"},24,24.1,21.9,26.1,null,null,null,null,null,null,null,3.21,"For snowfall and precip stats airport not found."]
["SLN","2017-09-14","ACE","NONE","KS","KANSAS","SALINE","KS","SALINA","SALINA RGNL",{"$f":"CONCATENATE(Table1[[#This Row],[Column6]],\" - \", Table1[[#This Row],[Column10]], \" (\", Table1[[#This Row],[Column1]],\")\")","v":"KANSAS - SALINA RGNL (SLN)"},22.4,22.3,20.5,24.6,"none","none","none","none",0.94,0.79,1.06,2.74,"For snowfall and precip stats Salina was only listed."]
["HYS","2017-09-14","ACE","NONE","KS","KANSAS","ELLIS","KS","HAYS","HAYS RGNL",{"$f":"CONCATENATE(Table1[[#This Row],[Column6]],\" - \", Table1[[#This Row],[Column10]], \" (\", Table1[[#This Row],[Column1]],\")\")","v":"KANSAS - HAYS RGNL (HYS)"},22.8,22.8,21.2,24.7,null,null,null,null,null,null,null,1.93,"Airport not found"]
["SDF","2017-09-14","ASO","MEM","KY","KENTUCKY","JEFFERSON","KY","LOUISVILLE","LOUISVILLE INTL-STANDIFORD FIELD",{"$f":"CONCATENATE(Table1[[#This Row],[Column6]],\" - \", Table1[[#This Row],[Column10]], \" (\", Table1[[#This Row],[Column1]],\")\")","v":"KENTUCKY - LOUISVILLE INTL-STANDIFORD FIELD (SDF)"},28.9,30,26.8,29.9,3,4,5,13,3.82,3.23,3.19,10.25]
["CVG","2017-09-14","ASO","MEM","KY","KENTUCKY","BOONE","KY","COVINGTON","CINCINNATI/NORTHERN KENTUCKY INTL",{"$f":"CONCATENATE(Table1[[#This Row],[Column6]],\" - \", Table1[[#This Row],[Column10]], \" (\", Table1[[#This Row],[Column1]],\")\")","v":"KENTUCKY - CINCINNATI/NORTHERN KENTUCKY INTL (CVG)"},25.2,26.6,23,26,null,null,null,null,null,null,null,9.18,"For snowfall and precip stats Covington/Cincinnati not found in Kentucky or Ohio."]
["LEX","2017-09-14","ASO","MEM","KY","KENTUCKY","FAYETTE","KY","LEXINGTON","BLUE GRASS",{"$f":"CONCATENATE(Table1[[#This Row],[Column6]],\" - \", Table1[[#This Row],[Column10]], \" (\", Table1[[#This Row],[Column1]],\")\")","v":"KENTUCKY - BLUE GRASS (LEX)"},27,28,24.9,28.1,3,4,5,13,3.94,3.19,3.19,10.33]
["MSY","2017-09-14","ASW","LNM","LA","LOUISIANA","JEFFERSON","LA","NEW ORLEANS","LOUIS ARMSTRONG NEW ORLEANS INTL",{"$f":"CONCATENATE(Table1[[#This Row],[Column6]],\" - \", Table1[[#This Row],[Column10]], \" (\", Table1[[#This Row],[Column1]],\")\")","v":"LOUISIANA - LOUIS ARMSTRONG NEW ORLEANS INTL (MSY)"},46.5,46.9,44.7,48,"none","none","none","none",5.28,5.12,5.28,15.69,"For winter temp only New Orleans Airport was listed.  For snowfall and precip stats only New Orleans was listed."]
["HUM","2017-09-14","ASW","LNM","LA","LOUISIANA","TERREBONNE","LA","HOUMA","HOUMA-TERREBONNE",{"$f":"CONCATENATE(Table1[[#This Row],[Column6]],\" - \", Table1[[#This Row],[Column10]], \" (\", Table1[[#This Row],[Column1]],\")\")","v":"LOUISIANA - HOUMA-TERREBONNE (HUM)"},45.4,45.4,43.5,53.5,"none","none","none","none",4.13,4.96,4.76,13.88,"For snowfall and precip stats only Houma was listed."]
["IYA","2017-09-14","ASW","LNM","LA","LOUISIANA","VERMILION","LA","ABBEVILLE","ABBEVILLE CHRIS CRUSTA MEMORIAL",{"$f":"CONCATENATE(Table1[[#This Row],[Column6]],\" - \", Table1[[#This Row],[Column10]], \" (\", Table1[[#This Row],[Column1]],\")\")","v":"LOUISIANA - ABBEVILLE CHRIS CRUSTA MEMORIAL (IYA)"},44.5,42.5,40.700000000000003,43.7,null,null,null,null,null,null,null,15.7,"Airport not found."]
["BTR","2017-09-14","ASW","LNM","LA","LOUISIANA","EAST BATON ROUGE","LA","BATON ROUGE","BATON ROUGE METROPOLITAN, RYAN FIELD",{"$f":"CONCATENATE(Table1[[#This Row],[Column6]],\" - \", Table1[[#This Row],[Column10]], \" (\", Table1[[#This Row],[Column1]],\")\")","v":"LOUISIANA - BATON ROUGE METROPOLITAN, RYAN FIELD (BTR)"},42.7,42.7,41.2,44.5,"none","none","none","none",5.59,5.71,5.04,16.36]
["LFT","2017-09-14","ASW","LNM","LA","LOUISIANA","LAFAYETTE","LA","LAFAYETTE","LAFAYETTE RGNL/PAUL FOURNET FIELD",{"$f":"CONCATENATE(Table1[[#This Row],[Column6]],\" - \", Table1[[#This Row],[Column10]], \" (\", Table1[[#This Row],[Column1]],\")\")","v":"LOUISIANA - LAFAYETTE RGNL/PAUL FOURNET FIELD (LFT)"},44.5,44.5,42.9,46.4,"none","none","none","none",5.59,5.67,4.45,15.7]
["SHV","2017-09-14","ASW","LNM","LA","LOUISIANA","CADDO","LA","SHREVEPORT","SHREVEPORT RGNL",{"$f":"CONCATENATE(Table1[[#This Row],[Column6]],\" - \", Table1[[#This Row],[Column10]], \" (\", Table1[[#This Row],[Column1]],\")\")","v":"LOUISIANA - SHREVEPORT RGNL (SHV)"},37.799999999999997,37.700000000000003,36.200000000000003,39.700000000000003,"none","none","none",0,4.76,4.21,4.76,13.72]
["LCH","2017-09-14","ASW","LNM","LA","LOUISIANA","CALCASIEU","LA","LAKE CHARLES","LAKE CHARLES RGNL",{"$f":"CONCATENATE(Table1[[#This Row],[Column6]],\" - \", Table1[[#This Row],[Column10]], \" (\", Table1[[#This Row],[Column1]],\")\")","v":"LOUISIANA - LAKE CHARLES RGNL (LCH)"},43.9,44.1,42.3,45.5,"none","none","none","none",4.6900000000000004,5.24,3.46,13.37]
["PWM","2017-09-14","ANE","NONE","ME","MAINE","CUMBERLAND","ME","PORTLAND","PORTLAND INTL JETPORT",{"$f":"CONCATENATE(Table1[[#This Row],[Column6]],\" - \", Table1[[#This Row],[Column10]], \" (\", Table1[[#This Row],[Column1]],\")\")","v":"MAINE - PORTLAND INTL JETPORT (PWM)"},16.8,20.399999999999999,13.4,16.399999999999999,13,19,12,62,4.0199999999999996,3.39,3.27,10.65]
["LEW","2017-09-14","ANE","NONE","ME","MAINE","ANDROSCOGGIN","ME","AUBURN/LEWISTON","AUBURN/LEWISTON MUNI",{"$f":"CONCATENATE(Table1[[#This Row],[Column6]],\" - \", Table1[[#This Row],[Column10]], \" (\", Table1[[#This Row],[Column1]],\")\")","v":"MAINE - AUBURN/LEWISTON MUNI (LEW)"},12,17.2,8.1,10.6,"none","none","none",0,4.13,3.9,2.99,10.039999999999999,"For snowfall and percip stats only Lewiston listed."]
["BGR","2017-09-14","ANE","NONE","ME","MAINE","PENOBSCOT","ME","BANGOR","BANGOR INTL",{"$f":"CONCATENATE(Table1[[#This Row],[Column6]],\" - \", Table1[[#This Row],[Column10]], \" (\", Table1[[#This Row],[Column1]],\")\")","v":"MAINE - BANGOR INTL (BGR)"},10.8,15.5,6.7,10.199999999999999,14,19,15,66,3.46,2.87,2.52,8.89]
["RKD","2017-09-14","ANE","NONE","ME","MAINE","KNOX","ME","ROCKLAND","KNOX COUNTY RGNL",{"$f":"CONCATENATE(Table1[[#This Row],[Column6]],\" - \", Table1[[#This Row],[Column10]], \" (\", Table1[[#This Row],[Column1]],\")\")","v":"MAINE - KNOX COUNTY RGNL (RKD)"},16.8,20.399999999999999,13.4,16.399999999999999,null,null,null,null,null,null,null,10.65,"Airport not found"]
["BWI","2017-09-14","AEA","DCA","MD","MARYLAND","ANNE ARUNDEL","MD","BALTIMORE","BALTIMORE/WASHINGTON INTL THURGOOD MARSHAL",{"$f":"CONCATENATE(Table1[[#This Row],[Column6]],\" - \", Table1[[#This Row],[Column10]], \" (\", Table1[[#This Row],[Column1]],\")\")","v":"MARYLAND - BALTIMORE/WASHINGTON INTL THURGOOD MARSHAL (BWI)"},26.4,28.1,24.4,26.6,"none","none","none","none",3.7,3.46,3.07,9.32]
["BOS","2017-09-14","ANE","NONE","MA","MASSACHUSETTS","SUFFOLK","MA","BOSTON","GENERAL EDWARD LAWRENCE LOGAN INTL",{"$f":"CONCATENATE(Table1[[#This Row],[Column6]],\" - \", Table1[[#This Row],[Column10]], \" (\", Table1[[#This Row],[Column1]],\")\")","v":"MASSACHUSETTS - GENERAL EDWARD LAWRENCE LOGAN INTL (BOS)"},25.1,28.2,22.2,24.7,9,13,11,44,3.78,3.35,3.27,10.39]
["ACK","2017-09-14","ANE","NONE","MA","MASSACHUSETTS","NANTUCKET","MA","NANTUCKET","NANTUCKET MEMORIAL",{"$f":"CONCATENATE(Table1[[#This Row],[Column6]],\" - \", Table1[[#This Row],[Column10]], \" (\", Table1[[#This Row],[Column1]],\")\")","v":"MASSACHUSETTS - NANTUCKET MEMORIAL (ACK)"},27.5,30.9,25.1,26.5,"none","none","none","none",3.74,4.13,2.72,10.130000000000001,"For snowfall and precip stats only Nantucket was listed."]
["HYA","2017-09-14","ANE","NONE","MA","MASSACHUSETTS","BARNSTABLE","MA","HYANNIS","BARNSTABLE MUNI-BOARDMAN/POLANDO FIELD",{"$f":"CONCATENATE(Table1[[#This Row],[Column6]],\" - \", Table1[[#This Row],[Column10]], \" (\", Table1[[#This Row],[Column1]],\")\")","v":"MASSACHUSETTS - BARNSTABLE MUNI-BOARDMAN/POLANDO FIELD (HYA)"},24.7,27.6,22.2,24.2,4,4,5,15,4.17,3.66,3.31,11.83,"For snowfall and precip stats only Hyannis was listed."]
["BED","2017-09-14","ANE","NONE","MA","MASSACHUSETTS","MIDDLESEX","MA","BEDFORD","LAURENCE G HANSCOM FLD",{"$f":"CONCATENATE(Table1[[#This Row],[Column6]],\" - \", Table1[[#This Row],[Column10]], \" (\", Table1[[#This Row],[Column1]],\")\")","v":"MASSACHUSETTS - LAURENCE G HANSCOM FLD (BED)"},20.9,23.6,18,21,"none","none","none","none",4.0599999999999996,4.25,3.35,10.16,"For snowfall and precip stats only Bedford was listed."]
["MVY","2017-09-14","ANE","NONE","MA","MASSACHUSETTS","DUKES","MA","VINEYARD HAVEN","MARTHA'S VINEYARD",{"$f":"CONCATENATE(Table1[[#This Row],[Column6]],\" - \", Table1[[#This Row],[Column10]], \" (\", Table1[[#This Row],[Column1]],\")\")","v":"MASSACHUSETTS - MARTHA'S VINEYARD (MVY)"},23.9,26.7,21.9,23,4,7,8,23,4.29,3.86,3.19,10.41,"For snowfall and precip stats only Edgartown was listed."]
["ORE","2017-09-14","ANE","NONE","MA","MASSACHUSETTS","FRANKLIN","MA","ORANGE","ORANGE MUNI",{"$f":"CONCATENATE(Table1[[#This Row],[Column6]],\" - \", Table1[[#This Row],[Column10]], \" (\", Table1[[#This Row],[Column1]],\")\")","v":"MASSACHUSETTS - ORANGE MUNI (ORE)"},13.9,18.100000000000001,10.6,12.9,"-","-","-","-",3.23,2.72,2.64,8.58]
["DTW","2017-09-14","AGL","DET","MI","MICHIGAN","WAYNE","MI","DETROIT","DETROIT METROPOLITAN WAYNE COUNTY",{"$f":"CONCATENATE(Table1[[#This Row],[Column6]],\" - \", Table1[[#This Row],[Column10]], \" (\", Table1[[#This Row],[Column1]],\")\")","v":"MICHIGAN - DETROIT METROPOLITAN WAYNE COUNTY (DTW)"},21.4,24.1,19.100000000000001,21,"none","none","none","none",2.09,2.0499999999999998,2.09,6.44,"For snowfall and precip stats only Detroit was listed."]
["GRR","2017-09-14","AGL","DET","MI","MICHIGAN","KENT","MI","GRAND RAPIDS","GERALD R FORD INTL",{"$f":"CONCATENATE(Table1[[#This Row],[Column6]],\" - \", Table1[[#This Row],[Column10]], \" (\", Table1[[#This Row],[Column1]],\")\")","v":"MICHIGAN - GERALD R FORD INTL (GRR)"},20.5,23.5,18.100000000000001,19.899999999999999,22,21,15,76,2.52,2.09,1.77,6.38]
["TVC","2017-09-14","AGL","DET","MI","MICHIGAN","GRAND TRAVERSE","MI","TRAVERSE CITY","CHERRY CAPITAL",{"$f":"CONCATENATE(Table1[[#This Row],[Column6]],\" - \", Table1[[#This Row],[Column10]], \" (\", Table1[[#This Row],[Column1]],\")\")","v":"MICHIGAN - CHERRY CAPITAL (TVC)"},17.2,21,15.2,15,27,33,19,102,2.48,2.83,1.5,6.81]
["LAN","2017-09-14","AGL","DET","MI","MICHIGAN","CLINTON","MI","LANSING","CAPITAL REGION INTL",{"$f":"CONCATENATE(Table1[[#This Row],[Column6]],\" - \", Table1[[#This Row],[Column10]], \" (\", Table1[[#This Row],[Column1]],\")\")","v":"MICHIGAN - CAPITAL REGION INTL (LAN)"},19.2,22.3,16.8,18.5,13,14,12,51,1.85,1.65,1.46,4.99]
["83D","2017-09-14","AGL","DET","MI","MICHIGAN","MACKINAC","MI","ST IGNACE","MACKINAC COUNTY",{"$f":"CONCATENATE(Table1[[#This Row],[Column6]],\" - \", Table1[[#This Row],[Column10]], \" (\", Table1[[#This Row],[Column1]],\")\")","v":"MICHIGAN - MACKINAC COUNTY (83D)"},{"$f":"AVERAGE(Table1[[#This Row],[Column12]:[Column14]])","v":17.066666666666666},21,15.2,15,null,null,null,null,null,null,null,5.03,"Airport not found"]
["FNT","2017-09-14","AGL","DET","MI","MICHIGAN","GENESEE","MI","FLINT","BISHOP INTL",{"$f":"CONCATENATE(Table1[[#This Row],[Column6]],\" - \", Table1[[#This Row],[Column10]], \" (\", Table1[[#This Row],[Column1]],\")\")","v":"MICHIGAN - BISHOP INTL (FNT)"},17.7,20.8,15.3,16.899999999999999,12,13,11,48,1.93,1.61,1.5,5.03]
["CVX","2017-09-14","AGL","DET","MI","MICHIGAN","CHARLEVOIX","MI","CHARLEVOIX","CHARLEVOIX MUNI",{"$f":"CONCATENATE(Table1[[#This Row],[Column6]],\" - \", Table1[[#This Row],[Column10]], \" (\", Table1[[#This Row],[Column1]],\")\")","v":"MICHIGAN - CHARLEVOIX MUNI (CVX)"},22.2,26.3,20.8,19.2,34,33,22,116,2.6,2.2799999999999998,1.65,6.53]
["MSP","2017-09-14","AGL","DMA","MN","MINNESOTA","HENNEPIN","MN","MINNEAPOLIS","MINNEAPOLIS-ST PAUL INTL/WOLD-CHAMBERLAIN",{"$f":"CONCATENATE(Table1[[#This Row],[Column6]],\" - \", Table1[[#This Row],[Column10]], \" (\", Table1[[#This Row],[Column1]],\")\")","v":"MINNESOTA - MINNEAPOLIS-ST PAUL INTL/WOLD-CHAMBERLAIN (MSP)"},10.8,12.3,7.5,12.8,12,12,8,55,1.1399999999999999,0.91,0.79,2.83]
["RST","2017-09-14","AGL","DMA","MN","MINNESOTA","OLMSTED","MN","ROCHESTER","ROCHESTER INTL",{"$f":"CONCATENATE(Table1[[#This Row],[Column6]],\" - \", Table1[[#This Row],[Column10]], \" (\", Table1[[#This Row],[Column1]],\")\")","v":"MINNESOTA - ROCHESTER INTL (RST)"},10.8,12.2,7.7,12.4,13,12,9,53,1.22,0.87,0.83,2.92]
["JAN","2017-09-14","ASO","JAN","MS","MISSISSIPPI","RANKIN","MS","JACKSON","JACKSON-MEDGAR WILEY EVERS INTL",{"$f":"CONCATENATE(Table1[[#This Row],[Column6]],\" - \", Table1[[#This Row],[Column10]], \" (\", Table1[[#This Row],[Column1]],\")\")","v":"MISSISSIPPI - JACKSON-MEDGAR WILEY EVERS INTL (JAN)"},37,37.299999999999997,35.299999999999997,38.5,"none","none","none","none",5.16,4.96,4.76,14.88,"aka Jackson Thompson and was used for snowfall and precip stats."]
["TUP","2017-09-14","ASO","JAN","MS","MISSISSIPPI","LEE","MS","TUPELO","TUPELO RGNL",{"$f":"CONCATENATE(Table1[[#This Row],[Column6]],\" - \", Table1[[#This Row],[Column10]], \" (\", Table1[[#This Row],[Column1]],\")\")","v":"MISSISSIPPI - TUPELO RGNL (TUP)"},33.700000000000003,34.299999999999997,31.7,35.299999999999997,0,1,1,2,6.3,4.49,4.96,15.72]
["GPT","2017-09-14","ASO","JAN","MS","MISSISSIPPI","HARRISON","MS","GULFPORT","GULFPORT-BILOXI INTL",{"$f":"CONCATENATE(Table1[[#This Row],[Column6]],\" - \", Table1[[#This Row],[Column10]], \" (\", Table1[[#This Row],[Column1]],\")\")","v":"MISSISSIPPI - GULFPORT-BILOXI INTL (GPT)"},43.1,43.8,41.4,44.2,"none","none","none","none",4.84,6.5,5.51,15.32]
["STL","2017-09-14","ACE","NONE","MO","MISSOURI","ST LOUIS","MO","ST LOUIS","ST LOUIS LAMBERT INTL",{"$f":"CONCATENATE(Table1[[#This Row],[Column6]],\" - \", Table1[[#This Row],[Column10]], \" (\", Table1[[#This Row],[Column1]],\")\")","v":"MISSOURI - ST LOUIS LAMBERT INTL (STL)"},26,26.9,23.7,27.6,4,6,4,17,2.83,2.4,2.2400000000000002,7.48,"For snowfall and percip stats airport found under City of Bridgeton, MO."]
["MCI","2017-09-14","ACE","NONE","MO","MISSOURI","PLATTE","MO","KANSAS CITY","KANSAS CITY INTL",{"$f":"CONCATENATE(Table1[[#This Row],[Column6]],\" - \", Table1[[#This Row],[Column10]], \" (\", Table1[[#This Row],[Column1]],\")\")","v":"MISSOURI - KANSAS CITY INTL (MCI)"},22,22.6,19.600000000000001,23.8,4,4,3,12,1.73,1.1399999999999999,1.5,4.0599999999999996]
["SGF","2017-09-14","ACE","NONE","MO","MISSOURI","GREENE","MO","SPRINGFIELD","SPRINGFIELD-BRANSON NATIONAL",{"$f":"CONCATENATE(Table1[[#This Row],[Column6]],\" - \", Table1[[#This Row],[Column10]], \" (\", Table1[[#This Row],[Column1]],\")\")","v":"MISSOURI - SPRINGFIELD-BRANSON NATIONAL (SGF)"},24.5,25,26.1,22.4,5,5,4,17,3.03,2.48,2.52,8.0299999999999994]
["MKC","2017-09-14","ACE","NONE","MO","MISSOURI","CLAY","MO","KANSAS CITY","CHARLES B WHEELER DOWNTOWN",{"$f":"CONCATENATE(Table1[[#This Row],[Column6]],\" - \", Table1[[#This Row],[Column10]], \" (\", Table1[[#This Row],[Column1]],\")\")","v":"MISSOURI - CHARLES B WHEELER DOWNTOWN (MKC)"},24.7,25.6,22.4,26.3,4,4,3,12,1.73,1.1399999999999999,1.5,4.37]
["SUS","2017-09-14","ACE","NONE","MO","MISSOURI","ST LOUIS","MO","ST LOUIS","SPIRIT OF ST LOUIS",{"$f":"CONCATENATE(Table1[[#This Row],[Column6]],\" - \", Table1[[#This Row],[Column10]], \" (\", Table1[[#This Row],[Column1]],\")\")","v":"MISSOURI - SPIRIT OF ST LOUIS (SUS)"},24,24.7,21.8,25.6,2,3,2,7,0,2.0499999999999998,2.3199999999999998,7.28]
["BIL","2017-09-14","ANM","HLN","MT","MONTANA","YELLOWSTONE","MT","BILLINGS","BILLINGS LOGAN INTL",{"$f":"CONCATENATE(Table1[[#This Row],[Column6]],\" - \", Table1[[#This Row],[Column10]], \" (\", Table1[[#This Row],[Column1]],\")\")","v":"MONTANA - BILLINGS LOGAN INTL (BIL)"},18.7,17.8,17.8,20.6,8,8,6,54,0.51,0.47,0.47,1.46,"For snowdall and precip stats only Billings Water Plant was listed. "]
["BZN","2017-09-14","ANM","HLN","MT","MONTANA","GALLATIN","MT","BOZEMAN","BOZEMAN YELLOWSTONE INTL",{"$f":"CONCATENATE(Table1[[#This Row],[Column6]],\" - \", Table1[[#This Row],[Column10]], \" (\", Table1[[#This Row],[Column1]],\")\")","v":"MONTANA - BOZEMAN YELLOWSTONE INTL (BZN)"},11.7,9.3000000000000007,11.1,14.9,11,9,6,50,0.55000000000000004,0.55000000000000004,0.55000000000000004,1.43,"aka Bozeman Gallatin field and used for winter temperatures. For snowfall and precip stats only Bozeman Montana St Univ was listed."]
["GTF","2017-09-14","ANM","HLN","MT","MONTANA","CASCADE","MT","GREAT FALLS","GREAT FALLS INTL",{"$f":"CONCATENATE(Table1[[#This Row],[Column6]],\" - \", Table1[[#This Row],[Column10]], \" (\", Table1[[#This Row],[Column1]],\")\")","v":"MONTANA - GREAT FALLS INTL (GTF)"},15.4,14.9,14.9,16.399999999999999,9,9,8,63,0.55000000000000004,0.51,0.47,1.53]
["MSO","2017-09-14","ANM","HLN","MT","MONTANA","MISSOULA","MT","MISSOULA","MISSOULA INTL",{"$f":"CONCATENATE(Table1[[#This Row],[Column6]],\" - \", Table1[[#This Row],[Column10]], \" (\", Table1[[#This Row],[Column1]],\")\")","v":"MONTANA - MISSOULA INTL (MSO)"},18.7,16.7,18.3,21.2,11,8,6,37,1.02,0.87,0.71,2.59]
["GPI","2017-09-14","ANM","HLN","MT","MONTANA","FLATHEAD","MT","KALISPELL","GLACIER PARK INTL",{"$f":"CONCATENATE(Table1[[#This Row],[Column6]],\" - \", Table1[[#This Row],[Column10]], \" (\", Table1[[#This Row],[Column1]],\")\")","v":"MONTANA - GLACIER PARK INTL (GPI)"},16.7,15.8,16.399999999999999,18.2,16,13,8,55,1.57,1.34,0.98,3.86]
["GSN","2017-09-14","AWP","HNL","CQ","N MARIANA ISLANDS","NORTHERN MARIANA IS","MP","SAIPAN ISLAND","FRANCISCO C ADA/SAIPAN INTL",{"$f":"CONCATENATE(Table1[[#This Row],[Column6]],\" - \", Table1[[#This Row],[Column10]], \" (\", Table1[[#This Row],[Column1]],\")\")","v":"N MARIANA ISLANDS - FRANCISCO C ADA/SAIPAN INTL (GSN)"},null,null,null,null,null,null,null,null,null,null,null,null,"Airport not found.",null,{"$f":"ISBLANK(Table1[[#This Row],[Column22]])","v":true}]
["OMA","2017-09-14","ACE","NONE","NE","NEBRASKA","DOUGLAS","NE","OMAHA","EPPLEY AIRFIELD",{"$f":"CONCATENATE(Table1[[#This Row],[Column6]],\" - \", Table1[[#This Row],[Column10]], \" (\", Table1[[#This Row],[Column1]],\")\")","v":"NEBRASKA - EPPLEY AIRFIELD (OMA)"},16.100000000000001,16.7,13.6,18.100000000000001,6,6,6,26,1.02,0.71,0.87,2.61]
["LNK","2017-09-14","ACE","NONE","NE","NEBRASKA","LANCASTER","NE","LINCOLN","LINCOLN",{"$f":"CONCATENATE(Table1[[#This Row],[Column6]],\" - \", Table1[[#This Row],[Column10]], \" (\", Table1[[#This Row],[Column1]],\")\")","v":"NEBRASKA - LINCOLN (LNK)"},16,16.399999999999999,13.8,18,6,5,6,26,0.94,0.63,0.79,2.36]
["LBF","2017-09-14","ACE","NONE","NE","NEBRASKA","LINCOLN","NE","NORTH PLATTE","NORTH PLATTE RGNL AIRPORT LEE BIRD FIELD",{"$f":"CONCATENATE(Table1[[#This Row],[Column6]],\" - \", Table1[[#This Row],[Column10]], \" (\", Table1[[#This Row],[Column1]],\")\")","v":"NEBRASKA - NORTH PLATTE RGNL AIRPORT LEE BIRD FIELD (LBF)"},12.5,11.6,11.1,15,5,5,5,30,0.39,0.31,0.51,1.25]
["LAS","2017-09-14","AWP","PHX","NV","NEVADA","CLARK","NV","LAS VEGAS","MC CARRAN INTL",{"$f":"CONCATENATE(Table1[[#This Row],[Column6]],\" - \", Table1[[#This Row],[Column10]], \" (\", Table1[[#This Row],[Column1]],\")\")","v":"NEVADA - MC CARRAN INTL (LAS)"},40.4,38.700000000000003,39.4,43.4,"none","none","none","none",0.51,0.55000000000000004,0.75,1.8,"For snowfall and precip stats only Las Vegas was listed."]
["BVU","2017-09-14","AWP","PHX","NV","NEVADA","CLARK","NV","BOULDER CITY","BOULDER CITY MUNI",{"$f":"CONCATENATE(Table1[[#This Row],[Column6]],\" - \", Table1[[#This Row],[Column10]], \" (\", Table1[[#This Row],[Column1]],\")\")","v":"NEVADA - BOULDER CITY MUNI (BVU)"},40.4,38.700000000000003,39.4,43.4,"none","none","none","none",0.47,0.75,0.79,{"$f":"SUM(Table1[[#This Row],[Column19]:[Column21]])","v":2.0099999999999998},"For winter temps no airport found.  For snowfall and precip stats only Boulder City, NV was listed. "]
["RNO","2017-09-14","AWP","PHX","NV","NEVADA","WASHOE","NV","RENO","RENO/TAHOE INTL",{"$f":"CONCATENATE(Table1[[#This Row],[Column6]],\" - \", Table1[[#This Row],[Column10]], \" (\", Table1[[#This Row],[Column1]],\")\")","v":"NEVADA - RENO/TAHOE INTL (RNO)"},26.4,25,25.4,28.9,5,6,5,22,1.02,1.02,1.02,3.08,"For snowfall and precip stats only Reno Cannon Intl AP was listed."]
["VGT","2017-09-14","AWP","PHX","NV","NEVADA","CLARK","NV","LAS VEGAS","NORTH LAS VEGAS",{"$f":"CONCATENATE(Table1[[#This Row],[Column6]],\" - \", Table1[[#This Row],[Column10]], \" (\", Table1[[#This Row],[Column1]],\")\")","v":"NEVADA - NORTH LAS VEGAS (VGT)"},37.6,35.799999999999997,36.799999999999997,40.299999999999997,"none","none","none",0,0.59,0.55000000000000004,0.79,1.92]
["MHT","2017-09-14","ANE","NONE","NH","NEW HAMPSHIRE","HILLSBOROUGH","NH","MANCHESTER","MANCHESTER",{"$f":"CONCATENATE(Table1[[#This Row],[Column6]],\" - \", Table1[[#This Row],[Column10]], \" (\", Table1[[#This Row],[Column1]],\")\")","v":"NEW HAMPSHIRE - MANCHESTER (MHT)"},19.100000000000001,22.5,15.7,19,"none","none","none","none",3.27,2.72,2.72,9.08,"For snowfall and precip stats only Manchester Massabesic Lake was listed."]
["EWR","2017-09-14","AEA","NYC","NJ","NEW JERSEY","ESSEX","NJ","NEWARK","NEWARK LIBERTY INTL",{"$f":"CONCATENATE(Table1[[#This Row],[Column6]],\" - \", Table1[[#This Row],[Column10]], \" (\", Table1[[#This Row],[Column1]],\")\")","v":"NEW JERSEY - NEWARK LIBERTY INTL (EWR)"},27,29.6,24.5,26.9,5,8,9,28,3.82,3.54,2.87,10.23]
["TEB","2017-09-14","AEA","NYC","NJ","NEW JERSEY","BERGEN","NJ","TETERBORO","TETERBORO",{"$f":"CONCATENATE(Table1[[#This Row],[Column6]],\" - \", Table1[[#This Row],[Column10]], \" (\", Table1[[#This Row],[Column1]],\")\")","v":"NEW JERSEY - TETERBORO (TEB)"},26,28.9,23.6,25.6,"none","none","none","none",3.78,3.43,2.95,10.11]
["ACY","2017-09-14","AEA","HAR","NJ","NEW JERSEY","ATLANTIC","NJ","ATLANTIC CITY","ATLANTIC CITY INTL",{"$f":"CONCATENATE(Table1[[#This Row],[Column6]],\" - \", Table1[[#This Row],[Column10]], \" (\", Table1[[#This Row],[Column1]],\")\")","v":"NEW JERSEY - ATLANTIC CITY INTL (ACY)"},26.4,28.4,24.5,26.4,"none","none","none","none",3.19,3.43,2.87,9.7799999999999994]
["MMU","2017-09-14","AEA","HAR","NJ","NEW JERSEY","MORRIS","NJ","MORRISTOWN","MORRISTOWN MUNI",{"$f":"CONCATENATE(Table1[[#This Row],[Column6]],\" - \", Table1[[#This Row],[Column10]], \" (\", Table1[[#This Row],[Column1]],\")\")","v":"NEW JERSEY - MORRISTOWN MUNI (MMU)"},27,29.6,24.5,26.9,null,null,null,null,null,null,null,10.23,"Airport not found"]
["ABQ","2017-09-14","ASW","LNM","NM","NEW MEXICO","BERNALILLO","NM","ALBUQUERQUE","ALBUQUERQUE INTL SUNPORT",{"$f":"CONCATENATE(Table1[[#This Row],[Column6]],\" - \", Table1[[#This Row],[Column10]], \" (\", Table1[[#This Row],[Column1]],\")\")","v":"NEW MEXICO - ALBUQUERQUE INTL SUNPORT (ABQ)"},27.5,26.5,26.1,30.3,3,2,2,10,0.51,0.39,0.47,1.36]
["JFK","2017-09-14","AEA","NYC","NY","NEW YORK","QUEENS","NY","NEW YORK","JOHN F KENNEDY INTL",{"$f":"CONCATENATE(Table1[[#This Row],[Column6]],\" - \", Table1[[#This Row],[Column10]], \" (\", Table1[[#This Row],[Column1]],\")\")","v":"NEW YORK - JOHN F KENNEDY INTL (JFK)"},28.6,31.5,26.3,28.1,5,6,8,24,3.39,3.15,2.6,9.14]
["LGA","2017-09-14","AEA","NYC","NY","NEW YORK","QUEENS","NY","NEW YORK","LAGUARDIA",{"$f":"CONCATENATE(Table1[[#This Row],[Column6]],\" - \", Table1[[#This Row],[Column10]], \" (\", Table1[[#This Row],[Column1]],\")\")","v":"NEW YORK - LAGUARDIA (LGA)"},29.1,32.1,26.6,28.5,5,7,9,26,3.54,3.19,2.76,9.49]
["BUF","2017-09-14","AEA","NYC","NY","NEW YORK","ERIE","NY","BUFFALO","BUFFALO NIAGARA INTL",{"$f":"CONCATENATE(Table1[[#This Row],[Column6]],\" - \", Table1[[#This Row],[Column10]], \" (\", Table1[[#This Row],[Column1]],\")\")","v":"NEW YORK - BUFFALO NIAGARA INTL (BUF)"},20.7,24.1,18.5,19.2,27,25,17,94,3.9,3.19,2.48,9.56]
["ALB","2017-09-14","AEA","NYC","NY","NEW YORK","ALBANY","NY","ALBANY","ALBANY INTL",{"$f":"CONCATENATE(Table1[[#This Row],[Column6]],\" - \", Table1[[#This Row],[Column10]], \" (\", Table1[[#This Row],[Column1]],\")\")","v":"NEW YORK - ALBANY INTL (ALB)"},17.7,21.2,14.5,17.3,14,18,12,59,2.91,2.6,2.2000000000000002,7.72]
["ROC","2017-09-14","AEA","NYC","NY","NEW YORK","MONROE","NY","ROCHESTER","GREATER ROCHESTER INTL",{"$f":"CONCATENATE(Table1[[#This Row],[Column6]],\" - \", Table1[[#This Row],[Column10]], \" (\", Table1[[#This Row],[Column1]],\")\")","v":"NEW YORK - GREATER ROCHESTER INTL (ROC)"},20,23.5,17.600000000000001,18.600000000000001,22,28,22,99,2.64,2.4,1.97,6.99,"For snowfall and precip stats only Rochester Monroe Co AP was listed."]
["SYR","2017-09-14","AEA","NYC","NY","NEW YORK","ONONDAGA","NY","SYRACUSE","SYRACUSE HANCOCK INTL",{"$f":"CONCATENATE(Table1[[#This Row],[Column6]],\" - \", Table1[[#This Row],[Column10]], \" (\", Table1[[#This Row],[Column1]],\")\")","v":"NEW YORK - SYRACUSE HANCOCK INTL (SYR)"},18.600000000000001,22.4,15.7,17.600000000000001,"none","none","none","none",3.74,3.15,3.54,7.79,"For snowfall and precip stats only Syracuse was listed."]
["HPN","2017-09-14","AEA","NYC","NY","NEW YORK","WESTCHESTER","NY","WHITE PLAINS","WESTCHESTER COUNTY",{"$f":"CONCATENATE(Table1[[#This Row],[Column6]],\" - \", Table1[[#This Row],[Column10]], \" (\", Table1[[#This Row],[Column1]],\")\")","v":"NEW YORK - WESTCHESTER COUNTY (HPN)"},23.6,26.8,21.1,22.9,null,null,null,null,null,null,null,11.09,"For snowfall and precip stats airport not found."]
["ISP","2017-09-14","AEA","NYC","NY","NEW YORK","SUFFOLK","NY","NEW YORK","LONG ISLAND MAC ARTHUR",{"$f":"CONCATENATE(Table1[[#This Row],[Column6]],\" - \", Table1[[#This Row],[Column10]], \" (\", Table1[[#This Row],[Column1]],\")\")","v":"NEW YORK - LONG ISLAND MAC ARTHUR (ISP)"},25.6,28.2,23.3,25.2,5,7,7,25,4.13,4.25,3.35,10.96,"aka Islip Li MacArthur Airport and used for winter temps.  Islip used for snowfall and percip stats."]
["SWF","2017-09-14","AEA","NYC","NY","NEW YORK","ORANGE","NY","NEW YORK","STEWART INTL",{"$f":"CONCATENATE(Table1[[#This Row],[Column6]],\" - \", Table1[[#This Row],[Column10]], \" (\", Table1[[#This Row],[Column1]],\")\")","v":"NEW YORK - STEWART INTL (SWF)"},29.4,32.200000000000003,27,29,5,6,8,24,3.39,3.15,2.6,9.99,"For snowfall and precip stats used JFK Intl."]
["FRG","2017-09-14","AEA","NYC","NY","NEW YORK","SUFFOLK","NY","FARMINGDALE","REPUBLIC",{"$f":"CONCATENATE(Table1[[#This Row],[Column6]],\" - \", Table1[[#This Row],[Column10]], \" (\", Table1[[#This Row],[Column1]],\")\")","v":"NEW YORK - REPUBLIC (FRG)"},26,29.3,23.5,25.1,"none","none","none","none",3.5,3.27,2.44,9.23]
["CLT","2017-09-14","ASO","MEM","NC","NORTH CAROLINA","MECKLENBURG","NC","CHARLOTTE","CHARLOTTE/DOUGLAS INTL",{"$f":"CONCATENATE(Table1[[#This Row],[Column6]],\" - \", Table1[[#This Row],[Column10]], \" (\", Table1[[#This Row],[Column1]],\")\")","v":"NORTH CAROLINA - CHARLOTTE/DOUGLAS INTL (CLT)"},31.4,31.9,29.6,32.700000000000003,0,2,1,4,3.27,3.43,3.31,9.98]
["RDU","2017-09-14","ASO","MEM","NC","NORTH CAROLINA","WAKE","NC","RALEIGH/DURHAM","RALEIGH-DURHAM INTL",{"$f":"CONCATENATE(Table1[[#This Row],[Column6]],\" - \", Table1[[#This Row],[Column10]], \" (\", Table1[[#This Row],[Column1]],\")\")","v":"NORTH CAROLINA - RALEIGH-DURHAM INTL (RDU)"},32.700000000000003,33.299999999999997,31,33.799999999999997,1,2,1,4,3.31,3.86,3.31,9.8000000000000007]
["GSO","2017-09-14","ASO","MEM","NC","NORTH CAROLINA","GUILFORD","NC","GREENSBORO","PIEDMONT TRIAD INTL",{"$f":"CONCATENATE(Table1[[#This Row],[Column6]],\" - \", Table1[[#This Row],[Column10]], \" (\", Table1[[#This Row],[Column1]],\")\")","v":"NORTH CAROLINA - PIEDMONT TRIAD INTL (GSO)"},31.2,32,29.5,32.4,0,3,2,6,3.07,3.07,2.95,9,"For winter temps only Greensboro Airport listed.  For snowfall and precip stats only Greensboro Regional AP listed."]
["AVL","2017-09-14","ASO","MEM","NC","NORTH CAROLINA","BUNCOMBE","NC","ASHEVILLE","ASHEVILLE RGNL",{"$f":"CONCATENATE(Table1[[#This Row],[Column6]],\" - \", Table1[[#This Row],[Column10]], \" (\", Table1[[#This Row],[Column1]],\")\")","v":"NORTH CAROLINA - ASHEVILLE RGNL (AVL)"},28.5,29.3,26.7,29.7,3,4,3,13,2.76,2.87,3.23,11.02]
["ILM","2017-09-14","ASO","MEM","NC","NORTH CAROLINA","NEW HANOVER","NC","WILMINGTON","WILMINGTON INTL",{"$f":"CONCATENATE(Table1[[#This Row],[Column6]],\" - \", Table1[[#This Row],[Column10]], \" (\", Table1[[#This Row],[Column1]],\")\")","v":"NORTH CAROLINA - WILMINGTON INTL (ILM)"},37.1,37.799999999999997,35.6,37.9,1,0,0,1,3.62,3.78,3.62,11]
["PGV","2017-09-14","ASO","MEM","NC","NORTH CAROLINA","PITT","NC","GREENVILLE","PITT-GREENVILLE",{"$f":"CONCATENATE(Table1[[#This Row],[Column6]],\" - \", Table1[[#This Row],[Column10]], \" (\", Table1[[#This Row],[Column1]],\")\")","v":"NORTH CAROLINA - PITT-GREENVILLE (PGV)"},33.4,34,32.1,34.299999999999997,1,2,1,4,3.27,3.86,3.35,10.46]
["FAY","2017-09-14","ASO","MEM","NC","NORTH CAROLINA","CUMBERLAND","NC","FAYETTEVILLE","FAYETTEVILLE RGNL/GRANNIS FIELD",{"$f":"CONCATENATE(Table1[[#This Row],[Column6]],\" - \", Table1[[#This Row],[Column10]], \" (\", Table1[[#This Row],[Column1]],\")\")","v":"NORTH CAROLINA - FAYETTEVILLE RGNL/GRANNIS FIELD (FAY)"},34.6,35.1,33.200000000000003,35.4,"none","none","none","none",2.95,3.62,3.15,8.7100000000000009]
["MQI","2017-09-14","ASO","MEM","NC","NORTH CAROLINA","DARE","NC","MANTEO","DARE COUNTY RGNL",{"$f":"CONCATENATE(Table1[[#This Row],[Column6]],\" - \", Table1[[#This Row],[Column10]], \" (\", Table1[[#This Row],[Column1]],\")\")","v":"NORTH CAROLINA - DARE COUNTY RGNL (MQI)"},{"$f":"AVERAGE(Table1[[#This Row],[Column12]:[Column14]])","v":34.566666666666663},40.1,36,27.6,null,null,null,null,null,null,null,11.17,"Airport not found"]
["GFK","2017-09-14","AGL","DMA","ND","NORTH DAKOTA","GRAND FORKS","ND","GRAND FORKS","GRAND FORKS INTL",{"$f":"CONCATENATE(Table1[[#This Row],[Column6]],\" - \", Table1[[#This Row],[Column10]], \" (\", Table1[[#This Row],[Column1]],\")\")","v":"NORTH DAKOTA - GRAND FORKS INTL (GFK)"},0.5,2.6,-3.1,2.1,11,11,7,49,0.59,0.55000000000000004,0.51,1.68]
["FAR","2017-09-14","AGL","DMA","ND","NORTH DAKOTA","CASS","ND","FARGO","HECTOR INTL",{"$f":"CONCATENATE(Table1[[#This Row],[Column6]],\" - \", Table1[[#This Row],[Column10]], \" (\", Table1[[#This Row],[Column1]],\")\")","v":"NORTH DAKOTA - HECTOR INTL (FAR)"},3.8,5.9,0.1,5.6,11,11,7,50,0.83,0.71,0.59,2.14]
["BIS","2017-09-14","AGL","DMA","ND","NORTH DAKOTA","BURLEIGH","ND","BISMARCK","BISMARCK MUNI",{"$f":"CONCATENATE(Table1[[#This Row],[Column6]],\" - \", Table1[[#This Row],[Column10]], \" (\", Table1[[#This Row],[Column1]],\")\")","v":"NORTH DAKOTA - BISMARCK MUNI (BIS)"},5.3,6.1,2.2000000000000002,7.9,9,9,8,50,0.47,0.43,0.51,1.43]
["CLE","2017-09-14","AGL","DET","OH","OHIO","CUYAHOGA","OH","CLEVELAND","CLEVELAND-HOPKINS INTL",{"$f":"CONCATENATE(Table1[[#This Row],[Column6]],\" - \", Table1[[#This Row],[Column10]], \" (\", Table1[[#This Row],[Column1]],\")\")","v":"OHIO - CLEVELAND-HOPKINS INTL (CLE)"},23.9,26.4,21.7,23.6,14,19,15,68,3.11,2.72,2.3199999999999998,8.16,"For snowfall and precip stats only Cleveland WSFO AP was listed."]
["CMH","2017-09-14","AGL","DET","OH","OHIO","FRANKLIN","OH","COLUMBUS","JOHN GLENN COLUMBUS INTL",{"$f":"CONCATENATE(Table1[[#This Row],[Column6]],\" - \", Table1[[#This Row],[Column10]], \" (\", Table1[[#This Row],[Column1]],\")\")","v":"OHIO - JOHN GLENN COLUMBUS INTL (CMH)"},{"$f":"AVERAGE(Table1[[#This Row],[Column12]:[Column14]])","v":22.833333333333332},24.8,20.8,22.9,"none","none","none","none",7.4,9.65,6.97,{"$f":"SUM(Table1[[#This Row],[Column19]:[Column21]])","v":24.02},"For winter temp no Columbus John Glenn aiprort was listed, nor another name found.  For snowfall and precip stats only Columbus was listed. "]
["DAY","2017-09-14","AGL","DET","OH","OHIO","MONTGOMERY","OH","DAYTON","JAMES M COX DAYTON INTL",{"$f":"CONCATENATE(Table1[[#This Row],[Column6]],\" - \", Table1[[#This Row],[Column10]], \" (\", Table1[[#This Row],[Column1]],\")\")","v":"OHIO - JAMES M COX DAYTON INTL (DAY)"},22.5,24.3,20.3,23.1,5,8,6,25,3.15,2.83,2.2000000000000002,8.07,"For snowfall and precip stats only Dayton MCD was listed."]
["CAK","2017-09-14","AGL","DET","OH","OHIO","SUMMIT","OH","AKRON","AKRON-CANTON RGNL",{"$f":"CONCATENATE(Table1[[#This Row],[Column6]],\" - \", Table1[[#This Row],[Column10]], \" (\", Table1[[#This Row],[Column1]],\")\")","v":"OHIO - AKRON-CANTON RGNL (CAK)"},21.4,23.9,19.100000000000001,21.3,"none","none","none","none",2.83,2.0099999999999998,2.0099999999999998,7.76,"For snowfall and precip only Akron was listed."]
["TDZ","2017-09-14","AGL","DET","OH","OHIO","WOOD","OH","TOLEDO","TOLEDO EXECUTIVE",{"$f":"CONCATENATE(Table1[[#This Row],[Column6]],\" - \", Table1[[#This Row],[Column10]], \" (\", Table1[[#This Row],[Column1]],\")\")","v":"OHIO - TOLEDO EXECUTIVE (TDZ)"},21.2,23.3,18.899999999999999,21.5,"none","none","none","none",2.44,2.0099999999999998,1.97,6.43,"aka Metcalf field and was used for winter temps and snowfall and precip stats."]
["LCK","2017-09-14","AGL","DET","OH","OHIO","FRANKLIN","OH","COLUMBUS","RICKENBACKER INTL",{"$f":"CONCATENATE(Table1[[#This Row],[Column6]],\" - \", Table1[[#This Row],[Column10]], \" (\", Table1[[#This Row],[Column1]],\")\")","v":"OHIO - RICKENBACKER INTL (LCK)"},22.8,24.8,20.8,22.9,null,null,null,null,null,null,null,8.6,"Airport not found"]
["LUK","2017-09-14","AGL","DET","OH","OHIO","HAMILTON","OH","CINCINNATI","CINCINNATI MUNI AIRPORT LUNKEN FIELD",{"$f":"CONCATENATE(Table1[[#This Row],[Column6]],\" - \", Table1[[#This Row],[Column10]], \" (\", Table1[[#This Row],[Column1]],\")\")","v":"OHIO - CINCINNATI MUNI AIRPORT LUNKEN FIELD (LUK)"},24.4,25.9,22.4,24.9,"none","none","none","none",3.11,2.87,2.64,8.51,"For snowfall and precip stats only Cincinnati listed."]
["HAO","2017-09-14","AGL","DET","OH","OHIO","BUTLER","OH","HAMILTON","BUTLER CO RGNL-HOGAN FIELD",{"$f":"CONCATENATE(Table1[[#This Row],[Column6]],\" - \", Table1[[#This Row],[Column10]], \" (\", Table1[[#This Row],[Column1]],\")\")","v":"OHIO - BUTLER CO RGNL-HOGAN FIELD (HAO)"},22.8,24,21,23.4,"none","none","none","none",3.46,3.07,2.72,8.6999999999999993,"For snowfall and precip stats used Fairfield."]
["BKL","2017-09-14","AGL","DET","OH","OHIO","CUYAHOGA","OH","CLEVELAND","BURKE LAKEFRONT",{"$f":"CONCATENATE(Table1[[#This Row],[Column6]],\" - \", Table1[[#This Row],[Column10]], \" (\", Table1[[#This Row],[Column1]],\")\")","v":"OHIO - BURKE LAKEFRONT (BKL)"},26.3,29.2,23.4,26.1,14,19,15,68,3.11,2.72,2.3199999999999998,6.16]
["OSU","2017-09-14","AGL","DET","OH","OHIO","FRANKLIN","OH","COLUMBUS","OHIO STATE UNIVERSITY",{"$f":"CONCATENATE(Table1[[#This Row],[Column6]],\" - \", Table1[[#This Row],[Column10]], \" (\", Table1[[#This Row],[Column1]],\")\")","v":"OHIO - OHIO STATE UNIVERSITY (OSU)"},22.8,24.8,20.8,22.9,"-","-","-","-",7.4,9.65,6.97,7.31]
["PCW","2017-09-14","AGL","DET","OH","OHIO","OTTAWA","OH","PORT CLINTON","ERIE-OTTAWA INTL",{"$f":"CONCATENATE(Table1[[#This Row],[Column6]],\" - \", Table1[[#This Row],[Column10]], \" (\", Table1[[#This Row],[Column1]],\")\")","v":"OHIO - ERIE-OTTAWA INTL (PCW)"},{"$f":"AVERAGE(Table1[[#This Row],[Column12]:[Column14]])","v":23.679999999999996},26.2,21.3,23.54,null,null,null,null,null,null,null,8.6999999999999993,"Airport not found"]
["OKC","2017-09-14","ASW","AOK","OK","OKLAHOMA","OKLAHOMA","OK","OKLAHOMA CITY","WILL ROGERS WORLD",{"$f":"CONCATENATE(Table1[[#This Row],[Column6]],\" - \", Table1[[#This Row],[Column10]], \" (\", Table1[[#This Row],[Column1]],\")\")","v":"OKLAHOMA - WILL ROGERS WORLD (OKC)"},30.7,30.6,28.8,32.799999999999997,2,3,2,8,1.89,1.38,1.57,4.8499999999999996]
["TUL","2017-09-14","ASW","AOK","OK","OKLAHOMA","TULSA","OK","TULSA","TULSA INTL",{"$f":"CONCATENATE(Table1[[#This Row],[Column6]],\" - \", Table1[[#This Row],[Column10]], \" (\", Table1[[#This Row],[Column1]],\")\")","v":"OKLAHOMA - TULSA INTL (TUL)"},29.4,29.6,27.5,31.3,2,3,2,10,2.48,1.65,1.85,6]
["PDX","2017-09-14","ANM","SEA","OR","OREGON","MULTNOMAH","OR","PORTLAND","PORTLAND INTL",{"$f":"CONCATENATE(Table1[[#This Row],[Column6]],\" - \", Table1[[#This Row],[Column10]], \" (\", Table1[[#This Row],[Column1]],\")\")","v":"OREGON - PORTLAND INTL (PDX)"},35.799999999999997,35.200000000000003,35.799999999999997,36.299999999999997,1,1,2,4,5.47,4.88,3.66,14.03,"For snowfall and precip stats only Portland KGW TV was listed."]
["MFR","2017-09-14","ANM","SEA","OR","OREGON","JACKSON","OR","MEDFORD","ROGUE VALLEY INTL - MEDFORD",{"$f":"CONCATENATE(Table1[[#This Row],[Column6]],\" - \", Table1[[#This Row],[Column10]], \" (\", Table1[[#This Row],[Column1]],\")\")","v":"OREGON - ROGUE VALLEY INTL - MEDFORD (MFR)"},33.200000000000003,32.700000000000003,32.799999999999997,34.1,1,1,1,3,3.27,2.76,2.3199999999999998,7.93]
["EUG","2017-09-14","ANM","SEA","OR","OREGON","LANE","OR","EUGENE","MAHLON SWEET FIELD",{"$f":"CONCATENATE(Table1[[#This Row],[Column6]],\" - \", Table1[[#This Row],[Column10]], \" (\", Table1[[#This Row],[Column1]],\")\")","v":"OREGON - MAHLON SWEET FIELD (EUG)"},34.299999999999997,33.799999999999997,34.200000000000003,34.799999999999997,2,1,2,5,7.83,6.85,5.43,20.13]
["RDM","2017-09-14","ANM","SEA","OR","OREGON","DESCHUTES","OR","REDMOND","ROBERTS FIELD",{"$f":"CONCATENATE(Table1[[#This Row],[Column6]],\" - \", Table1[[#This Row],[Column10]], \" (\", Table1[[#This Row],[Column1]],\")\")","v":"OREGON - ROBERTS FIELD (RDM)"},22.5,20.7,23.1,23.7,5,4,3,15,1.1399999999999999,0.98,0.67,2.78]
["PHL","2017-09-14","AEA","HAR","PA","PENNSYLVANIA","PHILADELPHIA","PA","PHILADELPHIA","PHILADELPHIA INTL",{"$f":"CONCATENATE(Table1[[#This Row],[Column6]],\" - \", Table1[[#This Row],[Column10]], \" (\", Table1[[#This Row],[Column1]],\")\")","v":"PENNSYLVANIA - PHILADELPHIA INTL (PHL)"},27.8,30.1,25.6,27.7,3,7,9,23,3.54,3.03,2.64,9.24]
["PIT","2017-09-14","AEA","HAR","PA","PENNSYLVANIA","ALLEGHENY","PA","PITTSBURGH","PITTSBURGH INTL",{"$f":"CONCATENATE(Table1[[#This Row],[Column6]],\" - \", Table1[[#This Row],[Column10]], \" (\", Table1[[#This Row],[Column1]],\")\")","v":"PENNSYLVANIA - PITTSBURGH INTL (PIT)"},24.1,26.4,21.8,24,"none","none","none","none",2.72,2.87,2.2400000000000002,8.33,"aka Pittsburgh Allegheny County Airport and used for winter temp stats.  For snowfall and precip stats only Pittsburgh Emsworth L/D Ohio Rvr was listed."]
["MDT","2017-09-14","AEA","HAR","PA","PENNSYLVANIA","DAUPHIN","PA","HARRISBURG","HARRISBURG INTL",{"$f":"CONCATENATE(Table1[[#This Row],[Column6]],\" - \", Table1[[#This Row],[Column10]], \" (\", Table1[[#This Row],[Column1]],\")\")","v":"PENNSYLVANIA - HARRISBURG INTL (MDT)"},24.9,27,23,24.8,"none","none","none","none",3.23,3.19,2.87,8.83,"aka Harrisburg Capital City AP and used for winter temp.  For snowfall and precipitation only Harrisburg was listed."]
["AGC","2017-09-14","AEA","HAR","PA","PENNSYLVANIA","ALLEGHENY","PA","PITTSBURGH","ALLEGHENY COUNTY",{"$f":"CONCATENATE(Table1[[#This Row],[Column6]],\" - \", Table1[[#This Row],[Column10]], \" (\", Table1[[#This Row],[Column1]],\")\")","v":"PENNSYLVANIA - ALLEGHENY COUNTY (AGC)"},24.1,26.4,21.8,24,"none","none","none","none",2.72,2.87,2.2400000000000002,8.33,"For snowfall and precip stats only Pittsburgh was listed."]
["ABE","2017-09-14","AEA","HAR","PA","PENNSYLVANIA","LEHIGH","PA","ALLENTOWN","LEHIGH VALLEY INTL",{"$f":"CONCATENATE(Table1[[#This Row],[Column6]],\" - \", Table1[[#This Row],[Column10]], \" (\", Table1[[#This Row],[Column1]],\")\")","v":"PENNSYLVANIA - LEHIGH VALLEY INTL (ABE)"},21.7,24,19.5,21.7,5,10,11,33,3.58,3.03,2.72,9.31]
["AVP","2017-09-14","AEA","HAR","PA","PENNSYLVANIA","LUZERNE","PA","WILKES-BARRE/SCRANTON","WILKES-BARRE/SCRANTON INTL",{"$f":"CONCATENATE(Table1[[#This Row],[Column6]],\" - \", Table1[[#This Row],[Column10]], \" (\", Table1[[#This Row],[Column1]],\")\")","v":"PENNSYLVANIA - WILKES-BARRE/SCRANTON INTL (AVP)"},21,23.8,18.5,20.7,7,14,9,45,2.68,2.36,2.0499999999999998,7.08]
["UNV","2017-09-14","AEA","HAR","PA","PENNSYLVANIA","CENTRE","PA","STATE COLLEGE","UNIVERSITY PARK",{"$f":"CONCATENATE(Table1[[#This Row],[Column6]],\" - \", Table1[[#This Row],[Column10]], \" (\", Table1[[#This Row],[Column1]],\")\")","v":"PENNSYLVANIA - UNIVERSITY PARK (UNV)"},22.3,24.8,20.2,21.7,8,13,11,45,2.87,2.76,2.52,8.15]
["RDG","2017-09-14","AEA","HAR","PA","PENNSYLVANIA","BERKS","PA","READING","READING RGNL/CARL A SPAATZ FIELD",{"$f":"CONCATENATE(Table1[[#This Row],[Column6]],\" - \", Table1[[#This Row],[Column10]], \" (\", Table1[[#This Row],[Column1]],\")\")","v":"PENNSYLVANIA - READING RGNL/CARL A SPAATZ FIELD (RDG)"},23.7,26.1,21.7,23.2,"none","none","none","none",3.31,3.7,2.76,8.82]
["PVD","2017-09-14","ANE","NONE","RI","RHODE ISLAND","KENT","RI","PROVIDENCE","THEODORE FRANCIS GREEN STATE",{"$f":"CONCATENATE(Table1[[#This Row],[Column6]],\" - \", Table1[[#This Row],[Column10]], \" (\", Table1[[#This Row],[Column1]],\")\")","v":"RHODE ISLAND - THEODORE FRANCIS GREEN STATE (PVD)"},23.6,26.3,21,23.6,9,9,9,36,4.21,3.86,3.31,11.37,"For winter temps only Providence  Airport was found.  For snowfall and precip stats only Providence was listed. "]
["MYR","2017-09-14","ASO","ATL","SC","SOUTH CAROLINA","HORRY","SC","MYRTLE BEACH","MYRTLE BEACH INTL",{"$f":"CONCATENATE(Table1[[#This Row],[Column6]],\" - \", Table1[[#This Row],[Column10]], \" (\", Table1[[#This Row],[Column1]],\")\")","v":"SOUTH CAROLINA - MYRTLE BEACH INTL (MYR)"},35.5,36.1,34,36.4,null,null,null,null,null,null,null,11.25,"Myrtle Beach International Airport was not found for winter temps or snowfall and percip stats."]
["CHS","2017-09-14","ASO","ATL","SC","SOUTH CAROLINA","CHARLESTON","SC","CHARLESTON","CHARLESTON AFB/INTL",{"$f":"CONCATENATE(Table1[[#This Row],[Column6]],\" - \", Table1[[#This Row],[Column10]], \" (\", Table1[[#This Row],[Column1]],\")\")","v":"SOUTH CAROLINA - CHARLESTON AFB/INTL (CHS)"},39.4,40.1,37.5,40.6,"none","none","none","none",3.11,3.7,2.95,9.7799999999999994]
["GSP","2017-09-14","ASO","ATL","SC","SOUTH CAROLINA","GREENVILLE","SC","GREER","GREENVILLE SPARTANBURG INTL",{"$f":"CONCATENATE(Table1[[#This Row],[Column6]],\" - \", Table1[[#This Row],[Column10]], \" (\", Table1[[#This Row],[Column1]],\")\")","v":"SOUTH CAROLINA - GREENVILLE SPARTANBURG INTL (GSP)"},33.6,34,32,34.9,null,null,null,null,null,null,null,11.9,"For snowfall and precip stats airport not found."]
["CAE","2017-09-14","ASO","ATL","SC","SOUTH CAROLINA","LEXINGTON","SC","COLUMBIA","COLUMBIA METROPOLITAN",{"$f":"CONCATENATE(Table1[[#This Row],[Column6]],\" - \", Table1[[#This Row],[Column10]], \" (\", Table1[[#This Row],[Column1]],\")\")","v":"SOUTH CAROLINA - COLUMBIA METROPOLITAN (CAE)"},35.200000000000003,35.299999999999997,33.700000000000003,36.799999999999997,null,null,null,null,null,null,null,10.41,"For snowfall and precip stats airport not found."]
["SPA","2017-09-14","ASO","ATL","SC","SOUTH CAROLINA","SPARTANBURG","SC","SPARTANBURG","SPARTANBURG DOWNTOWN MEMORIAL",{"$f":"CONCATENATE(Table1[[#This Row],[Column6]],\" - \", Table1[[#This Row],[Column10]], \" (\", Table1[[#This Row],[Column1]],\")\")","v":"SOUTH CAROLINA - SPARTANBURG DOWNTOWN MEMORIAL (SPA)"},30.9,31.2,29.4,32.200000000000003,0,1,0,1,4.45,4.17,4.0599999999999996,12.65]
["GMU","2017-09-14","ASO","ATL","SC","SOUTH CAROLINA","GREENVILLE","SC","GREENVILLE","GREENVILLE DOWNTOWN",{"$f":"CONCATENATE(Table1[[#This Row],[Column6]],\" - \", Table1[[#This Row],[Column10]], \" (\", Table1[[#This Row],[Column1]],\")\")","v":"SOUTH CAROLINA - GREENVILLE DOWNTOWN (GMU)"},32.9,26.1,21.7,23.2,1,2,1,4,3.27,3.86,3.35,12.3,"For snowfall and precip stats only Greenville was listed."]
["FSD","2017-09-14","AGL","DMA","SD","SOUTH DAKOTA","MINNEHAHA","SD","SIOUX FALLS","JOE FOSS FIELD",{"$f":"CONCATENATE(Table1[[#This Row],[Column6]],\" - \", Table1[[#This Row],[Column10]], \" (\", Table1[[#This Row],[Column1]],\")\")","v":"SOUTH DAKOTA - JOE FOSS FIELD (FSD)"},9.4,9.8000000000000007,6.9,11.7,8,8,7,44,0.71,0.55000000000000004,0.59,1.85]
["RAP","2017-09-14","AGL","DMA","SD","SOUTH DAKOTA","PENNINGTON","SD","RAPID CITY","RAPID CITY RGNL",{"$f":"CONCATENATE(Table1[[#This Row],[Column6]],\" - \", Table1[[#This Row],[Column10]], \" (\", Table1[[#This Row],[Column1]],\")\")","v":"SOUTH DAKOTA - RAPID CITY RGNL (RAP)"},13.6,13,12.9,15.1,3,3,4,26,0.31,0.2,0.31,1.1599999999999999]
["PIR","2017-09-14","AGL","DMA","SD","SOUTH DAKOTA","HUGHES","SD","PIERRE","PIERRE RGNL",{"$f":"CONCATENATE(Table1[[#This Row],[Column6]],\" - \", Table1[[#This Row],[Column10]], \" (\", Table1[[#This Row],[Column1]],\")\")","v":"SOUTH DAKOTA - PIERRE RGNL (PIR)"},11.8,12.1,9.8000000000000007,13.8,5,4,6,31,0.55000000000000004,0.43,0.59,1.56]
["MEM","2017-09-14","ASO","MEM","TN","TENNESSEE","SHELBY","TN","MEMPHIS","MEMPHIS INTL",{"$f":"CONCATENATE(Table1[[#This Row],[Column6]],\" - \", Table1[[#This Row],[Column10]], \" (\", Table1[[#This Row],[Column1]],\")\")","v":"TENNESSEE - MEMPHIS INTL (MEM)"},34.6,35.1,32.6,36.299999999999997,0,2,1,3,5.75,3.98,4.41,14.11]
["BNA","2017-09-14","ASO","MEM","TN","TENNESSEE","DAVIDSON","TN","NASHVILLE","NASHVILLE INTL",{"$f":"CONCATENATE(Table1[[#This Row],[Column6]],\" - \", Table1[[#This Row],[Column10]], \" (\", Table1[[#This Row],[Column1]],\")\")","v":"TENNESSEE - NASHVILLE INTL (BNA)"},30.4,31.3,28.4,31.6,1,3,2,7,4.25,3.74,3.94,11.93]
["TYS","2017-09-14","ASO","MEM","TN","TENNESSEE","BLOUNT","TN","KNOXVILLE","MC GHEE TYSON",{"$f":"CONCATENATE(Table1[[#This Row],[Column6]],\" - \", Table1[[#This Row],[Column10]], \" (\", Table1[[#This Row],[Column1]],\")\")","v":"TENNESSEE - MC GHEE TYSON (TYS)"},31.1,31.7,29.2,32.4,"none","none","none","none",4.37,4.76,3.9,13.08,"For snowfall and precip stats only Knoxville was listed."]
["JWN","2017-09-14","ASO","MEM","TN","TENNESSEE","DAVIDSON","TN","NASHVILLE","JOHN C TUNE",{"$f":"CONCATENATE(Table1[[#This Row],[Column6]],\" - \", Table1[[#This Row],[Column10]], \" (\", Table1[[#This Row],[Column1]],\")\")","v":"TENNESSEE - JOHN C TUNE (JWN)"},30.4,31.3,28.4,31.6,1,3,2,7,4.25,3.74,3.94,11.93,"aka Nashville International Airport and used for winter temps and snowfall and precip stats."]
["CHA","2017-09-14","ASO","MEM","TN","TENNESSEE","HAMILTON","TN","CHATTANOOGA","LOVELL FIELD",{"$f":"CONCATENATE(Table1[[#This Row],[Column6]],\" - \", Table1[[#This Row],[Column10]], \" (\", Table1[[#This Row],[Column1]],\")\")","v":"TENNESSEE - LOVELL FIELD (CHA)"},32.6,33.1,30.7,34,0,2,1,4,4.88,4.92,4.84,14.65]
["TRI","2017-09-14","ASO","MEM","TN","TENNESSEE","SULLIVAN","TN","BRISTOL/JOHNSON/KINGSPORT","TRI-CITIES",{"$f":"CONCATENATE(Table1[[#This Row],[Column6]],\" - \", Table1[[#This Row],[Column10]], \" (\", Table1[[#This Row],[Column1]],\")\")","v":"TENNESSEE - TRI-CITIES (TRI)"},26.8,27.6,25,28.1,2,5,3,12,3.39,3.39,3.46,10.19]
["DFW","2017-09-14","ASW","TEX","TX","TEXAS","TARRANT","TX","DALLAS-FORT WORTH","DALLAS-FORT WORTH INTL",{"$f":"CONCATENATE(Table1[[#This Row],[Column6]],\" - \", Table1[[#This Row],[Column10]], \" (\", Table1[[#This Row],[Column1]],\")\")","v":"TEXAS - DALLAS-FORT WORTH INTL (DFW)"},37.299999999999997,37.1,35.5,39.4,0,1,1,2,2.76,2.0499999999999998,2.6,7.34]
["IAH","2017-09-14","ASW","TEX","TX","TEXAS","HARRIS","TX","HOUSTON","GEORGE BUSH INTERCONTINENTAL/HOUSTON",{"$f":"CONCATENATE(Table1[[#This Row],[Column6]],\" - \", Table1[[#This Row],[Column10]], \" (\", Table1[[#This Row],[Column1]],\")\")","v":"TEXAS - GEORGE BUSH INTERCONTINENTAL/HOUSTON (IAH)"},44.7,44.6,43.2,46.5,"none","none","none","none",4.09,3.7,3.23,10.32,"For snowfall and precip stats only Houston was listed."]
["DAL","2017-09-14","ASW","TEX","TX","TEXAS","DALLAS","TX","DALLAS","DALLAS LOVE FIELD",{"$f":"CONCATENATE(Table1[[#This Row],[Column6]],\" - \", Table1[[#This Row],[Column10]], \" (\", Table1[[#This Row],[Column1]],\")\")","v":"TEXAS - DALLAS LOVE FIELD (DAL)"},37.299999999999997,37.1,35.5,39.4,null,null,null,null,null,null,null,7.34,"Dallas Love Field not found in either website."]
["HOU","2017-09-14","ASW","TEX","TX","TEXAS","HARRIS","TX","HOUSTON","WILLIAM P HOBBY",{"$f":"CONCATENATE(Table1[[#This Row],[Column6]],\" - \", Table1[[#This Row],[Column10]], \" (\", Table1[[#This Row],[Column1]],\")\")","v":"TEXAS - WILLIAM P HOBBY (HOU)"},46.8,46.7,45.1,48.5,"none","none","none","none",4.09,3.7,3.23,11.11,"For snowfall and precip stats only Houston was listed."]
["AUS","2017-09-14","ASW","TEX","TX","TEXAS","TRAVIS","TX","AUSTIN","AUSTIN-BERGSTROM INTL",{"$f":"CONCATENATE(Table1[[#This Row],[Column6]],\" - \", Table1[[#This Row],[Column10]], \" (\", Table1[[#This Row],[Column1]],\")\")","v":"TEXAS - AUSTIN-BERGSTROM INTL (AUS)"},37.6,37.200000000000003,36.299999999999997,39.4,"none","none","none","none",2.4,2.2000000000000002,2.0099999999999998,6.85,"For snowfall and precip stats only Austin-Camp Mabry was listed."]
["SAT","2017-09-14","ASW","TEX","TX","TEXAS","BEXAR","TX","SAN ANTONIO","SAN ANTONIO INTL",{"$f":"CONCATENATE(Table1[[#This Row],[Column6]],\" - \", Table1[[#This Row],[Column10]], \" (\", Table1[[#This Row],[Column1]],\")\")","v":"TEXAS - SAN ANTONIO INTL (SAT)"},42.1,41.7,40.700000000000003,44.2,"none","none","none","none",1.97,1.65,1.73,5.46]
["ELP","2017-09-14","ASW","TEX","TX","TEXAS","EL PASO","TX","EL PASO","EL PASO INTL",{"$f":"CONCATENATE(Table1[[#This Row],[Column6]],\" - \", Table1[[#This Row],[Column10]], \" (\", Table1[[#This Row],[Column1]],\")\")","v":"TEXAS - EL PASO INTL (ELP)"},34,32.5,32.5,37.1,3,1,1,7,0.79,0.39,0.47,1.64]
["LBB","2017-09-14","ASW","TEX","TX","TEXAS","LUBBOCK","TX","LUBBOCK","LUBBOCK PRESTON SMITH INTL",{"$f":"CONCATENATE(Table1[[#This Row],[Column6]],\" - \", Table1[[#This Row],[Column10]], \" (\", Table1[[#This Row],[Column1]],\")\")","v":"TEXAS - LUBBOCK PRESTON SMITH INTL (LBB)"},27.8,27.1,26.4,30.1,2,3,2,9,0.75,0.67,0.75,2.16]
["MAF","2017-09-14","ASW","TEX","TX","TEXAS","MIDLAND","TX","MIDLAND","MIDLAND INTL AIR AND SPACE PORT",{"$f":"CONCATENATE(Table1[[#This Row],[Column6]],\" - \", Table1[[#This Row],[Column10]], \" (\", Table1[[#This Row],[Column1]],\")\")","v":"TEXAS - MIDLAND INTL AIR AND SPACE PORT (MAF)"},31.8,30.8,30.3,34.5,1,1,0,2,0.55000000000000004,0.67,0.59,1.87,"For snowfall and precip only Midland 4 ene was listed."]
["CRP","2017-09-14","ASW","TEX","TX","TEXAS","NUECES","TX","CORPUS CHRISTI","CORPUS CHRISTI INTL",{"$f":"CONCATENATE(Table1[[#This Row],[Column6]],\" - \", Table1[[#This Row],[Column10]], \" (\", Table1[[#This Row],[Column1]],\")\")","v":"TEXAS - CORPUS CHRISTI INTL (CRP)"},48.7,48.6,47.2,50.5,"none","none","none","none",1.81,1.54,1.93,5.3]
["AMA","2017-09-14","ASW","TEX","TX","TEXAS","POTTER","TX","AMARILLO","RICK HUSBAND AMARILLO INTL",{"$f":"CONCATENATE(Table1[[#This Row],[Column6]],\" - \", Table1[[#This Row],[Column10]], \" (\", Table1[[#This Row],[Column1]],\")\")","v":"TEXAS - RICK HUSBAND AMARILLO INTL (AMA)"},24.5,24,23.4,26.4,4,5,3,19,0.71,0.71,0.55000000000000004,1.99]
["AFW","2017-09-14","ASW","TEX","TX","TEXAS","TARRANT","TX","FORT WORTH","FORT WORTH ALLIANCE",{"$f":"CONCATENATE(Table1[[#This Row],[Column6]],\" - \", Table1[[#This Row],[Column10]], \" (\", Table1[[#This Row],[Column1]],\")\")","v":"TEXAS - FORT WORTH ALLIANCE (AFW)"},35.200000000000003,34.799999999999997,33.9,37,"none","none","none","none",0,0,0,7.03]
["LRD","2017-09-14","ASW","TEX","TX","TEXAS","WEBB","TX","LAREDO","LAREDO INTL",{"$f":"CONCATENATE(Table1[[#This Row],[Column6]],\" - \", Table1[[#This Row],[Column10]], \" (\", Table1[[#This Row],[Column1]],\")\")","v":"TEXAS - LAREDO INTL (LRD)"},47.7,46.8,46.1,50.3,"none","none","none",0,0.87,0.91,0.94,2.72]
["EFD","2017-09-14","ASW","TEX","TX","TEXAS","HARRIS","TX","HOUSTON","ELLINGTON",{"$f":"CONCATENATE(Table1[[#This Row],[Column6]],\" - \", Table1[[#This Row],[Column10]], \" (\", Table1[[#This Row],[Column1]],\")\")","v":"TEXAS - ELLINGTON (EFD)"},46.8,46.7,45.1,48.5,null,null,null,null,null,null,null,11.11,"Airport not found"]
["MFE","2017-09-14","ASW","TEX","TX","TEXAS","HIDALGO","TX","MC ALLEN","MC ALLEN MILLER INTL",{"$f":"CONCATENATE(Table1[[#This Row],[Column6]],\" - \", Table1[[#This Row],[Column10]], \" (\", Table1[[#This Row],[Column1]],\")\")","v":"TEXAS - MC ALLEN MILLER INTL (MFE)"},52.2,51.9,50.7,54.2,"none","none","none","none",1.18,1.06,1.1000000000000001,3.35]
["GGG","2017-09-14","ASW","TEX","TX","TEXAS","GREGG","TX","LONGVIEW","EAST TEXAS RGNL",{"$f":"CONCATENATE(Table1[[#This Row],[Column6]],\" - \", Table1[[#This Row],[Column10]], \" (\", Table1[[#This Row],[Column1]],\")\")","v":"TEXAS - EAST TEXAS RGNL (GGG)"},37.299999999999997,37.4,35.700000000000003,38.799999999999997,"-","-","-","-",4.84,3.66,4.17,11.85]
["SLC","2017-09-14","ANM","DEN","UT","UTAH","SALT LAKE","UT","SALT LAKE CITY","SALT LAKE CITY INTL",{"$f":"CONCATENATE(Table1[[#This Row],[Column6]],\" - \", Table1[[#This Row],[Column10]], \" (\", Table1[[#This Row],[Column1]],\")\")","v":"UTAH - SALT LAKE CITY INTL (SLC)"},23,22.6,21.6,25.2,10,11,10,47,1.61,1.46,1.5,3.91,"For snowfall and precip stats only Salt Lake Triad Center was listed."]
["BTV","2017-09-14","ANE","NONE","VT","VERMONT","CHITTENDEN","VT","BURLINGTON","BURLINGTON INTL",{"$f":"CONCATENATE(Table1[[#This Row],[Column6]],\" - \", Table1[[#This Row],[Column10]], \" (\", Table1[[#This Row],[Column1]],\")\")","v":"VERMONT - BURLINGTON INTL (BTV)"},{"$f":"AVERAGE(Table1[[#This Row],[Column12]:[Column14]])","v":13.733333333333334},18.5,10.199999999999999,12.5,18,21,16,81,2.36,2.0499999999999998,1.77,{"$f":"SUM(Table1[[#This Row],[Column19]:[Column21]])","v":6.18},"For winter temp airport not found. "]
["STT","2017-09-14","ASO","ATL","VI","VIRGIN ISLANDS","-VIRGIN ISLANDS-","VI","CHARLOTTE AMALIE","CYRIL E KING",{"$f":"CONCATENATE(Table1[[#This Row],[Column6]],\" - \", Table1[[#This Row],[Column10]], \" (\", Table1[[#This Row],[Column1]],\")\")","v":"VIRGIN ISLANDS - CYRIL E KING (STT)"},null,null,null,null,null,null,null,null,null,null,null,null,"Airport not found",null,{"$f":"ISBLANK(Table1[[#This Row],[Column22]])","v":true}]
["RIC","2017-09-14","AEA","DCA","VA","VIRGINIA","HENRICO","VA","RICHMOND","RICHMOND INTL",{"$f":"CONCATENATE(Table1[[#This Row],[Column6]],\" - \", Table1[[#This Row],[Column10]], \" (\", Table1[[#This Row],[Column1]],\")\")","v":"VIRGINIA - RICHMOND INTL (RIC)"},30,31.4,28.3,30.5,2,4,3,10,3.27,3.03,2.76,9.06]
["ORF","2017-09-14","AEA","DCA","VA","VIRGINIA","NORFOLK","VA","NORFOLK","NORFOLK INTL",{"$f":"CONCATENATE(Table1[[#This Row],[Column6]],\" - \", Table1[[#This Row],[Column10]], \" (\", Table1[[#This Row],[Column1]],\")\")","v":"VIRGINIA - NORFOLK INTL (ORF)"},34.4,36.1,32.700000000000003,34.4,1,2,2,5,3.27,3.39,3.11,9.7799999999999994]
["CHO","2017-09-14","AEA","DCA","VA","VIRGINIA","ALBEMARLE","VA","CHARLOTTESVILLE","CHARLOTTESVILLE-ALBEMARLE",{"$f":"CONCATENATE(Table1[[#This Row],[Column6]],\" - \", Table1[[#This Row],[Column10]], \" (\", Table1[[#This Row],[Column1]],\")\")","v":"VIRGINIA - CHARLOTTESVILLE-ALBEMARLE (CHO)"},27.5,28.6,26.1,27.7,4,3,6,16,3.35,3.11,3.07,8.6199999999999992,"For snowfall and precip stats only Charlottesville 2 w was listed."]
["ROA","2017-09-14","AEA","DCA","VA","VIRGINIA","ROANOKE","VA","ROANOKE","ROANOKE-BLACKSBURG RGNL/WOODRUM FIELD",{"$f":"CONCATENATE(Table1[[#This Row],[Column6]],\" - \", Table1[[#This Row],[Column10]], \" (\", Table1[[#This Row],[Column1]],\")\")","v":"VIRGINIA - ROANOKE-BLACKSBURG RGNL/WOODRUM FIELD (ROA)"},29.1,30.1,27.5,29.8,4,6,6,20,2.95,2.91,2.87,8.75]
["PHF","2017-09-14","AEA","DCA","VA","VIRGINIA","NEWPORT NEWS","VA","NEWPORT NEWS","NEWPORT NEWS/WILLIAMSBURG INTL",{"$f":"CONCATENATE(Table1[[#This Row],[Column6]],\" - \", Table1[[#This Row],[Column10]], \" (\", Table1[[#This Row],[Column1]],\")\")","v":"VIRGINIA - NEWPORT NEWS/WILLIAMSBURG INTL (PHF)"},33,34.6,31.8,32.6,"none","none","none","none",3.39,3.35,2.99,9.7200000000000006]
["SEA","2017-09-14","ANM","SEA","WA","WASHINGTON","KING","WA","SEATTLE","SEATTLE-TACOMA INTL",{"$f":"CONCATENATE(Table1[[#This Row],[Column6]],\" - \", Table1[[#This Row],[Column10]], \" (\", Table1[[#This Row],[Column1]],\")\")","v":"WASHINGTON - SEATTLE-TACOMA INTL (SEA)"},36.4,35.6,36.9,36.9,"none","none","none","none",5.31,5.55,3.46,14.42,"For snowfall and precip stats only Seattle was listed."]
["GEG","2017-09-14","ANM","SEA","WA","WASHINGTON","SPOKANE","WA","SPOKANE","SPOKANE INTL",{"$f":"CONCATENATE(Table1[[#This Row],[Column6]],\" - \", Table1[[#This Row],[Column10]], \" (\", Table1[[#This Row],[Column1]],\")\")","v":"WASHINGTON - SPOKANE INTL (GEG)"},24.5,22.5,24.7,26.4,15,11,7,45,2.2799999999999998,1.77,1.34,5.42]
["BFI","2017-09-14","ANM","SEA","WA","WASHINGTON","KING","WA","SEATTLE","BOEING FIELD/KING COUNTY INTL",{"$f":"CONCATENATE(Table1[[#This Row],[Column6]],\" - \", Table1[[#This Row],[Column10]], \" (\", Table1[[#This Row],[Column1]],\")\")","v":"WASHINGTON - BOEING FIELD/KING COUNTY INTL (BFI)"},36.200000000000003,35.5,36.700000000000003,36.299999999999997,1,2,1,7,5.55,3.5,3.7,15.35]
["BLI","2017-09-14","ANM","SEA","WA","WASHINGTON","WHATCOM","WA","BELLINGHAM","BELLINGHAM INTL",{"$f":"CONCATENATE(Table1[[#This Row],[Column6]],\" - \", Table1[[#This Row],[Column10]], \" (\", Table1[[#This Row],[Column1]],\")\")","v":"WASHINGTON - BELLINGHAM INTL (BLI)"},32.700000000000003,32,32.799999999999997,33.200000000000003,"none","none","none","none",4.88,4.84,3.54,11.91,"For snowfall and precip stats only Bellingham was listed."]
["PSC","2017-09-14","ANM","SEA","WA","WASHINGTON","FRANKLIN","WA","PASCO","TRI-CITIES",{"$f":"CONCATENATE(Table1[[#This Row],[Column6]],\" - \", Table1[[#This Row],[Column10]], \" (\", Table1[[#This Row],[Column1]],\")\")","v":"WASHINGTON - TRI-CITIES (PSC)"},27.6,26.4,27.9,28.7,"none","none","none","none",1.42,1.18,0.87,3.29,"For snowfall and precip stats only Pasco Eltopia 8 WSW was listed."]
["MGW","2017-09-14","AEA","BKW","WV","WEST VIRGINIA","MONONGALIA","WV","MORGANTOWN","MORGANTOWN MUNI-WALTER L BILL HART FLD",{"$f":"CONCATENATE(Table1[[#This Row],[Column6]],\" - \", Table1[[#This Row],[Column10]], \" (\", Table1[[#This Row],[Column1]],\")\")","v":"WEST VIRGINIA - MORGANTOWN MUNI-WALTER L BILL HART FLD (MGW)"},25.5,27.2,23.7,25.5,"none","none","none","none",3.35,3.27,2.95,8.32,"For snowfall and precip stats only Morgantown locj & dam was listed."]
["CRW","2017-09-14","AEA","BKW","WV","WEST VIRGINIA","KANAWHA","WV","CHARLESTON","YEAGER",{"$f":"CONCATENATE(Table1[[#This Row],[Column6]],\" - \", Table1[[#This Row],[Column10]], \" (\", Table1[[#This Row],[Column1]],\")\")","v":"WEST VIRGINIA - YEAGER (CRW)"},28,29.2,26.3,28.7,7,11,10,36,3.27,2.99,3.19,9.4600000000000009]
["MKE","2017-09-14","AGL","CHI","WI","WISCONSIN","MILWAUKEE","WI","MILWAUKEE","GENERAL MITCHELL INTL",{"$f":"CONCATENATE(Table1[[#This Row],[Column6]],\" - \", Table1[[#This Row],[Column10]], \" (\", Table1[[#This Row],[Column1]],\")\")","v":"WISCONSIN - GENERAL MITCHELL INTL (MKE)"},18.3,20.100000000000001,15.6,19.3,"none","none","none","none",2.0099999999999998,1.73,1.61,5.45,"For snowfall and precip stats only Milwaukee was listed."]
["MSN","2017-09-14","AGL","CHI","WI","WISCONSIN","DANE","WI","MADISON","DANE COUNTY RGNL-TRUAX FIELD",{"$f":"CONCATENATE(Table1[[#This Row],[Column6]],\" - \", Table1[[#This Row],[Column10]], \" (\", Table1[[#This Row],[Column1]],\")\")","v":"WISCONSIN - DANE COUNTY RGNL-TRUAX FIELD (MSN)"},14,15.9,11.1,15.1,14,13,11,53,1.73,1.22,1.46,4.42]
["GRB","2017-09-14","AGL","CHI","WI","WISCONSIN","BROWN","WI","GREEN BAY","GREEN BAY-AUSTIN STRAUBEL INTL",{"$f":"CONCATENATE(Table1[[#This Row],[Column6]],\" - \", Table1[[#This Row],[Column10]], \" (\", Table1[[#This Row],[Column1]],\")\")","v":"WISCONSIN - GREEN BAY-AUSTIN STRAUBEL INTL (GRB)"},11.9,14.4,9,12.4,13,13,10,51,1.5,1.1399999999999999,1.1000000000000001,3.75]
["ATW","2017-09-14","AGL","CHI","WI","WISCONSIN","OUTAGAMIE","WI","APPLETON","APPLETON INTL",{"$f":"CONCATENATE(Table1[[#This Row],[Column6]],\" - \", Table1[[#This Row],[Column10]], \" (\", Table1[[#This Row],[Column1]],\")\")","v":"WISCONSIN - APPLETON INTL (ATW)"},12.6,15.1,10,12.6,11,12,9,45,1.57,1.1399999999999999,1.06,3.77]
["JAC","2017-09-14","ANM","DEN","WY","WYOMING","TETON","WY","JACKSON","JACKSON HOLE",{"$f":"CONCATENATE(Table1[[#This Row],[Column6]],\" - \", Table1[[#This Row],[Column10]], \" (\", Table1[[#This Row],[Column1]],\")\")","v":"WYOMING - JACKSON HOLE (JAC)"},6.8,7.3,5.6,7.7,18,16,11,67,1.54,1.22,0.98,3.74]
["CPR","2017-09-14","ANM","DEN","WY","WYOMING","NATRONA","WY","CASPER","CASPER/NATRONA COUNTY INTL",{"$f":"CONCATENATE(Table1[[#This Row],[Column6]],\" - \", Table1[[#This Row],[Column10]], \" (\", Table1[[#This Row],[Column1]],\")\")","v":"WYOMING - CASPER/NATRONA COUNTY INTL (CPR)"},14.4,13.5,14.3,15.7,11,9,10,75,0.47,0.51,0.55000000000000004,1.57]
[null,null,null,null,null,null,null,null,null,null,"NOT LISTED"]

{"sheet":"SRP - Guidance","index":5,"n_rows":40,"n_cols":4,"rows_kept":40,"cut":false,"hidden":true,"merged":[]}
["Forced Air Efficiency Ranking"]
[]
["Likely Fluid Reduction","Benefit Ranking","Description"]
["min","max"]
[0,0,"none","Benefit not applicable."]
[null,0.05,"Low","Minimal benefit may not justify added cost."]
[0.05,0.15,"Medium","May provide benefit."]
[0.15,null,"High","Should consider forced air/fluid technology but need to consider site specific conditions and cost.  Please see Fact Sheet 5 Forced Air/Fluid deicing for additional information."]
[]
["Blend To Temperature Efficiency Ranking",null,"Description"]
["min","max"]
[0,0,"noone","Benefit not applicable."]
[null,0.05,"Low","Minimal benefit may not justify added cost."]
[0.05,0.15,"Medium","May provide benefit."]
[0.15,null,"High","Should consider blend-to-temperature technology but need to consider site specific conditions and cost.  Please see Fact Sheet 4 Blending to Temperature for additional information."]
[]
[]
["What is the general level of ramp congestion?",null,"High","Consider implementing Truck-Based Blend To Temperature Systems. Refer to Fact Sheet 4."]
[null,null,"Medium","Evaluate ramp area for viability of stationary blend to temperature systems.  Consider water availability, electric and space for storage tanks. Refer to Fact Sheet 4."]
[null,null,"Low","Evaluate ramp area for viability of stationary blend to temperature systems.  Consider water availability, electric and space for storage tanks. Refer to Fact Sheet 4."]
["Is there a common area where a stationary blend to temperature system could be installed which is convenient to carrier operations?","User provided.","Yes","Determine if air carrier(s) could utilize space without impacting operations."]
[null,null,"No","Consider truck-based blend to temperature systems or locating stationary systems closer to carrier operations.  Please see Fact Sheet 4 Blending to Temperature for additional information."]
[]
["Do the air carriers or FBOs currently utilize any of the following technologies:"]
["Proactive Anti-Icing",null,"Yes"]
[null,null,"No","ACRP Report 14:  Fact Sheet 3"]
["Physical Removal of Snow",null,"Yes"]
[null,null,"No","ACRP Report 14: Fact Sheet 7"]
["Hangared Parking",null,"Yes"]
[null,null,"No","ACRP Report 14: Fact Sheet 8"]
["Hot Water Deicing ",null,"Yes"]
[null,null,"No","ACRP Report 14: Fact Sheet 9"]
["Enclosed bucket deicing",null,"Yes"]
[null,null,"No","ACRP Report 14: Fact Sheet 10"]
["Enhanced Weather Forecasting",null,"Yes"]
[null,null,"No","ACRP Report 14: Fact Sheet 11"]
["Holdover Time Determinations System",null,"Yes"]
[null,null,"No","ACRP Report 14: Fact Sheet 12"]
["Reduced aircraft Operations",null,"Yes"]
[null,null,"No","ACRP Report 14: Fact Sheet 14"]

{"sheet":"SRP - BTT Matrix","index":6,"n_rows":13,"n_cols":7,"rows_kept":13,"cut":false,"hidden":true,"merged":[]}
[]
[]
[null,null,"A_Temp"]
["A_Fluid min",null,-100,15,20,25,30]
["A_Fluid max",null,15,20,25,30,35]
["A_Fluid",null,"10-15","15-20","20-25","25-30","30-35"]
["Fluid Mix","Fluid Con",43,40,36,32.5,30]
["55:45",55,{"$f":"($B8-C$7)/$B8","v":0.21818181818181817},{"$f":"($B8-D$7)/$B8","v":0.27272727272727271},{"$f":"($B8-E$7)/$B8","v":0.34545454545454546},{"$f":"($B8-F$7)/$B8","v":0.40909090909090912},{"$f":"($B8-G$7)/$B8","v":0.45454545454545453}]
["50:50",50,{"$f":"($B9-C$7)/$B9","v":0.14000000000000001},0.2,0.28000000000000003,0.35,0.4]
["45:55",45,4.4444444444444446E-2,0.1111111111111111,0.2,0.27777777777777779,0.33333333333333331]
["40:60",40,null,0,0.1,0.1875,0.25]
["35:65",35,null,null,null,7.1428571428571425E-2,0.14285714285714285]
["30:70",30,null,null,null,null,0]

{"sheet":"Storage - Climate Matrix","index":7,"n_rows":6,"n_cols":6,"rows_kept":6,"cut":false,"hidden":true,"merged":[[0,3,0,5],[2,1,5,1]]}
[null,null,null,"Vegetation"]
[null,null,null,"Low","Medium","High"]
[null,"Temperature","Above 32°F","Medium Effect","Effective","Very Effective"]
[null,null,"At least 20°F but less than 32°F","Less Effective","Medium Effect","Effective"]
[null,null,"At least 0°F but less than 20°F ","Low Effect","Less Effective","Medium Effect"]
[null,null,"Less than 0°F","Not Effective","Low Effect","Less Effective"]

{"sheet":"CS - Questions","index":8,"n_rows":63,"n_cols":8,"rows_kept":63,"cut":false,"hidden":false,"merged":[[16,3,16,7],[17,3,17,7],[2,2,2,7],[11,3,13,7]]}
[]
[]
[null,null,"Collection Systems"]
[]
[]
[]
[]
[]
[null,null,"Topic",null,null,null,null,"Guidance"]
[]
[null,null,"Background Information"]
[null,null,null,"This page assesses the applicable best management practices for the collection of applied deicer fluid.  If an airport conducts deicing in different areas of the facility, it is recommended that a separate run of the tool be done for each distinct area, as some topics are dependent on available area."]
[]
[]
[]
[null,null,"Assumptions"]
[null,null,null,"Glycol Recovery Vehicles (GRV) are able to service twelve gates per vehicle.  This number may be changed by the user based on local conditions."]
[null,null,null,"The number of personnel needed for GRV operations is equal to the number of GRVs (one operator each) plus one additional person to provide coordination."]
[]
[null,null,"General Question"]
[null,null,null,"Should practices that maximize collection efficiency be given extra weight in the ranking of collection practices based on organizational objectives to collect as much spent aircraft deicing fluid as possible?"]
[]
[null,null,"BMPs Currently in Use"]
[null,null,null,"If there are BMPs currently in use at the facility, which is the predominant collection technology being used?  Leave blank if not applicable."]
[null,null,null,"What is the capture efficiency (glycol collected/glycol applied, with amounts as 100% glycol) of the selected BMP for the deicing fluids applied in the relevant location?"]
[null,null,null,"What percentage of the aircraft deicing fluids are applied in the relevant location?"]
[null,null,null,"Can the percentage of aircraft deicing application done at the relevant location increased?"]
[]
[null,null,"Centralized Deicing Facilities (CDF)"]
[null,null,null,"What is your combined peak hourly air carrier and corporate aircraft departure rate (aircraft/hr) during deicing events in the area under evalution?"]
[null,null,null,"Estimated size of deicing pad required is calcPadSize (calculated from previous question, assuming all aircraft are deiced at pads).  Is an aggregate area of this size available on the airfield for construction of a deicing pad consistent with the guidance provided in Fact Sheet 21?"]
[null,null,null,"Are there one or more areas of existing pavement that can be retrofitted for this purpose?"]
[null,null,null,"Are operations currently restricted by a lack of open gates, limited deicing space or other bottlenecks created by deicing at gates or airfield areas in close proximity to runways?"]
[null,null,null,"Is a glycol recovery rate of 40%-65% desirable due to recycling needs? "]
[null,null,null,"Are the primary local air carriers accepting of a centralized deicing location?"]
[]
[null,null,"Apron Collection Systems"]
[null,null,null,"Does most aircraft deicing occur in an area where stormwater drainage could be isolated?"]
[null,null,null,"Can most deicing be relocated to occur within an area where stormwater drainage could be isolated?"]
[null,null,null,"What percentage of aircraft deicing would take place within the confines of the isolated drainage area?"]
[null,null,null,"Is aircraft deicing conducted routinely (i.e., almost every day) during the winter?"]
[null,null,null,"Are personnel available to operate diversion valves during deicing events in addition to their current duties?"]
[]
[null,null,"Glycol Collection Vehicles"]
[null,null,null,"Is collection of aircraft deicing runoff at higher concentrations and/or smaller volumes desirable to support recycling, reduce storage, or other reasons?  (This is often the case for frequent defosting events, see Fact Sheet 23 for additional information)"]
[null,null,null,"Is increased vehicular traffic around deicing locations acceptable?"]
[null,null,null,"Can catch basins and storm sewer inlets in aircraft deicing locations be blocked to prevent deicing runoff from entering the storm sewer? (See Fact Sheet 33 for guidance.)"]
[null,null,null,"How many aircraft total deicing positions would potentially be serviced by Glycol Recovery Vehicles (GRVs)? "]
[null,null,null,"How many positions will each individual GRV be able to serve?",null,12]
[null,null,null,"Can calcPersonnelSize personnel be assigned or hired to support GRV operations without conflicting with existing operations?"]
[]
[null,null,"Block-and-pump Systems"]
[null,null,null,"Is most deicing conducted within areas where the storm sewers are primarily collecting runoff just from those areas?"]
[null,null,null,"Are the storm sewers serving the deicing areas in good physical condition (i.e., the pipes and joints are in good shape and don't leak)?"]
[null,null,null,"Can the storm sewer drainage system be repaired to prevent or minimize leaks?"]
[null,null,null,"Can the storm sewers draining the deicing area(s) be isolated using valves or other temporary blocks?"]
[]
[null,null,"Airfield Drainage Planning/Design/Retrofit"]
[null,null,null,"Is there a planned airfield improvement project that could include areas where aircraft are currently deiced or an area where a central deicing facility might be constructed?"]
[]
[null,null,"Deicer-laden Snow Management"]
[null,null,null,"Do snow plowing operations around aircraft deicing areas collect significant amounts of snow containing aircraft deicers?"]
[null,null,null,"Does runoff from melting snow containing aircraft deicers contribute to deicers in stormwater discharges?"]

{"sheet":"CS - Compatibility","index":9,"n_rows":20,"n_cols":7,"rows_kept":20,"cut":false,"hidden":true,"merged":[[8,0,17,0],[0,2,0,6],[19,0,22,6],[2,0,7,0]]}
[null,null," Collection BMPs"]
[null,null,"Centralized Deicing Facilities","Apron Collection Systems*","Glycol Collection Vehicles","Block-and-pump systems*","Deicer-laden Snow Management"]
["Collection","Centralized Deicing Facilities","N/A","û","ü","ü","ü"]
[null,"Apron Collection Systems","û","N/A","ü","ü","ü"]
[null,"Glycol Collection Vehicles","ü","ü","N/A","ü","ü"]
[null,"Block-and-pump systems","ü","ü","ü","N/A","ü"]
[null,"Airfield Drainage Planning/Design/Retrofit","ü","ü","ü","ü","ü"]
[null,"Deicer-laden Snow Management","ü","ü","ü","ü","N/A"]
["Storage","Portable Tanks","û","û","ü","ü","û"]
[null,"Modular Tanks","ü","ü","ü","ü","ü"]
[null,"Ponds/Basins","ü","ü","û","ü","ü"]
[null,"Above Ground Permanent Tanks","ü","ü","ü","ü","û"]
[null,"Below Ground Permanent Tanks","ü","ü","ü","ü","û"]
[null,"Manual Diversion Valves","ü","ü","û","ü","ü"]
[null,"Automated Diversion Valves without Real-Time Monitoring","ü","ü","û","ü","ü"]
[null,"Automated Diversion Valves with Real Time Monitoring","ü","ü","û","ü","û"]
[null,"Real-Time Monitoring Technology","ü","ü","û","ü","û"]
[null,"Catch Basin Inserts/Valves","û","û","ü","û","ü"]
["Comments"]
["Notes: A checkmark indicates that technologies could be used in conjunction while an X indicates that, although simultaneous use could be achieved at a location, the techonologies would be either redundent or incompatible. *This collection techonology appears highly modular and could be used in conjunction with virtually any storage system, at least on a temporary basis."]

{"sheet":"CS - Guidance","index":10,"n_rows":85,"n_cols":8,"rows_kept":85,"cut":false,"hidden":true,"merged":[[33,6,34,6],[51,0,51,7],[21,6,22,6]]}
["Topic","Q No.","Question","Source of Information","Response / Value","Action/Guidance","Calculations","Comments (not shown in tool)"]
["Centralized Deicing Facilities",1,"What is your peak hourly aircraft departure rate?","User Provided","Numeric","Calculate preliminary deicing pad size and proceed to question 2","Calculate ()peak hour departures*.25) round up to nearest aircraft)*2 = acres required.","Assumption of 15 minutes (.25 hours) to deice an aircraft. Peak hour aircraft is divided into how many aircraft fit into that 15 minute window and then multiplied by 2 acres to determine necessary space."]
[null,2,"Estimated size of deicing pad required is calcPadSize (calculated from previous question, assuming all aircraft are deiced at pads).  Is an aggregate area of this size available on the airfield for construction of a deicing pad consistent with the guidance provided in Fact Sheet 21?","User Provided","No","Proceed to question 3"]
[null,null,null,null,"Yes","Proceed to question 4"]
[null,3,"Are there one or more areas of existing pavement that can be retrofitted for this purpose?","User Provided","No","A centralized decing facility is not applicable."]
[null,null,null,null,"Yes","Proceed to question 4"]
[null,4,"Are operations currently restricted by a lack of open gates, limited deicing space or other bottlenecks created by deicing at the gates?","User Provided","Yes","Proceed to question 6"]
[null,null,null,null,"No","Proceed to question 5"]
[null,5,"Is a glycol recovery rate of 40%-65% needed to meet compliance requirements or other objectives? ",null,"Yes","Proceed to question 6"]
[null,null,null,null,"No","If a capture rate of great than 40% is not required and funding for capital investment is limited other BMPs may offer a lower capture rate at a lower initial investment."]
[null,6,"Are the primary air carriers accepting of the concept of a centralized deicing location?","User Provided","No","A centralized decing facility is not applicable.",null,"This can limit their operational flexibility."]
[null,null,null,null,"Yes","A centralized decing facility is potentially applicable.  Please see Fact Sheet 21 Centralized Deicing Facilities for additional information.","Calculate 50% of deicing fluids applied are captured, with 75% of precipitation","Range is reported  consistently as 40-65%, this is the mid range rounded down."]
[]
["Apron Collection Systems",1,"Does most aircraft deicing take place in one or more drainage areas that either are or could be hydraulically isolated? Please see Fact Sheet 22 for more information if desired.","User provided","No ","Proceed to question 2 "]
[null,null,null,null,"Yes","Proceed to question 3"]
[null,2,"Can most deicing be relocated to occur within one or more drainage areas that could be hydraulically isolated?","User provided","Yes","Proceed to question 3"]
[null,null,null,null,"No ","Proceed to question 3"]
[null,3,"What percentage of aircraft deicing would take place within the confines of the drainage area(s) that could be isolated?","User provided","Numeric","Proceed to question 4","Total deicing fluids applied multiplied by this percentage"]
[null,null,null,null,"None","An apron collection system is not applicable."]
[null,4,"Is aircraft deicing conducted routinely (i.e., almost every day) during the winter?",null,"Yes","Apron collection systems are potentially applicable.  Please see Fact Sheet 22 Apron Collection Systems for additional information.   \nDue to the high amount of deicing activity, apron collection systems may benefit from automated diversion valves and/or real-time monitoring to reduce personnel workload and increase glycol capture rate.  Please see Fact Sheets 31 Manual and Automated Diversion Valves and 32 Online Monitoring Technology for additional information.","35% of remaining total deicing fluids applied are captured, with 75% of precipitation"]
[null,null,null,null,"No ","Proceed to question 5"]
[null,5,"Are personnel available to operate diversion valves during deicing events in addition to their current duties?",null,"Yes","An apron collection system is potentially applicable.  Please see Fact Sheet 22 Apron Collection Systems for additional information. \nIf personnel are available to operate diversion valves the lower capital cost of manual diversion valves without real time monitoring may be beneficial compared to automated systems. Please see Fact Sheets 31 Manual and Automated Diversion Valves and 32 Online Monitoring Technology for additional information.","Deleted percentages and instead changed narrative to reflect variation due to automatic/manual and real time monitoring. "]
[null,null,null,null,"No ","An apron collection system is potentially applicable.  Please see Fact Sheet 22 Apron Collection Systems for additional information.  \nAutomated diversion valves, with or without real time monitoring will be less demanding on personnel if employees are not able to tend to manual valves during deicing events.  Please see Fact Sheets 31 Manual and Automated Diversion Valves and 32 Online Monitoring Technology for additional information."]
[]
[]
[]
[]
["Glycol Collection Vehicles",1,"Is collection of aircraft deicing runoff at higher concentrations and/or smaller volumes desirable to support recycling, reduce storage or other reasons? (This is often the case for frequent defrosting events, see Fact Sheet 23 for additional information and examples.)",null,"Yes","Proceed to question 2"]
[null,null,null,null,"No ","Glycol collection vehicles are not applicable."]
[null,2,"Is increased vehicular traffic around aircraft deicing locations acceptable?","User provided","Yes","Proceed to question 3"]
[null,null,null,null,"No ","Glycol collection vehicles are not applicable."]
[null,3,"Can catch basins and storm sewer inlets in aircraft deicing locations be blocked to prevent deicing runoff from entering the storm sewer? (See Fact Sheet 33 for guidance.)","User provided.","Yes","Proceed to question 4","35% capture rate from total fluid capture  at 15% concentration"]
[null,null,null,null,"No ","Proceed to question 4","20% capture rate from total fluid capture  at 15% concentration"]
[null,4,"How many aircraft deicing positions would potentially be serviced by GRVs? ",null,"User Input","Proceed to question 5","Default of 8 deicing positions served per GRV though allow user input to change this to reflect specific conditions."]
[null,5,"How many gates will each GRV be able to serve? (Default to 8)",null,"User Input","Proceed to question 6"]
[null,6,"Can calcPersonnelSize personnel be assigned or hired to support GRV operations without conflicting with existing operations?",null,"Yes","Glycol collection vehicles are potentially applicable.  Please see Fact Sheet 23 Glycol Collection Vehicles for additional information.","Personnel equal to GRV number plus 1 to represent vehicle operators and 1 coordinator or support staff.","Fact sheet 23 implies 1 person per vehicles with a overall supervisor to increase efficiency."]
[null,null,null,null,"No ","Glycol collection vehicles are not applicable due to the insufficient number of personnel to support operations."]
[]
[]
["Block-and-pump systems",1,"Is most aircraft deicing conducted within areas where the storm sewers in close proximity are primarily collecting runoff from those areas?","User provided","Yes","Proceed to question 2",null,"This method is usually used as a interim collection BMP and available information on collection performance is limited"]
[null,null,null,null,"No ","Block and pump systems are not applicable.  If the storm sewer system is permeable, collection rates will likely not be sufficient for this technology."]
[null,2,"Are the close-proximity storm sewers in good physical condition (i.e., the pipes and joints are in good shape and don't leak)?","User provided","Yes","Proceed to question 4"]
[null,null,null,null,"No ","Proceed to question 3"]
[null,null,null,null,"Unknown","Block and pump systems use existing storm drainage for temporary storage of deicing laden stormwater. Therefore leaking systems will have a negative impact on the effectiveness of this system. Please investigate the condition of your storm system using Fact Sheet 24 as a reference."]
[null,3,"Can the storm sewer drainage system be repaired to prevent or minimize leaks?",null,"Yes","Proceed to question 4"]
[null,null,null,null,"No ","Block and pump systems are not applicable.  If the storm sewer system is permeable, collection rates will likely not be sufficient for this technology."]
[null,4,"Can the storm sewers draining the deicing area(s) be isolated using valves or other temporary blocks?\n",null,"Yes","Block and pump systems are potentially applicable.  Please see Fact Sheet 24 Block-and-Pump Systems for additional information.  \nValves for the system can be either manually operated or automated (i.e., motorized).  Manual valves are often easier to install and less expensive, but require personnel at the valve location to operate. Please see Fact Sheet 31 Manual and Automated Diversion Valves and 32 Online Monitoring Technology for more information."]
[null,null,null,null,"No ","Block and pump systems are not applicable.  Due to additional stormwater collection by the storm sewers, the resulting fluid may be too dilute to allow block and pump systems to be effective."]
[]
[]
[]
["The following BMPS will not be included in the tool but commended as an additional practice."]
["Airfield Drainage Planning/Design/Retrofit",1,"Is there a planned airfield improvement project that could include areas where aircraft are currently deiced or an area where a central deicing facility might be constructed?","User provided","Yes","A feasibility study should be recommended as part of the planning effort for the project.  Please see Fact Sheet 25 Airfield Planning Drainiage/Design/Retrofit for additional information.",null,"This BMP would be suggested due to its versatility if an upcoming project is anticipated."]
[null,null,null,null,"No","This strategy may be potentially applicable during future projects. During that time a feasibility study should be recommended as part of the planning effort for the project.  Please see Fact Sheet 25 Airfield Planning Drainiage/Design/Retrofit for additional information."]
[]
[]
[]
[]
[]
[]
[]
[]
[]
[]
["Deicer-laden Snow Management",1,"Do snow plowing operations around aircraft deicing areas collect significant amounts of snow containing aircraft deicers?","User provided","Yes","Deicer-laden snow management is potentially applicable.  Please see Fact Sheet 26 Deicer-laden Snow Management for additional information."]
[null,null,null,null,"No ","Deicer-laden snow management is not applicable. Please see Fact Sheet 26 Deicer-laden Snow Management for additional information."]
[null,null,null,null,"Not sure","Deicer-laden snow management is potentially applicable and should be further investigated if the presence of deicers in snow piles may have an impact on regulatory compliance.  Please see Fact Sheet 26 Deicer-laden Snow Management for additional information."]
[null,2,"Does the runoff from melting snow containing aircraft deicers present a regulatory compliance problem?","User provided","Yes","Deicer-laden snow management is potentially applicable.  Please see Fact Sheet 26 Deicer-laden Snow Management for additional information."]
[null,null,null,null,"No ","Utilizing deicer-laden snow management may assist in capturing additional aircraft deicers.  Please see Fact Sheet 26 Deicer-laden Snow Management for additional information."]
[]
[]
[]
[]
[]
[]
["Existing BMPS"]
[null,null,"What is the capture efficiency of the selected BMP for the deicing fluids applied at the location?",null,"meets expectations from fact sheets","proceed"]
[null,null,null,null,"does not meet expectations","Investigate opportunities to optimize BMP operation."]
[]
[null,null,"what percentage of the aircraft deicing fluids are applied at the location?",null,"score and percentage acceptable","proceed"]
[null,null,null,null,1,"If increased collection performance is sought, consider alternative collection BMPs recommended by the tool and investigate opportunities to improve management of deicer-laden snow and/or use of pavement deicers with reduced environmental impacts."]
[null,null,null,null,"else"]
[]
[null,null,"can the percentage of aircraft deicing fluids applied at the location be  increased?",null,"yes","Investigate expansion of BMP implementation."]
[null,null,null,null,"no","Run tool for unserved area with no existing BMPs."]

{"sheet":"TRD - Questions","index":11,"n_rows":62,"n_cols":8,"rows_kept":62,"cut":false,"hidden":false,"merged":[[44,3,44,7],[48,3,48,7],[52,3,52,7],[56,3,56,7],[60,3,60,7],[41,10,41,21],[2,2,2,7],[11,3,13,7],[24,3,24,7],[32,3,32,7],[39,3,39,7]]}
[]
[]
[null,null,"Treatment, Recovery, and Disposal"]
[]
[]
[]
[]
[]
[null,null,"Topic",null,null,null,null,"Guidance"]
[]
[null,null,"Background Information"]
[null,null,null,"This page assesses the applicable best management practices for treatment, recovery, and disposal of deicer fluid.  Some topics have dependencies on responses given earlier in this tool, so before proceeding be sure to have completed the Deicer Use questions on this tool's Start page."]
[]
[]
[]
[null,null,"General Questions"]
[null,null,null,"Should glycol recycling be given extra weight in the ranking of applicable treatment, recovery, and disposal technologies based on organization objectives to promote recycling?"]
[null,null,null,"Would the airport consider an on-site treatment system for deicer-laden stormwater?"]
[null,null,null,"How much space, in acres, is available for siting of an on-site treatment or glycol recovery system at a single location?"]
[null,null,null,"What are the height restrictions in the space that is available for on-site treatment or glycol recovery facility?"]
[null,null,null,"Do wildlife attractant concerns prohibit having open water in the area for on-site storage?"]
[null,null,null,"What is the most restrictive discharge limit at the airport's most restrictive surface discharge outfall (mg/L)?  If concentration-based limits don’t apply, at what concentration would deicing runoff need to be collected to meet load limits or other requirements related to deicers in stormwater discharges?  If the concentration or load at which runoff would need to be collected has not been determined, select the range of values that reflects the range of concentrations typically measured in discharges during deicing events."]
[]
[null,null,"Publically-Owned Treatment Works (POTW)"]
[null,null,null,"POTWs are off-site owned by public entities that use biological treatment processes to treat sanitary sewage, industrial wastewater, and airport deicer-impacted stormwater.  See Fact Sheet 34 for more information."]
[null,null,null,"Does the airport have sanitary sewer service or is the airport located in an area with sanitary sewer service?"]
[null,null,null,"Has the airport determined if the local POTW is willing or able to take collected deicer-laden stormwater?"]
[null,null,null,"Is the POTW able to take collected deicer-laden stormwater from the airport?"]
[null,null,null,"Do you have information about how much deicer-laden stormwater the local POTW can take in terms of load and/or volume?"]
[null,null,null,"Do airport discharges to the sanitary sewer have a volumetric limit, wet weather discharge restriction, load limit, or slug load restriction?"]
[]
[null,null,"Glycol Recovery"]
[null,null,null,"Glycol recovery systems utilize physical processes to separate glycol from stormwater and recover it for reuse. Glycol recovery can be employed on-site at the airport, off-site at a vendor’s facility, or in combination.   See Fact Sheet 41 for more information."]
[null,null,null,"Is the airport willing to consider transporting collected runoff off-site for glycol recovery?"]
[null,null,null,"Preliminary evaluation of this BMP is based on answers to the General Questions on this page, and Deicer Use questions on the Start page."]
[]
[]
[]
[null,null,"Passive Facultative Treatment (PFT)"]
[null,null,null,"PFT systems use bacteria fixed to soil particles or an in-ground engineered substrate to degrade deicers.  Aeration is passive.  This category includes in-situ (soil-based) treatment, irrigation-based land application, subsurface flow wetlands, and reed bed wetland technologies.  See Fact Sheet 39 for more information."]
[null,null,null,"Average minimum winter air temperature (°F)",null,{"$f":"avgTempInput","v":{"$error":"#N/A"}}]
[null,null,null,"Evaluation of this BMP is based on answers to the General Questions on this page and Deicer Use questions on the Start page."]
[]
[null,null,"Aerated Lagoon"]
[null,null,null,"Aerated lagoon systems utilize aerobic bacteria suspended in the water contained in basin to degrade deicers.  Mechanical aeration systems deliver oxygen for use by microorganisms.  See Fact Sheet 115 for more information."]
[null,null,null,"Evaluation of this BMP is based on answers to the General Questions on this page and Deicer Use questions on the Start page."]
[]
[null,null,"Activated Sludge"]
[null,null,null,"Activated sludge systems utilized aerobic bacteria suspended in the water in an aerated tank or basin to degrade deicers.  Variations on activated sludge include extended aeration activated sludge and sequencing batch reactor technologies.  See Fact Sheet 38 for more information."]
[null,null,null,"Evaluation of this BMP is based on answers to the General Questions on this page and Deicer Use questions on the Start page."]
[]
[null,null,"Aerated Gravel Bed (AGB)"]
[null,null,null,"AGB systems use aerobic bacteria attached to gravel surfaces to degrade deicers. Aeration is provided to promote biological degradation.   See Fact Sheet 36 for more information."]
[null,null,null,"Evaluation of this BMP is based on answers to the General Questions on this page and Deicer Use questions on the Start page."]
[]
[null,null,"Moving Bed Bio-Reactor (MBBR)"]
[null,null,null,"MBBR systems utilize aerobic bacteria fixed to a substrate (typically plastic media) suspended in the water in an aerated tank to degrade deicers.  See Fact Sheet 37 for more information."]
[null,null,null,"Evaluation of this BMP is based on answers to the General Questions on this page and Deicer Use questions on the Start page."]
[]
[null,null,"Anaerobic Fluidized Bed Reactor (AFBR)"]
[null,null,null,"AFBR systems utilize anaerobic bacteria affixed to a fluidized substrate (typically granular activated carbon) in a vertical reactor tank to degrade deicers. One of the products of this degradation is methane, which can be used in heating the influent water to enhance treatment.  See Fact Sheet 35 for more information."]
[null,null,null,"Evaluation of this BMP is based on answers to the General Questions on this page and Deicer Use questions on the Start page."]

{"sheet":"TRD - Guidance (afbr)","index":12,"n_rows":34,"n_cols":7,"rows_kept":34,"cut":false,"hidden":true,"merged":[[10,5,11,5],[8,5,9,5],[14,5,16,5],[0,0,0,6],[2,0,3,0],[2,1,3,1],[2,2,3,2],[2,3,3,3],[2,6,3,6],[5,0,6,0],[5,1,6,1],[5,2,6,2],[5,3,6,3],[8,0,11,0],[8,1,11,1],[8,2,11,2],[8,3,11,3],[13,0,16,0],[13,1,16,1],[13,2,16,2],[13,3,16,3],[13,6,16,6],[18,0,26,0],[18,1,26,1],[18,2,26,2],[18,3,26,3],[18,5,22,5],[18,6,22,6],[23,5,24,5],[23,6,24,6],[25,5,26,5],[25,6,26,6],[28,6,30,6],[31,5,33,5],[28,0,33,0],[28,1,33,1],[28,2,33,2],[28,3,33,3],[28,5,30,5]]}
["AFBR"]
["Topic",null,"Question","Source of Information","Response / Value","Action/Guidance","Comments (not shown in tool)"]
["Dependency on Deicer Use",1,"On average, how much aircraft deicer is applied at the airport annually?","Tool Calculation Output from Deicer Use Input Qs","< 40,000 gallons PG","AFBR is not applicable.  The amount of deicer likely to be available for capture based on the deicer used entered is not enough load to support the anaerobic biology for the typical minimum unit process size.","Based on minimum deicer use for an on-site actively managed treatment operation (ISLIP - 43,500 gallons glycol) (ACRP Report 99)"]
[null,null,null,null,"> 40,000 gallons PG","Go to question 2."]
[]
["Willingness to Implement",2,"Would the airport consider an on-site treatment system for deicer-laden stormwater?","User Input","Yes","Go to question 3."]
[null,null,null,null,"No","AFBR is not applicable.  AFBR is typically implemented on-site and the user indicated that the airport was not interested in considering an on-site treatment system.  AFBR is not recommended unless no off-site treatment, recovery, or disposal options are identified."]
[]
["Compatibility with Available Space",3,"How much space is available for siting of an on-site treatment or glycol recovery system at a single location?","User Input/General Drop Down QGD1","> 1 acres","Go to question 4."]
[null,null,null,null,".5 acres < x < 1 acres"]
[null,null,null,null,".25 acres < x < .5 acres","AFBR is not applicable. An AFBR requires are least half an acre of space and is not suitable for the size identified for on-site treatment or glycol recovery."]
[null,null,null,null,"<.25 acres"]
[]
["Compatibility with Height Restrictions",4,"What are the height restrictions in the space that is available for on-site storage, treatment, or glycol recovery technologies?","User Input/General Drop Down QGD3",">35 feet or no restriction","Go to question 5.","AFBR reactors are over 35 feet, but design often includes sinking them a few feet (PDX building elevation is 36'10\")."]
[null,null,null,null,"20 feet < x < 35 feet","AFBR is not applicable.  AFBR reactors are typically 30 ft tall, and although they can be sunk into the ground, it is liekely that the height of the building housing the reactors will not be within the height restrictions for the available space."]
[null,null,null,null,"12 feet < x < 20 feet"]
[null,null,null,null,"< 12 feet"]
[]
["Compatibility with discharge limitations",5,"What is the most restrictive discharge limit at the airport's most restrictive surface discharge outfall?","User Input/General Drop Down QGD2",">17,000 mg/L COD, >9,000 mg/L BOD, >10,000 mg/L PG, >1% PG, >19,000 mg/L EG","An AFBR is potentially applicable.","AFBR minimum influent is 2,700 mg/L COD (ACRP Report 99) so collected concentrations would match influent characteristics"]
[null,null,null,null,"10,000 < x < 17,000 mg/L COD, 5,400 < x < 9,000 mg/L BOD, 5,900 < x < 10,000 mg/L PG, 7,800 < x < 19,000 mg/L EG"]
[null,null,null,null,"8,000 < x < 10,000 mg/L COD, 4,300 < x < 5,400 mg/L BOD, 4,700 < x < 5,900 mg/L PG, 6,200 < x < 7,800 mg/L EG"]
[null,null,null,null,"3,400 < x < 8,000 mg/L COD, 1,800 < x < 4,300 mg/L BOD, 2,000 < x < 4,700 mg/L PG, 2,600 < x < 6,200 mg/L EG"]
[null,null,null,null,"2,700 < x < 3,400 mg/L COD, 1,400 < x < 1,800 mg/L BOD, 1,600 < x < 2,000 mg/L PG, 2,100 < x < 2,600 mg/L EG"]
[null,null,null,null,"100 < x < 2,700 mg/L COD, 54 < x < 1,400 mg/L BOD, 60 < x < 1,600 mg/L PG, 78 < x < 2,100 mg/L EG","Go to question 6."]
[null,null,null,null,"40 < x < 100 mg/L COD, 21 < x < 54 mg/L BOD, 24 < x < 60 mg/L PG, 31 < x < 78 mg/L EG"]
[null,null,null,null,"30 < x < 40 mg/L COD, 16 < x < 21 mg/L BOD, 18 < x < 24 mg/L PG, 23 < x < 31 mg/L EG","Go to question 6. If AFBR is recommended, note that effluent may need additional polishing treatment or discharge to POTW.","AFBR treatment system effluent would likely need to be sent off-site, effluent could be as high as < 40 mg/L COD"]
[null,null,null,null,"< 30 mg/L COD, < 16 mg/L BOD, < 18 mg/L PG, < 23 mg/L EG"]
[]
["Compatibility with other practices",6,"Which Collection Practices are included in this option?","Prior Tool Steps","Glycol Collection Vehicles","AFBR is potentially applicable."]
[null,null,null,null,"Centralized Deicing Facilities"]
[null,null,null,null,"Block and Pump"]
[null,null,null,null,"Apron Collection","AFBR is potentially applicable.  A site specific study should be conducted to identify expected collection concentrations. Implementation would be most successful if paired with online monitoring and segregration of stormwater by concentration."]
[null,null,null,null,"Airfield Drainage Planning"]
[null,null,null,null,"Deicer-Laden Snow Management"]

{"sheet":"TRD - Guidance (mbbr)","index":13,"n_rows":37,"n_cols":7,"rows_kept":37,"cut":false,"hidden":true,"merged":[[0,0,0,6],[2,0,3,0],[2,1,3,1],[2,2,3,2],[2,3,3,3],[2,6,3,6],[5,0,6,0],[5,1,6,1],[5,2,6,2],[5,3,6,3],[8,0,9,0],[8,1,9,1],[8,2,9,2],[8,3,9,3],[11,0,14,0],[11,1,14,1],[11,2,14,2],[11,3,14,3],[12,5,14,5],[31,6,34,6],[35,5,36,5],[16,6,19,6],[21,0,29,0],[21,1,29,1],[21,2,29,2],[21,3,29,3],[21,5,24,5],[21,6,24,6],[25,5,28,5],[25,6,28,6],[16,0,19,0],[16,1,19,1],[16,2,19,2],[16,3,19,3],[16,5,18,5],[31,0,36,0],[31,1,36,1],[31,2,36,2],[31,3,36,3],[31,5,34,5]]}
["MBBR"]
["Topic",null,"Question","Source of Information","Response / Value","Action/guidance","Comments (not shown in tool)"]
["Dependency on Deicer Use",1,"On average, how much aircraft deicer is applied at the airport annually?","Tool Calculation Output from Deicer Use Input Qs","< 40,000 gallons PG","MBBR is not applicable.  Deicer use reported is less than the typical minimum for existing on-site actively management treatment systems, but could possibly be feasible if other options for treatment, recovery, and disposal are unavailable.","Based on minimum deicer use for an on-site actively managed treatment operation (ISLIP - 43,500 gallons glycol) (ACRP Report 99)"]
[null,null,null,null,"> 40,000 gallons PG","Go to question 2."]
[]
["Willingness to Implement",2,"Would the airport consider an on-site treatment system for deicer-laden stormwater?","User Input","Yes","Go to question 3."]
[null,null,null,null,"No","MBBR is not applicable.  An MBBR would likely be implemented on-site and the user indicated that the airport was not interested in considering an on-site treatment system.  MBBR technology is not recommended unless no off-site treatment, recovery, or disposal options are identified."]
[]
["Hazardous Wildlife",3,"Do wildlife attractant concerns prohibit an airport from having open water in the space available for on-site storage, treatment, or glycol recovery technologies?","User Input","No","Go to question 4."]
[null,null,null,null,"Yes","MBBR is not applicable.  MBBR typically includes an open water suface, and the user indicated that there were wildlife attractant concerns at the site."]
[]
["Compatibility with Available Space",4,"How much space is available for siting of an on-site treatment or glycol recovery system at a single location?","User Input/General Drop Down QGD1","> 1 acres","Go to question 5."]
[null,null,null,null,".5 acres < x < 1 acres","MBBR is not applicable.  An MBBR requires over an acre of space and is not suitable for the site size identified as available for on-site treatment or glycol recovery."]
[null,null,null,null,".25 acres < x < .5 acres"]
[null,null,null,null,"<.25 acres"]
[]
["Compatibility with Height Restrictions",5,"What are the height restrictions in the space that is available for on-site storage, treatment, or glycol recovery technologies?","User Input/General Drop Down QGD3",">35 feet or no restriction","Go to question 6.","Need building to house treatment system."]
[null,null,null,null,"20 feet < x < 35 feet"]
[null,null,null,null,"12 feet < x < 20 feet"]
[null,null,null,null,"< 12 feet","MBBR is not applicab.e.  An MBBR installation typically includes a building that houses the nutrient systems and solids processing equipment.  It is likely that the height of the building will the taller than the height restrictions for the available site."]
[]
["Compatibility with discharge limitations",6,"What is the most restrictive discharge limit at the airport's most restrictive surface discharge outfall?","User Input/General Drop Down QGD2",">17,000 mg/L COD, >9,000 mg/L BOD, >10,000 mg/L PG, >1% PG, >19,000 mg/L EG","MBBR is not applicable.  Influent concentrations for typical MBBR installations are <.2% PG (ACRP Report 99).  Since the most restrictive discharge limit is greater than this typical concentrations, it is unlikely that the collected runoff would be of higher concentrations than the typical design influent concentration for MBBR technology.","MBBR at Oslo influent is <.2% PG (ACRP Report 99)  It is unlikely that the airport would collect runoff at concentrations lower than the effluent limit. If the effluent limit is higher than the design influent concentration for the technology it is unlikely that this is the best technology given the effluent limit."]
[null,null,null,null,"10,000 < x < 17,000 mg/L COD, 5,400 < x < 9,000 mg/L BOD, 5,900 < x < 10,000 mg/L PG, 7,800 < x < 19,000 mg/L EG"]
[null,null,null,null,"8,000 < x < 10,000 mg/L COD, 4,300 < x < 5,400 mg/L BOD, 4,700 < x < 5,900 mg/L PG, 6,200 < x < 7,800 mg/L EG"]
[null,null,null,null,"3,400 < x < 8,000 mg/L COD, 1,800 < x < 4,300 mg/L BOD, 2,000 < x < 4,700 mg/L PG, 2,600 < x < 6,200 mg/L EG"]
[null,null,null,null,"2,700 < x < 3,400 mg/L COD, 1,400 < x < 1,800 mg/L BOD, 1,600 < x < 2,000 mg/L PG, 2,100 < x < 2,600 mg/L EG","Go to question 7."]
[null,null,null,null,"100 < x < 2,700 mg/L COD, 54 < x < 1,400 mg/L BOD, 60 < x < 1,600 mg/L PG, 78 < x < 2,100 mg/L EG"]
[null,null,null,null,"40 < x < 100 mg/L COD, 21 < x < 54 mg/L BOD, 24 < x < 60 mg/L PG, 31 < x < 78 mg/L EG"]
[null,null,null,null,"30 < x < 40 mg/L COD, 16 < x < 21 mg/L BOD, 18 < x < 24 mg/L PG, 23 < x < 31 mg/L EG"]
[null,null,null,null,"< 30 mg/L COD, < 16 mg/L BOD, < 18 mg/L PG, < 23 mg/L EG","Go to question 7."," If MBBR is recommended, add note that effluent may need further polishing or off-site disposal."]
[]
["Compatibility with other practices",7,"Which Collection Practices are included in this option?","Prior Tool Steps","Glycol Collection Vehicles","MBBR is not applicable.  MBBR technology is best suited for low-concentration, high volume flow.  The collection technologies identifed as possible BMPs are designed for mid- to high-concentration, lower-volume flows.","This technology is best suited for low-concentration, high-volume flows. These collection technologies are designed for mid to high-concentration, lower-volume flows."]
[null,null,null,null,"Centralized Deicing Facilities"]
[null,null,null,null,"Block and Pump"]
[null,null,null,null,"Apron Collection"]
[null,null,null,null,"Airfield Drainage Planning","MBBR is potentially applicable."]
[null,null,null,null,"Deicer-Laden Snow Management"]

{"sheet":"TRD - Guidance (agb)","index":14,"n_rows":34,"n_cols":7,"rows_kept":34,"cut":false,"hidden":true,"merged":[[5,0,6,0],[5,1,6,1],[5,2,6,2],[5,3,6,3],[0,0,0,6],[2,0,3,0],[2,1,3,1],[2,2,3,2],[2,3,3,3],[2,6,3,6],[10,2,11,2],[10,3,11,3],[8,3,9,3],[8,2,9,2],[8,0,11,0],[10,1,11,1],[8,1,9,1],[13,0,16,0],[13,1,16,1],[13,2,16,2],[13,3,16,3],[13,5,15,5],[18,0,23,0],[18,1,23,1],[18,2,23,2],[18,3,23,3],[20,5,23,5],[25,6,26,6],[27,5,30,5],[27,6,30,6],[31,6,33,6],[13,6,16,6],[20,6,23,6],[25,0,33,0],[25,1,33,1],[25,2,33,2],[25,3,33,3],[25,5,26,5],[31,5,33,5]]}
["AGB"]
["Topic",null,"Question","Source of Information","Response / Value","Action/Guidance","Comments (not shown in tool)"]
["Dependency on Deicer Use",1,"On average, how much aircraft deicer is applied at the airport annually?","Tool Calculation Output from Deicer Use Input Qs","< 40,000 gallons PG","AGB is not applicable.  Deicer use reported is less than the typical minimum for existing on-site actively managed treatement systems, but could possibly be feasible if other options for treatment, recovery, and disposal are unavailable.","Based on minimum deicer use for an on-site actively managed treatment operation (ISLIP - 43,500 gallons glycol) (ACRP Report 99)"]
[null,null,null,null,"> 40,000 gallons PG","Go to question 2."]
[]
["Willingness to Implement",2,"Would the airport consider an on-site treatment system for deicer-laden stormwater?","User Input","Yes","Go to question 3."]
[null,null,null,null,"No","AGB is not applicable.  An AGB is typically implemented on-site and the user indicated that the airport was not interested in considering an on-site treatment system.  AGB technology is not recommended unless no off-site treatment, recovery or disposal options are identified."]
[]
["Compatibility with Available Space","3a","How much space is needed for an AGB?","Tool Calculation Output","See equations on Start-Guidance tab to calculate BOD load applied","Calculate the total amount of BOD load applied from the amount of deicers applied that the user enters using the equations in the Start Guidance (deicer) tab. "]
[null,null,null,null,"# of acres required for AGB = \n((BOD load applied/120)*(1-.5)*(25.4)*(1+.3)*(1/43560)","Perform this calculation to determine the size of the site that would be required to implement the AGB. \n(((BOD applied (lbs)/days of operation) * (1-BOD lost%) / pounds BOD treated per square foot of treatment)*(1+% of area needed for storage))*acres/sq feet"]
[null,"3b","How much space is available for siting of an on-site treatment or glycol recovery system at a single location?","User Input/General Drop Down QGD1","IF # of acres available > # of acres required for AGB.","Go to question 4"]
[null,null,null,null,"IF # of acres available < # of acres required for AGB.","AGB is not applicable.  The amount of deicer likely to be available for capture based on the deicer use enetered would require an AGB larger than the  size site identified as availabe for on-site treatment or glycol recovery."]
[]
["Compatibility with Height Restrictions",4,"What are the height restrictions in the space that is available for on-site storage, treatment, or glycol recovery technologies?","User Input/General Drop Down QGD3",">35 feet or no restriction","Go to question 5.","Need building to house nutrient system and monitoring instruments"]
[null,null,null,null,"20 feet < x < 35 feet"]
[null,null,null,null,"12 feet < x < 20 feet"]
[null,null,null,null,"< 12 feet","AGB is not applicable.  An AGB installation typically includes a building that houses the nutrient system and monitoring equipment. It is likely that the height of the building will be taller than the height restrictions for the available site."]
[]
["Compatibility with other practices",5,"Which Collection Practices are included in this option?","Prior Tool Steps","Glycol Collection Vehicles","AGB is not applicable.  While possible to use AGB to treat runoff captured with GRVs it is best for low concentrate/high volume streams, not high concentrate/low volume like what is collected from GRV."]
[null,null,null,null,"Centralized Deicing Facilities","If Question 1, deicer use was between 40,000 and 80,000 gallons PG, then go to question 6. Otherwise, do not include AGB in recommended options.","If they use a pad and apply enough deicer to generate high concentrations, an AGB is likely not the ideal treatment solution."]
[null,null,null,null,"Block and Pump","Go to question 6."]
[null,null,null,null,"Apron Collection"]
[null,null,null,null,"Airfield Drainage Planning"]
[null,null,null,null,"Deicer-Laden Snow Management"]
[]
["Compatibility with discharge limitations",6,"What is the most restrictive discharge limit at the airport's most restrictive surface discharge outfall?","User Input/General Drop Down QGD2",">17,000 mg/L COD, >9,000 mg/L BOD, >10,000 mg/L PG, >1% PG, >19,000 mg/L EG","Influent concentrations for typical AGB installations are <10,000 mg/L COD. Since the most restrictive discharge limit is greater than the typical influent concentration for an AGB, it is likely that collected runoff would be of higher concentrations than the typical design influent concentration for AGB technology.  For this reason an AGB is likely not applicable.","AGB is not applicable.  Typical AGB influent is <10,000 mg/L COD (ACRP Report 99) If the limit is above 10,000 mg/L COD there would be no reason to collect below 10,000 mg/L COD leading to an influent stream that is more concentrated than is typical for an AGB."]
[null,null,null,null,"10,000 < x < 17,000 mg/L COD, 5,400 < x < 9,000 mg/L BOD, 5,900 < x < 10,000 mg/L PG, 7,800 < x < 19,000 mg/L EG"]
[null,null,null,null,"8,000 < x < 10,000 mg/L COD, 4,300 < x < 5,400 mg/L BOD, 4,700 < x < 5,900 mg/L PG, 6,200 < x < 7,800 mg/L EG","An AGB is potentially applicable."]
[null,null,null,null,"3,400 < x < 8,000 mg/L COD, 1,800 < x < 4,300 mg/L BOD, 2,000 < x < 4,700 mg/L PG, 2,600 < x < 6,200 mg/L EG"]
[null,null,null,null,"2,700 < x < 3,400 mg/L COD, 1,400 < x < 1,800 mg/L BOD, 1,600 < x < 2,000 mg/L PG, 2,100 < x < 2,600 mg/L EG"]
[null,null,null,null,"100 < x < 2,700 mg/L COD, 54 < x < 1,400 mg/L BOD, 60 < x < 1,600 mg/L PG, 78 < x < 2,100 mg/L EG"]
[null,null,null,null,"40 < x < 100 mg/L COD, 21 < x < 54 mg/L BOD, 24 < x < 60 mg/L PG, 31 < x < 78 mg/L EG","An AGB is potentially applicable. AGB effluent concentrations may be as high as 100 mg/L COD. Effluent from the AGB may need to be further processed with additional polishing treatment or dischraged to the POTW.","AGB effluent would likely need to be sent off-site, effluent could be as high as 100 mg/L COD (ACRP Report 99)"]
[null,null,null,null,"30 < x < 40 mg/L COD, 16 < x < 21 mg/L BOD, 18 < x < 24 mg/L PG, 23 < x < 31 mg/L EG"]
[null,null,null,null,"< 30 mg/L COD, < 16 mg/L BOD, < 18 mg/L PG, < 23 mg/L EG"]

{"sheet":"TRD - Guidance (as)","index":15,"n_rows":37,"n_cols":7,"rows_kept":37,"cut":false,"hidden":true,"merged":[[0,0,0,6],[2,0,3,0],[2,1,3,1],[2,2,3,2],[2,3,3,3],[2,6,3,6],[5,0,6,0],[5,1,6,1],[5,2,6,2],[5,3,6,3],[8,0,9,0],[8,1,9,1],[8,2,9,2],[8,3,9,3],[8,6,9,6],[11,0,14,0],[11,1,14,1],[11,2,14,2],[11,3,14,3],[12,5,14,5],[16,0,19,0],[16,1,19,1],[16,2,19,2],[16,3,19,3],[16,5,18,5],[28,6,29,6],[30,5,35,5],[30,6,35,6],[21,0,26,0],[21,1,26,1],[21,2,26,2],[21,3,26,3],[22,5,26,5],[22,6,26,6],[28,0,36,0],[28,1,36,1],[28,2,36,2],[28,3,36,3],[28,5,29,5]]}
["Activated Sludge"]
["Topic",null,"Question","Source of Information","Response / Value","Action/Guidance","Comments (not shown in tool)"]
["Dependency on Deicer Use",1,"On average, how much aircraft deicer is applied at the airport annually?","Tool Calculation Output from Deicer Use Input Qs","< 40,000 gallons PG","Activated sludge is not applicable.  Deicer use reported is less than the typical minimum for existing on-site actively managed treatment systems, but could possibly be feasible if other options for treatment, disposal, or recovery are unavailable."]
[null,null,null,null,"> 40,000 gallons PG","Go to question 2."]
[]
["Willingness to Implement",2,"Would the airport consider an on-site treatment system for deicer-laden stormwater?","User Input","Yes","Go to question 3."]
[null,null,null,null,"No","Activated sludge is not applicable.  An activated sludge system not associated with POTW discharge is typically implemented on-site and the user indicated that the airport was not interested in considering an on-site treatment system.  This technology is not recommended unless no off-site treatment, recovery or disposal options are identified."]
[]
["Hazardous Wildlife",3,"Do wildlife attractant concerns prohibit an airport from having open water in the space available for on-site storage, treatment, or glycol recovery technologies?","User Input","No","Go to question 4."]
[null,null,null,null,"Yes","Activated sludge is likely not applicable.  An activated sludge system typically includes an open water surface, but may be applicable if special measures are taken to address wildife attraction.  Coordination with wildlife biologists and other environmental personnel should be completed to determine if these options are possible given the wildlife concerns."]
[]
["Compatibility with Available Space",4,"How much space is available for siting of an on-site treatment or glycol recovery system at a single location?","User Input/General Drop Down QGD1","> 1 acres","Go to question 5."]
[null,null,null,null,".5 acres < x < 1 acres","This BMP is not applicable due to available space restrictions."]
[null,null,null,null,".25 acres < x < .5 acres"]
[null,null,null,null,"<.25 acres"]
[]
["Compatibility with Height Restrictions",5,"What are the height restrictions in the space that is available for on-site storage, treatment, or glycol recovery technologies?","User Input/General Drop Down QGD3",">35 feet or no restriction","Go to question 6."]
[null,null,null,null,"20 feet < x < 35 feet"]
[null,null,null,null,"10 feet < x < 20 feet"]
[null,null,null,null,"< 10 feet","Activated sludge is not applicable.  An activated sludge installation typically includes a building that houses solids handling equipment. It is likely that the height of the building will be taller than the height restrictions for the available site."]
[]
["Compatibility with other practices",7,"Which Collection Practices are included in this option?","Prior Tool Steps","Glycol Collection Vehicles","Activated sludge is not applicable.  Activated sludge is best suited for influent concentrations less than 10,000 mg/L COD. Glycol collection vehicles are designed for mid to high-concentration, lower-volume flows."]
[null,null,null,null,"Centralized Deicing Facilities","go to next question"]
[null,null,null,null,"Block and Pump"]
[null,null,null,null,"Apron Collection"]
[null,null,null,null,"Airfield Drainage Planning"]
[null,null,null,null,"Deicer-Laden Snow Management"]
[]
["Compatibility with discharge limitations",6,"What is the most restrictive discharge limit at the airport's most restrictive surface discharge outfall?","User Input/General Drop Down QGD2",">17,000 mg/L COD, >9,000 mg/L BOD, >10,000 mg/L PG, >1% PG, >19,000 mg/L EG","Activated sludge is not applicable.  Influent concentrations for typical activated sludge installations are <10,000 mg/L COD. Since the most restrictive discharge limit is greater than the typical influent concentration for an activated sludge, it is likely that collected runoff would be of higher concentrations than the typical design influent concentration for activated sludge technology.  ","Activated Sludge influent is typically < 10,000 mg/L COD (ACRP Report 99)"]
[null,null,null,null,"10,000 < x < 17,000 mg/L COD, 5,400 < x < 9,000 mg/L BOD, 5,900 < x < 10,000 mg/L PG, 7,800 < x < 19,000 mg/L EG"]
[null,null,null,null,"8,000 < x < 10,000 mg/L COD, 4,300 < x < 5,400 mg/L BOD, 4,700 < x < 5,900 mg/L PG, 6,200 < x < 7,800 mg/L EG","Activated sludge is potentially applicable."]
[null,null,null,null,"3,400 < x < 8,000 mg/L COD, 1,800 < x < 4,300 mg/L BOD, 2,000 < x < 4,700 mg/L PG, 2,600 < x < 6,200 mg/L EG"]
[null,null,null,null,"2,700 < x < 3,400 mg/L COD, 1,400 < x < 1,800 mg/L BOD, 1,600 < x < 2,000 mg/L PG, 2,100 < x < 2,600 mg/L EG"]
[null,null,null,null,"100 < x < 2,700 mg/L COD, 54 < x < 1,400 mg/L BOD, 60 < x < 1,600 mg/L PG, 78 < x < 2,100 mg/L EG"]
[null,null,null,null,"40 < x < 100 mg/L COD, 21 < x < 54 mg/L BOD, 24 < x < 60 mg/L PG, 31 < x < 78 mg/L EG"]
[null,null,null,null,"30 < x < 40 mg/L COD, 16 < x < 21 mg/L BOD, 18 < x < 24 mg/L PG, 23 < x < 31 mg/L EG"]
[null,null,null,null,"< 30 mg/L COD, < 16 mg/L BOD, < 18 mg/L PG, < 23 mg/L EG","Activated sludge is potentially applicable. Activated sludge effluent concentrations may be as high as 30 mg/L COD. Effluent from the activated sludge system may need to be further processed with additional polishing treatment or dischraged to the POTW."]

{"sheet":"TRD - Guidance (al)","index":16,"n_rows":38,"n_cols":7,"rows_kept":38,"cut":false,"hidden":true,"merged":[[35,5,37,5],[5,6,8,6],[0,0,0,6],[2,0,3,0],[2,1,3,1],[2,2,3,2],[2,3,3,3],[6,5,8,5],[5,0,8,0],[5,1,8,1],[5,2,8,2],[5,3,8,3],[6,4,8,4],[18,0,20,0],[18,1,20,1],[18,2,20,2],[18,3,20,3],[22,6,24,6],[10,6,13,6],[15,0,16,0],[15,1,16,1],[15,2,16,2],[15,3,16,3],[10,0,13,0],[10,1,13,1],[10,2,13,2],[10,3,13,3],[10,5,12,5],[32,3,37,3],[32,6,34,6],[35,6,37,6],[28,6,30,6],[22,0,30,0],[22,1,30,1],[22,2,30,2],[22,3,30,3],[22,5,24,5],[32,0,37,0],[32,1,37,1],[32,2,37,2],[25,5,27,5],[25,6,27,6],[28,5,30,5],[32,5,34,5]]}
["Aerated Lagoon"]
["Topic",null,"Question","Source of Information","Response / Value","Action/Guidance","Comments (not shown in tool)"]
["Willingness to Implement",1,"Would the airport consider an on-site treatment system for deicer-laden stormwater?","User Input","Yes","Go to question 2."]
[null,null,null,null,"No","Aerated lagoon is not applicable.  An aerated lagoon is typically implemented on-site and the user indicated that the airport was not interested in considering an on-site treatment system. Aerated lagoon technology is not recommended unless no off-site treatment, recovery or disposal options are identified."]
[]
["Dependency on Available Space",2,"How much space is available for siting of an on-site treatment or glycol recovery system at a single location?","User Input/General Drop Down QGD1","> 1 acres","Go to question 3.",">1 acre, majority of footprint is the water surface of the lagoon (ACRP Report 99)"]
[null,null,null,null,"< 1 acre","Aerated lagoon is not applicable.  An actively managed aerated lagoon typically requires over an acre of space and is not suitable for the size site identified as availabe for on-site treatment or glycol recovery."]
[]
[]
[]
["Dependency on Height Restrictions",3,"What are the height restrictions in the space that is available for on-site storage, treatment, or glycol recovery technologies?","User Input/General Drop Down QGD3",">35 feet or no restriction","Go to question 4.","Need building to house nutrient system and monitoring instruments (ACRP Report 99)"]
[null,null,null,null,"20 feet < x < 35 feet"]
[null,null,null,null,"12 feet < x < 20 feet"]
[null,null,null,null,"< 12 feet","Aerated lagoon is not applicable.  An aerated lagoon installation typically includes a building that houses the nutrient system and monitoring equipment. It is likely that the height of the building will be taller than the height restrictions for the available site."]
[]
["Hazardous Wildlife",4,"Do wildlife attractant concerns prohibit an airport from having open water in the space available for on-site storage, treatment, or glycol recovery technologies?","User Input","No","Go to question 5.","Technology includes an open water surface"]
[null,null,null,null,"Yes","Aerated lagoon is likely not applicable.  An aerated lagoon includes an open water surface, but may be applicable if special measures are taken to address the potential risk of wildlife attraction.  Coordination with wildlife biologists and other environmental personnel should be completed to determine if these options are possible given the wildlife concerns."]
[]
["Dependency on Deicer Use",5,"On average, how much aircraft deicer is applied at the airport annually?","Tool Calculation Output from Deicer Use Input Qs","< 40,000 gallons PG","Go to question 7.","Potentially viable and cost effective for airports that apply minimal deicer."]
[null,null,null,null,"40,000 < x < 95,000 gallons PG","Go to question 6.","Potentially viable and cost effective if the discharge limits are not too stringent."]
[null,null,null,null,"> 95,000 gallons PG","Aerated lagoon technology is not applicable.  The amount of deicer likely to be available for capture based on the deicer use entered is more than the typical maximum deicer use for aerated lagoon installations that discharge to surface waters."]
[]
["Compatibility with discharge limitations",6,"What is the most restrictive discharge limit at the airport's most restrictive surface discharge outfall?","User Input/General Drop Down QGD2",">17,000 mg/L COD, >9,000 mg/L BOD, >10,000 mg/L PG, >1% PG, >19,000 mg/L EG","Aerated lagoon is not applicable.  Influent concentrations for typical aerated lagoon installations are <8,000 mg/L COD. Since the most restrictive discharge limit is greater than the typical influent concentration for an aerated lagoon, it is likely that collected runoff would be of higher concentrations than the typical design influent concentration for aerated lagoon technology.","Aerated Lagoon Influent is typically < 8,000 mg/L COD. (ACRP Report 99)."]
[null,null,null,null,"10,000 < x < 17,000 mg/L COD, 5,400 < x < 9,000 mg/L BOD, 5,900 < x < 10,000 mg/L PG, 7,800 < x < 19,000 mg/L EG"]
[null,null,null,null,"8,000 < x < 10,000 mg/L COD, 4,300 < x < 5,400 mg/L BOD, 4,700 < x < 5,900 mg/L PG, 6,200 < x < 7,800 mg/L EG"]
[null,null,null,null,"3,400 < x < 8,000 mg/L COD, 1,800 < x < 4,300 mg/L BOD, 2,000 < x < 4,700 mg/L PG, 2,600 < x < 6,200 mg/L EG","Go to question 7."]
[null,null,null,null,"2,700 < x < 3,400 mg/L COD, 1,400 < x < 1,800 mg/L BOD, 1,600 < x < 2,000 mg/L PG, 2,100 < x < 2,600 mg/L EG"]
[null,null,null,null,"100 < x < 2,700 mg/L COD, 54 < x < 1,400 mg/L BOD, 60 < x < 1,600 mg/L PG, 78 < x < 2,100 mg/L EG"]
[null,null,null,null,"40 < x < 100 mg/L COD, 21 < x < 54 mg/L BOD, 24 < x < 60 mg/L PG, 31 < x < 78 mg/L EG","Aerated Lagoon effluent could be as high as 100 mg/L COD. Effluent from the aerated lagoon may need to be further processed with additional polishing treatment or dischraged to the POTW. For this reason an aerated lagoon is likely not applicable.","Aerated Lagoon effluent would likely need to be sent off-site, effluent could be as high as 100 mg/L COD. No point in implementing aerated lagoon if effluent would still need to be treated."]
[null,null,null,null,"30 < x < 40 mg/L COD, 16 < x < 21 mg/L BOD, 18 < x < 24 mg/L PG, 23 < x < 31 mg/L EG"]
[null,null,null,null,"< 30 mg/L COD, < 16 mg/L BOD, < 18 mg/L PG, < 23 mg/L EG"]
[]
["Compatibility with other practices",7,"Which Collection Practices are included in this option?","Prior Tool Steps","Glycol Collection Vehicles","Aerated lagoon is not applicable.  This technology is best suited for low concentration flows. "]
[null,null,null,null,"Centralized Deicing Facilities"]
[null,null,null,null,"Block and Pump"]
[null,null,null,null,"Apron Collection","An aerated lagoon is potentiallly applicable.  Please see Fact Sheet 115 Aerated Lagoons for additional information.  A site-specific study is recommended to determine if aerated lagoon could be used to meet effluent limits.  NOTE:  some small airports in arid climates have had success with use of evaporation basins for disposal of collected deicing runoff."]
[null,null,null,null,"Airfield Drainage Planning"]
[null,null,null,null,"Deicer-Laden Snow Management"]

{"sheet":"TRD - Guidance (pft)","index":17,"n_rows":30,"n_cols":7,"rows_kept":30,"cut":false,"hidden":true,"merged":[[5,0,6,0],[5,1,6,1],[5,2,6,2],[5,3,6,3],[0,0,0,6],[2,0,3,0],[2,1,3,1],[2,2,3,2],[2,3,3,3],[13,6,18,6],[19,5,21,5],[19,6,21,6],[8,0,11,0],[8,1,11,1],[8,2,11,2],[8,3,11,3],[8,6,11,6],[9,5,11,5],[13,0,21,0],[13,1,21,1],[13,2,21,2],[13,3,21,3],[13,5,18,5],[23,0,24,0],[23,1,24,1],[23,2,24,2],[23,3,24,3],[26,0,27,0],[26,1,27,1],[26,2,27,2],[26,3,27,3]]}
["PFT"]
["Topic",null,"Question","Source of Information","Response / Value","Action/Guidance","Comments (not shown in tool)"]
["Dependency on Deicer Use",1,"On average, how much aircraft deicer is applied at the airport annually?","Tool Calculation Output from Deicer Use Input Qs","< 80,000 gallons PG","This BMP is potentially applicable.  Go to question 5.","Based on maximum deicer use reported for ELG questionnaire where PFT is the only treatment method used. (Dead Horse AK 78,900 gallons glycol)"]
[null,null,null,null,"> 80,000 gallons PG","Go to question 2.","PFT could be used for airports that apply more deicer. In these cases the technology is often employed for collection of runway and taxiway areas, or dilute fraction from aircraft deicing areas. (ACRP Report 99)"]
[]
["Willingness to Implement",2,"Would the airport consider an on-site treatment system for deicer-laden stormwater?","User Input","Yes","Go to question 3."]
[null,null,null,null,"No","PFT is not applicable.  PFT is typically implemented on-site and the user indicated that the airport was not interested in considering an on-site treatment system.   PFT is not recommended unless no off-site treatement, recovery, or disposal options are identfied."]
[]
["Compatibility with Available Space",3,"How much space is available for siting of an on-site treatment or glycol recovery system at a single location?","User Input/General Drop Down QGD1","> 1 acres","Go to question 4.","ACRP Report 99 (>1 acre)"]
[null,null,null,null,".5 acres < x < 1 acres","PFT is not applicable.  PFT typically requires over an acre of space and is not suitable for the size site identified as available for on-site treatment or glycol recovery."]
[null,null,null,null,".25 acres < x < .5 acres"]
[null,null,null,null,"<.25 acres"]
[]
["Compatibility with discharge limitations",4,"What is the most restrictive discharge limit at the airport's most restrictive surface discharge outfall?","User Input/General Drop Down QGD2",">17,000 mg/L COD, >9,000 mg/L BOD, >10,000 mg/L PG, >1% PG, >19,000 mg/L EG","PFT is not applicable.  It is unlikely that airfield deicing and fugitive deicers are causing permit limit exceedances for these discharge limitations and PFT is likely to be ineffective for  primary deicing area treatment for airports applying more than 80,000 gallons PG.","It is unlikely that airfield deicing and fugitive deicers are causing permit limit exceedances for these discharge limitations and PFT is likely to be ineffective for primary deicing area treatment for airports applying more than 80,000 gallons PG."]
[null,null,null,null,"10,000 < x < 17,000 mg/L COD, 5,400 < x < 9,000 mg/L BOD, 5,900 < x < 10,000 mg/L PG, 7,800 < x < 19,000 mg/L EG"]
[null,null,null,null,"8,000 < x < 10,000 mg/L COD, 4,300 < x < 5,400 mg/L BOD, 4,700 < x < 5,900 mg/L PG, 6,200 < x < 7,800 mg/L EG"]
[null,null,null,null,"3,400 < x < 8,000 mg/L COD, 1,800 < x < 4,300 mg/L BOD, 2,000 < x < 4,700 mg/L PG, 2,600 < x < 6,200 mg/L EG"]
[null,null,null,null,"2,700 < x < 3,400 mg/L COD, 1,400 < x < 1,800 mg/L BOD, 1,600 < x < 2,000 mg/L PG, 2,100 < x < 2,600 mg/L EG"]
[null,null,null,null,"100 < x < 2,700 mg/L COD, 54 < x < 1,400 mg/L BOD, 60 < x < 1,600 mg/L PG, 78 < x < 2,100 mg/L EG"]
[null,null,null,null,"40 < x < 100 mg/L COD, 21 < x < 54 mg/L BOD, 24 < x < 60 mg/L PG, 31 < x < 78 mg/L EG","PFT is potentially applicable  if collection of stormwater from aircraft deicing areas still results in permit exceedances.  Go to question 5.","Possible that airfield deicing and fugitive deicers are causing permit limit exceedances at these discharge limitations, PFT might provide value if used with another technology for aircraft deicing areas."]
[null,null,null,null,"30 < x < 40 mg/L COD, 16 < x < 21 mg/L BOD, 18 < x < 24 mg/L PG, 23 < x < 31 mg/L EG"]
[null,null,null,null,"< 30 mg/L COD, < 16 mg/L BOD, < 18 mg/L PG, < 23 mg/L EG"]
[]
["Dependency on Temperature",5,"What is average minimum winter air temperature?","weather data","< 32 degrees F","PFT is potentially applicable.  Please see Fact Sheet 39 Passive Facultative Treatment for additional information.  Treatment rates are significantly lower in cold weather and that a site-specific study should be conducted to determine if on-site storage during the winter and treatment during other seasons may be necessary."]
[null,null,null,null,"> 32 degrees F","Go to question 6."]
[]
["Hazardous Wildlife Attractants",6,"Can the airport have open water in the space available for on-site storage, treatment, or glycol recovery technologies?","User Input","Yes","PFT is potentially applicable.  Please see Fact Sheet 39 Passive Facultative Treatment for additional information."]
[null,null,null,null,"No","PFT is potentially applicable.  Please see Fact Sheet 39 Passive Facultative Treatment for additional information.  Some PFT technologies include open water, which may not be compatible with the site.  "]
[]
[null,null,null,null,null,"NOTE:  Some small airports in arid climates have had success with use of evaporation basins for disposal of collected deicing runoff."]

{"sheet":"TRD - Guidance (general)","index":18,"n_rows":23,"n_cols":10,"rows_kept":23,"cut":false,"hidden":true,"merged":[[0,0,0,4],[2,0,5,0],[2,1,5,1],[2,4,5,4],[19,4,22,4],[19,1,22,1],[19,0,22,0],[2,2,5,2],[19,2,22,2],[2,3,5,3],[7,2,16,2],[7,0,16,0],[7,1,16,1]]}
["General Drop Down Questions"]
["TOPIC",null,"USER QUESTION","DROP DOWN ANSWERS","SOURCE/NOTES"]
["Space Availability","GD1","How much space is available for siting of an on-site treatment or glycol recovery system at a single location?","data entry","Assuming the question of storage that is typically associated with treatment will be asked as part of the storage logic."]
[null,null,null,null,null,null,null,null,null,"pond area limits"]
[null,null,null,null,null,null,null,null,null,"< 1 acre"]
[null,null,null,null,null,null,null,null,null,"1 - 5 acres"]
[null,null,null,null,null,null,null,null,null,"> 5 acres"]
["Effluent Limits","GD2","What is the most restrictive discharge limit at the airport's most restrictive surface discharge outfall?","No limits"]
[null,null,null,">17,000 COD, >9,000 BOD, >10,000 PG, >1% PG, >19,000 EG","1% PG is minimum for glycol recovery to be cost effective (ACRP Report 99)"]
[null,null,null,"10,000-17,000 COD, 5,400-9,000 BOD, 5,900-10,000 PG, 7,800-19,000 EG","Activated Sludge and AGB influent are typically < 10,000 mg/L COD (ACRP Report 99)"]
[null,null,null,"8,000-10,000 COD, 4,300-5,400 BOD, 4,700-5,900 PG, 6,200-7,800 EG","Aerated Lagoon Influent is typically < 8,000 mg/L COD. (ACRP Report 99)."]
[null,null,null,"3,400-8,000 COD, 1,800-4,300 BOD, 2,000-4,700 PG, 2,600-6,200 EG","MBBR at Oslo sends <.2% PG to MBBR"]
[null,null,null,"2,700-3,400 COD, 1,400-1,800 BOD, 1,600-2,000 PG, 2,100-2,600 EG","AFBR minimum influent is 2,700 mg/L COD (ACRP Report 99)"]
[null,null,null,"100-2,700 COD, 54-1,400 BOD, 60-1,600 PG, 78-2,100 EG","Assumed that fugitive and airfield deicing could cause exceedances if limits are less than 100, and PFT could be used for these discharges."]
[null,null,null,"40-100 COD, 21-54 BOD, 24-60 PG, 31-78 EG","AGB and Aerated Lagoon effluent would likely need to be sent off-site, effluent could be as high as 100 mg/L COD"]
[null,null,null,"30-40 COD, 16-21 BOD, 18-24 PG, 23-31 EG","AFBR treatment system effluent would likely need to be sent off-site, effluent could be as high as < 40 mg/L COD"]
[null,null,null,"< 30 COD, < 16 BOD, < 18 PG, < 23 EG","treatment system effluent would likely need to be sent off-site, effluent from activated sludge is 10-30 mg/L (ACRP Report 99)"]
[null,null,"* See Deicer Use Input tab for COD/BOD/ PG/EG conversion factors"]
[]
["Height Restrictions","GD3","What are the height restrictions in the space that is available for on-site storage, treatment, or glycol recovery technologies?","> 35 feet or no restriction","Based on ACRP Report 99.  Less than 10 ft typically associated with low-level biological treatment technologies that might include low buildings/shelters for housing nutrient system and monitoring instruments. AFBR reactors are over 35 feet, but fit in 20 - 35 category as base usually set below grade.  Glycol recovery technology vary (distillation column 20-30 feet, MVR 16-22 feet, RO 12-16 feet)."]
[null,null,null,"20 feet - 35 feet"]
[null,null,null,"10 feet - 20 feet"]
[null,null,null,"< 10 feet"]

{"sheet":"TRD - Guidance (POTW)","index":19,"n_rows":16,"n_cols":7,"rows_kept":16,"cut":false,"hidden":true,"merged":[[5,0,6,0],[5,1,6,1],[5,2,6,2],[5,3,6,3],[0,0,0,6],[2,0,3,0],[2,1,3,1],[2,2,3,2],[2,3,3,3],[14,0,15,0],[14,1,15,1],[14,2,15,2],[14,3,15,3],[8,0,9,0],[8,1,9,1],[8,2,9,2],[8,3,9,3],[11,0,12,0],[11,1,12,1],[11,2,12,2],[11,3,12,3]]}
["POTW"]
["Topic",null,"Question","Source of Information","Response / Value","Action/Guidance","Comments (not shown in tool)"]
["Sanitary Sewer Accessibility",1,"Does the airport have sanitary sewer service or is the airport located in an area with sanitary sewer service?","User Provided","No","POTW discharge is not applicable.  Sanitary sewer service is not available for airport discharges."]
[null,null,null,null,"Yes","Go to question 2."]
[]
["Communication with POTW",2,"Has the airport determined if the local POTW is willing or able to take collected deicer-laden stormwater?","User Provided","No","POTW discharge is potentially applicable.  The airport should initiate discussions with the local POTW to determine if POTW disposal is potentially feasible.  Please see Fact Sheet 34 POTW Discharge for additional information."]
[null,null,null,null,"Yes","Go to question 3."]
[]
["POTW Willingness to Accept Discharges",3,"Is the POTW able to take collected deicer-laden stormwater from the airport?","User Provided","No","POTW discharge is not applicable.  The local POTW is unable to accommodate airport discharges of colllected stormwater containing deicers."]
[null,null,null,null,"Yes","Go to question 4."]
[]
["Knowledge of POTW Limits",4,"Do you have information about how much deicer-laden stormwater the local POTW can take in terms of load and/or volume?","User Provided","No","POTW discharge is potentially applicable.  The airport should initiate discussions with local POTW to determine the POTW's capacity to handle airport deicing discharges to determine if the POTW can be used as the sole means of treatment/discharge/recovery or if POTW discharge would need to be implemented with another technology.  Please see Fact Sheet 34 POTW Discharge for additional information."]
[null,null,null,null,"Yes","Go to question 5."]
[]
["Compatibility with Discharge Limits",5,"Do airport discharges to the sanitary sewer have a volumetric limit, wet weather discharge restriction, load limit, or slug load restrictuion?","User Provided","No","POTW discharge is potentially applicable.  Please see Fact Sheet 34 POTW Discharge for additional information."]
[null,null,null,null,"Yes","POTW discharge is potentially applicable. Further study should be conducted to determine if the POTW can be used as the sole means of treatment/discharge/recovery or if POTW discharge would need to be implemented with another technology.  Please see Fact Sheet 34 POTW Discharge for additional information."]

{"sheet":"TRD - Guidance (gr)","index":20,"n_rows":48,"n_cols":7,"rows_kept":48,"cut":false,"hidden":true,"merged":[[41,5,43,5],[9,6,14,6],[12,5,14,5],[0,0,0,6],[5,0,7,0],[5,1,7,1],[5,2,7,2],[5,3,7,3],[5,5,6,5],[5,6,6,6],[9,0,14,0],[9,1,14,1],[9,2,14,2],[9,3,14,3],[9,5,11,5],[16,0,17,0],[16,1,17,1],[16,2,17,2],[16,3,17,3],[19,0,27,0],[19,1,27,1],[19,2,27,2],[19,3,27,3],[20,6,27,6],[29,0,31,0],[29,1,31,1],[29,2,31,2],[29,3,31,3],[36,1,37,1],[36,2,37,2],[36,3,37,3],[20,5,27,5],[33,0,34,0],[33,1,34,1],[33,2,34,2],[33,3,34,3],[33,6,34,6],[44,6,45,6],[46,5,47,5],[46,6,47,6],[39,0,42,0],[39,1,42,1],[39,2,42,2],[39,3,42,3],[39,5,40,5],[39,6,42,6],[44,0,47,0],[44,1,47,1],[44,2,47,2],[44,3,47,3],[44,5,45,5],[36,0,37,0]]}
["Glycol Recovery"]
["Topic",null,"Question","Source of Information","Response / Value","Action/Guidance","Comments (not shown in tool)"]
[null,null,"Is recycling desired","user  input on start page","yes","proceed"]
[null,null,null,null,"no","Glycol recovery is not applicable due to indication that recycling is not an organizational priority."]
[]
[null,1,"Are propylene-glycol or ethylene-glycol based aircraft deicing/anti-icing chemicals used at the airport?","User Input/Deicer Use Input QDU1","propylene-glycol based aircraft deicing/anti-icing chemicals","Go to Question 2"]
[null,null,null,null,"ethylene-glycol based aircraft deicing/anti-icing chemicals"]
[null,null,null,null,"propylene-glycol and ethylene-glycol based aircraft deicing/anti-icing chemicals","Glycol recovery is not applicable.  There is no market for mixed-stream glycols, and glycol recovery technologies do not separate EG from PG."]
[]
["Compatibility with collection practices",2,"Which Collection Practices are included in this option?","Prior Tool Steps","Glycol Collection Vehicles","Go to question 3"]
[null,null,null,null,"Centralized Deicing Facilities"]
[null,null,null,null,"Block and Pump"]
[null,null,null,null,"Apron Collection","Glycol recovery is not applicable.  Glycol recovery is best suited for high-concentration flows >1% PG. These collection technologies are designed for low to mid-concentration flows."]
[null,null,null,null,"Airfield Drainage Planning"]
[null,null,null,null,"Deicer-Laden Snow Management"]
[]
["Compatibility with source reduction practices",3,"Which Source Reduction Practices are included in this option?","Prior Tool Steps","Blending to Temperature\nForced Air/Hybrid Deicing","The use of BTT or Forced Air/Hybrid Deicing as a source reduction practice may reduce the concentration of deicing chemicals in stormwater collected, reducing the cost effectiveness of glycol recovery technologies. A site-specific study should be conducted prior to implementing BTT or Forced Air/Hybrid Deicing with glycol recovery technologies."]
[null,null,null,null,"Anything else","Go to question 4."]
[]
["Compatibility with discharge limitations",4,"What is the most restrictive discharge limit at the airport's most restrictive surface discharge outfall?","User Input/General Drop Down QGD2",">17,000 mg/L COD, >9,000 mg/L BOD, >10,000 mg/L PG, >1% PG, >19,000 mg/L EG","Go to question 5.","1% PG is minimum for glycol recovery to be cost effective (ACRP Report 99). A limit above 1% means that an airport could collect at 1% and not need any other collection or disposal method."]
[null,null,null,null,"10,000 < x < 17,000 mg/L COD, 5,400 < x < 9,000 mg/L BOD, 5,900 < x < 10,000 mg/L PG, 7,800 < x < 19,000 mg/L EG","Go to question 5. \nIf subsequent questions lead to recommendation of glycol recovery, indicate a note \"A site specific study should be conducted to determine if collection of concentrations needed for glycol recovery will be sufficient to meet discharge limits, or if additional treatment or disposal technologies will need to be implemented in addition to glycol recovery for stormwater collected a lower concentrations.\"","For discharge limits less than 1% PG the airport may need to employ a treatment/disposal method in addition to glycol recovery to meet the limit. Whether or not a second treatment/disposal practice is used really depends on the amount of dilution between the collection point and outfall, and is beyond the scope of this tool to determine. A note indicating that a site specific study should be conducted is included for airports with limits below 1%."]
[null,null,null,null,"8,000 < x < 10,000 mg/L COD, 4,300 < x < 5,400 mg/L BOD, 4,700 < x < 5,900 mg/L PG, 6,200 < x < 7,800 mg/L EG"]
[null,null,null,null,"3,400 < x < 8,000 mg/L COD, 1,800 < x < 4,300 mg/L BOD, 2,000 < x < 4,700 mg/L PG, 2,600 < x < 6,200 mg/L EG"]
[null,null,null,null,"2,700 < x < 3,400 mg/L COD, 1,400 < x < 1,800 mg/L BOD, 1,600 < x < 2,000 mg/L PG, 2,100 < x < 2,600 mg/L EG"]
[null,null,null,null,"100 < x < 2,700 mg/L COD, 54 < x < 1,400 mg/L BOD, 60 < x < 1,600 mg/L PG, 78 < x < 2,100 mg/L EG"]
[null,null,null,null,"40 < x < 100 mg/L COD, 21 < x < 54 mg/L BOD, 24 < x < 60 mg/L PG, 31 < x < 78 mg/L EG"]
[null,null,null,null,"30 < x < 40 mg/L COD, 16 < x < 21 mg/L BOD, 18 < x < 24 mg/L PG, 23 < x < 31 mg/L EG"]
[null,null,null,null,"< 30 mg/L COD, < 16 mg/L BOD, < 18 mg/L PG, < 23 mg/L EG"]
[]
["Willingness to Implement Off-site ",5,"Is the airport willing to consider transporting collected runoff off-site for glycol recovery?","User Input","Yes","Off-site recovery may be applicable.   Please see Fact Sheet 41 Glycol Recovery for additional information.  A glycol recovery vendor should be contacted to identify a disposal location and determine if this is an economically viable option. "]
[null,null,null,null,"yes, 50,000 - 100000","Typical off-site glycol recovery operations require average annual usage of at least 100,000 gallons of pure glycol to be economically viable. If the airport is situated near a recycling vendor or another airport that conducts glycol recovery, it may be possible to implement off-site glycol recovery with annual usage of less than 100,000 gallons glycol."]
[null,null,null,null,"No","Off-site glycol recovery is not applicable.  The user indicated that the airport was not interested in considering off-site glycol recovery."]
[]
["Dependency on Deicer Use",6,"On average, how much aircraft deicer is applied at the airport annually?","Tool Calculation Output from Deicer Use Input Qs","> 125,000 gallons PG","On-site glycol recovery is not applicable.  Typical on-site glycol recovery operations require average annual usage of at least 125,000 gallons of pure glycol to be economically viable. If the airport is situated near another airport that collects stormwater runoff containing deicers, that would be willing to supplement the influent load, on-site glycol recovery may be feasible.","Based on minimum deicer use reported for Acrp Report 99 for an on-site recycling (PWM - 128,0200 gallons glycol)"]
[null,null,null,null,"<125,000 gallons PG","Go to question 7"]
[]
["Willingness to Implement On-site",7,"Is the airport willing to operate glycol recovery technologies onsite?","User Input","Yes","Off-site glycol recovery is potentially applicable.   Please see Fact Sheet 41 Glycol Recovery for additional information."]
[null,null,null,null,"No","On-site glycol recovery is not applicable.  The user indicated that the airport was not interested in considering an on-site treatment system. On-site glycol recovery is not recommended unless no off-site treatment, recovery or disposal options are identified."]
[]
["Compatibility with Available Space",8,"How much space is available for siting of an on-site treatment or glycol recovery system at a single location?","User Input/General Drop Down QGD1","> 1 acres","Go to question 9."]
[null,null,null,null,".5 acres < x < 1 acres"]
[null,null,null,null,".25 acres < x < .5 acres","On-site glycol recovery is not applicable.  The building that houses the glycol recovery equipment is less than .25 acres, but space would also be needed for on-site storage. Minimum space needed is likely more like a half acre for implementation."]
[null,null,null,null,"<.25 acres"]
[]
["Compatibility with Height Restrictions",9,"What are the height restrictions in the space that is available for on-site storage, treatment, or glycol recovery technologies?","User Input/General Drop Down QGD3",">35 feet or no restriction","On-site glycol recovery is potentially applicable.   Please see Fact Sheet 41 Glycol Recovery for additional information.  Distillation columns may be 20-30  feet tall and may not be a feasible unit process for glycol recovery given the height restrictions."]
[null,null,null,null,"20 feet < x < 35 feet"]
[null,null,null,null,"12 feet < x < 20 feet","On-site glycol recovery is not applicable.  Glycol recovery includes some combination of the following unit processes;  MVR units, which are 16-22 feet tall, reverse osmosis equipment, which is 12-16 feet tall, and a distillation column, which may be 20-30 feet tall. It is likely that the height of the glycol recovery equipment will be taller than the height restrictions for the available site.","(distillation column 20-30 feet, MVR 16-22 feet, RO 12-16 feet)."]
[null,null,null,null,"< 12 feet"]

{"sheet":"Storage - Questions","index":21,"n_rows":62,"n_cols":8,"rows_kept":62,"cut":false,"hidden":false,"merged":[[17,3,17,7],[2,2,2,7],[11,3,14,7],[28,7,32,7]]}
[]
[]
[null,null,"Storage"]
[]
[]
[]
[]
[]
[null,null,"Topic",null,null,null,null,"Guidance"]
[]
[null,null,"Background Information"]
[null,null,null,"This page assesses the applicable best management practices for the storage of collected deicer fluid.   Some topics have dependencies on responses given earlier in the tool, so before proceeding be sure to have completed the deicer use questions on the Start page, as well as the questions asked on the Collection Systems and Treatment, Recovery, and Disposal pages.  The optional storage calculator requires that the user provide an estimate of storage volume based on site specific drainage."]
[]
[]
[]
[]
[null,null,"Storage Area Calculator (optional)"]
[null,null,null,"Below is an optional calculator for estimating the area necessary for different storage options based on the volume of storage required.  Default values are provided as parameters to the calculation, and the user should verify that these values are reasonable for their facility.  If a parameter value is not reasonable, the user can enter an alternative value that better represents site-specific conditions.  A 25% safety factor is included in the calculations.  Ultimately the user should employ site-specific knowledge and insights in making the final determination of whether a storage option is feasible in terms of space requirements."]
[null,null,null,"Volume of storage required (gallons)"]
[null,null,null,"Ponds/Basins depth (ft)",null,10]
[null,null,null,"Below ground permanent tanks depth (ft)",null,15]
[null,null,null,"Above ground permanent tanks height (ft)",null,30]
[null,null,null,"Portable tanks"]
[null,null,null,"Tanks length (ft)",null,43]
[null,null,null,"Tank width (ft)",null,8]
[null,null,null,"Buffer (ft) (side and back)",null,2]
[null,null,null,"Buffer (ft) (front)",null,5]
[null,null,null,"Modular tanks height (ft) (rectangular shape)",null,6]
[null,null,null,"Recommended area for Portable Tanks (acres)",null,{"$f":"ROUNDUP(1.25*storageRequiredVolumeInput/21000,0)*((portableTanksLengthInput+portableTanksSideBackBufferInput+portableTanksFrontBufferInput)*(portableTanksWidthInput+portableTanksSideBackBufferInput+portableTanksSideBackBufferInput))/(43560)","v":0},null,"These values are ballpark estimations only.  A site-specific evaluation for more accurate analysis is recommended."]
[null,null,null,"Recommended area for Modular Tanks (acres)",null,{"$f":"(storageRequiredVolumeInput * 1.25) / (7.48 * modularTanksHeightInput* 43560)","v":0}]
[null,null,null,"Recommended area for Ponds/Basins (acres)",null,{"$f":"storageRequiredVolumeInput*1.25/(7.48*pondsDepthInput*43560)","v":0}]
[null,null,null,"Recommended area for Above Ground Permanent Tanks (acres)",null,{"$f":"(storageRequiredVolumeInput*1.25)/(7.48*aboveGroundTanksHeightInput*43560)","v":0}]
[null,null,null,"Recommended area for Below Ground Permanent Tanks (acres)",null,{"$f":"storageRequiredVolumeInput*1.25/(7.48*belowGroundTanksDepthInput*43560)","v":0}]
[]
[null,null,"BMPs Currently in Use"]
[null,null,null,"Select all BMPs, if any, currently in use at the facility."]
[null,null,null,"The facility would like to continue to use or expand the use of Portable Tanks."]
[null,null,null,"The facility would like to continue to use or expand the use of Modular Tanks"]
[null,null,null,"The facility would like to continue to use or expand the use of Ponds/Basins."]
[null,null,null,"The facility would like to continue to use or expand the use of Above Ground Permanent Tanks."]
[null,null,null,"The facility would like to continue to use or expand the use of Below Ground Permanent Tanks."]
[]
[null,null,"Portable Tanks"]
[null,null,null,"Is there an area where portable tanks can be located?  See the storage calculator for an estimation of required area if storage volume is known."]
[]
[null,null,"Modular Tanks"]
[null,null,null,"Is there an area where modular tanks can be located?  See the storage calculator for an estimation of required area if storage volume is known."]
[]
[null,null,"Ponds/Basins"]
[null,null,null,"Is there an area where pond(s)/basin(s) can be located?  See the storage calculator for an estimation of required area if storage volume is known."]
[null,null,null,"Is the distance to groundwater or bedrock suitable for the construction of a pond/basin at the available location?"]
[null,null,null,"Is storage location downgradient of stormwater collection point?"]
[null,null,null,"Is construction of a pump station to convey runoff into an elevated pond/basin possible as part of this project?"]
[]
[null,null,"Above Ground Permanent Tanks"]
[null,null,null,"Is there an area where an above ground tank or tanks can be located?  See the storage calculator for an estimation of required area if storage volume is known."]
[null,null,null,"Is construction of a pump station to convey runoff into tank as part of this project possible?"]
[]
[null,null,"Below Ground Permanent Tanks"]
[null,null,null,"Is there an area where a below ground tank or tanks can be located?  See the storage calculator for an estimation of required area if storage volume is known."]
[null,null,null,"Is the distance to groundwater or bedrock suitable for the construction of a below ground tank?"]
[null,null,null,"Can a pump station be included as part of this project to transport runoff out of storage tank?"]

{"sheet":"Storage - Guidance","index":22,"n_rows":45,"n_cols":7,"rows_kept":45,"cut":false,"hidden":true,"merged":[]}
["Topic","Question Number","Question","Source of Information","Response / Value","Action","Comments"]
["Portable Tanks",1,"Is the volume of storage required less than 150,000 gallons?","From calculations in containment/collection section","Yes","Proceed to question 2"]
[null,null,null,null,"No","The use of portable tanks is not applicable due to low storage volume requirements."]
[null,2,"Is there area where portable tanks can be located ?  See Fact sheet 27 for possible siting constraints. ","User provided","No","Portable tanks are not applicable due to space requirements.","Portable Tanks are typically an interim practice until pemanent storage can be provided."]
[null,null,null,null,"Yes","Portable tanks are potentially appropriate.  These are typically an interim practice until permanent storage can be provided.  Please see Fact Sheet 27 Portable Tanks for additional information."]
[]
[]
["Modular Tanks",1,"Is the volume of storage required between 50,000 to 2,000,000 gallons?","From calculations in containment/collection section","Yes","Proceed to question 2"]
[null,null,null,null,"No ","This BMP is not applicable due to storage volume requirement falling outside the range of 50,000 to 2,000,000 gallons."]
[null,2,"Is there area where modular tanks can be located ?  See Fact sheet 28 for potential siting constraints.","User provided","No","Modular tanks are not applicable due to space requirements."]
[null,null,null,null,"Yes","Modular tanks are potentially applicable.  These are typically an interim practice until permanent storage can be provided.  Please see Fact Sheet 28 Modular Tanks for additional information."]
[]
[]
["Ponds/Basins",1,"Is deicing area runoff collected via gravity flow?","User provided.","No ","Proceed to question 2"]
[null,null,null,null,"yes","The use of ponds/basins is potentially applicable.  Please see Fact Sheet 29 Basins for additional information."]
[null,null,"Do wildlife attractants prohibit the construction of a pond?",null,"Yes","The use of ponds/basins is not applicable due to prior indication (in General Questions on the TRD page) that wildlife attractant concerns prohibit open water."]
[null,null,null,null,"No "]
[null,null,"Is space available for the construction of a pond?",null,"Yes","Proceed"]
[null,null,null,null,"No ","The use of ponds/basins is not applicable due to volume-driven space requirements."]
[null,2,"Is the distance to groundwater or bedrock suitable for the construction of a pond at the available location?","User provided.","Yes","The use of ponds/basins is potentially appropriate.  Please see Fact Sheet 29 Basins for additional information."]
[null,null,null,null,"No ","The use of ponds/basins is not applicable due to depth requirements."]
[null,3,"Is construction of a pump station to convey runoff into the pond possible as part of this project possible?","User provided.","Yes","The use of ponds/basins is potentially applicable.  See Fact Sheet 29 Basins and FAA Advisory Circular 150/5200-33 Hazardous Wildlife Attractants on or Near Aiports for information on limitations for Ponds/Basins and requirements for mitigation of potential hazardous wildlife attractants associated with ponds/basins."]
[null,null,null,null,"No ","The use of ponds/basins is not applicable due to the need to pump runoff to the upgradient potential site."]
[null,null,"is there an area where a pond(s)/basin(s) can be located?",null,"yes","proceed"]
[null,null,null,null,"No ","The use of ponds/basins is not applicable due to space requirements."]
[]
["Above Ground Permanent Tanks",1,"Is runoff collected conveyed to storage by gravity","User provided.","Yes","Proceed to question 2"]
[null,null,null,null,"No ","Proceed to question 3"]
[null,2,"Is construction of a pump station to convey runoff into tank as part of this project possible?","User provided.","Yes","Proceed to question 3"]
[null,null,null,null,"No ","Above ground permanent tanks are not applicable due to need for pump station to transfer runoff into above ground storage tanks."]
[null,3,"Is there a site where an above ground structure can be constructed without interference with airport operations and design surfaces?","User provided.","Yes","Above ground permanent tanks are potentially applicable.  Please see Fact Sheet 30 Permanent Tanks for additional information."]
[null,null,null,null,"No ","Above ground permanent tanks are not applicable because of space and/or height restrictions."]
[null,4,"What are the height restrictions in the space that is available for on-site storage, treatment, or glycol recovery? ","From Treatment Recovery Disposal Logic General Drop Down question 1.3","20 feet - 30 feet or > 35 feet","proceed"]
[null,null,null,null,"10 feet - 20 feet or <10 feet","Above ground permanent tanks are not applicable due to height restrictions."]
[null,5,"Is the volume of storage required greater than 10,000 gallons","From collection system or treatment system calculations","Yes","proceed"]
[null,null,null,null,"No ","Above ground permanent tanks are not applicable due to low storage volume requirements."]
[null,null,"Area requirement",null,"yes","proceed"]
[null,null,null,null,"No ","Above ground permanent tanks are not applicable due to space requirements."]
[]
["Below Ground Permanent Tanks",1,"Is there availablility of a suitable location for a beilow ground storage tank?","User provided","Yes","Proceed to question 2"]
[null,null,null,null,"No","Below ground permanent tanks are not applicable due to space requirements."]
[null,2,"Is distance to bedrock less than 5 feet in the prospective area of the below ground storage tank?","User provided","Yes","Proceed to question 2"]
[null,null,null,null,"No","Below ground permanent tanks are not applicable due to depth requirements."]
[null,3,"Can a pump station be included as part of this project to transport runoff out of storage tank","User provided","Yes","Below ground permanent tanks are potentially applicable.  Please see Fact Sheet 30 Permanent Tanks for additional information."]
[null,null,null,null,"No","Below ground permanent tanks are not applicable because of the infeasability of meeting pumping requirements."]

{"sheet":"Rating System","index":23,"n_rows":31,"n_cols":4,"rows_kept":31,"cut":false,"hidden":true,"merged":[[19,0,19,3],[20,3,24,3],[25,0,25,3],[26,3,30,3],[1,0,1,3],[2,3,6,3],[7,0,7,3],[8,3,12,3],[13,0,13,3],[14,3,18,3]]}
["Screening Parameter","Rating",null,"Considerations to Establish Rating"]
["Implementation Time"]
[null,1,"> 3 years","Quantify time to execute Planning & Study, Permitting, Design, Procurement, Construction, Commissioning"]
[null,2,"2 - 3 years"]
[null,3,"1 - 2 years"]
[null,4,"3 - 12 months"]
[null,5,"< 3 months"]
["Siting Constraints"]
[null,1,"> 6 constraints","Example Constraint parameters: Height (> 10ft), Footprint (>1 acre), Hazardous Wildlife Attractant (y/n), Electrical Service (y/n), Connect to Airport Controls/Communication (y/n), Typically Located in Airfield (y/n), Requires Construction > 3 ft below surface (y/n), Typically located in tenant operated areas (y/n), Requires connection to offsite infrastructure (y/n),  Impacts to design surfaces (Part 77, RSA, ROFA, etc.)"]
[null,2,"5-6 constraints"]
[null,3,"3-4 constraints"]
[null,4,"1-2 constraints"]
[null,5,"No constraints"]
["Expandability and Adaptability"]
[null,1,"> 9 constraints","Example constraints: Inflexible shape, inflexible unit size, requires new building to expand/adapt, requires new support system to expand/adapt, requires more than one connection point to existing system to expand/adapt, not typically modular, can only expand in one direction, expansion impacts to existing infrastructure/tenants."]
[null,2,"7-9 constraints"]
[null,3,"4-6 constraints"]
[null,4,"1-3 constraints"]
[null,5,"No constraints"]
["Staffing & Contract Operational Support"]
[null,1,"3 or more new FTE","For processes requiring contracted operational support instead of employees, considering 1 FTE = $100,000 in annual contracted operational support.   Consider operations, maintenance, technical support, and management when evaluating FTEs."]
[null,2,"2 new FTE"]
[null,3,"1 new FTE"]
[null,4,"Part-time employee"]
[null,5,"No new employees"]
["Operations and Maintenance Complexity"]
[null,1,"> 10 parameters","Parameter = an individual item that must be monitored, analyzed, controlled, adjusted, or maintained on a daily basis by the operations and maintenance staff.  For example, monitoring and adjusting flow rate into a system = 1 parameter. "]
[null,2,"5-10 parameters"]
[null,3,"2-5 parameters"]
[null,4,"1 parameter"]
[null,5,"0 parameters"]

{"sheet":"BMP Scores","index":24,"n_rows":38,"n_cols":16,"rows_kept":38,"cut":false,"hidden":true,"merged":[[10,13,10,14]]}
["Treatment/Recovery/Disposal Ratings","POTW","Glycol Recovery","PFT","Aerated Lagoon","Activated Sludge","AGB","MBBR","AFBR"]
["Implementation Time",4,1,2,4,2,3,2,2]
["Siting Constraints",5,3,2,4,4,3,4,3]
["Expandability and Adaptability",5,2,4,4,3,5,2,2]
["Staffing & Contract Operational Support",5,1,4,4,2,3,2,2]
["Operations and Maintenance Complexity",4,3,5,3,2,3,2,2]
["sum",{"$f":"SUM(B2:B6)","v":23},{"$f":"SUM(C2:C6)","v":10},17,19,13,17,12,11]
[]
["Collection Systems","Centralized Deicing Facilities","Apron Collection Systems","Glycol Collection Vehicles","Block-and-pump Systems","Airfield Drainage Planning/Design/Retrofit","Deicer-laden Snow Management",null,null,null,null,"Collection BMP Performance Ranges"]
["Implementation Time",2,4,4,4,1,4]
["Siting Constraints",2,4,4,3,1,4,null,null,null,null,null,null,"Reported in Fact Sheet"]
["Expandability and Adaptability",3,3,5,4,3,5,null,null,null,null,"Collection Technology","Fact Sheet","Min","Max","Min acceptable performance"]
["Staffing & Contract Operational Support",4,4,2,2,1,5,null,null,null,null,"Centralized Deicing Facilities",21,0.35,0.8,0.6]
["Operations and Maintenance Complexity",1,3,2,2,1,3,null,null,null,null,"Apron Collection Systems",22,0.2,0.7,0.5]
["weighted sum (not inc. lim. storage)",{"$f":"B19*B16*B17","v":12},18,17,15,7,21,null,null,null,null,"Glycol Collection Vehicles",23,0.2,0.5,0.4]
["recycling is desired",1,1,1,1,1,1,null,null,null,null,"Block-and-pump systems",24,0.2,0.35,0.3]
["collection efficiency is important",1,1,1,1,1,1]
["if storage space is limited",1.1000000000000001,0.8,1.2,0.9,1.2,1]
["unweighted sum",{"$f":"SUM(B10:B14)","v":12},{"$f":"SUM(C10:C14)","v":18},17,15,7,21]
[]
["Storage","Portable Tanks","Modular Tanks","Ponds/Basins","Above Ground Permanent Tanks","Below Ground Permanent Tanks"]
["Implementation Time",5,4,3,3,3]
["Siting Constraints",4,4,3,3,3]
["Expandability and Adaptability",4,4,3,3,3]
["Staffing & Contract Operational Support",4,4,3,4,4]
["Operations and Maintenance Complexity",4,4,3,4,4]
["weighted sum",{"$f":"B29*B28","v":21},{"$f":"C29*C28","v":20},15,17,17]
["weight",1,1,1,1,1]
["unweighted sum",{"$f":"SUM(B22:B26)","v":21},{"$f":"SUM(C22:C26)","v":20},{"$f":"SUM(D22:D26)","v":15},{"$f":"SUM(E22:E26)","v":17},{"$f":"SUM(F22:F26)","v":17}]
["limited storage?",false,false,false,false,false]
[]
["SRP","sBTT","BTT Trucks","FA Trucks"]
["Implementation Time",3,3,3]
["Siting Constraints",4,5,5]
["Expandability and Adaptability",4,5,5]
["Staffing & Contract Operational Support",5,5,5]
["Operations and Maintenance Complexity",3,3,5]
["sum",{"$f":"SUM(B33:B37)","v":19},{"$f":"SUM(C33:C37)","v":21},{"$f":"SUM(D33:D37)","v":23}]

{"sheet":"Report","index":25,"n_rows":602,"n_cols":23,"rows_kept":602,"cut":false,"hidden":false,"merged":[[87,12,87,13],[74,12,74,13],[60,12,60,13],[2,2,2,6],[21,4,21,6],[22,4,22,6],[23,4,23,6],[14,4,14,6],[10,4,10,6],[11,4,11,6],[12,4,12,6],[13,4,13,6],[9,2,9,3],[36,4,36,6]]}
[]
[]
[null,null,"Report"]
[]
[]
[]
[]
[]
[]
[null,null,"Run-Specific Information"]
[null,null,null,"Analyst",{"$f":"Start!F18","v":0}]
[null,null,null,"Scenario Name",{"$f":"Start!F19","v":0}]
[null,null,null,"Description",{"$f":"Start!F20","v":0}]
[null,null,null,"Date",{"$f":"Start!F21","v":"2020-04-17"}]
[null,null,null,"Airport",{"$f":"IF(airportName=\"NOT LISTED\",airportNameManual,airportName)","v":0}]
[]
[]
[]
[]
[]
[null,null,"Source Reduction Summary"]
[null,null,null,"Stationary blend-to-temperature"]
[null,null,null,"Forced air trucks"]
[null,null,null,"Blend-to-temperature trucks"]
[]
[null,null,"Additional Source Reduction technologies to consider"]
[]
[]
[]
[]
[]
[]
[]
[]
[]
[null,null,"Existing Collection Systems BMPs"]
[]
[]
[null,null,"Additional Strategies to Consider"]
[]
[]
[]
[]
[null,null,null,null,null,null,null,null,null,null,null,null,"Source Reduction Potential"]
[null,null,null,null,null,null,null,null,null,null,null,null,"topic","include"]
[null,null,null,null,null,null,null,null,null,null,null,null,"sBTT"]
[null,null,null,null,null,null,null,null,null,null,null,null,"FA Trucks",{"$f":"IF(OR(forcedAirGuidance=fluidReductionRankHigh,forcedAirGuidance=bttRankMed),TRUE,FALSE)","v":true}]
[null,null,null,null,null,null,null,null,null,null,null,null,"BTT Trucks"]
[]
[null,null,null,null,null,null,null,null,null,null,null,null,"Addtl SRP"]
[null,null,null,null,null,null,null,null,null,null,null,null,"topic","include"]
[null,null,null,null,null,null,null,null,null,null,null,null,"Proactive anti-icing",false]
[null,null,null,null,null,null,null,null,null,null,null,null,"Physical removal of snow",false]
[null,null,null,null,null,null,null,null,null,null,null,null,"Hangared parking",false]
[null,null,null,null,null,null,null,null,null,null,null,null,"Hot water deicing",false]
[null,null,null,null,null,null,null,null,null,null,null,null,"Enclosed bucket deicing",false]
[null,null,null,null,null,null,null,null,null,null,null,null,"Enhanced weather forecasting",false]
[null,null,null,null,null,null,null,null,null,null,null,null,"Holdover time determinations system",false]
[null,null,null,null,null,null,null,null,null,null,null,null,"Reduced aircraft operations",false]
[]
[null,null,null,null,null,null,null,null,null,null,null,null,"Collection Systems"]
[null,null,null,null,null,null,null,null,null,null,null,null,"topic","include"]
[null,null,null,null,null,null,null,null,null,null,null,null,"00 true placeholder",true]
[null,null,null,null,null,null,null,null,null,null,null,null,"00 false placeholder",false]
[null,null,null,null,null,null,null,null,null,null,null,null,"Centralized Deicing Facilities"]
[null,null,null,null,null,null,null,null,null,null,null,null,"Apron Collection Systems"]
[null,null,null,null,null,null,null,null,null,null,null,null,"Glycol Collection Vehicles"]
[null,null,null,null,null,null,null,null,null,null,null,null,"Block-and-pump Systems"]
[]
[null,null,null,null,null,null,null,null,null,null,null,null,"Addtl CS"]
[null,null,null,null,null,null,null,null,null,null,null,null,"topic","include"]
[null,null,null,null,null,null,null,null,null,null,null,null,"Airfield Drainage Planning/Design/Retrofit"]
[null,null,null,null,null,null,null,null,null,null,null,null,"Deicer-laden Snow Management"]
[]
[null,null,null,null,null,null,null,null,null,null,null,null,"Treatment Recovery Disposal"]
[null,null,null,null,null,null,null,null,null,null,null,null,"topic","include"]
[null,null,null,null,null,null,null,null,null,null,null,null,"00 true placeholder",true]
[null,null,null,null,null,null,null,null,null,null,null,null,"00 false placeholder",false]
[null,null,null,null,null,null,null,null,null,null,null,null,"POTW"]
[null,null,null,null,null,null,null,null,null,null,null,null,"Glycol Recovery"]
[null,null,null,null,null,null,null,null,null,null,null,null,"PFT"]
[null,null,null,null,null,null,null,null,null,null,null,null,"Aerated Lagoon"]
[null,null,null,null,null,null,null,null,null,null,null,null,"Activated Sludge"]
[null,null,null,null,null,null,null,null,null,null,null,null,"AGB"]
[null,null,null,null,null,null,null,null,null,null,null,null,"MBBR"]
[null,null,null,null,null,null,null,null,null,null,null,null,"AFBR"]
[]
[null,null,null,null,null,null,null,null,null,null,null,null,"Storage"]
[null,null,null,null,null,null,null,null,null,null,null,null,"topic","include"]
[null,null,null,null,null,null,null,null,null,null,null,null,"00 true placeholder",true]
[null,null,null,null,null,null,null,null,null,null,null,null,"00 false placeholder",false]
[null,null,null,null,null,null,null,null,null,null,null,null,"Portable Tanks"]
[null,null,null,null,null,null,null,null,null,null,null,null,"Modular Tanks"]
[null,null,null,null,null,null,null,null,null,null,null,null,"Ponds/Basins"]
[null,null,null,null,null,null,null,null,null,null,null,null,"Above Ground Permanent Tanks"]
[null,null,null,null,null,null,null,null,null,null,null,null,"Below Ground Permanent Tanks"]
[]
[null,null,null,null,null,null,null,null,null,null,null,null,"include","TRUE",null,null,"include","TRUE",null,null,"include","TRUE"]
[null,null,null,null,null,null,null,null,null,null,null,null,"cs",null,null,null,"trd",null,null,null,"storage"]
[null,null,null,null,null,null,null,null,null,null,null,null,"Row Labels",null,null,null,"Row Labels",null,null,null,"Row Labels"]
[null,null,null,null,null,null,null,null,null,null,null,null,"00 true placeholder",null,null,null,"00 true placeholder",null,null,null,"00 true placeholder"]
[]
[]
[]
[]
[]
[]
[]
[]
[]
[]
[null,null,null,null,null,null,null,null,null,null,null,null,{"$f":"COUNTA(M102:M109)","v":0},null,null,null,{"$f":"COUNTA(Q102:Q109)","v":0},null,null,null,{"$f":"COUNTA(U102:U109)","v":0}]
[null,null,null,null,null,null,null,null,null,null,null,null,null,{"$f":"PRODUCT(M112,Q112,U112)","v":0}]
[]
[null,null,null,null,null,null,null,null,null,null,null,null,null,null,null,"cs","cs score","trd","trd score","storage","storage score","sum score","combo index"]
[null,null,null,null,null,null,null,null,null,null,null,null,{"$f":"MOD((ROW()-ROW(M$116)),M$112)+1","v":{"$error":"#DIV/0!"}},{"$f":"MOD(INT((ROW()-ROW(N$116))/M$112),Q$112)+1","v":{"$error":"#DIV/0!"}},{"$f":"MOD(INT(INT((ROW()-ROW(O$116))/M$112)/Q$112),U$112)+1","v":{"$error":"#DIV/0!"}},{"$f":"INDEX(collectionSystemsBMPs,M116)","v":{"$error":"#DIV/0!"}},{"$f":"HLOOKUP(P116,collectionSystemsBMPScores,7,FALSE)","v":{"$error":"#DIV/0!"}},{"$f":"INDEX(trdBMPs,N116)","v":{"$error":"#DIV/0!"}},{"$f":"HLOOKUP(R116,trdBMPScores,7,FALSE)","v":{"$error":"#DIV/0!"}},{"$f":"INDEX(storageBMPs,O116)","v":{"$error":"#DIV/0!"}},{"$f":"HLOOKUP(T116,storageBMPScores,7,FALSE)","v":{"$error":"#DIV/0!"}},{"$f":"SUM(IF(HLOOKUP(T116,storageBMPScores,8,FALSE),HLOOKUP(P116,collectionSystemsBMPScores,10,FALSE)*Q116,Q116)+S116+U116)","v":{"$error":"#DIV/0!"}},1]
[null,null,null,null,null,null,null,null,null,null,null,null,{"$error":"#DIV/0!"},{"$error":"#DIV/0!"},{"$error":"#DIV/0!"},{"$f":"INDEX(collectionSystemsBMPs,M117)","v":{"$error":"#DIV/0!"}},{"$f":"HLOOKUP(P117,collectionSystemsBMPScores,7,FALSE)","v":{"$error":"#DIV/0!"}},{"$f":"INDEX(trdBMPs,N117)","v":{"$error":"#DIV/0!"}},{"$error":"#DIV/0!"},{"$f":"INDEX(storageBMPs,O117)","v":{"$error":"#DIV/0!"}},{"$f":"HLOOKUP(T117,storageBMPScores,7,FALSE)","v":{"$error":"#DIV/0!"}},{"$error":"#DIV/0!"},2]
[null,null,null,null,null,null,null,null,null,null,null,null,{"$error":"#DIV/0!"},{"$error":"#DIV/0!"},{"$error":"#DIV/0!"},{"$error":"#DIV/0!"},{"$error":"#DIV/0!"},{"$f":"INDEX(trdBMPs,N118)","v":{"$error":"#DIV/0!"}},{"$error":"#DIV/0!"},{"$f":"INDEX(storageBMPs,O118)","v":{"$error":"#DIV/0!"}},{"$error":"#DIV/0!"},{"$error":"#DIV/0!"},3]
[null,null,null,null,null,null,null,null,null,null,null,null,{"$error":"#DIV/0!"},{"$error":"#DIV/0!"},{"$error":"#DIV/0!"},{"$f":"INDEX(collectionSystemsBMPs,M119)","v":{"$error":"#DIV/0!"}},{"$error":"#DIV/0!"},{"$error":"#DIV/0!"},{"$error":"#DIV/0!"},{"$error":"#DIV/0!"},{"$error":"#DIV/0!"},{"$error":"#DIV/0!"},4]
[null,null,null,null,null,null,null,null,null,null,null,null,{"$error":"#DIV/0!"},{"$error":"#DIV/0!"},{"$error":"#DIV/0!"},{"$error":"#DIV/0!"},{"$error":"#DIV/0!"},{"$error":"#DIV/0!"},{"$error":"#DIV/0!"},{"$error":"#DIV/0!"},{"$error":"#DIV/0!"},{"$error":"#DIV/0!"},5]
[null,null,null,null,null,null,null,null,null,null,null,null,{"$error":"#DIV/0!"},{"$error":"#DIV/0!"},{"$error":"#DIV/0!"},{"$error":"#DIV/0!"},{"$error":"#DIV/0!"},{"$error":"#DIV/0!"},{"$error":"#DIV/0!"},{"$error":"#DIV/0!"},{"$error":"#DIV/0!"},{"$error":"#DIV/0!"},6]
[null,null,null,null,null,null,null,null,null,null,null,null,{"$error":"#DIV/0!"},{"$error":"#DIV/0!"},{"$error":"#DIV/0!"},{"$error":"#DIV/0!"},{"$error":"#DIV/0!"},{"$error":"#DIV/0!"},{"$error":"#DIV/0!"},{"$error":"#DIV/0!"},{"$error":"#DIV/0!"},{"$error":"#DIV/0!"},7]
[null,null,null,null,null,null,null,null,null,null,null,null,{"$error":"#DIV/0!"},{"$error":"#DIV/0!"},{"$error":"#DIV/0!"},{"$error":"#DIV/0!"},{"$error":"#DIV/0!"},{"$error":"#DIV/0!"},{"$error":"#DIV/0!"},{"$error":"#DIV/0!"},{"$error":"#DIV/0!"},{"$error":"#DIV/0!"},8]
[null,null,null,null,null,null,null,null,null,null,null,null,{"$error":"#DIV/0!"},{"$error":"#DIV/0!"},{"$error":"#DIV/0!"},{"$error":"#DIV/0!"},{"$error":"#DIV/0!"},{"$error":"#DIV/0!"},{"$error":"#DIV/0!"},{"$error":"#DIV/0!"},{"$error":"#DIV/0!"},{"$error":"#DIV/0!"},9]
[null,null,null,null,null,null,null,null,null,null,null,null,{"$error":"#DIV/0!"},{"$error":"#DIV/0!"},{"$error":"#DIV/0!"},{"$error":"#DIV/0!"},{"$error":"#DIV/0!"},{"$error":"#DIV/0!"},{"$error":"#DIV/0!"},{"$error":"#DIV/0!"},{"$error":"#DIV/0!"},{"$error":"#DIV/0!"},10]
[null,null,null,null,null,null,null,null,null,null,null,null,{"$error":"#DIV/0!"},{"$error":"#DIV/0!"},{"$error":"#DIV/0!"},{"$error":"#DIV/0!"},{"$error":"#DIV/0!"},{"$error":"#DIV/0!"},{"$error":"#DIV/0!"},{"$error":"#DIV/0!"},{"$error":"#DIV/0!"},{"$error":"#DIV/0!"},11]
[null,null,null,null,null,null,null,null,null,null,null,null,{"$error":"#DIV/0!"},{"$error":"#DIV/0!"},{"$error":"#DIV/0!"},{"$error":"#DIV/0!"},{"$error":"#DIV/0!"},{"$error":"#DIV/0!"},{"$error":"#DIV/0!"},{"$error":"#DIV/0!"},{"$error":"#DIV/0!"},{"$error":"#DIV/0!"},12]
[null,null,null,null,null,null,null,null,null,null,null,null,{"$error":"#DIV/0!"},{"$error":"#DIV/0!"},{"$error":"#DIV/0!"},{"$error":"#DIV/0!"},{"$error":"#DIV/0!"},{"$error":"#DIV/0!"},{"$error":"#DIV/0!"},{"$error":"#DIV/0!"},{"$error":"#DIV/0!"},{"$error":"#DIV/0!"},13]
[null,null,null,null,null,null,null,null,null,null,null,null,{"$error":"#DIV/0!"},{"$error":"#DIV/0!"},{"$error":"#DIV/0!"},{"$error":"#DIV/0!"},{"$error":"#DIV/0!"},{"$error":"#DIV/0!"},{"$error":"#DIV/0!"},{"$error":"#DIV/0!"},{"$error":"#DIV/0!"},{"$error":"#DIV/0!"},14]
[null,null,null,null,null,null,null,null,null,null,null,null,{"$error":"#DIV/0!"},{"$error":"#DIV/0!"},{"$error":"#DIV/0!"},{"$error":"#DIV/0!"},{"$error":"#DIV/0!"},{"$error":"#DIV/0!"},{"$error":"#DIV/0!"},{"$error":"#DIV/0!"},{"$error":"#DIV/0!"},{"$error":"#DIV/0!"},15]
[null,null,null,null,null,null,null,null,null,null,null,null,{"$error":"#DIV/0!"},{"$error":"#DIV/0!"},{"$error":"#DIV/0!"},{"$error":"#DIV/0!"},{"$error":"#DIV/0!"},{"$error":"#DIV/0!"},{"$error":"#DIV/0!"},{"$error":"#DIV/0!"},{"$error":"#DIV/0!"},{"$error":"#DIV/0!"},16]
[null,null,null,null,null,null,null,null,null,null,null,null,{"$error":"#DIV/0!"},{"$error":"#DIV/0!"},{"$error":"#DIV/0!"},{"$error":"#DIV/0!"},{"$error":"#DIV/0!"},{"$error":"#DIV/0!"},{"$error":"#DIV/0!"},{"$error":"#DIV/0!"},{"$error":"#DIV/0!"},{"$error":"#DIV/0!"},17]
[null,null,null,null,null,null,null,null,null,null,null,null,{"$error":"#DIV/0!"},{"$error":"#DIV/0!"},{"$error":"#DIV/0!"},{"$error":"#DIV/0!"},{"$error":"#DIV/0!"},{"$error":"#DIV/0!"},{"$error":"#DIV/0!"},{"$error":"#DIV/0!"},{"$error":"#DIV/0!"},{"$error":"#DIV/0!"},18]
[null,null,null,null,null,null,null,null,null,null,null,null,{"$error":"#DIV/0!"},{"$error":"#DIV/0!"},{"$error":"#DIV/0!"},{"$error":"#DIV/0!"},{"$error":"#DIV/0!"},{"$error":"#DIV/0!"},{"$error":"#DIV/0!"},{"$error":"#DIV/0!"},{"$error":"#DIV/0!"},{"$error":"#DIV/0!"},19]
[null,null,null,null,null,null,null,null,null,null,null,null,{"$error":"#DIV/0!"},{"$error":"#DIV/0!"},{"$error":"#DIV/0!"},{"$error":"#DIV/0!"},{"$error":"#DIV/0!"},{"$error":"#DIV/0!"},{"$error":"#DIV/0!"},{"$error":"#DIV/0!"},{"$error":"#DIV/0!"},{"$error":"#DIV/0!"},20]
[null,null,null,null,null,null,null,null,null,null,null,null,{"$error":"#DIV/0!"},{"$error":"#DIV/0!"},{"$error":"#DIV/0!"},{"$error":"#DIV/0!"},{"$error":"#DIV/0!"},{"$error":"#DIV/0!"},{"$error":"#DIV/0!"},{"$error":"#DIV/0!"},{"$error":"#DIV/0!"},{"$error":"#DIV/0!"},21]
[null,null,null,null,null,null,null,null,null,null,null,null,{"$error":"#DIV/0!"},{"$error":"#DIV/0!"},{"$error":"#DIV/0!"},{"$error":"#DIV/0!"},{"$error":"#DIV/0!"},{"$error":"#DIV/0!"},{"$error":"#DIV/0!"},{"$error":"#DIV/0!"},{"$error":"#DIV/0!"},{"$error":"#DIV/0!"},22]
[null,null,null,null,null,null,null,null,null,null,null,null,{"$error":"#DIV/0!"},{"$error":"#DIV/0!"},{"$error":"#DIV/0!"},{"$error":"#DIV/0!"},{"$error":"#DIV/0!"},{"$error":"#DIV/0!"},{"$error":"#DIV/0!"},{"$error":"#DIV/0!"},{"$error":"#DIV/0!"},{"$error":"#DIV/0!"},23]
[null,null,null,null,null,null,null,null,null,null,null,null,{"$error":"#DIV/0!"},{"$error":"#DIV/0!"},{"$error":"#DIV/0!"},{"$error":"#DIV/0!"},{"$error":"#DIV/0!"},{"$error":"#DIV/0!"},{"$error":"#DIV/0!"},{"$error":"#DIV/0!"},{"$error":"#DIV/0!"},{"$error":"#DIV/0!"},24]
[null,null,null,null,null,null,null,null,null,null,null,null,{"$error":"#DIV/0!"},{"$error":"#DIV/0!"},{"$error":"#DIV/0!"},{"$error":"#DIV/0!"},{"$error":"#DIV/0!"},{"$error":"#DIV/0!"},{"$error":"#DIV/0!"},{"$error":"#DIV/0!"},{"$error":"#DIV/0!"},{"$error":"#DIV/0!"},25]
[null,null,null,null,null,null,null,null,null,null,null,null,{"$error":"#DIV/0!"},{"$error":"#DIV/0!"},{"$error":"#DIV/0!"},{"$error":"#DIV/0!"},{"$error":"#DIV/0!"},{"$error":"#DIV/0!"},{"$error":"#DIV/0!"},{"$error":"#DIV/0!"},{"$error":"#DIV/0!"},{"$error":"#DIV/0!"},26]
[null,null,null,null,null,null,null,null,null,null,null,null,{"$error":"#DIV/0!"},{"$error":"#DIV/0!"},{"$error":"#DIV/0!"},{"$error":"#DIV/0!"},{"$error":"#DIV/0!"},{"$error":"#DIV/0!"},{"$error":"#DIV/0!"},{"$error":"#DIV/0!"},{"$error":"#DIV/0!"},{"$error":"#DIV/0!"},27]
[null,null,null,null,null,null,null,null,null,null,null,null,{"$error":"#DIV/0!"},{"$error":"#DIV/0!"},{"$error":"#DIV/0!"},{"$error":"#DIV/0!"},{"$error":"#DIV/0!"},{"$error":"#DIV/0!"},{"$error":"#DIV/0!"},{"$error":"#DIV/0!"},{"$error":"#DIV/0!"},{"$error":"#DIV/0!"},28]
[null,null,null,null,null,null,null,null,null,null,null,null,{"$error":"#DIV/0!"},{"$error":"#DIV/0!"},{"$error":"#DIV/0!"},{"$error":"#DIV/0!"},{"$error":"#DIV/0!"},{"$error":"#DIV/0!"},{"$error":"#DIV/0!"},{"$error":"#DIV/0!"},{"$error":"#DIV/0!"},{"$error":"#DIV/0!"},29]
[null,null,null,null,null,null,null,null,null,null,null,null,{"$error":"#DIV/0!"},{"$error":"#DIV/0!"},{"$error":"#DIV/0!"},{"$error":"#DIV/0!"},{"$error":"#DIV/0!"},{"$error":"#DIV/0!"},{"$error":"#DIV/0!"},{"$error":"#DIV/0!"},{"$error":"#DIV/0!"},{"$error":"#DIV/0!"},30]
[null,null,null,null,null,null,null,null,null,null,null,null,{"$error":"#DIV/0!"},{"$error":"#DIV/0!"},{"$error":"#DIV/0!"},{"$error":"#DIV/0!"},{"$error":"#DIV/0!"},{"$error":"#DIV/0!"},{"$error":"#DIV/0!"},{"$error":"#DIV/0!"},{"$error":"#DIV/0!"},{"$error":"#DIV/0!"},31]
[null,null,null,null,null,null,null,null,null,null,null,null,{"$error":"#DIV/0!"},{"$error":"#DIV/0!"},{"$error":"#DIV/0!"},{"$error":"#DIV/0!"},{"$error":"#DIV/0!"},{"$error":"#DIV/0!"},{"$error":"#DIV/0!"},{"$error":"#DIV/0!"},{"$error":"#DIV/0!"},{"$error":"#DIV/0!"},32]
[null,null,null,null,null,null,null,null,null,null,null,null,{"$error":"#DIV/0!"},{"$error":"#DIV/0!"},{"$error":"#DIV/0!"},{"$error":"#DIV/0!"},{"$error":"#DIV/0!"},{"$error":"#DIV/0!"},{"$error":"#DIV/0!"},{"$error":"#DIV/0!"},{"$error":"#DIV/0!"},{"$error":"#DIV/0!"},33]
[null,null,null,null,null,null,null,null,null,null,null,null,{"$error":"#DIV/0!"},{"$error":"#DIV/0!"},{"$error":"#DIV/0!"},{"$error":"#DIV/0!"},{"$error":"#DIV/0!"},{"$error":"#DIV/0!"},{"$error":"#DIV/0!"},{"$error":"#DIV/0!"},{"$error":"#DIV/0!"},{"$error":"#DIV/0!"},34]
[null,null,null,null,null,null,null,null,null,null,null,null,{"$error":"#DIV/0!"},{"$error":"#DIV/0!"},{"$error":"#DIV/0!"},{"$error":"#DIV/0!"},{"$error":"#DIV/0!"},{"$error":"#DIV/0!"},{"$error":"#DIV/0!"},{"$error":"#DIV/0!"},{"$error":"#DIV/0!"},{"$error":"#DIV/0!"},35]
[null,null,null,null,null,null,null,null,null,null,null,null,{"$error":"#DIV/0!"},{"$error":"#DIV/0!"},{"$error":"#DIV/0!"},{"$error":"#DIV/0!"},{"$error":"#DIV/0!"},{"$error":"#DIV/0!"},{"$error":"#DIV/0!"},{"$error":"#DIV/0!"},{"$error":"#DIV/0!"},{"$error":"#DIV/0!"},36]
[null,null,null,null,null,null,null,null,null,null,null,null,{"$error":"#DIV/0!"},{"$error":"#DIV/0!"},{"$error":"#DIV/0!"},{"$error":"#DIV/0!"},{"$error":"#DIV/0!"},{"$error":"#DIV/0!"},{"$error":"#DIV/0!"},{"$error":"#DIV/0!"},{"$error":"#DIV/0!"},{"$error":"#DIV/0!"},37]
[null,null,null,null,null,null,null,null,null,null,null,null,{"$error":"#DIV/0!"},{"$error":"#DIV/0!"},{"$error":"#DIV/0!"},{"$error":"#DIV/0!"},{"$error":"#DIV/0!"},{"$error":"#DIV/0!"},{"$error":"#DIV/0!"},{"$error":"#DIV/0!"},{"$error":"#DIV/0!"},{"$error":"#DIV/0!"},38]
[null,null,null,null,null,null,null,null,null,null,null,null,{"$error":"#DIV/0!"},{"$error":"#DIV/0!"},{"$error":"#DIV/0!"},{"$error":"#DIV/0!"},{"$error":"#DIV/0!"},{"$error":"#DIV/0!"},{"$error":"#DIV/0!"},{"$error":"#DIV/0!"},{"$error":"#DIV/0!"},{"$error":"#DIV/0!"},39]
[null,null,null,null,null,null,null,null,null,null,null,null,{"$error":"#DIV/0!"},{"$error":"#DIV/0!"},{"$error":"#DIV/0!"},{"$error":"#DIV/0!"},{"$error":"#DIV/0!"},{"$error":"#DIV/0!"},{"$error":"#DIV/0!"},{"$error":"#DIV/0!"},{"$error":"#DIV/0!"},{"$error":"#DIV/0!"},40]
[null,null,null,null,null,null,null,null,null,null,null,null,{"$error":"#DIV/0!"},{"$error":"#DIV/0!"},{"$error":"#DIV/0!"},{"$error":"#DIV/0!"},{"$error":"#DIV/0!"},{"$error":"#DIV/0!"},{"$error":"#DIV/0!"},{"$error":"#DIV/0!"},{"$error":"#DIV/0!"},{"$error":"#DIV/0!"},41]
[null,null,null,null,null,null,null,null,null,null,null,null,{"$error":"#DIV/0!"},{"$error":"#DIV/0!"},{"$error":"#DIV/0!"},{"$error":"#DIV/0!"},{"$error":"#DIV/0!"},{"$error":"#DIV/0!"},{"$error":"#DIV/0!"},{"$error":"#DIV/0!"},{"$error":"#DIV/0!"},{"$error":"#DIV/0!"},42]
[null,null,null,null,null,null,null,null,null,null,null,null,{"$error":"#DIV/0!"},{"$error":"#DIV/0!"},{"$error":"#DIV/0!"},{"$error":"#DIV/0!"},{"$error":"#DIV/0!"},{"$error":"#DIV/0!"},{"$error":"#DIV/0!"},{"$error":"#DIV/0!"},{"$error":"#DIV/0!"},{"$error":"#DIV/0!"},43]
[null,null,null,null,null,null,null,null,null,null,null,null,{"$error":"#DIV/0!"},{"$error":"#DIV/0!"},{"$error":"#DIV/0!"},{"$error":"#DIV/0!"},{"$error":"#DIV/0!"},{"$error":"#DIV/0!"},{"$error":"#DIV/0!"},{"$error":"#DIV/0!"},{"$error":"#DIV/0!"},{"$error":"#DIV/0!"},44]
[null,null,null,null,null,null,null,null,null,null,null,null,{"$error":"#DIV/0!"},{"$error":"#DIV/0!"},{"$error":"#DIV/0!"},{"$error":"#DIV/0!"},{"$error":"#DIV/0!"},{"$error":"#DIV/0!"},{"$error":"#DIV/0!"},{"$error":"#DIV/0!"},{"$error":"#DIV/0!"},{"$error":"#DIV/0!"},45]
[null,null,null,null,null,null,null,null,null,null,null,null,{"$error":"#DIV/0!"},{"$error":"#DIV/0!"},{"$error":"#DIV/0!"},{"$error":"#DIV/0!"},{"$error":"#DIV/0!"},{"$error":"#DIV/0!"},{"$error":"#DIV/0!"},{"$error":"#DIV/0!"},{"$error":"#DIV/0!"},{"$error":"#DIV/0!"},46]
[null,null,null,null,null,null,null,null,null,null,null,null,{"$error":"#DIV/0!"},{"$error":"#DIV/0!"},{"$error":"#DIV/0!"},{"$error":"#DIV/0!"},{"$error":"#DIV/0!"},{"$error":"#DIV/0!"},{"$error":"#DIV/0!"},{"$error":"#DIV/0!"},{"$error":"#DIV/0!"},{"$error":"#DIV/0!"},47]
[null,null,null,null,null,null,null,null,null,null,null,null,{"$error":"#DIV/0!"},{"$error":"#DIV/0!"},{"$error":"#DIV/0!"},{"$error":"#DIV/0!"},{"$error":"#DIV/0!"},{"$error":"#DIV/0!"},{"$error":"#DIV/0!"},{"$error":"#DIV/0!"},{"$error":"#DIV/0!"},{"$error":"#DIV/0!"},48]
[null,null,null,null,null,null,null,null,null,null,null,null,{"$error":"#DIV/0!"},{"$error":"#DIV/0!"},{"$error":"#DIV/0!"},{"$error":"#DIV/0!"},{"$error":"#DIV/0!"},{"$error":"#DIV/0!"},{"$error":"#DIV/0!"},{"$error":"#DIV/0!"},{"$error":"#DIV/0!"},{"$error":"#DIV/0!"},49]
[null,null,null,null,null,null,null,null,null,null,null,null,{"$error":"#DIV/0!"},{"$error":"#DIV/0!"},{"$error":"#DIV/0!"},{"$error":"#DIV/0!"},{"$error":"#DIV/0!"},{"$error":"#DIV/0!"},{"$error":"#DIV/0!"},{"$error":"#DIV/0!"},{"$error":"#DIV/0!"},{"$error":"#DIV/0!"},50]
[null,null,null,null,null,null,null,null,null,null,null,null,{"$error":"#DIV/0!"},{"$error":"#DIV/0!"},{"$error":"#DIV/0!"},{"$error":"#DIV/0!"},{"$error":"#DIV/0!"},{"$error":"#DIV/0!"},{"$error":"#DIV/0!"},{"$error":"#DIV/0!"},{"$error":"#DIV/0!"},{"$error":"#DIV/0!"},51]
[null,null,null,null,null,null,null,null,null,null,null,null,{"$error":"#DIV/0!"},{"$error":"#DIV/0!"},{"$error":"#DIV/0!"},{"$error":"#DIV/0!"},{"$error":"#DIV/0!"},{"$error":"#DIV/0!"},{"$error":"#DIV/0!"},{"$error":"#DIV/0!"},{"$error":"#DIV/0!"},{"$error":"#DIV/0!"},52]
[null,null,null,null,null,null,null,null,null,null,null,null,{"$error":"#DIV/0!"},{"$error":"#DIV/0!"},{"$error":"#DIV/0!"},{"$error":"#DIV/0!"},{"$error":"#DIV/0!"},{"$error":"#DIV/0!"},{"$error":"#DIV/0!"},{"$error":"#DIV/0!"},{"$error":"#DIV/0!"},{"$error":"#DIV/0!"},53]
[null,null,null,null,null,null,null,null,null,null,null,null,{"$error":"#DIV/0!"},{"$error":"#DIV/0!"},{"$error":"#DIV/0!"},{"$error":"#DIV/0!"},{"$error":"#DIV/0!"},{"$error":"#DIV/0!"},{"$error":"#DIV/0!"},{"$error":"#DIV/0!"},{"$error":"#DIV/0!"},{"$error":"#DIV/0!"},54]
[null,null,null,null,null,null,null,null,null,null,null,null,{"$error":"#DIV/0!"},{"$error":"#DIV/0!"},{"$error":"#DIV/0!"},{"$error":"#DIV/0!"},{"$error":"#DIV/0!"},{"$error":"#DIV/0!"},{"$error":"#DIV/0!"},{"$error":"#DIV/0!"},{"$error":"#DIV/0!"},{"$error":"#DIV/0!"},55]
[null,null,null,null,null,null,null,null,null,null,null,null,{"$error":"#DIV/0!"},{"$error":"#DIV/0!"},{"$error":"#DIV/0!"},{"$error":"#DIV/0!"},{"$error":"#DIV/0!"},{"$error":"#DIV/0!"},{"$error":"#DIV/0!"},{"$error":"#DIV/0!"},{"$error":"#DIV/0!"},{"$error":"#DIV/0!"},56]
[null,null,null,null,null,null,null,null,null,null,null,null,{"$error":"#DIV/0!"},{"$error":"#DIV/0!"},{"$error":"#DIV/0!"},{"$error":"#DIV/0!"},{"$error":"#DIV/0!"},{"$error":"#DIV/0!"},{"$error":"#DIV/0!"},{"$error":"#DIV/0!"},{"$error":"#DIV/0!"},{"$error":"#DIV/0!"},57]
[null,null,null,null,null,null,null,null,null,null,null,null,{"$error":"#DIV/0!"},{"$error":"#DIV/0!"},{"$error":"#DIV/0!"},{"$error":"#DIV/0!"},{"$error":"#DIV/0!"},{"$error":"#DIV/0!"},{"$error":"#DIV/0!"},{"$error":"#DIV/0!"},{"$error":"#DIV/0!"},{"$error":"#DIV/0!"},58]
[null,null,null,null,null,null,null,null,null,null,null,null,{"$error":"#DIV/0!"},{"$error":"#DIV/0!"},{"$error":"#DIV/0!"},{"$error":"#DIV/0!"},{"$error":"#DIV/0!"},{"$error":"#DIV/0!"},{"$error":"#DIV/0!"},{"$error":"#DIV/0!"},{"$error":"#DIV/0!"},{"$error":"#DIV/0!"},59]
[null,null,null,null,null,null,null,null,null,null,null,null,{"$error":"#DIV/0!"},{"$error":"#DIV/0!"},{"$error":"#DIV/0!"},{"$error":"#DIV/0!"},{"$error":"#DIV/0!"},{"$error":"#DIV/0!"},{"$error":"#DIV/0!"},{"$error":"#DIV/0!"},{"$error":"#DIV/0!"},{"$error":"#DIV/0!"},60]
[null,null,null,null,null,null,null,null,null,null,null,null,{"$error":"#DIV/0!"},{"$error":"#DIV/0!"},{"$error":"#DIV/0!"},{"$error":"#DIV/0!"},{"$error":"#DIV/0!"},{"$error":"#DIV/0!"},{"$error":"#DIV/0!"},{"$error":"#DIV/0!"},{"$error":"#DIV/0!"},{"$error":"#DIV/0!"},61]
[null,null,null,null,null,null,null,null,null,null,null,null,{"$error":"#DIV/0!"},{"$error":"#DIV/0!"},{"$error":"#DIV/0!"},{"$error":"#DIV/0!"},{"$error":"#DIV/0!"},{"$error":"#DIV/0!"},{"$error":"#DIV/0!"},{"$error":"#DIV/0!"},{"$error":"#DIV/0!"},{"$error":"#DIV/0!"},62]
[null,null,null,null,null,null,null,null,null,null,null,null,{"$error":"#DIV/0!"},{"$error":"#DIV/0!"},{"$error":"#DIV/0!"},{"$error":"#DIV/0!"},{"$error":"#DIV/0!"},{"$error":"#DIV/0!"},{"$error":"#DIV/0!"},{"$error":"#DIV/0!"},{"$error":"#DIV/0!"},{"$error":"#DIV/0!"},63]
[null,null,null,null,null,null,null,null,null,null,null,null,{"$error":"#DIV/0!"},{"$error":"#DIV/0!"},{"$error":"#DIV/0!"},{"$error":"#DIV/0!"},{"$error":"#DIV/0!"},{"$error":"#DIV/0!"},{"$error":"#DIV/0!"},{"$error":"#DIV/0!"},{"$error":"#DIV/0!"},{"$error":"#DIV/0!"},64]
[null,null,null,null,null,null,null,null,null,null,null,null,{"$f":"MOD((ROW()-ROW(M$116)),M$112)+1","v":{"$error":"#DIV/0!"}},{"$f":"MOD(INT((ROW()-ROW(N$116))/M$112),Q$112)+1","v":{"$error":"#DIV/0!"}},{"$f":"MOD(INT(INT((ROW()-ROW(O$116))/M$112)/Q$112),U$112)+1","v":{"$error":"#DIV/0!"}},{"$f":"INDEX(collectionSystemsBMPs,M180)","v":{"$error":"#DIV/0!"}},{"$f":"HLOOKUP(P180,collectionSystemsBMPScores,7,FALSE)","v":{"$error":"#DIV/0!"}},{"$f":"INDEX(trdBMPs,N180)","v":{"$error":"#DIV/0!"}},{"$f":"HLOOKUP(R180,trdBMPScores,7,FALSE)","v":{"$error":"#DIV/0!"}},{"$f":"INDEX(storageBMPs,O180)","v":{"$error":"#DIV/0!"}},{"$f":"HLOOKUP(T180,storageBMPScores,7,FALSE)","v":{"$error":"#DIV/0!"}},{"$f":"SUM(IF(HLOOKUP(T180,storageBMPScores,8,FALSE),HLOOKUP(P180,collectionSystemsBMPScores,10,FALSE)*Q180,Q180)+S180+U180)","v":{"$error":"#DIV/0!"}},65]
[null,null,null,null,null,null,null,null,null,null,null,null,{"$error":"#DIV/0!"},{"$error":"#DIV/0!"},{"$error":"#DIV/0!"},{"$error":"#DIV/0!"},{"$error":"#DIV/0!"},{"$error":"#DIV/0!"},{"$error":"#DIV/0!"},{"$error":"#DIV/0!"},{"$error":"#DIV/0!"},{"$error":"#DIV/0!"},66]
[null,null,null,null,null,null,null,null,null,null,null,null,{"$error":"#DIV/0!"},{"$error":"#DIV/0!"},{"$error":"#DIV/0!"},{"$error":"#DIV/0!"},{"$error":"#DIV/0!"},{"$error":"#DIV/0!"},{"$error":"#DIV/0!"},{"$error":"#DIV/0!"},{"$error":"#DIV/0!"},{"$error":"#DIV/0!"},67]
[null,null,null,null,null,null,null,null,null,null,null,null,{"$error":"#DIV/0!"},{"$error":"#DIV/0!"},{"$error":"#DIV/0!"},{"$error":"#DIV/0!"},{"$error":"#DIV/0!"},{"$error":"#DIV/0!"},{"$error":"#DIV/0!"},{"$error":"#DIV/0!"},{"$error":"#DIV/0!"},{"$error":"#DIV/0!"},68]
[null,null,null,null,null,null,null,null,null,null,null,null,{"$error":"#DIV/0!"},{"$error":"#DIV/0!"},{"$error":"#DIV/0!"},{"$error":"#DIV/0!"},{"$error":"#DIV/0!"},{"$error":"#DIV/0!"},{"$error":"#DIV/0!"},{"$error":"#DIV/0!"},{"$error":"#DIV/0!"},{"$error":"#DIV/0!"},69]
[null,null,null,null,null,null,null,null,null,null,null,null,{"$error":"#DIV/0!"},{"$error":"#DIV/0!"},{"$error":"#DIV/0!"},{"$error":"#DIV/0!"},{"$error":"#DIV/0!"},{"$error":"#DIV/0!"},{"$error":"#DIV/0!"},{"$error":"#DIV/0!"},{"$error":"#DIV/0!"},{"$error":"#DIV/0!"},70]
[null,null,null,null,null,null,null,null,null,null,null,null,{"$error":"#DIV/0!"},{"$error":"#DIV/0!"},{"$error":"#DIV/0!"},{"$error":"#DIV/0!"},{"$error":"#DIV/0!"},{"$error":"#DIV/0!"},{"$error":"#DIV/0!"},{"$error":"#DIV/0!"},{"$error":"#DIV/0!"},{"$error":"#DIV/0!"},71]
[null,null,null,null,null,null,null,null,null,null,null,null,{"$error":"#DIV/0!"},{"$error":"#DIV/0!"},{"$error":"#DIV/0!"},{"$error":"#DIV/0!"},{"$error":"#DIV/0!"},{"$error":"#DIV/0!"},{"$error":"#DIV/0!"},{"$error":"#DIV/0!"},{"$error":"#DIV/0!"},{"$error":"#DIV/0!"},72]
[null,null,null,null,null,null,null,null,null,null,null,null,{"$error":"#DIV/0!"},{"$error":"#DIV/0!"},{"$error":"#DIV/0!"},{"$error":"#DIV/0!"},{"$error":"#DIV/0!"},{"$error":"#DIV/0!"},{"$error":"#DIV/0!"},{"$error":"#DIV/0!"},{"$error":"#DIV/0!"},{"$error":"#DIV/0!"},73]
[null,null,null,null,null,null,null,null,null,null,null,null,{"$error":"#DIV/0!"},{"$error":"#DIV/0!"},{"$error":"#DIV/0!"},{"$error":"#DIV/0!"},{"$error":"#DIV/0!"},{"$error":"#DIV/0!"},{"$error":"#DIV/0!"},{"$error":"#DIV/0!"},{"$error":"#DIV/0!"},{"$error":"#DIV/0!"},74]
[null,null,null,null,null,null,null,null,null,null,null,null,{"$error":"#DIV/0!"},{"$error":"#DIV/0!"},{"$error":"#DIV/0!"},{"$error":"#DIV/0!"},{"$error":"#DIV/0!"},{"$error":"#DIV/0!"},{"$error":"#DIV/0!"},{"$error":"#DIV/0!"},{"$error":"#DIV/0!"},{"$error":"#DIV/0!"},75]
[null,null,null,null,null,null,null,null,null,null,null,null,{"$error":"#DIV/0!"},{"$error":"#DIV/0!"},{"$error":"#DIV/0!"},{"$error":"#DIV/0!"},{"$error":"#DIV/0!"},{"$error":"#DIV/0!"},{"$error":"#DIV/0!"},{"$error":"#DIV/0!"},{"$error":"#DIV/0!"},{"$error":"#DIV/0!"},76]
[null,null,null,null,null,null,null,null,null,null,null,null,{"$error":"#DIV/0!"},{"$error":"#DIV/0!"},{"$error":"#DIV/0!"},{"$error":"#DIV/0!"},{"$error":"#DIV/0!"},{"$error":"#DIV/0!"},{"$error":"#DIV/0!"},{"$error":"#DIV/0!"},{"$error":"#DIV/0!"},{"$error":"#DIV/0!"},77]
[null,null,null,null,null,null,null,null,null,null,null,null,{"$error":"#DIV/0!"},{"$error":"#DIV/0!"},{"$error":"#DIV/0!"},{"$error":"#DIV/0!"},{"$error":"#DIV/0!"},{"$error":"#DIV/0!"},{"$error":"#DIV/0!"},{"$error":"#DIV/0!"},{"$error":"#DIV/0!"},{"$error":"#DIV/0!"},78]
[null,null,null,null,null,null,null,null,null,null,null,null,{"$error":"#DIV/0!"},{"$error":"#DIV/0!"},{"$error":"#DIV/0!"},{"$error":"#DIV/0!"},{"$error":"#DIV/0!"},{"$error":"#DIV/0!"},{"$error":"#DIV/0!"},{"$error":"#DIV/0!"},{"$error":"#DIV/0!"},{"$error":"#DIV/0!"},79]
[null,null,null,null,null,null,null,null,null,null,null,null,{"$error":"#DIV/0!"},{"$error":"#DIV/0!"},{"$error":"#DIV/0!"},{"$error":"#DIV/0!"},{"$error":"#DIV/0!"},{"$error":"#DIV/0!"},{"$error":"#DIV/0!"},{"$error":"#DIV/0!"},{"$error":"#DIV/0!"},{"$error":"#DIV/0!"},80]
[null,null,null,null,null,null,null,null,null,null,null,null,{"$error":"#DIV/0!"},{"$error":"#DIV/0!"},{"$error":"#DIV/0!"},{"$error":"#DIV/0!"},{"$error":"#DIV/0!"},{"$error":"#DIV/0!"},{"$error":"#DIV/0!"},{"$error":"#DIV/0!"},{"$error":"#DIV/0!"},{"$error":"#DIV/0!"},81]
[null,null,null,null,null,null,null,null,null,null,null,null,{"$error":"#DIV/0!"},{"$error":"#DIV/0!"},{"$error":"#DIV/0!"},{"$error":"#DIV/0!"},{"$error":"#DIV/0!"},{"$error":"#DIV/0!"},{"$error":"#DIV/0!"},{"$error":"#DIV/0!"},{"$error":"#DIV/0!"},{"$error":"#DIV/0!"},82]
[null,null,null,null,null,null,null,null,null,null,null,null,{"$error":"#DIV/0!"},{"$error":"#DIV/0!"},{"$error":"#DIV/0!"},{"$error":"#DIV/0!"},{"$error":"#DIV/0!"},{"$error":"#DIV/0!"},{"$error":"#DIV/0!"},{"$error":"#DIV/0!"},{"$error":"#DIV/0!"},{"$error":"#DIV/0!"},83]
[null,null,null,null,null,null,null,null,null,null,null,null,{"$error":"#DIV/0!"},{"$error":"#DIV/0!"},{"$error":"#DIV/0!"},{"$error":"#DIV/0!"},{"$error":"#DIV/0!"},{"$error":"#DIV/0!"},{"$error":"#DIV/0!"},{"$error":"#DIV/0!"},{"$error":"#DIV/0!"},{"$error":"#DIV/0!"},84]
[null,null,null,null,null,null,null,null,null,null,null,null,{"$error":"#DIV/0!"},{"$error":"#DIV/0!"},{"$error":"#DIV/0!"},{"$error":"#DIV/0!"},{"$error":"#DIV/0!"},{"$error":"#DIV/0!"},{"$error":"#DIV/0!"},{"$error":"#DIV/0!"},{"$error":"#DIV/0!"},{"$error":"#DIV/0!"},85]
[null,null,null,null,null,null,null,null,null,null,null,null,{"$error":"#DIV/0!"},{"$error":"#DIV/0!"},{"$error":"#DIV/0!"},{"$error":"#DIV/0!"},{"$error":"#DIV/0!"},{"$error":"#DIV/0!"},{"$error":"#DIV/0!"},{"$error":"#DIV/0!"},{"$error":"#DIV/0!"},{"$error":"#DIV/0!"},86]
[null,null,null,null,null,null,null,null,null,null,null,null,{"$error":"#DIV/0!"},{"$error":"#DIV/0!"},{"$error":"#DIV/0!"},{"$error":"#DIV/0!"},{"$error":"#DIV/0!"},{"$error":"#DIV/0!"},{"$error":"#DIV/0!"},{"$error":"#DIV/0!"},{"$error":"#DIV/0!"},{"$error":"#DIV/0!"},87]
[null,null,null,null,null,null,null,null,null,null,null,null,{"$error":"#DIV/0!"},{"$error":"#DIV/0!"},{"$error":"#DIV/0!"},{"$error":"#DIV/0!"},{"$error":"#DIV/0!"},{"$error":"#DIV/0!"},{"$error":"#DIV/0!"},{"$error":"#DIV/0!"},{"$error":"#DIV/0!"},{"$error":"#DIV/0!"},88]
[null,null,null,null,null,null,null,null,null,null,null,null,{"$error":"#DIV/0!"},{"$error":"#DIV/0!"},{"$error":"#DIV/0!"},{"$error":"#DIV/0!"},{"$error":"#DIV/0!"},{"$error":"#DIV/0!"},{"$error":"#DIV/0!"},{"$error":"#DIV/0!"},{"$error":"#DIV/0!"},{"$error":"#DIV/0!"},89]
[null,null,null,null,null,null,null,null,null,null,null,null,{"$error":"#DIV/0!"},{"$error":"#DIV/0!"},{"$error":"#DIV/0!"},{"$error":"#DIV/0!"},{"$error":"#DIV/0!"},{"$error":"#DIV/0!"},{"$error":"#DIV/0!"},{"$error":"#DIV/0!"},{"$error":"#DIV/0!"},{"$error":"#DIV/0!"},90]
[null,null,null,null,null,null,null,null,null,null,null,null,{"$error":"#DIV/0!"},{"$error":"#DIV/0!"},{"$error":"#DIV/0!"},{"$error":"#DIV/0!"},{"$error":"#DIV/0!"},{"$error":"#DIV/0!"},{"$error":"#DIV/0!"},{"$error":"#DIV/0!"},{"$error":"#DIV/0!"},{"$error":"#DIV/0!"},91]
[null,null,null,null,null,null,null,null,null,null,null,null,{"$error":"#DIV/0!"},{"$error":"#DIV/0!"},{"$error":"#DIV/0!"},{"$error":"#DIV/0!"},{"$error":"#DIV/0!"},{"$error":"#DIV/0!"},{"$error":"#DIV/0!"},{"$error":"#DIV/0!"},{"$error":"#DIV/0!"},{"$error":"#DIV/0!"},92]
[null,null,null,null,null,null,null,null,null,null,null,null,{"$error":"#DIV/0!"},{"$error":"#DIV/0!"},{"$error":"#DIV/0!"},{"$error":"#DIV/0!"},{"$error":"#DIV/0!"},{"$error":"#DIV/0!"},{"$error":"#DIV/0!"},{"$error":"#DIV/0!"},{"$error":"#DIV/0!"},{"$error":"#DIV/0!"},93]
[null,null,null,null,null,null,null,null,null,null,null,null,{"$error":"#DIV/0!"},{"$error":"#DIV/0!"},{"$error":"#DIV/0!"},{"$error":"#DIV/0!"},{"$error":"#DIV/0!"},{"$error":"#DIV/0!"},{"$error":"#DIV/0!"},{"$error":"#DIV/0!"},{"$error":"#DIV/0!"},{"$error":"#DIV/0!"},94]
[null,null,null,null,null,null,null,null,null,null,null,null,{"$error":"#DIV/0!"},{"$error":"#DIV/0!"},{"$error":"#DIV/0!"},{"$error":"#DIV/0!"},{"$error":"#DIV/0!"},{"$error":"#DIV/0!"},{"$error":"#DIV/0!"},{"$error":"#DIV/0!"},{"$error":"#DIV/0!"},{"$error":"#DIV/0!"},95]
[null,null,null,null,null,null,null,null,null,null,null,null,{"$error":"#DIV/0!"},{"$error":"#DIV/0!"},{"$error":"#DIV/0!"},{"$error":"#DIV/0!"},{"$error":"#DIV/0!"},{"$error":"#DIV/0!"},{"$error":"#DIV/0!"},{"$error":"#DIV/0!"},{"$error":"#DIV/0!"},{"$error":"#DIV/0!"},96]
[null,null,null,null,null,null,null,null,null,null,null,null,{"$error":"#DIV/0!"},{"$error":"#DIV/0!"},{"$error":"#DIV/0!"},{"$error":"#DIV/0!"},{"$error":"#DIV/0!"},{"$error":"#DIV/0!"},{"$error":"#DIV/0!"},{"$error":"#DIV/0!"},{"$error":"#DIV/0!"},{"$error":"#DIV/0!"},97]
[null,null,null,null,null,null,null,null,null,null,null,null,{"$error":"#DIV/0!"},{"$error":"#DIV/0!"},{"$error":"#DIV/0!"},{"$error":"#DIV/0!"},{"$error":"#DIV/0!"},{"$error":"#DIV/0!"},{"$error":"#DIV/0!"},{"$error":"#DIV/0!"},{"$error":"#DIV/0!"},{"$error":"#DIV/0!"},98]
[null,null,null,null,null,null,null,null,null,null,null,null,{"$error":"#DIV/0!"},{"$error":"#DIV/0!"},{"$error":"#DIV/0!"},{"$error":"#DIV/0!"},{"$error":"#DIV/0!"},{"$error":"#DIV/0!"},{"$error":"#DIV/0!"},{"$error":"#DIV/0!"},{"$error":"#DIV/0!"},{"$error":"#DIV/0!"},99]
[null,null,null,null,null,null,null,null,null,null,null,null,{"$error":"#DIV/0!"},{"$error":"#DIV/0!"},{"$error":"#DIV/0!"},{"$error":"#DIV/0!"},{"$error":"#DIV/0!"},{"$error":"#DIV/0!"},{"$error":"#DIV/0!"},{"$error":"#DIV/0!"},{"$error":"#DIV/0!"},{"$error":"#DIV/0!"},100]
[null,null,null,null,null,null,null,null,null,null,null,null,{"$error":"#DIV/0!"},{"$error":"#DIV/0!"},{"$error":"#DIV/0!"},{"$error":"#DIV/0!"},{"$error":"#DIV/0!"},{"$error":"#DIV/0!"},{"$error":"#DIV/0!"},{"$error":"#DIV/0!"},{"$error":"#DIV/0!"},{"$error":"#DIV/0!"},101]
[null,null,null,null,null,null,null,null,null,null,null,null,{"$error":"#DIV/0!"},{"$error":"#DIV/0!"},{"$error":"#DIV/0!"},{"$error":"#DIV/0!"},{"$error":"#DIV/0!"},{"$error":"#DIV/0!"},{"$error":"#DIV/0!"},{"$error":"#DIV/0!"},{"$error":"#DIV/0!"},{"$error":"#DIV/0!"},102]
[null,null,null,null,null,null,null,null,null,null,null,null,{"$error":"#DIV/0!"},{"$error":"#DIV/0!"},{"$error":"#DIV/0!"},{"$error":"#DIV/0!"},{"$error":"#DIV/0!"},{"$error":"#DIV/0!"},{"$error":"#DIV/0!"},{"$error":"#DIV/0!"},{"$error":"#DIV/0!"},{"$error":"#DIV/0!"},103]
[null,null,null,null,null,null,null,null,null,null,null,null,{"$error":"#DIV/0!"},{"$error":"#DIV/0!"},{"$error":"#DIV/0!"},{"$error":"#DIV/0!"},{"$error":"#DIV/0!"},{"$error":"#DIV/0!"},{"$error":"#DIV/0!"},{"$error":"#DIV/0!"},{"$error":"#DIV/0!"},{"$error":"#DIV/0!"},104]
[null,null,null,null,null,null,null,null,null,null,null,null,{"$error":"#DIV/0!"},{"$error":"#DIV/0!"},{"$error":"#DIV/0!"},{"$error":"#DIV/0!"},{"$error":"#DIV/0!"},{"$error":"#DIV/0!"},{"$error":"#DIV/0!"},{"$error":"#DIV/0!"},{"$error":"#DIV/0!"},{"$error":"#DIV/0!"},105]
[null,null,null,null,null,null,null,null,null,null,null,null,{"$error":"#DIV/0!"},{"$error":"#DIV/0!"},{"$error":"#DIV/0!"},{"$error":"#DIV/0!"},{"$error":"#DIV/0!"},{"$error":"#DIV/0!"},{"$error":"#DIV/0!"},{"$error":"#DIV/0!"},{"$error":"#DIV/0!"},{"$error":"#DIV/0!"},106]
[null,null,null,null,null,null,null,null,null,null,null,null,{"$error":"#DIV/0!"},{"$error":"#DIV/0!"},{"$error":"#DIV/0!"},{"$error":"#DIV/0!"},{"$error":"#DIV/0!"},{"$error":"#DIV/0!"},{"$error":"#DIV/0!"},{"$error":"#DIV/0!"},{"$error":"#DIV/0!"},{"$error":"#DIV/0!"},107]
[null,null,null,null,null,null,null,null,null,null,null,null,{"$error":"#DIV/0!"},{"$error":"#DIV/0!"},{"$error":"#DIV/0!"},{"$error":"#DIV/0!"},{"$error":"#DIV/0!"},{"$error":"#DIV/0!"},{"$error":"#DIV/0!"},{"$error":"#DIV/0!"},{"$error":"#DIV/0!"},{"$error":"#DIV/0!"},108]
[null,null,null,null,null,null,null,null,null,null,null,null,{"$error":"#DIV/0!"},{"$error":"#DIV/0!"},{"$error":"#DIV/0!"},{"$error":"#DIV/0!"},{"$error":"#DIV/0!"},{"$error":"#DIV/0!"},{"$error":"#DIV/0!"},{"$error":"#DIV/0!"},{"$error":"#DIV/0!"},{"$error":"#DIV/0!"},109]
[null,null,null,null,null,null,null,null,null,null,null,null,{"$error":"#DIV/0!"},{"$error":"#DIV/0!"},{"$error":"#DIV/0!"},{"$error":"#DIV/0!"},{"$error":"#DIV/0!"},{"$error":"#DIV/0!"},{"$error":"#DIV/0!"},{"$error":"#DIV/0!"},{"$error":"#DIV/0!"},{"$error":"#DIV/0!"},110]
[null,null,null,null,null,null,null,null,null,null,null,null,{"$error":"#DIV/0!"},{"$error":"#DIV/0!"},{"$error":"#DIV/0!"},{"$error":"#DIV/0!"},{"$error":"#DIV/0!"},{"$error":"#DIV/0!"},{"$error":"#DIV/0!"},{"$error":"#DIV/0!"},{"$error":"#DIV/0!"},{"$error":"#DIV/0!"},111]
[null,null,null,null,null,null,null,null,null,null,null,null,{"$error":"#DIV/0!"},{"$error":"#DIV/0!"},{"$error":"#DIV/0!"},{"$error":"#DIV/0!"},{"$error":"#DIV/0!"},{"$error":"#DIV/0!"},{"$error":"#DIV/0!"},{"$error":"#DIV/0!"},{"$error":"#DIV/0!"},{"$error":"#DIV/0!"},112]
[null,null,null,null,null,null,null,null,null,null,null,null,{"$error":"#DIV/0!"},{"$error":"#DIV/0!"},{"$error":"#DIV/0!"},{"$error":"#DIV/0!"},{"$error":"#DIV/0!"},{"$error":"#DIV/0!"},{"$error":"#DIV/0!"},{"$error":"#DIV/0!"},{"$error":"#DIV/0!"},{"$error":"#DIV/0!"},113]
[null,null,null,null,null,null,null,null,null,null,null,null,{"$error":"#DIV/0!"},{"$error":"#DIV/0!"},{"$error":"#DIV/0!"},{"$error":"#DIV/0!"},{"$error":"#DIV/0!"},{"$error":"#DIV/0!"},{"$error":"#DIV/0!"},{"$error":"#DIV/0!"},{"$error":"#DIV/0!"},{"$error":"#DIV/0!"},114]
[null,null,null,null,null,null,null,null,null,null,null,null,{"$error":"#DIV/0!"},{"$error":"#DIV/0!"},{"$error":"#DIV/0!"},{"$error":"#DIV/0!"},{"$error":"#DIV/0!"},{"$error":"#DIV/0!"},{"$error":"#DIV/0!"},{"$error":"#DIV/0!"},{"$error":"#DIV/0!"},{"$error":"#DIV/0!"},115]
[null,null,null,null,null,null,null,null,null,null,null,null,{"$error":"#DIV/0!"},{"$error":"#DIV/0!"},{"$error":"#DIV/0!"},{"$error":"#DIV/0!"},{"$error":"#DIV/0!"},{"$error":"#DIV/0!"},{"$error":"#DIV/0!"},{"$error":"#DIV/0!"},{"$error":"#DIV/0!"},{"$error":"#DIV/0!"},116]
[null,null,null,null,null,null,null,null,null,null,null,null,{"$error":"#DIV/0!"},{"$error":"#DIV/0!"},{"$error":"#DIV/0!"},{"$error":"#DIV/0!"},{"$error":"#DIV/0!"},{"$error":"#DIV/0!"},{"$error":"#DIV/0!"},{"$error":"#DIV/0!"},{"$error":"#DIV/0!"},{"$error":"#DIV/0!"},117]
[null,null,null,null,null,null,null,null,null,null,null,null,{"$error":"#DIV/0!"},{"$error":"#DIV/0!"},{"$error":"#DIV/0!"},{"$error":"#DIV/0!"},{"$error":"#DIV/0!"},{"$error":"#DIV/0!"},{"$error":"#DIV/0!"},{"$error":"#DIV/0!"},{"$error":"#DIV/0!"},{"$error":"#DIV/0!"},118]
[null,null,null,null,null,null,null,null,null,null,null,null,{"$error":"#DIV/0!"},{"$error":"#DIV/0!"},{"$error":"#DIV/0!"},{"$error":"#DIV/0!"},{"$error":"#DIV/0!"},{"$error":"#DIV/0!"},{"$error":"#DIV/0!"},{"$error":"#DIV/0!"},{"$error":"#DIV/0!"},{"$error":"#DIV/0!"},119]
[null,null,null,null,null,null,null,null,null,null,null,null,{"$error":"#DIV/0!"},{"$error":"#DIV/0!"},{"$error":"#DIV/0!"},{"$error":"#DIV/0!"},{"$error":"#DIV/0!"},{"$error":"#DIV/0!"},{"$error":"#DIV/0!"},{"$error":"#DIV/0!"},{"$error":"#DIV/0!"},{"$error":"#DIV/0!"},120]
[null,null,null,null,null,null,null,null,null,null,null,null,{"$error":"#DIV/0!"},{"$error":"#DIV/0!"},{"$error":"#DIV/0!"},{"$error":"#DIV/0!"},{"$error":"#DIV/0!"},{"$error":"#DIV/0!"},{"$error":"#DIV/0!"},{"$error":"#DIV/0!"},{"$error":"#DIV/0!"},{"$error":"#DIV/0!"},121]
[null,null,null,null,null,null,null,null,null,null,null,null,{"$error":"#DIV/0!"},{"$error":"#DIV/0!"},{"$error":"#DIV/0!"},{"$error":"#DIV/0!"},{"$error":"#DIV/0!"},{"$error":"#DIV/0!"},{"$error":"#DIV/0!"},{"$error":"#DIV/0!"},{"$error":"#DIV/0!"},{"$error":"#DIV/0!"},122]
[null,null,null,null,null,null,null,null,null,null,null,null,{"$error":"#DIV/0!"},{"$error":"#DIV/0!"},{"$error":"#DIV/0!"},{"$error":"#DIV/0!"},{"$error":"#DIV/0!"},{"$error":"#DIV/0!"},{"$error":"#DIV/0!"},{"$error":"#DIV/0!"},{"$error":"#DIV/0!"},{"$error":"#DIV/0!"},123]
[null,null,null,null,null,null,null,null,null,null,null,null,{"$error":"#DIV/0!"},{"$error":"#DIV/0!"},{"$error":"#DIV/0!"},{"$error":"#DIV/0!"},{"$error":"#DIV/0!"},{"$error":"#DIV/0!"},{"$error":"#DIV/0!"},{"$error":"#DIV/0!"},{"$error":"#DIV/0!"},{"$error":"#DIV/0!"},124]
[null,null,null,null,null,null,null,null,null,null,null,null,{"$error":"#DIV/0!"},{"$error":"#DIV/0!"},{"$error":"#DIV/0!"},{"$error":"#DIV/0!"},{"$error":"#DIV/0!"},{"$error":"#DIV/0!"},{"$error":"#DIV/0!"},{"$error":"#DIV/0!"},{"$error":"#DIV/0!"},{"$error":"#DIV/0!"},125]
[null,null,null,null,null,null,null,null,null,null,null,null,{"$error":"#DIV/0!"},{"$error":"#DIV/0!"},{"$error":"#DIV/0!"},{"$error":"#DIV/0!"},{"$error":"#DIV/0!"},{"$error":"#DIV/0!"},{"$error":"#DIV/0!"},{"$error":"#DIV/0!"},{"$error":"#DIV/0!"},{"$error":"#DIV/0!"},126]
[null,null,null,null,null,null,null,null,null,null,null,null,{"$error":"#DIV/0!"},{"$error":"#DIV/0!"},{"$error":"#DIV/0!"},{"$error":"#DIV/0!"},{"$error":"#DIV/0!"},{"$error":"#DIV/0!"},{"$error":"#DIV/0!"},{"$error":"#DIV/0!"},{"$error":"#DIV/0!"},{"$error":"#DIV/0!"},127]
[null,null,null,null,null,null,null,null,null,null,null,null,{"$error":"#DIV/0!"},{"$error":"#DIV/0!"},{"$error":"#DIV/0!"},{"$error":"#DIV/0!"},{"$error":"#DIV/0!"},{"$error":"#DIV/0!"},{"$error":"#DIV/0!"},{"$error":"#DIV/0!"},{"$error":"#DIV/0!"},{"$error":"#DIV/0!"},128]
[null,null,null,null,null,null,null,null,null,null,null,null,{"$f":"MOD((ROW()-ROW(M$116)),M$112)+1","v":{"$error":"#DIV/0!"}},{"$f":"MOD(INT((ROW()-ROW(N$116))/M$112),Q$112)+1","v":{"$error":"#DIV/0!"}},{"$f":"MOD(INT(INT((ROW()-ROW(O$116))/M$112)/Q$112),U$112)+1","v":{"$error":"#DIV/0!"}},{"$f":"INDEX(collectionSystemsBMPs,M244)","v":{"$error":"#DIV/0!"}},{"$f":"HLOOKUP(P244,collectionSystemsBMPScores,7,FALSE)","v":{"$error":"#DIV/0!"}},{"$f":"INDEX(trdBMPs,N244)","v":{"$error":"#DIV/0!"}},{"$f":"HLOOKUP(R244,trdBMPScores,7,FALSE)","v":{"$error":"#DIV/0!"}},{"$f":"INDEX(storageBMPs,O244)","v":{"$error":"#DIV/0!"}},{"$f":"HLOOKUP(T244,storageBMPScores,7,FALSE)","v":{"$error":"#DIV/0!"}},{"$f":"SUM(IF(HLOOKUP(T244,storageBMPScores,8,FALSE),HLOOKUP(P244,collectionSystemsBMPScores,10,FALSE)*Q244,Q244)+S244+U244)","v":{"$error":"#DIV/0!"}},129]
[null,null,null,null,null,null,null,null,null,null,null,null,{"$error":"#DIV/0!"},{"$error":"#DIV/0!"},{"$error":"#DIV/0!"},{"$error":"#DIV/0!"},{"$error":"#DIV/0!"},{"$error":"#DIV/0!"},{"$error":"#DIV/0!"},{"$error":"#DIV/0!"},{"$error":"#DIV/0!"},{"$error":"#DIV/0!"},130]
[null,null,null,null,null,null,null,null,null,null,null,null,{"$error":"#DIV/0!"},{"$error":"#DIV/0!"},{"$error":"#DIV/0!"},{"$error":"#DIV/0!"},{"$error":"#DIV/0!"},{"$error":"#DIV/0!"},{"$error":"#DIV/0!"},{"$error":"#DIV/0!"},{"$error":"#DIV/0!"},{"$error":"#DIV/0!"},131]
[null,null,null,null,null,null,null,null,null,null,null,null,{"$error":"#DIV/0!"},{"$error":"#DIV/0!"},{"$error":"#DIV/0!"},{"$error":"#DIV/0!"},{"$error":"#DIV/0!"},{"$error":"#DIV/0!"},{"$error":"#DIV/0!"},{"$error":"#DIV/0!"},{"$error":"#DIV/0!"},{"$error":"#DIV/0!"},132]
[null,null,null,null,null,null,null,null,null,null,null,null,{"$error":"#DIV/0!"},{"$error":"#DIV/0!"},{"$error":"#DIV/0!"},{"$error":"#DIV/0!"},{"$error":"#DIV/0!"},{"$error":"#DIV/0!"},{"$error":"#DIV/0!"},{"$error":"#DIV/0!"},{"$error":"#DIV/0!"},{"$error":"#DIV/0!"},133]
[null,null,null,null,null,null,null,null,null,null,null,null,{"$error":"#DIV/0!"},{"$error":"#DIV/0!"},{"$error":"#DIV/0!"},{"$error":"#DIV/0!"},{"$error":"#DIV/0!"},{"$error":"#DIV/0!"},{"$error":"#DIV/0!"},{"$error":"#DIV/0!"},{"$error":"#DIV/0!"},{"$error":"#DIV/0!"},134]
[null,null,null,null,null,null,null,null,null,null,null,null,{"$error":"#DIV/0!"},{"$error":"#DIV/0!"},{"$error":"#DIV/0!"},{"$error":"#DIV/0!"},{"$error":"#DIV/0!"},{"$error":"#DIV/0!"},{"$error":"#DIV/0!"},{"$error":"#DIV/0!"},{"$error":"#DIV/0!"},{"$error":"#DIV/0!"},135]
[null,null,null,null,null,null,null,null,null,null,null,null,{"$error":"#DIV/0!"},{"$error":"#DIV/0!"},{"$error":"#DIV/0!"},{"$error":"#DIV/0!"},{"$error":"#DIV/0!"},{"$error":"#DIV/0!"},{"$error":"#DIV/0!"},{"$error":"#DIV/0!"},{"$error":"#DIV/0!"},{"$error":"#DIV/0!"},136]
[null,null,null,null,null,null,null,null,null,null,null,null,{"$error":"#DIV/0!"},{"$error":"#DIV/0!"},{"$error":"#DIV/0!"},{"$error":"#DIV/0!"},{"$error":"#DIV/0!"},{"$error":"#DIV/0!"},{"$error":"#DIV/0!"},{"$error":"#DIV/0!"},{"$error":"#DIV/0!"},{"$error":"#DIV/0!"},137]
[null,null,null,null,null,null,null,null,null,null,null,null,{"$error":"#DIV/0!"},{"$error":"#DIV/0!"},{"$error":"#DIV/0!"},{"$error":"#DIV/0!"},{"$error":"#DIV/0!"},{"$error":"#DIV/0!"},{"$error":"#DIV/0!"},{"$error":"#DIV/0!"},{"$error":"#DIV/0!"},{"$error":"#DIV/0!"},138]
[null,null,null,null,null,null,null,null,null,null,null,null,{"$error":"#DIV/0!"},{"$error":"#DIV/0!"},{"$error":"#DIV/0!"},{"$error":"#DIV/0!"},{"$error":"#DIV/0!"},{"$error":"#DIV/0!"},{"$error":"#DIV/0!"},{"$error":"#DIV/0!"},{"$error":"#DIV/0!"},{"$error":"#DIV/0!"},139]
[null,null,null,null,null,null,null,null,null,null,null,null,{"$error":"#DIV/0!"},{"$error":"#DIV/0!"},{"$error":"#DIV/0!"},{"$error":"#DIV/0!"},{"$error":"#DIV/0!"},{"$error":"#DIV/0!"},{"$error":"#DIV/0!"},{"$error":"#DIV/0!"},{"$error":"#DIV/0!"},{"$error":"#DIV/0!"},140]
[null,null,null,null,null,null,null,null,null,null,null,null,{"$error":"#DIV/0!"},{"$error":"#DIV/0!"},{"$error":"#DIV/0!"},{"$error":"#DIV/0!"},{"$error":"#DIV/0!"},{"$error":"#DIV/0!"},{"$error":"#DIV/0!"},{"$error":"#DIV/0!"},{"$error":"#DIV/0!"},{"$error":"#DIV/0!"},141]
[null,null,null,null,null,null,null,null,null,null,null,null,{"$error":"#DIV/0!"},{"$error":"#DIV/0!"},{"$error":"#DIV/0!"},{"$error":"#DIV/0!"},{"$error":"#DIV/0!"},{"$error":"#DIV/0!"},{"$error":"#DIV/0!"},{"$error":"#DIV/0!"},{"$error":"#DIV/0!"},{"$error":"#DIV/0!"},142]
[null,null,null,null,null,null,null,null,null,null,null,null,{"$error":"#DIV/0!"},{"$error":"#DIV/0!"},{"$error":"#DIV/0!"},{"$error":"#DIV/0!"},{"$error":"#DIV/0!"},{"$error":"#DIV/0!"},{"$error":"#DIV/0!"},{"$error":"#DIV/0!"},{"$error":"#DIV/0!"},{"$error":"#DIV/0!"},143]
[null,null,null,null,null,null,null,null,null,null,null,null,{"$error":"#DIV/0!"},{"$error":"#DIV/0!"},{"$error":"#DIV/0!"},{"$error":"#DIV/0!"},{"$error":"#DIV/0!"},{"$error":"#DIV/0!"},{"$error":"#DIV/0!"},{"$error":"#DIV/0!"},{"$error":"#DIV/0!"},{"$error":"#DIV/0!"},144]
[null,null,null,null,null,null,null,null,null,null,null,null,{"$error":"#DIV/0!"},{"$error":"#DIV/0!"},{"$error":"#DIV/0!"},{"$error":"#DIV/0!"},{"$error":"#DIV/0!"},{"$error":"#DIV/0!"},{"$error":"#DIV/0!"},{"$error":"#DIV/0!"},{"$error":"#DIV/0!"},{"$error":"#DIV/0!"},145]
[null,null,null,null,null,null,null,null,null,null,null,null,{"$error":"#DIV/0!"},{"$error":"#DIV/0!"},{"$error":"#DIV/0!"},{"$error":"#DIV/0!"},{"$error":"#DIV/0!"},{"$error":"#DIV/0!"},{"$error":"#DIV/0!"},{"$error":"#DIV/0!"},{"$error":"#DIV/0!"},{"$error":"#DIV/0!"},146]
[null,null,null,null,null,null,null,null,null,null,null,null,{"$error":"#DIV/0!"},{"$error":"#DIV/0!"},{"$error":"#DIV/0!"},{"$error":"#DIV/0!"},{"$error":"#DIV/0!"},{"$error":"#DIV/0!"},{"$error":"#DIV/0!"},{"$error":"#DIV/0!"},{"$error":"#DIV/0!"},{"$error":"#DIV/0!"},147]
[null,null,null,null,null,null,null,null,null,null,null,null,{"$error":"#DIV/0!"},{"$error":"#DIV/0!"},{"$error":"#DIV/0!"},{"$error":"#DIV/0!"},{"$error":"#DIV/0!"},{"$error":"#DIV/0!"},{"$error":"#DIV/0!"},{"$error":"#DIV/0!"},{"$error":"#DIV/0!"},{"$error":"#DIV/0!"},148]
[null,null,null,null,null,null,null,null,null,null,null,null,{"$error":"#DIV/0!"},{"$error":"#DIV/0!"},{"$error":"#DIV/0!"},{"$error":"#DIV/0!"},{"$error":"#DIV/0!"},{"$error":"#DIV/0!"},{"$error":"#DIV/0!"},{"$error":"#DIV/0!"},{"$error":"#DIV/0!"},{"$error":"#DIV/0!"},149]
[null,null,null,null,null,null,null,null,null,null,null,null,{"$error":"#DIV/0!"},{"$error":"#DIV/0!"},{"$error":"#DIV/0!"},{"$error":"#DIV/0!"},{"$error":"#DIV/0!"},{"$error":"#DIV/0!"},{"$error":"#DIV/0!"},{"$error":"#DIV/0!"},{"$error":"#DIV/0!"},{"$error":"#DIV/0!"},150]
[null,null,null,null,null,null,null,null,null,null,null,null,{"$error":"#DIV/0!"},{"$error":"#DIV/0!"},{"$error":"#DIV/0!"},{"$error":"#DIV/0!"},{"$error":"#DIV/0!"},{"$error":"#DIV/0!"},{"$error":"#DIV/0!"},{"$error":"#DIV/0!"},{"$error":"#DIV/0!"},{"$error":"#DIV/0!"},151]
[null,null,null,null,null,null,null,null,null,null,null,null,{"$error":"#DIV/0!"},{"$error":"#DIV/0!"},{"$error":"#DIV/0!"},{"$error":"#DIV/0!"},{"$error":"#DIV/0!"},{"$error":"#DIV/0!"},{"$error":"#DIV/0!"},{"$error":"#DIV/0!"},{"$error":"#DIV/0!"},{"$error":"#DIV/0!"},152]
[null,null,null,null,null,null,null,null,null,null,null,null,{"$error":"#DIV/0!"},{"$error":"#DIV/0!"},{"$error":"#DIV/0!"},{"$error":"#DIV/0!"},{"$error":"#DIV/0!"},{"$error":"#DIV/0!"},{"$error":"#DIV/0!"},{"$error":"#DIV/0!"},{"$error":"#DIV/0!"},{"$error":"#DIV/0!"},153]
[null,null,null,null,null,null,null,null,null,null,null,null,{"$error":"#DIV/0!"},{"$error":"#DIV/0!"},{"$error":"#DIV/0!"},{"$error":"#DIV/0!"},{"$error":"#DIV/0!"},{"$error":"#DIV/0!"},{"$error":"#DIV/0!"},{"$error":"#DIV/0!"},{"$error":"#DIV/0!"},{"$error":"#DIV/0!"},154]
[null,null,null,null,null,null,null,null,null,null,null,null,{"$error":"#DIV/0!"},{"$error":"#DIV/0!"},{"$error":"#DIV/0!"},{"$error":"#DIV/0!"},{"$error":"#DIV/0!"},{"$error":"#DIV/0!"},{"$error":"#DIV/0!"},{"$error":"#DIV/0!"},{"$error":"#DIV/0!"},{"$error":"#DIV/0!"},155]
[null,null,null,null,null,null,null,null,null,null,null,null,{"$error":"#DIV/0!"},{"$error":"#DIV/0!"},{"$error":"#DIV/0!"},{"$error":"#DIV/0!"},{"$error":"#DIV/0!"},{"$error":"#DIV/0!"},{"$error":"#DIV/0!"},{"$error":"#DIV/0!"},{"$error":"#DIV/0!"},{"$error":"#DIV/0!"},156]
[null,null,null,null,null,null,null,null,null,null,null,null,{"$error":"#DIV/0!"},{"$error":"#DIV/0!"},{"$error":"#DIV/0!"},{"$error":"#DIV/0!"},{"$error":"#DIV/0!"},{"$error":"#DIV/0!"},{"$error":"#DIV/0!"},{"$error":"#DIV/0!"},{"$error":"#DIV/0!"},{"$error":"#DIV/0!"},157]
[null,null,null,null,null,null,null,null,null,null,null,null,{"$error":"#DIV/0!"},{"$error":"#DIV/0!"},{"$error":"#DIV/0!"},{"$error":"#DIV/0!"},{"$error":"#DIV/0!"},{"$error":"#DIV/0!"},{"$error":"#DIV/0!"},{"$error":"#DIV/0!"},{"$error":"#DIV/0!"},{"$error":"#DIV/0!"},158]
[null,null,null,null,null,null,null,null,null,null,null,null,{"$error":"#DIV/0!"},{"$error":"#DIV/0!"},{"$error":"#DIV/0!"},{"$error":"#DIV/0!"},{"$error":"#DIV/0!"},{"$error":"#DIV/0!"},{"$error":"#DIV/0!"},{"$error":"#DIV/0!"},{"$error":"#DIV/0!"},{"$error":"#DIV/0!"},159]
[null,null,null,null,null,null,null,null,null,null,null,null,{"$error":"#DIV/0!"},{"$error":"#DIV/0!"},{"$error":"#DIV/0!"},{"$error":"#DIV/0!"},{"$error":"#DIV/0!"},{"$error":"#DIV/0!"},{"$error":"#DIV/0!"},{"$error":"#DIV/0!"},{"$error":"#DIV/0!"},{"$error":"#DIV/0!"},160]
[null,null,null,null,null,null,null,null,null,null,null,null,{"$error":"#DIV/0!"},{"$error":"#DIV/0!"},{"$error":"#DIV/0!"},{"$error":"#DIV/0!"},{"$error":"#DIV/0!"},{"$error":"#DIV/0!"},{"$error":"#DIV/0!"},{"$error":"#DIV/0!"},{"$error":"#DIV/0!"},{"$error":"#DIV/0!"},161]
[null,null,null,null,null,null,null,null,null,null,null,null,{"$error":"#DIV/0!"},{"$error":"#DIV/0!"},{"$error":"#DIV/0!"},{"$error":"#DIV/0!"},{"$error":"#DIV/0!"},{"$error":"#DIV/0!"},{"$error":"#DIV/0!"},{"$error":"#DIV/0!"},{"$error":"#DIV/0!"},{"$error":"#DIV/0!"},162]
[null,null,null,null,null,null,null,null,null,null,null,null,{"$error":"#DIV/0!"},{"$error":"#DIV/0!"},{"$error":"#DIV/0!"},{"$error":"#DIV/0!"},{"$error":"#DIV/0!"},{"$error":"#DIV/0!"},{"$error":"#DIV/0!"},{"$error":"#DIV/0!"},{"$error":"#DIV/0!"},{"$error":"#DIV/0!"},163]
[null,null,null,null,null,null,null,null,null,null,null,null,{"$error":"#DIV/0!"},{"$error":"#DIV/0!"},{"$error":"#DIV/0!"},{"$error":"#DIV/0!"},{"$error":"#DIV/0!"},{"$error":"#DIV/0!"},{"$error":"#DIV/0!"},{"$error":"#DIV/0!"},{"$error":"#DIV/0!"},{"$error":"#DIV/0!"},164]
[null,null,null,null,null,null,null,null,null,null,null,null,{"$error":"#DIV/0!"},{"$error":"#DIV/0!"},{"$error":"#DIV/0!"},{"$error":"#DIV/0!"},{"$error":"#DIV/0!"},{"$error":"#DIV/0!"},{"$error":"#DIV/0!"},{"$error":"#DIV/0!"},{"$error":"#DIV/0!"},{"$error":"#DIV/0!"},165]
[null,null,null,null,null,null,null,null,null,null,null,null,{"$error":"#DIV/0!"},{"$error":"#DIV/0!"},{"$error":"#DIV/0!"},{"$error":"#DIV/0!"},{"$error":"#DIV/0!"},{"$error":"#DIV/0!"},{"$error":"#DIV/0!"},{"$error":"#DIV/0!"},{"$error":"#DIV/0!"},{"$error":"#DIV/0!"},166]
[null,null,null,null,null,null,null,null,null,null,null,null,{"$error":"#DIV/0!"},{"$error":"#DIV/0!"},{"$error":"#DIV/0!"},{"$error":"#DIV/0!"},{"$error":"#DIV/0!"},{"$error":"#DIV/0!"},{"$error":"#DIV/0!"},{"$error":"#DIV/0!"},{"$error":"#DIV/0!"},{"$error":"#DIV/0!"},167]
[null,null,null,null,null,null,null,null,null,null,null,null,{"$error":"#DIV/0!"},{"$error":"#DIV/0!"},{"$error":"#DIV/0!"},{"$error":"#DIV/0!"},{"$error":"#DIV/0!"},{"$error":"#DIV/0!"},{"$error":"#DIV/0!"},{"$error":"#DIV/0!"},{"$error":"#DIV/0!"},{"$error":"#DIV/0!"},168]
[null,null,null,null,null,null,null,null,null,null,null,null,{"$error":"#DIV/0!"},{"$error":"#DIV/0!"},{"$error":"#DIV/0!"},{"$error":"#DIV/0!"},{"$error":"#DIV/0!"},{"$error":"#DIV/0!"},{"$error":"#DIV/0!"},{"$error":"#DIV/0!"},{"$error":"#DIV/0!"},{"$error":"#DIV/0!"},169]
[null,null,null,null,null,null,null,null,null,null,null,null,{"$error":"#DIV/0!"},{"$error":"#DIV/0!"},{"$error":"#DIV/0!"},{"$error":"#DIV/0!"},{"$error":"#DIV/0!"},{"$error":"#DIV/0!"},{"$error":"#DIV/0!"},{"$error":"#DIV/0!"},{"$error":"#DIV/0!"},{"$error":"#DIV/0!"},170]
[null,null,null,null,null,null,null,null,null,null,null,null,{"$error":"#DIV/0!"},{"$error":"#DIV/0!"},{"$error":"#DIV/0!"},{"$error":"#DIV/0!"},{"$error":"#DIV/0!"},{"$error":"#DIV/0!"},{"$error":"#DIV/0!"},{"$error":"#DIV/0!"},{"$error":"#DIV/0!"},{"$error":"#DIV/0!"},171]
[null,null,null,null,null,null,null,null,null,null,null,null,{"$error":"#DIV/0!"},{"$error":"#DIV/0!"},{"$error":"#DIV/0!"},{"$error":"#DIV/0!"},{"$error":"#DIV/0!"},{"$error":"#DIV/0!"},{"$error":"#DIV/0!"},{"$error":"#DIV/0!"},{"$error":"#DIV/0!"},{"$error":"#DIV/0!"},172]
[null,null,null,null,null,null,null,null,null,null,null,null,{"$error":"#DIV/0!"},{"$error":"#DIV/0!"},{"$error":"#DIV/0!"},{"$error":"#DIV/0!"},{"$error":"#DIV/0!"},{"$error":"#DIV/0!"},{"$error":"#DIV/0!"},{"$error":"#DIV/0!"},{"$error":"#DIV/0!"},{"$error":"#DIV/0!"},173]
[null,null,null,null,null,null,null,null,null,null,null,null,{"$error":"#DIV/0!"},{"$error":"#DIV/0!"},{"$error":"#DIV/0!"},{"$error":"#DIV/0!"},{"$error":"#DIV/0!"},{"$error":"#DIV/0!"},{"$error":"#DIV/0!"},{"$error":"#DIV/0!"},{"$error":"#DIV/0!"},{"$error":"#DIV/0!"},174]
[null,null,null,null,null,null,null,null,null,null,null,null,{"$error":"#DIV/0!"},{"$error":"#DIV/0!"},{"$error":"#DIV/0!"},{"$error":"#DIV/0!"},{"$error":"#DIV/0!"},{"$error":"#DIV/0!"},{"$error":"#DIV/0!"},{"$error":"#DIV/0!"},{"$error":"#DIV/0!"},{"$error":"#DIV/0!"},175]
[null,null,null,null,null,null,null,null,null,null,null,null,{"$error":"#DIV/0!"},{"$error":"#DIV/0!"},{"$error":"#DIV/0!"},{"$error":"#DIV/0!"},{"$error":"#DIV/0!"},{"$error":"#DIV/0!"},{"$error":"#DIV/0!"},{"$error":"#DIV/0!"},{"$error":"#DIV/0!"},{"$error":"#DIV/0!"},176]
[null,null,null,null,null,null,null,null,null,null,null,null,{"$error":"#DIV/0!"},{"$error":"#DIV/0!"},{"$error":"#DIV/0!"},{"$error":"#DIV/0!"},{"$error":"#DIV/0!"},{"$error":"#DIV/0!"},{"$error":"#DIV/0!"},{"$error":"#DIV/0!"},{"$error":"#DIV/0!"},{"$error":"#DIV/0!"},177]
[null,null,null,null,null,null,null,null,null,null,null,null,{"$error":"#DIV/0!"},{"$error":"#DIV/0!"},{"$error":"#DIV/0!"},{"$error":"#DIV/0!"},{"$error":"#DIV/0!"},{"$error":"#DIV/0!"},{"$error":"#DIV/0!"},{"$error":"#DIV/0!"},{"$error":"#DIV/0!"},{"$error":"#DIV/0!"},178]
[null,null,null,null,null,null,null,null,null,null,null,null,{"$error":"#DIV/0!"},{"$error":"#DIV/0!"},{"$error":"#DIV/0!"},{"$error":"#DIV/0!"},{"$error":"#DIV/0!"},{"$error":"#DIV/0!"},{"$error":"#DIV/0!"},{"$error":"#DIV/0!"},{"$error":"#DIV/0!"},{"$error":"#DIV/0!"},179]
[null,null,null,null,null,null,null,null,null,null,null,null,{"$error":"#DIV/0!"},{"$error":"#DIV/0!"},{"$error":"#DIV/0!"},{"$error":"#DIV/0!"},{"$error":"#DIV/0!"},{"$error":"#DIV/0!"},{"$error":"#DIV/0!"},{"$error":"#DIV/0!"},{"$error":"#DIV/0!"},{"$error":"#DIV/0!"},180]
[null,null,null,null,null,null,null,null,null,null,null,null,{"$error":"#DIV/0!"},{"$error":"#DIV/0!"},{"$error":"#DIV/0!"},{"$error":"#DIV/0!"},{"$error":"#DIV/0!"},{"$error":"#DIV/0!"},{"$error":"#DIV/0!"},{"$error":"#DIV/0!"},{"$error":"#DIV/0!"},{"$error":"#DIV/0!"},181]
[null,null,null,null,null,null,null,null,null,null,null,null,{"$error":"#DIV/0!"},{"$error":"#DIV/0!"},{"$error":"#DIV/0!"},{"$error":"#DIV/0!"},{"$error":"#DIV/0!"},{"$error":"#DIV/0!"},{"$error":"#DIV/0!"},{"$error":"#DIV/0!"},{"$error":"#DIV/0!"},{"$error":"#DIV/0!"},182]
[null,null,null,null,null,null,null,null,null,null,null,null,{"$error":"#DIV/0!"},{"$error":"#DIV/0!"},{"$error":"#DIV/0!"},{"$error":"#DIV/0!"},{"$error":"#DIV/0!"},{"$error":"#DIV/0!"},{"$error":"#DIV/0!"},{"$error":"#DIV/0!"},{"$error":"#DIV/0!"},{"$error":"#DIV/0!"},183]
[null,null,null,null,null,null,null,null,null,null,null,null,{"$error":"#DIV/0!"},{"$error":"#DIV/0!"},{"$error":"#DIV/0!"},{"$error":"#DIV/0!"},{"$error":"#DIV/0!"},{"$error":"#DIV/0!"},{"$error":"#DIV/0!"},{"$error":"#DIV/0!"},{"$error":"#DIV/0!"},{"$error":"#DIV/0!"},184]
[null,null,null,null,null,null,null,null,null,null,null,null,{"$error":"#DIV/0!"},{"$error":"#DIV/0!"},{"$error":"#DIV/0!"},{"$error":"#DIV/0!"},{"$error":"#DIV/0!"},{"$error":"#DIV/0!"},{"$error":"#DIV/0!"},{"$error":"#DIV/0!"},{"$error":"#DIV/0!"},{"$error":"#DIV/0!"},185]
[null,null,null,null,null,null,null,null,null,null,null,null,{"$error":"#DIV/0!"},{"$error":"#DIV/0!"},{"$error":"#DIV/0!"},{"$error":"#DIV/0!"},{"$error":"#DIV/0!"},{"$error":"#DIV/0!"},{"$error":"#DIV/0!"},{"$error":"#DIV/0!"},{"$error":"#DIV/0!"},{"$error":"#DIV/0!"},186]
[null,null,null,null,null,null,null,null,null,null,null,null,{"$error":"#DIV/0!"},{"$error":"#DIV/0!"},{"$error":"#DIV/0!"},{"$error":"#DIV/0!"},{"$error":"#DIV/0!"},{"$error":"#DIV/0!"},{"$error":"#DIV/0!"},{"$error":"#DIV/0!"},{"$error":"#DIV/0!"},{"$error":"#DIV/0!"},187]
[null,null,null,null,null,null,null,null,null,null,null,null,{"$error":"#DIV/0!"},{"$error":"#DIV/0!"},{"$error":"#DIV/0!"},{"$error":"#DIV/0!"},{"$error":"#DIV/0!"},{"$error":"#DIV/0!"},{"$error":"#DIV/0!"},{"$error":"#DIV/0!"},{"$error":"#DIV/0!"},{"$error":"#DIV/0!"},188]
[null,null,null,null,null,null,null,null,null,null,null,null,{"$error":"#DIV/0!"},{"$error":"#DIV/0!"},{"$error":"#DIV/0!"},{"$error":"#DIV/0!"},{"$error":"#DIV/0!"},{"$error":"#DIV/0!"},{"$error":"#DIV/0!"},{"$error":"#DIV/0!"},{"$error":"#DIV/0!"},{"$error":"#DIV/0!"},189]
[null,null,null,null,null,null,null,null,null,null,null,null,{"$error":"#DIV/0!"},{"$error":"#DIV/0!"},{"$error":"#DIV/0!"},{"$error":"#DIV/0!"},{"$error":"#DIV/0!"},{"$error":"#DIV/0!"},{"$error":"#DIV/0!"},{"$error":"#DIV/0!"},{"$error":"#DIV/0!"},{"$error":"#DIV/0!"},190]
[null,null,null,null,null,null,null,null,null,null,null,null,{"$error":"#DIV/0!"},{"$error":"#DIV/0!"},{"$error":"#DIV/0!"},{"$error":"#DIV/0!"},{"$error":"#DIV/0!"},{"$error":"#DIV/0!"},{"$error":"#DIV/0!"},{"$error":"#DIV/0!"},{"$error":"#DIV/0!"},{"$error":"#DIV/0!"},191]
[null,null,null,null,null,null,null,null,null,null,null,null,{"$error":"#DIV/0!"},{"$error":"#DIV/0!"},{"$error":"#DIV/0!"},{"$error":"#DIV/0!"},{"$error":"#DIV/0!"},{"$error":"#DIV/0!"},{"$error":"#DIV/0!"},{"$error":"#DIV/0!"},{"$error":"#DIV/0!"},{"$error":"#DIV/0!"},192]
[null,null,null,null,null,null,null,null,null,null,null,null,{"$f":"MOD((ROW()-ROW(M$116)),M$112)+1","v":{"$error":"#DIV/0!"}},{"$f":"MOD(INT((ROW()-ROW(N$116))/M$112),Q$112)+1","v":{"$error":"#DIV/0!"}},{"$f":"MOD(INT(INT((ROW()-ROW(O$116))/M$112)/Q$112),U$112)+1","v":{"$error":"#DIV/0!"}},{"$f":"INDEX(collectionSystemsBMPs,M308)","v":{"$error":"#DIV/0!"}},{"$f":"HLOOKUP(P308,collectionSystemsBMPScores,7,FALSE)","v":{"$error":"#DIV/0!"}},{"$f":"INDEX(trdBMPs,N308)","v":{"$error":"#DIV/0!"}},{"$f":"HLOOKUP(R308,trdBMPScores,7,FALSE)","v":{"$error":"#DIV/0!"}},{"$f":"INDEX(storageBMPs,O308)","v":{"$error":"#DIV/0!"}},{"$f":"HLOOKUP(T308,storageBMPScores,7,FALSE)","v":{"$error":"#DIV/0!"}},{"$f":"SUM(IF(HLOOKUP(T308,storageBMPScores,8,FALSE),HLOOKUP(P308,collectionSystemsBMPScores,10,FALSE)*Q308,Q308)+S308+U308)","v":{"$error":"#DIV/0!"}},193]
[null,null,null,null,null,null,null,null,null,null,null,null,{"$error":"#DIV/0!"},{"$error":"#DIV/0!"},{"$error":"#DIV/0!"},{"$error":"#DIV/0!"},{"$error":"#DIV/0!"},{"$error":"#DIV/0!"},{"$error":"#DIV/0!"},{"$error":"#DIV/0!"},{"$error":"#DIV/0!"},{"$error":"#DIV/0!"},194]
[null,null,null,null,null,null,null,null,null,null,null,null,{"$error":"#DIV/0!"},{"$error":"#DIV/0!"},{"$error":"#DIV/0!"},{"$error":"#DIV/0!"},{"$error":"#DIV/0!"},{"$error":"#DIV/0!"},{"$error":"#DIV/0!"},{"$error":"#DIV/0!"},{"$error":"#DIV/0!"},{"$error":"#DIV/0!"},195]
[null,null,null,null,null,null,null,null,null,null,null,null,{"$error":"#DIV/0!"},{"$error":"#DIV/0!"},{"$error":"#DIV/0!"},{"$error":"#DIV/0!"},{"$error":"#DIV/0!"},{"$error":"#DIV/0!"},{"$error":"#DIV/0!"},{"$error":"#DIV/0!"},{"$error":"#DIV/0!"},{"$error":"#DIV/0!"},196]
[null,null,null,null,null,null,null,null,null,null,null,null,{"$error":"#DIV/0!"},{"$error":"#DIV/0!"},{"$error":"#DIV/0!"},{"$error":"#DIV/0!"},{"$error":"#DIV/0!"},{"$error":"#DIV/0!"},{"$error":"#DIV/0!"},{"$error":"#DIV/0!"},{"$error":"#DIV/0!"},{"$error":"#DIV/0!"},197]
[null,null,null,null,null,null,null,null,null,null,null,null,{"$error":"#DIV/0!"},{"$error":"#DIV/0!"},{"$error":"#DIV/0!"},{"$error":"#DIV/0!"},{"$error":"#DIV/0!"},{"$error":"#DIV/0!"},{"$error":"#DIV/0!"},{"$error":"#DIV/0!"},{"$error":"#DIV/0!"},{"$error":"#DIV/0!"},198]
[null,null,null,null,null,null,null,null,null,null,null,null,{"$error":"#DIV/0!"},{"$error":"#DIV/0!"},{"$error":"#DIV/0!"},{"$error":"#DIV/0!"},{"$error":"#DIV/0!"},{"$error":"#DIV/0!"},{"$error":"#DIV/0!"},{"$error":"#DIV/0!"},{"$error":"#DIV/0!"},{"$error":"#DIV/0!"},199]
[null,null,null,null,null,null,null,null,null,null,null,null,{"$error":"#DIV/0!"},{"$error":"#DIV/0!"},{"$error":"#DIV/0!"},{"$error":"#DIV/0!"},{"$error":"#DIV/0!"},{"$error":"#DIV/0!"},{"$error":"#DIV/0!"},{"$error":"#DIV/0!"},{"$error":"#DIV/0!"},{"$error":"#DIV/0!"},200]
[null,null,null,null,null,null,null,null,null,null,null,null,{"$error":"#DIV/0!"},{"$error":"#DIV/0!"},{"$error":"#DIV/0!"},{"$error":"#DIV/0!"},{"$error":"#DIV/0!"},{"$error":"#DIV/0!"},{"$error":"#DIV/0!"},{"$error":"#DIV/0!"},{"$error":"#DIV/0!"},{"$error":"#DIV/0!"},201]
[null,null,null,null,null,null,null,null,null,null,null,null,{"$error":"#DIV/0!"},{"$error":"#DIV/0!"},{"$error":"#DIV/0!"},{"$error":"#DIV/0!"},{"$error":"#DIV/0!"},{"$error":"#DIV/0!"},{"$error":"#DIV/0!"},{"$error":"#DIV/0!"},{"$error":"#DIV/0!"},{"$error":"#DIV/0!"},202]
[null,null,null,null,null,null,null,null,null,null,null,null,{"$error":"#DIV/0!"},{"$error":"#DIV/0!"},{"$error":"#DIV/0!"},{"$error":"#DIV/0!"},{"$error":"#DIV/0!"},{"$error":"#DIV/0!"},{"$error":"#DIV/0!"},{"$error":"#DIV/0!"},{"$error":"#DIV/0!"},{"$error":"#DIV/0!"},203]
[null,null,null,null,null,null,null,null,null,null,null,null,{"$error":"#DIV/0!"},{"$error":"#DIV/0!"},{"$error":"#DIV/0!"},{"$error":"#DIV/0!"},{"$error":"#DIV/0!"},{"$error":"#DIV/0!"},{"$error":"#DIV/0!"},{"$error":"#DIV/0!"},{"$error":"#DIV/0!"},{"$error":"#DIV/0!"},204]
[null,null,null,null,null,null,null,null,null,null,null,null,{"$error":"#DIV/0!"},{"$error":"#DIV/0!"},{"$error":"#DIV/0!"},{"$error":"#DIV/0!"},{"$error":"#DIV/0!"},{"$error":"#DIV/0!"},{"$error":"#DIV/0!"},{"$error":"#DIV/0!"},{"$error":"#DIV/0!"},{"$error":"#DIV/0!"},205]
[null,null,null,null,null,null,null,null,null,null,null,null,{"$error":"#DIV/0!"},{"$error":"#DIV/0!"},{"$error":"#DIV/0!"},{"$error":"#DIV/0!"},{"$error":"#DIV/0!"},{"$error":"#DIV/0!"},{"$error":"#DIV/0!"},{"$error":"#DIV/0!"},{"$error":"#DIV/0!"},{"$error":"#DIV/0!"},206]
[null,null,null,null,null,null,null,null,null,null,null,null,{"$error":"#DIV/0!"},{"$error":"#DIV/0!"},{"$error":"#DIV/0!"},{"$error":"#DIV/0!"},{"$error":"#DIV/0!"},{"$error":"#DIV/0!"},{"$error":"#DIV/0!"},{"$error":"#DIV/0!"},{"$error":"#DIV/0!"},{"$error":"#DIV/0!"},207]
[null,null,null,null,null,null,null,null,null,null,null,null,{"$error":"#DIV/0!"},{"$error":"#DIV/0!"},{"$error":"#DIV/0!"},{"$error":"#DIV/0!"},{"$error":"#DIV/0!"},{"$error":"#DIV/0!"},{"$error":"#DIV/0!"},{"$error":"#DIV/0!"},{"$error":"#DIV/0!"},{"$error":"#DIV/0!"},208]
[null,null,null,null,null,null,null,null,null,null,null,null,{"$error":"#DIV/0!"},{"$error":"#DIV/0!"},{"$error":"#DIV/0!"},{"$error":"#DIV/0!"},{"$error":"#DIV/0!"},{"$error":"#DIV/0!"},{"$error":"#DIV/0!"},{"$error":"#DIV/0!"},{"$error":"#DIV/0!"},{"$error":"#DIV/0!"},209]
[null,null,null,null,null,null,null,null,null,null,null,null,{"$error":"#DIV/0!"},{"$error":"#DIV/0!"},{"$error":"#DIV/0!"},{"$error":"#DIV/0!"},{"$error":"#DIV/0!"},{"$error":"#DIV/0!"},{"$error":"#DIV/0!"},{"$error":"#DIV/0!"},{"$error":"#DIV/0!"},{"$error":"#DIV/0!"},210]
[null,null,null,null,null,null,null,null,null,null,null,null,{"$error":"#DIV/0!"},{"$error":"#DIV/0!"},{"$error":"#DIV/0!"},{"$error":"#DIV/0!"},{"$error":"#DIV/0!"},{"$error":"#DIV/0!"},{"$error":"#DIV/0!"},{"$error":"#DIV/0!"},{"$error":"#DIV/0!"},{"$error":"#DIV/0!"},211]
[null,null,null,null,null,null,null,null,null,null,null,null,{"$error":"#DIV/0!"},{"$error":"#DIV/0!"},{"$error":"#DIV/0!"},{"$error":"#DIV/0!"},{"$error":"#DIV/0!"},{"$error":"#DIV/0!"},{"$error":"#DIV/0!"},{"$error":"#DIV/0!"},{"$error":"#DIV/0!"},{"$error":"#DIV/0!"},212]
[null,null,null,null,null,null,null,null,null,null,null,null,{"$error":"#DIV/0!"},{"$error":"#DIV/0!"},{"$error":"#DIV/0!"},{"$error":"#DIV/0!"},{"$error":"#DIV/0!"},{"$error":"#DIV/0!"},{"$error":"#DIV/0!"},{"$error":"#DIV/0!"},{"$error":"#DIV/0!"},{"$error":"#DIV/0!"},213]
[null,null,null,null,null,null,null,null,null,null,null,null,{"$error":"#DIV/0!"},{"$error":"#DIV/0!"},{"$error":"#DIV/0!"},{"$error":"#DIV/0!"},{"$error":"#DIV/0!"},{"$error":"#DIV/0!"},{"$error":"#DIV/0!"},{"$error":"#DIV/0!"},{"$error":"#DIV/0!"},{"$error":"#DIV/0!"},214]
[null,null,null,null,null,null,null,null,null,null,null,null,{"$error":"#DIV/0!"},{"$error":"#DIV/0!"},{"$error":"#DIV/0!"},{"$error":"#DIV/0!"},{"$error":"#DIV/0!"},{"$error":"#DIV/0!"},{"$error":"#DIV/0!"},{"$error":"#DIV/0!"},{"$error":"#DIV/0!"},{"$error":"#DIV/0!"},215]
[null,null,null,null,null,null,null,null,null,null,null,null,{"$error":"#DIV/0!"},{"$error":"#DIV/0!"},{"$error":"#DIV/0!"},{"$error":"#DIV/0!"},{"$error":"#DIV/0!"},{"$error":"#DIV/0!"},{"$error":"#DIV/0!"},{"$error":"#DIV/0!"},{"$error":"#DIV/0!"},{"$error":"#DIV/0!"},216]
[null,null,null,null,null,null,null,null,null,null,null,null,{"$error":"#DIV/0!"},{"$error":"#DIV/0!"},{"$error":"#DIV/0!"},{"$error":"#DIV/0!"},{"$error":"#DIV/0!"},{"$error":"#DIV/0!"},{"$error":"#DIV/0!"},{"$error":"#DIV/0!"},{"$error":"#DIV/0!"},{"$error":"#DIV/0!"},217]
[null,null,null,null,null,null,null,null,null,null,null,null,{"$error":"#DIV/0!"},{"$error":"#DIV/0!"},{"$error":"#DIV/0!"},{"$error":"#DIV/0!"},{"$error":"#DIV/0!"},{"$error":"#DIV/0!"},{"$error":"#DIV/0!"},{"$error":"#DIV/0!"},{"$error":"#DIV/0!"},{"$error":"#DIV/0!"},218]
[null,null,null,null,null,null,null,null,null,null,null,null,{"$error":"#DIV/0!"},{"$error":"#DIV/0!"},{"$error":"#DIV/0!"},{"$error":"#DIV/0!"},{"$error":"#DIV/0!"},{"$error":"#DIV/0!"},{"$error":"#DIV/0!"},{"$error":"#DIV/0!"},{"$error":"#DIV/0!"},{"$error":"#DIV/0!"},219]
[null,null,null,null,null,null,null,null,null,null,null,null,{"$error":"#DIV/0!"},{"$error":"#DIV/0!"},{"$error":"#DIV/0!"},{"$error":"#DIV/0!"},{"$error":"#DIV/0!"},{"$error":"#DIV/0!"},{"$error":"#DIV/0!"},{"$error":"#DIV/0!"},{"$error":"#DIV/0!"},{"$error":"#DIV/0!"},220]
[null,null,null,null,null,null,null,null,null,null,null,null,{"$error":"#DIV/0!"},{"$error":"#DIV/0!"},{"$error":"#DIV/0!"},{"$error":"#DIV/0!"},{"$error":"#DIV/0!"},{"$error":"#DIV/0!"},{"$error":"#DIV/0!"},{"$error":"#DIV/0!"},{"$error":"#DIV/0!"},{"$error":"#DIV/0!"},221]
[null,null,null,null,null,null,null,null,null,null,null,null,{"$error":"#DIV/0!"},{"$error":"#DIV/0!"},{"$error":"#DIV/0!"},{"$error":"#DIV/0!"},{"$error":"#DIV/0!"},{"$error":"#DIV/0!"},{"$error":"#DIV/0!"},{"$error":"#DIV/0!"},{"$error":"#DIV/0!"},{"$error":"#DIV/0!"},222]
[null,null,null,null,null,null,null,null,null,null,null,null,{"$error":"#DIV/0!"},{"$error":"#DIV/0!"},{"$error":"#DIV/0!"},{"$error":"#DIV/0!"},{"$error":"#DIV/0!"},{"$error":"#DIV/0!"},{"$error":"#DIV/0!"},{"$error":"#DIV/0!"},{"$error":"#DIV/0!"},{"$error":"#DIV/0!"},223]
[null,null,null,null,null,null,null,null,null,null,null,null,{"$error":"#DIV/0!"},{"$error":"#DIV/0!"},{"$error":"#DIV/0!"},{"$error":"#DIV/0!"},{"$error":"#DIV/0!"},{"$error":"#DIV/0!"},{"$error":"#DIV/0!"},{"$error":"#DIV/0!"},{"$error":"#DIV/0!"},{"$error":"#DIV/0!"},224]
[null,null,null,null,null,null,null,null,null,null,null,null,{"$error":"#DIV/0!"},{"$error":"#DIV/0!"},{"$error":"#DIV/0!"},{"$error":"#DIV/0!"},{"$error":"#DIV/0!"},{"$error":"#DIV/0!"},{"$error":"#DIV/0!"},{"$error":"#DIV/0!"},{"$error":"#DIV/0!"},{"$error":"#DIV/0!"},225]
[null,null,null,null,null,null,null,null,null,null,null,null,{"$error":"#DIV/0!"},{"$error":"#DIV/0!"},{"$error":"#DIV/0!"},{"$error":"#DIV/0!"},{"$error":"#DIV/0!"},{"$error":"#DIV/0!"},{"$error":"#DIV/0!"},{"$error":"#DIV/0!"},{"$error":"#DIV/0!"},{"$error":"#DIV/0!"},226]
[null,null,null,null,null,null,null,null,null,null,null,null,{"$error":"#DIV/0!"},{"$error":"#DIV/0!"},{"$error":"#DIV/0!"},{"$error":"#DIV/0!"},{"$error":"#DIV/0!"},{"$error":"#DIV/0!"},{"$error":"#DIV/0!"},{"$error":"#DIV/0!"},{"$error":"#DIV/0!"},{"$error":"#DIV/0!"},227]
[null,null,null,null,null,null,null,null,null,null,null,null,{"$error":"#DIV/0!"},{"$error":"#DIV/0!"},{"$error":"#DIV/0!"},{"$error":"#DIV/0!"},{"$error":"#DIV/0!"},{"$error":"#DIV/0!"},{"$error":"#DIV/0!"},{"$error":"#DIV/0!"},{"$error":"#DIV/0!"},{"$error":"#DIV/0!"},228]
[null,null,null,null,null,null,null,null,null,null,null,null,{"$error":"#DIV/0!"},{"$error":"#DIV/0!"},{"$error":"#DIV/0!"},{"$error":"#DIV/0!"},{"$error":"#DIV/0!"},{"$error":"#DIV/0!"},{"$error":"#DIV/0!"},{"$error":"#DIV/0!"},{"$error":"#DIV/0!"},{"$error":"#DIV/0!"},229]
[null,null,null,null,null,null,null,null,null,null,null,null,{"$error":"#DIV/0!"},{"$error":"#DIV/0!"},{"$error":"#DIV/0!"},{"$error":"#DIV/0!"},{"$error":"#DIV/0!"},{"$error":"#DIV/0!"},{"$error":"#DIV/0!"},{"$error":"#DIV/0!"},{"$error":"#DIV/0!"},{"$error":"#DIV/0!"},230]
[null,null,null,null,null,null,null,null,null,null,null,null,{"$error":"#DIV/0!"},{"$error":"#DIV/0!"},{"$error":"#DIV/0!"},{"$error":"#DIV/0!"},{"$error":"#DIV/0!"},{"$error":"#DIV/0!"},{"$error":"#DIV/0!"},{"$error":"#DIV/0!"},{"$error":"#DIV/0!"},{"$error":"#DIV/0!"},231]
[null,null,null,null,null,null,null,null,null,null,null,null,{"$error":"#DIV/0!"},{"$error":"#DIV/0!"},{"$error":"#DIV/0!"},{"$error":"#DIV/0!"},{"$error":"#DIV/0!"},{"$error":"#DIV/0!"},{"$error":"#DIV/0!"},{"$error":"#DIV/0!"},{"$error":"#DIV/0!"},{"$error":"#DIV/0!"},232]
[null,null,null,null,null,null,null,null,null,null,null,null,{"$error":"#DIV/0!"},{"$error":"#DIV/0!"},{"$error":"#DIV/0!"},{"$error":"#DIV/0!"},{"$error":"#DIV/0!"},{"$error":"#DIV/0!"},{"$error":"#DIV/0!"},{"$error":"#DIV/0!"},{"$error":"#DIV/0!"},{"$error":"#DIV/0!"},233]
[null,null,null,null,null,null,null,null,null,null,null,null,{"$error":"#DIV/0!"},{"$error":"#DIV/0!"},{"$error":"#DIV/0!"},{"$error":"#DIV/0!"},{"$error":"#DIV/0!"},{"$error":"#DIV/0!"},{"$error":"#DIV/0!"},{"$error":"#DIV/0!"},{"$error":"#DIV/0!"},{"$error":"#DIV/0!"},234]
[null,null,null,null,null,null,null,null,null,null,null,null,{"$error":"#DIV/0!"},{"$error":"#DIV/0!"},{"$error":"#DIV/0!"},{"$error":"#DIV/0!"},{"$error":"#DIV/0!"},{"$error":"#DIV/0!"},{"$error":"#DIV/0!"},{"$error":"#DIV/0!"},{"$error":"#DIV/0!"},{"$error":"#DIV/0!"},235]
[null,null,null,null,null,null,null,null,null,null,null,null,{"$error":"#DIV/0!"},{"$error":"#DIV/0!"},{"$error":"#DIV/0!"},{"$error":"#DIV/0!"},{"$error":"#DIV/0!"},{"$error":"#DIV/0!"},{"$error":"#DIV/0!"},{"$error":"#DIV/0!"},{"$error":"#DIV/0!"},{"$error":"#DIV/0!"},236]
[null,null,null,null,null,null,null,null,null,null,null,null,{"$error":"#DIV/0!"},{"$error":"#DIV/0!"},{"$error":"#DIV/0!"},{"$error":"#DIV/0!"},{"$error":"#DIV/0!"},{"$error":"#DIV/0!"},{"$error":"#DIV/0!"},{"$error":"#DIV/0!"},{"$error":"#DIV/0!"},{"$error":"#DIV/0!"},237]
[null,null,null,null,null,null,null,null,null,null,null,null,{"$error":"#DIV/0!"},{"$error":"#DIV/0!"},{"$error":"#DIV/0!"},{"$error":"#DIV/0!"},{"$error":"#DIV/0!"},{"$error":"#DIV/0!"},{"$error":"#DIV/0!"},{"$error":"#DIV/0!"},{"$error":"#DIV/0!"},{"$error":"#DIV/0!"},238]
[null,null,null,null,null,null,null,null,null,null,null,null,{"$error":"#DIV/0!"},{"$error":"#DIV/0!"},{"$error":"#DIV/0!"},{"$error":"#DIV/0!"},{"$error":"#DIV/0!"},{"$error":"#DIV/0!"},{"$error":"#DIV/0!"},{"$error":"#DIV/0!"},{"$error":"#DIV/0!"},{"$error":"#DIV/0!"},239]
[null,null,null,null,null,null,null,null,null,null,null,null,{"$error":"#DIV/0!"},{"$error":"#DIV/0!"},{"$error":"#DIV/0!"},{"$error":"#DIV/0!"},{"$error":"#DIV/0!"},{"$error":"#DIV/0!"},{"$error":"#DIV/0!"},{"$error":"#DIV/0!"},{"$error":"#DIV/0!"},{"$error":"#DIV/0!"},240]
[]
[]
[]
[]
[]
[null,null,"BMP Combinations Table"]
[null,null,null,"Collection Systems","Treatment Recovery Disposal","Storage","Score"]
[null,null,null,{"$error":"#DIV/0!"},{"$error":"#DIV/0!"},{"$error":"#DIV/0!"},{"$error":"#DIV/0!"}]
[null,null,null,{"$error":"#DIV/0!"},{"$error":"#DIV/0!"},{"$error":"#DIV/0!"},{"$error":"#DIV/0!"}]
[null,null,null,{"$error":"#DIV/0!"},{"$error":"#DIV/0!"},{"$error":"#DIV/0!"},{"$error":"#DIV/0!"}]
[null,null,null,{"$error":"#DIV/0!"},{"$error":"#DIV/0!"},{"$error":"#DIV/0!"},{"$error":"#DIV/0!"}]
[null,null,null,{"$error":"#DIV/0!"},{"$error":"#DIV/0!"},{"$error":"#DIV/0!"},{"$error":"#DIV/0!"}]
[null,null,null,{"$error":"#DIV/0!"},{"$error":"#DIV/0!"},{"$error":"#DIV/0!"},{"$error":"#DIV/0!"}]
[null,null,null,{"$error":"#DIV/0!"},{"$error":"#DIV/0!"},{"$error":"#DIV/0!"},{"$error":"#DIV/0!"}]
[null,null,null,{"$error":"#DIV/0!"},{"$error":"#DIV/0!"},{"$error":"#DIV/0!"},{"$error":"#DIV/0!"}]
[null,null,null,{"$error":"#DIV/0!"},{"$error":"#DIV/0!"},{"$error":"#DIV/0!"},{"$error":"#DIV/0!"}]
[null,null,null,{"$error":"#DIV/0!"},{"$error":"#DIV/0!"},{"$error":"#DIV/0!"},{"$error":"#DIV/0!"}]
[null,null,null,{"$error":"#DIV/0!"},{"$error":"#DIV/0!"},{"$error":"#DIV/0!"},{"$error":"#DIV/0!"}]
[null,null,null,{"$error":"#DIV/0!"},{"$error":"#DIV/0!"},{"$error":"#DIV/0!"},{"$error":"#DIV/0!"}]
[null,null,null,{"$error":"#DIV/0!"},{"$error":"#DIV/0!"},{"$error":"#DIV/0!"},{"$error":"#DIV/0!"}]
[null,null,null,{"$error":"#DIV/0!"},{"$error":"#DIV/0!"},{"$error":"#DIV/0!"},{"$error":"#DIV/0!"}]
[null,null,null,{"$error":"#DIV/0!"},{"$error":"#DIV/0!"},{"$error":"#DIV/0!"},{"$error":"#DIV/0!"}]
[null,null,null,{"$error":"#DIV/0!"},{"$error":"#DIV/0!"},{"$error":"#DIV/0!"},{"$error":"#DIV/0!"}]
[null,null,null,{"$error":"#DIV/0!"},{"$error":"#DIV/0!"},{"$error":"#DIV/0!"},{"$error":"#DIV/0!"}]
[null,null,null,{"$error":"#DIV/0!"},{"$error":"#DIV/0!"},{"$error":"#DIV/0!"},{"$error":"#DIV/0!"}]
[null,null,null,{"$error":"#DIV/0!"},{"$error":"#DIV/0!"},{"$error":"#DIV/0!"},{"$error":"#DIV/0!"}]
[null,null,null,{"$error":"#DIV/0!"},{"$error":"#DIV/0!"},{"$error":"#DIV/0!"},{"$error":"#DIV/0!"}]
[null,null,null,{"$error":"#DIV/0!"},{"$error":"#DIV/0!"},{"$error":"#DIV/0!"},{"$error":"#DIV/0!"}]
[null,null,null,{"$error":"#DIV/0!"},{"$error":"#DIV/0!"},{"$error":"#DIV/0!"},{"$error":"#DIV/0!"}]
[null,null,null,{"$error":"#DIV/0!"},{"$error":"#DIV/0!"},{"$error":"#DIV/0!"},{"$error":"#DIV/0!"}]
[null,null,null,{"$error":"#DIV/0!"},{"$error":"#DIV/0!"},{"$error":"#DIV/0!"},{"$error":"#DIV/0!"}]
[null,null,null,{"$error":"#DIV/0!"},{"$error":"#DIV/0!"},{"$error":"#DIV/0!"},{"$error":"#DIV/0!"}]
[null,null,null,{"$error":"#DIV/0!"},{"$error":"#DIV/0!"},{"$error":"#DIV/0!"},{"$error":"#DIV/0!"}]
[null,null,null,{"$error":"#DIV/0!"},{"$error":"#DIV/0!"},{"$error":"#DIV/0!"},{"$error":"#DIV/0!"}]
[null,null,null,{"$error":"#DIV/0!"},{"$error":"#DIV/0!"},{"$error":"#DIV/0!"},{"$error":"#DIV/0!"}]
[null,null,null,{"$error":"#DIV/0!"},{"$error":"#DIV/0!"},{"$error":"#DIV/0!"},{"$error":"#DIV/0!"}]
[null,null,null,{"$error":"#DIV/0!"},{"$error":"#DIV/0!"},{"$error":"#DIV/0!"},{"$error":"#DIV/0!"}]
[null,null,null,{"$error":"#DIV/0!"},{"$error":"#DIV/0!"},{"$error":"#DIV/0!"},{"$error":"#DIV/0!"}]
[null,null,null,{"$error":"#DIV/0!"},{"$error":"#DIV/0!"},{"$error":"#DIV/0!"},{"$error":"#DIV/0!"}]
[null,null,null,{"$error":"#DIV/0!"},{"$error":"#DIV/0!"},{"$error":"#DIV/0!"},{"$error":"#DIV/0!"}]
[null,null,null,{"$error":"#DIV/0!"},{"$error":"#DIV/0!"},{"$error":"#DIV/0!"},{"$error":"#DIV/0!"}]
[null,null,null,{"$error":"#DIV/0!"},{"$error":"#DIV/0!"},{"$error":"#DIV/0!"},{"$error":"#DIV/0!"}]
[null,null,null,{"$error":"#DIV/0!"},{"$error":"#DIV/0!"},{"$error":"#DIV/0!"},{"$error":"#DIV/0!"}]
[null,null,null,{"$error":"#DIV/0!"},{"$error":"#DIV/0!"},{"$error":"#DIV/0!"},{"$error":"#DIV/0!"}]
[null,null,null,{"$error":"#DIV/0!"},{"$error":"#DIV/0!"},{"$error":"#DIV/0!"},{"$error":"#DIV/0!"}]
[null,null,null,{"$error":"#DIV/0!"},{"$error":"#DIV/0!"},{"$error":"#DIV/0!"},{"$error":"#DIV/0!"}]
[null,null,null,{"$error":"#DIV/0!"},{"$error":"#DIV/0!"},{"$error":"#DIV/0!"},{"$error":"#DIV/0!"}]
[null,null,null,{"$error":"#DIV/0!"},{"$error":"#DIV/0!"},{"$error":"#DIV/0!"},{"$error":"#DIV/0!"}]
[null,null,null,{"$error":"#DIV/0!"},{"$error":"#DIV/0!"},{"$error":"#DIV/0!"},{"$error":"#DIV/0!"}]
[null,null,null,{"$error":"#DIV/0!"},{"$error":"#DIV/0!"},{"$error":"#DIV/0!"},{"$error":"#DIV/0!"}]
[null,null,null,{"$error":"#DIV/0!"},{"$error":"#DIV/0!"},{"$error":"#DIV/0!"},{"$error":"#DIV/0!"}]
[null,null,null,{"$error":"#DIV/0!"},{"$error":"#DIV/0!"},{"$error":"#DIV/0!"},{"$error":"#DIV/0!"}]
[null,null,null,{"$error":"#DIV/0!"},{"$error":"#DIV/0!"},{"$error":"#DIV/0!"},{"$error":"#DIV/0!"}]
[null,null,null,{"$error":"#DIV/0!"},{"$error":"#DIV/0!"},{"$error":"#DIV/0!"},{"$error":"#DIV/0!"}]
[null,null,null,{"$error":"#DIV/0!"},{"$error":"#DIV/0!"},{"$error":"#DIV/0!"},{"$error":"#DIV/0!"}]
[null,null,null,{"$error":"#DIV/0!"},{"$error":"#DIV/0!"},{"$error":"#DIV/0!"},{"$error":"#DIV/0!"}]
[null,null,null,{"$error":"#DIV/0!"},{"$error":"#DIV/0!"},{"$error":"#DIV/0!"},{"$error":"#DIV/0!"}]
[null,null,null,{"$error":"#DIV/0!"},{"$error":"#DIV/0!"},{"$error":"#DIV/0!"},{"$error":"#DIV/0!"}]
[null,null,null,{"$error":"#DIV/0!"},{"$error":"#DIV/0!"},{"$error":"#DIV/0!"},{"$error":"#DIV/0!"}]
[null,null,null,{"$error":"#DIV/0!"},{"$error":"#DIV/0!"},{"$error":"#DIV/0!"},{"$error":"#DIV/0!"}]
[null,null,null,{"$error":"#DIV/0!"},{"$error":"#DIV/0!"},{"$error":"#DIV/0!"},{"$error":"#DIV/0!"}]
[null,null,null,{"$error":"#DIV/0!"},{"$error":"#DIV/0!"},{"$error":"#DIV/0!"},{"$error":"#DIV/0!"}]
[null,null,null,{"$error":"#DIV/0!"},{"$error":"#DIV/0!"},{"$error":"#DIV/0!"},{"$error":"#DIV/0!"}]
[null,null,null,{"$error":"#DIV/0!"},{"$error":"#DIV/0!"},{"$error":"#DIV/0!"},{"$error":"#DIV/0!"}]
[null,null,null,{"$error":"#DIV/0!"},{"$error":"#DIV/0!"},{"$error":"#DIV/0!"},{"$error":"#DIV/0!"}]
[null,null,null,{"$error":"#DIV/0!"},{"$error":"#DIV/0!"},{"$error":"#DIV/0!"},{"$error":"#DIV/0!"}]
[null,null,null,{"$error":"#DIV/0!"},{"$error":"#DIV/0!"},{"$error":"#DIV/0!"},{"$error":"#DIV/0!"}]
[null,null,null,{"$error":"#DIV/0!"},{"$error":"#DIV/0!"},{"$error":"#DIV/0!"},{"$error":"#DIV/0!"}]
[null,null,null,{"$error":"#DIV/0!"},{"$error":"#DIV/0!"},{"$error":"#DIV/0!"},{"$error":"#DIV/0!"}]
[null,null,null,{"$error":"#DIV/0!"},{"$error":"#DIV/0!"},{"$error":"#DIV/0!"},{"$error":"#DIV/0!"}]
[null,null,null,{"$error":"#DIV/0!"},{"$error":"#DIV/0!"},{"$error":"#DIV/0!"},{"$error":"#DIV/0!"}]
[null,null,null,{"$error":"#DIV/0!"},{"$error":"#DIV/0!"},{"$error":"#DIV/0!"},{"$error":"#DIV/0!"}]
[null,null,null,{"$error":"#DIV/0!"},{"$error":"#DIV/0!"},{"$error":"#DIV/0!"},{"$error":"#DIV/0!"}]
[null,null,null,{"$error":"#DIV/0!"},{"$error":"#DIV/0!"},{"$error":"#DIV/0!"},{"$error":"#DIV/0!"}]
[null,null,null,{"$error":"#DIV/0!"},{"$error":"#DIV/0!"},{"$error":"#DIV/0!"},{"$error":"#DIV/0!"}]
[null,null,null,{"$error":"#DIV/0!"},{"$error":"#DIV/0!"},{"$error":"#DIV/0!"},{"$error":"#DIV/0!"}]
[null,null,null,{"$error":"#DIV/0!"},{"$error":"#DIV/0!"},{"$error":"#DIV/0!"},{"$error":"#DIV/0!"}]
[null,null,null,{"$error":"#DIV/0!"},{"$error":"#DIV/0!"},{"$error":"#DIV/0!"},{"$error":"#DIV/0!"}]
[null,null,null,{"$error":"#DIV/0!"},{"$error":"#DIV/0!"},{"$error":"#DIV/0!"},{"$error":"#DIV/0!"}]
[null,null,null,{"$error":"#DIV/0!"},{"$error":"#DIV/0!"},{"$error":"#DIV/0!"},{"$error":"#DIV/0!"}]
[null,null,null,{"$error":"#DIV/0!"},{"$error":"#DIV/0!"},{"$error":"#DIV/0!"},{"$error":"#DIV/0!"}]
[null,null,null,{"$error":"#DIV/0!"},{"$error":"#DIV/0!"},{"$error":"#DIV/0!"},{"$error":"#DIV/0!"}]
[null,null,null,{"$error":"#DIV/0!"},{"$error":"#DIV/0!"},{"$error":"#DIV/0!"},{"$error":"#DIV/0!"}]
[null,null,null,{"$error":"#DIV/0!"},{"$error":"#DIV/0!"},{"$error":"#DIV/0!"},{"$error":"#DIV/0!"}]
[null,null,null,{"$error":"#DIV/0!"},{"$error":"#DIV/0!"},{"$error":"#DIV/0!"},{"$error":"#DIV/0!"}]
[null,null,null,{"$error":"#DIV/0!"},{"$error":"#DIV/0!"},{"$error":"#DIV/0!"},{"$error":"#DIV/0!"}]
[null,null,null,{"$error":"#DIV/0!"},{"$error":"#DIV/0!"},{"$error":"#DIV/0!"},{"$error":"#DIV/0!"}]
[null,null,null,{"$error":"#DIV/0!"},{"$error":"#DIV/0!"},{"$error":"#DIV/0!"},{"$error":"#DIV/0!"}]
[null,null,null,{"$error":"#DIV/0!"},{"$error":"#DIV/0!"},{"$error":"#DIV/0!"},{"$error":"#DIV/0!"}]
[null,null,null,{"$error":"#DIV/0!"},{"$error":"#DIV/0!"},{"$error":"#DIV/0!"},{"$error":"#DIV/0!"}]
[null,null,null,{"$error":"#DIV/0!"},{"$error":"#DIV/0!"},{"$error":"#DIV/0!"},{"$error":"#DIV/0!"}]
[null,null,null,{"$error":"#DIV/0!"},{"$error":"#DIV/0!"},{"$error":"#DIV/0!"},{"$error":"#DIV/0!"}]
[null,null,null,{"$error":"#DIV/0!"},{"$error":"#DIV/0!"},{"$error":"#DIV/0!"},{"$error":"#DIV/0!"}]
[null,null,null,{"$error":"#DIV/0!"},{"$error":"#DIV/0!"},{"$error":"#DIV/0!"},{"$error":"#DIV/0!"}]
[null,null,null,{"$error":"#DIV/0!"},{"$error":"#DIV/0!"},{"$error":"#DIV/0!"},{"$error":"#DIV/0!"}]
[null,null,null,{"$error":"#DIV/0!"},{"$error":"#DIV/0!"},{"$error":"#DIV/0!"},{"$error":"#DIV/0!"}]
[null,null,null,{"$error":"#DIV/0!"},{"$error":"#DIV/0!"},{"$error":"#DIV/0!"},{"$error":"#DIV/0!"}]
[null,null,null,{"$error":"#DIV/0!"},{"$error":"#DIV/0!"},{"$error":"#DIV/0!"},{"$error":"#DIV/0!"}]
[null,null,null,{"$error":"#DIV/0!"},{"$error":"#DIV/0!"},{"$error":"#DIV/0!"},{"$error":"#DIV/0!"}]
[null,null,null,{"$error":"#DIV/0!"},{"$error":"#DIV/0!"},{"$error":"#DIV/0!"},{"$error":"#DIV/0!"}]
[null,null,null,{"$error":"#DIV/0!"},{"$error":"#DIV/0!"},{"$error":"#DIV/0!"},{"$error":"#DIV/0!"}]
[null,null,null,{"$error":"#DIV/0!"},{"$error":"#DIV/0!"},{"$error":"#DIV/0!"},{"$error":"#DIV/0!"}]
[null,null,null,{"$error":"#DIV/0!"},{"$error":"#DIV/0!"},{"$error":"#DIV/0!"},{"$error":"#DIV/0!"}]
[null,null,null,{"$error":"#DIV/0!"},{"$error":"#DIV/0!"},{"$error":"#DIV/0!"},{"$error":"#DIV/0!"}]
[null,null,null,{"$error":"#DIV/0!"},{"$error":"#DIV/0!"},{"$error":"#DIV/0!"},{"$error":"#DIV/0!"}]
[null,null,null,{"$error":"#DIV/0!"},{"$error":"#DIV/0!"},{"$error":"#DIV/0!"},{"$error":"#DIV/0!"}]
[null,null,null,{"$error":"#DIV/0!"},{"$error":"#DIV/0!"},{"$error":"#DIV/0!"},{"$error":"#DIV/0!"}]
[null,null,null,{"$error":"#DIV/0!"},{"$error":"#DIV/0!"},{"$error":"#DIV/0!"},{"$error":"#DIV/0!"}]
[null,null,null,{"$error":"#DIV/0!"},{"$error":"#DIV/0!"},{"$error":"#DIV/0!"},{"$error":"#DIV/0!"}]
[null,null,null,{"$error":"#DIV/0!"},{"$error":"#DIV/0!"},{"$error":"#DIV/0!"},{"$error":"#DIV/0!"}]
[null,null,null,{"$error":"#DIV/0!"},{"$error":"#DIV/0!"},{"$error":"#DIV/0!"},{"$error":"#DIV/0!"}]
[null,null,null,{"$error":"#DIV/0!"},{"$error":"#DIV/0!"},{"$error":"#DIV/0!"},{"$error":"#DIV/0!"}]
[null,null,null,{"$error":"#DIV/0!"},{"$error":"#DIV/0!"},{"$error":"#DIV/0!"},{"$error":"#DIV/0!"}]
[null,null,null,{"$error":"#DIV/0!"},{"$error":"#DIV/0!"},{"$error":"#DIV/0!"},{"$error":"#DIV/0!"}]
[null,null,null,{"$error":"#DIV/0!"},{"$error":"#DIV/0!"},{"$error":"#DIV/0!"},{"$error":"#DIV/0!"}]
[null,null,null,{"$error":"#DIV/0!"},{"$error":"#DIV/0!"},{"$error":"#DIV/0!"},{"$error":"#DIV/0!"}]
[null,null,null,{"$error":"#DIV/0!"},{"$error":"#DIV/0!"},{"$error":"#DIV/0!"},{"$error":"#DIV/0!"}]
[null,null,null,{"$error":"#DIV/0!"},{"$error":"#DIV/0!"},{"$error":"#DIV/0!"},{"$error":"#DIV/0!"}]
[null,null,null,{"$error":"#DIV/0!"},{"$error":"#DIV/0!"},{"$error":"#DIV/0!"},{"$error":"#DIV/0!"}]
[null,null,null,{"$error":"#DIV/0!"},{"$error":"#DIV/0!"},{"$error":"#DIV/0!"},{"$error":"#DIV/0!"}]
[null,null,null,{"$error":"#DIV/0!"},{"$error":"#DIV/0!"},{"$error":"#DIV/0!"},{"$error":"#DIV/0!"}]
[null,null,null,{"$error":"#DIV/0!"},{"$error":"#DIV/0!"},{"$error":"#DIV/0!"},{"$error":"#DIV/0!"}]
[null,null,null,{"$error":"#DIV/0!"},{"$error":"#DIV/0!"},{"$error":"#DIV/0!"},{"$error":"#DIV/0!"}]
[null,null,null,{"$error":"#DIV/0!"},{"$error":"#DIV/0!"},{"$error":"#DIV/0!"},{"$error":"#DIV/0!"}]
[null,null,null,{"$error":"#DIV/0!"},{"$error":"#DIV/0!"},{"$error":"#DIV/0!"},{"$error":"#DIV/0!"}]
[null,null,null,{"$error":"#DIV/0!"},{"$error":"#DIV/0!"},{"$error":"#DIV/0!"},{"$error":"#DIV/0!"}]
[null,null,null,{"$error":"#DIV/0!"},{"$error":"#DIV/0!"},{"$error":"#DIV/0!"},{"$error":"#DIV/0!"}]
[null,null,null,{"$error":"#DIV/0!"},{"$error":"#DIV/0!"},{"$error":"#DIV/0!"},{"$error":"#DIV/0!"}]
[null,null,null,{"$error":"#DIV/0!"},{"$error":"#DIV/0!"},{"$error":"#DIV/0!"},{"$error":"#DIV/0!"}]
[null,null,null,{"$error":"#DIV/0!"},{"$error":"#DIV/0!"},{"$error":"#DIV/0!"},{"$error":"#DIV/0!"}]
[null,null,null,{"$error":"#DIV/0!"},{"$error":"#DIV/0!"},{"$error":"#DIV/0!"},{"$error":"#DIV/0!"}]
[null,null,null,{"$error":"#DIV/0!"},{"$error":"#DIV/0!"},{"$error":"#DIV/0!"},{"$error":"#DIV/0!"}]
[null,null,null,{"$error":"#DIV/0!"},{"$error":"#DIV/0!"},{"$error":"#DIV/0!"},{"$error":"#DIV/0!"}]
[null,null,null,{"$error":"#DIV/0!"},{"$error":"#DIV/0!"},{"$error":"#DIV/0!"},{"$error":"#DIV/0!"}]
[null,null,null,{"$error":"#DIV/0!"},{"$error":"#DIV/0!"},{"$error":"#DIV/0!"},{"$error":"#DIV/0!"}]
[null,null,null,{"$error":"#DIV/0!"},{"$error":"#DIV/0!"},{"$error":"#DIV/0!"},{"$error":"#DIV/0!"}]
[null,null,null,{"$error":"#DIV/0!"},{"$error":"#DIV/0!"},{"$error":"#DIV/0!"},{"$error":"#DIV/0!"}]
[null,null,null,{"$error":"#DIV/0!"},{"$error":"#DIV/0!"},{"$error":"#DIV/0!"},{"$error":"#DIV/0!"}]
[null,null,null,{"$error":"#DIV/0!"},{"$error":"#DIV/0!"},{"$error":"#DIV/0!"},{"$error":"#DIV/0!"}]
[null,null,null,{"$error":"#DIV/0!"},{"$error":"#DIV/0!"},{"$error":"#DIV/0!"},{"$error":"#DIV/0!"}]
[null,null,null,{"$error":"#DIV/0!"},{"$error":"#DIV/0!"},{"$error":"#DIV/0!"},{"$error":"#DIV/0!"}]
[null,null,null,{"$error":"#DIV/0!"},{"$error":"#DIV/0!"},{"$error":"#DIV/0!"},{"$error":"#DIV/0!"}]
[null,null,null,{"$error":"#DIV/0!"},{"$error":"#DIV/0!"},{"$error":"#DIV/0!"},{"$error":"#DIV/0!"}]
[null,null,null,{"$error":"#DIV/0!"},{"$error":"#DIV/0!"},{"$error":"#DIV/0!"},{"$error":"#DIV/0!"}]
[null,null,null,{"$error":"#DIV/0!"},{"$error":"#DIV/0!"},{"$error":"#DIV/0!"},{"$error":"#DIV/0!"}]
[null,null,null,{"$error":"#DIV/0!"},{"$error":"#DIV/0!"},{"$error":"#DIV/0!"},{"$error":"#DIV/0!"}]
[null,null,null,{"$error":"#DIV/0!"},{"$error":"#DIV/0!"},{"$error":"#DIV/0!"},{"$error":"#DIV/0!"}]
[null,null,null,{"$error":"#DIV/0!"},{"$error":"#DIV/0!"},{"$error":"#DIV/0!"},{"$error":"#DIV/0!"}]
[null,null,null,{"$error":"#DIV/0!"},{"$error":"#DIV/0!"},{"$error":"#DIV/0!"},{"$error":"#DIV/0!"}]
[null,null,null,{"$error":"#DIV/0!"},{"$error":"#DIV/0!"},{"$error":"#DIV/0!"},{"$error":"#DIV/0!"}]
[null,null,null,{"$error":"#DIV/0!"},{"$error":"#DIV/0!"},{"$error":"#DIV/0!"},{"$error":"#DIV/0!"}]
[null,null,null,{"$error":"#DIV/0!"},{"$error":"#DIV/0!"},{"$error":"#DIV/0!"},{"$error":"#DIV/0!"}]
[null,null,null,{"$error":"#DIV/0!"},{"$error":"#DIV/0!"},{"$error":"#DIV/0!"},{"$error":"#DIV/0!"}]
[null,null,null,{"$error":"#DIV/0!"},{"$error":"#DIV/0!"},{"$error":"#DIV/0!"},{"$error":"#DIV/0!"}]
[null,null,null,{"$error":"#DIV/0!"},{"$error":"#DIV/0!"},{"$error":"#DIV/0!"},{"$error":"#DIV/0!"}]
[null,null,null,{"$error":"#DIV/0!"},{"$error":"#DIV/0!"},{"$error":"#DIV/0!"},{"$error":"#DIV/0!"}]
[null,null,null,{"$error":"#DIV/0!"},{"$error":"#DIV/0!"},{"$error":"#DIV/0!"},{"$error":"#DIV/0!"}]
[null,null,null,{"$error":"#DIV/0!"},{"$error":"#DIV/0!"},{"$error":"#DIV/0!"},{"$error":"#DIV/0!"}]
[null,null,null,{"$error":"#DIV/0!"},{"$error":"#DIV/0!"},{"$error":"#DIV/0!"},{"$error":"#DIV/0!"}]
[null,null,null,{"$error":"#DIV/0!"},{"$error":"#DIV/0!"},{"$error":"#DIV/0!"},{"$error":"#DIV/0!"}]
[null,null,null,{"$error":"#DIV/0!"},{"$error":"#DIV/0!"},{"$error":"#DIV/0!"},{"$error":"#DIV/0!"}]
[null,null,null,{"$error":"#DIV/0!"},{"$error":"#DIV/0!"},{"$error":"#DIV/0!"},{"$error":"#DIV/0!"}]
[null,null,null,{"$error":"#DIV/0!"},{"$error":"#DIV/0!"},{"$error":"#DIV/0!"},{"$error":"#DIV/0!"}]
[null,null,null,{"$error":"#DIV/0!"},{"$error":"#DIV/0!"},{"$error":"#DIV/0!"},{"$error":"#DIV/0!"}]
[null,null,null,{"$error":"#DIV/0!"},{"$error":"#DIV/0!"},{"$error":"#DIV/0!"},{"$error":"#DIV/0!"}]
[null,null,null,{"$error":"#DIV/0!"},{"$error":"#DIV/0!"},{"$error":"#DIV/0!"},{"$error":"#DIV/0!"}]
[null,null,null,{"$error":"#DIV/0!"},{"$error":"#DIV/0!"},{"$error":"#DIV/0!"},{"$error":"#DIV/0!"}]
[null,null,null,{"$error":"#DIV/0!"},{"$error":"#DIV/0!"},{"$error":"#DIV/0!"},{"$error":"#DIV/0!"}]
[null,null,null,{"$error":"#DIV/0!"},{"$error":"#DIV/0!"},{"$error":"#DIV/0!"},{"$error":"#DIV/0!"}]
[null,null,null,{"$error":"#DIV/0!"},{"$error":"#DIV/0!"},{"$error":"#DIV/0!"},{"$error":"#DIV/0!"}]
[null,null,null,{"$error":"#DIV/0!"},{"$error":"#DIV/0!"},{"$error":"#DIV/0!"},{"$error":"#DIV/0!"}]
[null,null,null,{"$error":"#DIV/0!"},{"$error":"#DIV/0!"},{"$error":"#DIV/0!"},{"$error":"#DIV/0!"}]
[null,null,null,{"$error":"#DIV/0!"},{"$error":"#DIV/0!"},{"$error":"#DIV/0!"},{"$error":"#DIV/0!"}]
[null,null,null,{"$error":"#DIV/0!"},{"$error":"#DIV/0!"},{"$error":"#DIV/0!"},{"$error":"#DIV/0!"}]
[null,null,null,{"$error":"#DIV/0!"},{"$error":"#DIV/0!"},{"$error":"#DIV/0!"},{"$error":"#DIV/0!"}]
[null,null,null,{"$error":"#DIV/0!"},{"$error":"#DIV/0!"},{"$error":"#DIV/0!"},{"$error":"#DIV/0!"}]
[null,null,null,{"$error":"#DIV/0!"},{"$error":"#DIV/0!"},{"$error":"#DIV/0!"},{"$error":"#DIV/0!"}]
[null,null,null,{"$error":"#DIV/0!"},{"$error":"#DIV/0!"},{"$error":"#DIV/0!"},{"$error":"#DIV/0!"}]
[null,null,null,{"$error":"#DIV/0!"},{"$error":"#DIV/0!"},{"$error":"#DIV/0!"},{"$error":"#DIV/0!"}]
[null,null,null,{"$error":"#DIV/0!"},{"$error":"#DIV/0!"},{"$error":"#DIV/0!"},{"$error":"#DIV/0!"}]
[null,null,null,{"$error":"#DIV/0!"},{"$error":"#DIV/0!"},{"$error":"#DIV/0!"},{"$error":"#DIV/0!"}]
[null,null,null,{"$error":"#DIV/0!"},{"$error":"#DIV/0!"},{"$error":"#DIV/0!"},{"$error":"#DIV/0!"}]
[null,null,null,{"$error":"#DIV/0!"},{"$error":"#DIV/0!"},{"$error":"#DIV/0!"},{"$error":"#DIV/0!"}]
[null,null,null,{"$error":"#DIV/0!"},{"$error":"#DIV/0!"},{"$error":"#DIV/0!"},{"$error":"#DIV/0!"}]
[null,null,null,{"$error":"#DIV/0!"},{"$error":"#DIV/0!"},{"$error":"#DIV/0!"},{"$error":"#DIV/0!"}]
[null,null,null,{"$error":"#DIV/0!"},{"$error":"#DIV/0!"},{"$error":"#DIV/0!"},{"$error":"#DIV/0!"}]
[null,null,null,{"$error":"#DIV/0!"},{"$error":"#DIV/0!"},{"$error":"#DIV/0!"},{"$error":"#DIV/0!"}]
[null,null,null,{"$error":"#DIV/0!"},{"$error":"#DIV/0!"},{"$error":"#DIV/0!"},{"$error":"#DIV/0!"}]
[null,null,null,{"$error":"#DIV/0!"},{"$error":"#DIV/0!"},{"$error":"#DIV/0!"},{"$error":"#DIV/0!"}]
[null,null,null,{"$error":"#DIV/0!"},{"$error":"#DIV/0!"},{"$error":"#DIV/0!"},{"$error":"#DIV/0!"}]
[null,null,null,{"$error":"#DIV/0!"},{"$error":"#DIV/0!"},{"$error":"#DIV/0!"},{"$error":"#DIV/0!"}]
[null,null,null,{"$error":"#DIV/0!"},{"$error":"#DIV/0!"},{"$error":"#DIV/0!"},{"$error":"#DIV/0!"}]
[null,null,null,{"$error":"#DIV/0!"},{"$error":"#DIV/0!"},{"$error":"#DIV/0!"},{"$error":"#DIV/0!"}]
[null,null,null,{"$error":"#DIV/0!"},{"$error":"#DIV/0!"},{"$error":"#DIV/0!"},{"$error":"#DIV/0!"}]
[null,null,null,{"$error":"#DIV/0!"},{"$error":"#DIV/0!"},{"$error":"#DIV/0!"},{"$error":"#DIV/0!"}]
[null,null,null,{"$error":"#DIV/0!"},{"$error":"#DIV/0!"},{"$error":"#DIV/0!"},{"$error":"#DIV/0!"}]
[null,null,null,{"$error":"#DIV/0!"},{"$error":"#DIV/0!"},{"$error":"#DIV/0!"},{"$error":"#DIV/0!"}]
[null,null,null,{"$error":"#DIV/0!"},{"$error":"#DIV/0!"},{"$error":"#DIV/0!"},{"$error":"#DIV/0!"}]
[null,null,null,{"$error":"#DIV/0!"},{"$error":"#DIV/0!"},{"$error":"#DIV/0!"},{"$error":"#DIV/0!"}]
[null,null,null,{"$error":"#DIV/0!"},{"$error":"#DIV/0!"},{"$error":"#DIV/0!"},{"$error":"#DIV/0!"}]
[null,null,null,{"$error":"#DIV/0!"},{"$error":"#DIV/0!"},{"$error":"#DIV/0!"},{"$error":"#DIV/0!"}]
[null,null,null,{"$error":"#DIV/0!"},{"$error":"#DIV/0!"},{"$error":"#DIV/0!"},{"$error":"#DIV/0!"}]
[null,null,null,{"$error":"#DIV/0!"},{"$error":"#DIV/0!"},{"$error":"#DIV/0!"},{"$error":"#DIV/0!"}]
[null,null,null,{"$error":"#DIV/0!"},{"$error":"#DIV/0!"},{"$error":"#DIV/0!"},{"$error":"#DIV/0!"}]
[null,null,null,{"$error":"#DIV/0!"},{"$error":"#DIV/0!"},{"$error":"#DIV/0!"},{"$error":"#DIV/0!"}]
[null,null,null,{"$error":"#DIV/0!"},{"$error":"#DIV/0!"},{"$error":"#DIV/0!"},{"$error":"#DIV/0!"}]
[null,null,null,{"$error":"#DIV/0!"},{"$error":"#DIV/0!"},{"$error":"#DIV/0!"},{"$error":"#DIV/0!"}]
[null,null,null,{"$error":"#DIV/0!"},{"$error":"#DIV/0!"},{"$error":"#DIV/0!"},{"$error":"#DIV/0!"}]
[null,null,null,{"$error":"#DIV/0!"},{"$error":"#DIV/0!"},{"$error":"#DIV/0!"},{"$error":"#DIV/0!"}]
[null,null,null,{"$error":"#DIV/0!"},{"$error":"#DIV/0!"},{"$error":"#DIV/0!"},{"$error":"#DIV/0!"}]
[null,null,null,{"$error":"#DIV/0!"},{"$error":"#DIV/0!"},{"$error":"#DIV/0!"},{"$error":"#DIV/0!"}]
[null,null,null,{"$error":"#DIV/0!"},{"$error":"#DIV/0!"},{"$error":"#DIV/0!"},{"$error":"#DIV/0!"}]
[null,null,null,{"$error":"#DIV/0!"},{"$error":"#DIV/0!"},{"$error":"#DIV/0!"},{"$error":"#DIV/0!"}]
[null,null,null,{"$error":"#DIV/0!"},{"$error":"#DIV/0!"},{"$error":"#DIV/0!"},{"$error":"#DIV/0!"}]
[null,null,null,{"$error":"#DIV/0!"},{"$error":"#DIV/0!"},{"$error":"#DIV/0!"},{"$error":"#DIV/0!"}]
[null,null,null,{"$error":"#DIV/0!"},{"$error":"#DIV/0!"},{"$error":"#DIV/0!"},{"$error":"#DIV/0!"}]
[null,null,null,{"$error":"#DIV/0!"},{"$error":"#DIV/0!"},{"$error":"#DIV/0!"},{"$error":"#DIV/0!"}]
[null,null,null,{"$error":"#DIV/0!"},{"$error":"#DIV/0!"},{"$error":"#DIV/0!"},{"$error":"#DIV/0!"}]
[null,null,null,{"$error":"#DIV/0!"},{"$error":"#DIV/0!"},{"$error":"#DIV/0!"},{"$error":"#DIV/0!"}]
[null,null,null,{"$error":"#DIV/0!"},{"$error":"#DIV/0!"},{"$error":"#DIV/0!"},{"$error":"#DIV/0!"}]
[null,null,null,{"$error":"#DIV/0!"},{"$error":"#DIV/0!"},{"$error":"#DIV/0!"},{"$error":"#DIV/0!"}]
[null,null,null,{"$error":"#DIV/0!"},{"$error":"#DIV/0!"},{"$error":"#DIV/0!"},{"$error":"#DIV/0!"}]
[null,null,null,{"$error":"#DIV/0!"},{"$error":"#DIV/0!"},{"$error":"#DIV/0!"},{"$error":"#DIV/0!"}]
[null,null,null,{"$error":"#DIV/0!"},{"$error":"#DIV/0!"},{"$error":"#DIV/0!"},{"$error":"#DIV/0!"}]
[null,null,null,{"$error":"#DIV/0!"},{"$error":"#DIV/0!"},{"$error":"#DIV/0!"},{"$error":"#DIV/0!"}]
[null,null,null,{"$error":"#DIV/0!"},{"$error":"#DIV/0!"},{"$error":"#DIV/0!"},{"$error":"#DIV/0!"}]
[null,null,null,{"$error":"#DIV/0!"},{"$error":"#DIV/0!"},{"$error":"#DIV/0!"},{"$error":"#DIV/0!"}]
[null,null,null,{"$error":"#DIV/0!"},{"$error":"#DIV/0!"},{"$error":"#DIV/0!"},{"$error":"#DIV/0!"}]
[null,null,null,{"$error":"#DIV/0!"},{"$error":"#DIV/0!"},{"$error":"#DIV/0!"},{"$error":"#DIV/0!"}]
[null,null,null,{"$error":"#DIV/0!"},{"$error":"#DIV/0!"},{"$error":"#DIV/0!"},{"$error":"#DIV/0!"}]
[null,null,null,{"$error":"#DIV/0!"},{"$error":"#DIV/0!"},{"$error":"#DIV/0!"},{"$error":"#DIV/0!"}]
[null,null,null,{"$error":"#DIV/0!"},{"$error":"#DIV/0!"},{"$error":"#DIV/0!"},{"$error":"#DIV/0!"}]
[null,null,null,{"$error":"#DIV/0!"},{"$error":"#DIV/0!"},{"$error":"#DIV/0!"},{"$error":"#DIV/0!"}]
[null,null,null,{"$error":"#DIV/0!"},{"$error":"#DIV/0!"},{"$error":"#DIV/0!"},{"$error":"#DIV/0!"}]
[null,null,null,{"$error":"#DIV/0!"},{"$error":"#DIV/0!"},{"$error":"#DIV/0!"},{"$error":"#DIV/0!"}]
[null,null,null,{"$error":"#DIV/0!"},{"$error":"#DIV/0!"},{"$error":"#DIV/0!"},{"$error":"#DIV/0!"}]
[null,null,null,{"$error":"#DIV/0!"},{"$error":"#DIV/0!"},{"$error":"#DIV/0!"},{"$error":"#DIV/0!"}]
[null,null,null,{"$error":"#DIV/0!"},{"$error":"#DIV/0!"},{"$error":"#DIV/0!"},{"$error":"#DIV/0!"}]
[null,null,null,{"$error":"#DIV/0!"},{"$error":"#DIV/0!"},{"$error":"#DIV/0!"},{"$error":"#DIV/0!"}]
[null,null,null,{"$error":"#DIV/0!"},{"$error":"#DIV/0!"},{"$error":"#DIV/0!"},{"$error":"#DIV/0!"}]
[null,null,null,{"$error":"#DIV/0!"},{"$error":"#DIV/0!"},{"$error":"#DIV/0!"},{"$error":"#DIV/0!"}]
[null,null,null,{"$error":"#DIV/0!"},{"$error":"#DIV/0!"},{"$error":"#DIV/0!"},{"$error":"#DIV/0!"}]
[null,null,null,{"$error":"#DIV/0!"},{"$error":"#DIV/0!"},{"$error":"#DIV/0!"},{"$error":"#DIV/0!"}]
[null,null,null,{"$error":"#DIV/0!"},{"$error":"#DIV/0!"},{"$error":"#DIV/0!"},{"$error":"#DIV/0!"}]
[null,null,null,{"$error":"#DIV/0!"},{"$error":"#DIV/0!"},{"$error":"#DIV/0!"},{"$error":"#DIV/0!"}]
[null,null,null,{"$error":"#DIV/0!"},{"$error":"#DIV/0!"},{"$error":"#DIV/0!"},{"$error":"#DIV/0!"}]
[null,null,null,{"$error":"#DIV/0!"},{"$error":"#DIV/0!"},{"$error":"#DIV/0!"},{"$error":"#DIV/0!"}]

{"sheet":"testreport","index":26,"n_rows":30,"n_cols":9,"rows_kept":30,"cut":false,"hidden":true,"merged":[]}
[]
[]
[]
[]
["Airfield Drainage Planning/Design/Retrofit","POTW","Modular Tanks",{"$f":"MOD((ROW()-5),A$27)+1","v":1},{"$f":"MOD(INT((ROW()-1)/A$27),B$27)+1","v":2},{"$f":"MOD(INT(INT((ROW()-1)/A$27)/B$27),C$27)+1","v":1},{"$f":"INDEX(A$5:A$12,D5)","v":"Airfield Drainage Planning/Design/Retrofit"},{"$f":"INDEX(B$5:B$12,E5)","v":"lotw"},{"$f":"INDEX(C$5:C$12,F5)","v":"Modular Tanks"}]
["Apron Collection Systems","lotw","Ponds/Basins",{"$f":"MOD((ROW()-5),A$27)+1","v":2},2,1,"Apron Collection Systems","lotw","Modular Tanks"]
["Deicer-laden Snow Management",null,"lotd",3,1,2,"Deicer-laden Snow Management","POTW","Ponds/Basins"]
[null,null,null,1,1,2,"Airfield Drainage Planning/Design/Retrofit","POTW","Ponds/Basins"]
[null,null,null,2,1,2,"Apron Collection Systems","POTW","Ponds/Basins"]
[null,null,null,3,2,2,"Deicer-laden Snow Management","lotw","Ponds/Basins"]
[null,null,null,1,2,2,"Airfield Drainage Planning/Design/Retrofit","lotw","Ponds/Basins"]
[null,null,null,2,2,2,"Apron Collection Systems","lotw","Ponds/Basins"]
[null,null,null,3,1,3,"Deicer-laden Snow Management","POTW","lotd"]
[null,null,null,1,1,3,"Airfield Drainage Planning/Design/Retrofit","POTW","lotd"]
[null,null,null,2,1,3,"Apron Collection Systems","POTW","lotd"]
[null,null,null,3,2,3,"Deicer-laden Snow Management","lotw","lotd"]
[null,null,null,1,2,3,"Airfield Drainage Planning/Design/Retrofit","lotw","lotd"]
[null,null,null,2,2,3,"Apron Collection Systems","lotw","lotd"]
[null,null,null,3,1,1,"Deicer-laden Snow Management","POTW","Modular Tanks"]
[null,null,null,1,1,1,"Airfield Drainage Planning/Design/Retrofit","POTW","Modular Tanks"]
[null,null,null,2,1,1,"Apron Collection Systems","POTW","Modular Tanks"]
[null,null,null,3,2,1,"Deicer-laden Snow Management","lotw","Modular Tanks"]
[null,null,null,1,2,1,"Airfield Drainage Planning/Design/Retrofit","lotw","Modular Tanks"]
[null,null,null,2,2,1,"Apron Collection Systems","lotw","Modular Tanks"]
[null,null,null,3,1,2,"Deicer-laden Snow Management","POTW","Ponds/Basins"]
[null,null,null,1,1,2,"Airfield Drainage Planning/Design/Retrofit","POTW","Ponds/Basins"]
[{"$f":"COUNTA(A5:A14)","v":3},{"$f":"COUNTA(B5:B14)","v":2},{"$f":"COUNTA(C5:C14)","v":3},2,1,2,"Apron Collection Systems","POTW","Ponds/Basins"]
[null,null,null,3,2,2,"Deicer-laden Snow Management","lotw","Ponds/Basins"]
[]
[{"$f":"PRODUCT(A27:C27)","v":18}]